Workbook

Sheet 1. Input fra oljedrift og MRA
B2: Dimensjonering av beredskap mot akutt forurensning: fra åpent hav til strandsone
B4: yyyyyyyyyy
B6: Aktivitetsinformasjon
B7: Navn | C7: Test
B8: Brønnbane
B9: Type aktivitet
B10: Dimensjonerende utblåsningsrate (Sm3/d) | C10: 1000
B11: Topside/Subsea
B12: Lokasjon (koordinater)
B13: Dato
B14: Utført av
B16: Input fra miljørisikoanalyse
B17: MRA utført av
B18: Rapport/ref. nr.
B19: Kontaktperson hos leverandør
B20: Minste drivtid til land (døgn) (95-persentil)
B21: Vinter (Desember-februar)
B22: Vår (Mars-mai)
B23: Sommer (Juni-august)
B24: Høst (September-november)
B25: Maksimalt berørt kystlinje (m) (95-persentil)
B26: Vinter (Desember-februar)
B27: Vår (Mars-mai)
B28: Sommer (Juni-august)
B29: Høst (September-november)
B30: Maksimal strandet mengde emulsjon uten effekt av beredskap (tonn) (95-persentil)
B31: Vinter (Desember-februar) | C31: 100
B32: Vår (Mars-mai) | C32: 100
B33: Sommer (Juni-august) | C33: 100
B34: Høst (September-november) | C34: 100
B35: Oljetype | C35: Avaldsnes (Johan Sverdrup) 2012
B36: Forvitringsstudie
B37: Lengste varighet på utblåsning (døgn)
B39: Dimensjonerende antall eksempelområder
B40: Vinter (Desember-februar) | C40: 1
B41: Vår (Mars-mai) | C41: 2
B42: Sommer (Juni-august) | C42: 3
B43: Høst (September-november) | C43: 4

Sheet Op.Lys (hidden)
B2: Velg region som er representativ for lokasjonen til denne aktivitet
AF6: Velg region | AG6: 0 | AH6: 0 | AI6: 0 | AJ6: 0 | AK6: 0
AF7: Region 1 | AG7: ='Op.Lys.STOTTE'!D12 -> 0.38 | AH7: ='Op.Lys.STOTTE'!E12 -> 0.66 | AI7: ='Op.Lys.STOTTE'!F12 -> 0.808 | AJ7: ='Op.Lys.STOTTE'!G12 -> 0.4946666667 | AK7: ='Op.Lys.STOTTE'!H12 -> 0.5856666667
AF8: Region 2 | AG8: ='Op.Lys.STOTTE'!D13 -> 0.3813333333 | AH8: ='Op.Lys.STOTTE'!E13 -> 0.658 | AI8: ='Op.Lys.STOTTE'!F13 -> 0.8033333333 | AJ8: ='Op.Lys.STOTTE'!G13 -> 0.4946666667 | AK8: ='Op.Lys.STOTTE'!H13 -> 0.5843333333
AF9: Region 3 | AG9: ='Op.Lys.STOTTE'!D14 -> 0.36 | AH9: ='Op.Lys.STOTTE'!E14 -> 0.6853333333 | AI9: ='Op.Lys.STOTTE'!F14 -> 0.8953333333 | AJ9: ='Op.Lys.STOTTE'!G14 -> 0.4913333333 | AK9: ='Op.Lys.STOTTE'!H14 -> 0.608
AF10: Region 4 | AG10: ='Op.Lys.STOTTE'!D15 -> 0.3173333333 | AH10: ='Op.Lys.STOTTE'!E15 -> 0.7593333333 | AI10: ='Op.Lys.STOTTE'!F15 -> 0.9453333333 | AJ10: ='Op.Lys.STOTTE'!G15 -> 0.4846666667 | AK10: ='Op.Lys.STOTTE'!H15 -> 0.6266666667
AF11: Region 5 | AG11: ='Op.Lys.STOTTE'!D16 -> 0.2333333333 | AH11: ='Op.Lys.STOTTE'!E16 -> 0.7933333333 | AI11: ='Op.Lys.STOTTE'!F16 -> 1 | AJ11: ='Op.Lys.STOTTE'!G16 -> 0.4746666667 | AK11: ='Op.Lys.STOTTE'!H16 -> 0.6253333333
D34: Andel operasjonslys i denne region
D35: Velg region
D36: Vinter | E36: Vår | F36: Sommer | G36: Høst | H36: År
D37: =VLOOKUP($D$35,$AF$6:$AK$11,2,FALSE) -> 0 | E37: =VLOOKUP($D$35,$AF$6:$AK$11,3,FALSE) -> 0 | F37: =VLOOKUP($D$35,$AF$6:$AK$11,4,FALSE) -> 0 | G37: =VLOOKUP($D$35,$AF$6:$AK$11,5,FALSE) -> 0 | H37: =VLOOKUP($D$35,$AF$6:$AK$11,6,FALSE) -> 0

Sheet 2. Effektivitet
B2: Effektivitet for havgående systemer på utvalgte lokasjoner. Se fanen "Stasjonskoordinater" for detaljer. | L2: Effektivitet for systemer i barriere 3 og 4 for lokasjoner representative for kystnære forhold. | AB2: NOFO_EFF | AQ2: Op.Eff.STOTTE.NOFO.V2! | AT2: EFFEKTIVITET VED DE ULIKE STASJONENE
AB3: Velg st. | AC3: 0 | AD3: 0 | AE3: 0 | AF3: 0 | AG3: 0 | AQ3: Velg st.
AB4: 1 | AC4: ='Op.Eff.STOTTE.NOFO'!D27 -> 0.57878505 | AD4: ='Op.Eff.STOTTE.NOFO'!E27 -> 0.2622032487 | AE4: ='Op.Eff.STOTTE.NOFO'!F27 -> 0.7976399375 | AF4: ='Op.Eff.STOTTE.NOFO'!$G$27 -> 0.2064635515 | AG4: ='Op.Eff.STOTTE.NOFO'!H27 -> 0.2318687823 | AQ4: 1 | AR4: 27 | AS4: =$AQ$2&"D"&$AR4 -> Op.Eff.STOTTE.NOFO.V2!D27 | AT4: =$AQ$2&"E"&$AR4 -> Op.Eff.STOTTE.NOFO.V2!E27 | AU4: =$AQ$2&"F"&$AR4 -> Op.Eff.STOTTE.NOFO.V2!F27 | AV4: =$AQ$2&"G"&$AR4 -> Op.Eff.STOTTE.NOFO.V2!G27 | AW4: =$AQ$2&"H"&$AR4 -> Op.Eff.STOTTE.NOFO.V2!H27 | AY4: =INDIRECT(AS4,TRUE) -> 0.57878505 | AZ4: =INDIRECT(AT4,TRUE) -> 0.741537625 | BA4: =INDIRECT(AU4,TRUE) -> 0.7976399375 | BB4: =INDIRECT(AV4,TRUE) -> 0.6690587 | BC4: =INDIRECT(AW4,TRUE) -> 0.6967553281 | BE4: 78 | BF4: 123 | BG4: 144 | BH4: 97
AB5: 2 | AC5: ='Op.Eff.STOTTE.NOFO'!D51 -> 0.4756167497 | AD5: ='Op.Eff.STOTTE.NOFO'!E51 -> 0.6613845035 | AE5: ='Op.Eff.STOTTE.NOFO'!F51 -> 0.7830451198 | AF5: ='Op.Eff.STOTTE.NOFO'!$G$51 -> 0.6052431409 | AG5: ='Op.Eff.STOTTE.NOFO'!H51 -> 0.6313223785 | AQ5: 2 | AR5: 51 | AS5: Op.Eff.STOTTE.NOFO.V2!D51 | AT5: Op.Eff.STOTTE.NOFO.V2!E51 | AU5: Op.Eff.STOTTE.NOFO.V2!F51 | AV5: Op.Eff.STOTTE.NOFO.V2!G51 | AW5: Op.Eff.STOTTE.NOFO.V2!H51 | AY5: 0.70817095 | AZ5: 0.81951085 | BA5: 0.8404769 | BB5: 0.7725265125 | BC5: 0.7851713031 | BE5: 78 | BF5: 123 | BG5: 144 | BH5: 97
AB6: 3 | AC6: ='Op.Eff.STOTTE.NOFO'!D75 -> 0.6215638667 | AD6: ='Op.Eff.STOTTE.NOFO'!E75 -> 0.7451534936 | AE6: ='Op.Eff.STOTTE.NOFO'!F75 -> 0.8223918919 | AF6: ='Op.Eff.STOTTE.NOFO'!$G$75 -> 0.7134892967 | AG6: ='Op.Eff.STOTTE.NOFO'!H75 -> 0.7256496372 | AQ6: 3 | AR6: 75 | AS6: Op.Eff.STOTTE.NOFO.V2!D75 | AT6: Op.Eff.STOTTE.NOFO.V2!E75 | AU6: Op.Eff.STOTTE.NOFO.V2!F75 | AV6: Op.Eff.STOTTE.NOFO.V2!G75 | AW6: Op.Eff.STOTTE.NOFO.V2!H75 | AY6: 0.481164775 | AZ6: 0.69117435 | BA6: 0.7810553 | BB6: 0.5982568125 | BC6: 0.6379128094 | BE6: 78 | BF6: 123 | BG6: 144 | BH6: 97
AB7: 4 | AC7: ='Op.Eff.STOTTE.NOFO'!D99 -> 0.4540045623 | AD7: ='Op.Eff.STOTTE.NOFO'!E99 -> 0.6502248105 | AE7: ='Op.Eff.STOTTE.NOFO'!F99 -> 0.7793548339 | AF7: ='Op.Eff.STOTTE.NOFO'!$G$99 -> 0.5886842451 | AG7: ='Op.Eff.STOTTE.NOFO'!H99 -> 0.618067113 | AQ7: 4 | AR7: 99 | AS7: Op.Eff.STOTTE.NOFO.V2!D99 | AT7: Op.Eff.STOTTE.NOFO.V2!E99 | AU7: Op.Eff.STOTTE.NOFO.V2!F99 | AV7: Op.Eff.STOTTE.NOFO.V2!G99 | AW7: Op.Eff.STOTTE.NOFO.V2!H99 | AY7: 0.5865205375 | AZ7: 0.75694915 | BA7: 0.8074246 | BB7: 0.6853995875 | BC7: 0.7090734687 | BE7: 78 | BF7: 123 | BG7: 144 | BH7: 97
AB8: 5 | AC8: ='Op.Eff.STOTTE.NOFO'!D123 -> 0.5675496297 | AD8: ='Op.Eff.STOTTE.NOFO'!E123 -> 0.7206911471 | AE8: ='Op.Eff.STOTTE.NOFO'!F123 -> 0.8122206737 | AF8: ='Op.Eff.STOTTE.NOFO'!$G$123 -> 0.6779144316 | AG8: ='Op.Eff.STOTTE.NOFO'!H123 -> 0.6945939705 | AQ8: 5 | AR8: 123 | AS8: Op.Eff.STOTTE.NOFO.V2!D123 | AT8: Op.Eff.STOTTE.NOFO.V2!E123 | AU8: Op.Eff.STOTTE.NOFO.V2!F123 | AV8: Op.Eff.STOTTE.NOFO.V2!G123 | AW8: Op.Eff.STOTTE.NOFO.V2!H123 | AY8: 0.459206175 | AZ8: 0.677563075 | BA8: 0.774669175 | BB8: 0.5816481375 | BC8: 0.6232716406 | BE8: 78 | BF8: 123 | BG8: 144 | BH8: 97
AB9: 6 | AC9: ='Op.Eff.STOTTE.NOFO'!D147 -> 0.6508064896 | AD9: ='Op.Eff.STOTTE.NOFO'!E147 -> 0.7716628649 | AE9: ='Op.Eff.STOTTE.NOFO'!F147 -> 0.8393343635 | AF9: ='Op.Eff.STOTTE.NOFO'!$G$147 -> 0.7362960837 | AG9: ='Op.Eff.STOTTE.NOFO'!H147 -> 0.7495249504 | AQ9: 6 | AR9: 147 | AS9: Op.Eff.STOTTE.NOFO.V2!D147 | AT9: Op.Eff.STOTTE.NOFO.V2!E147 | AU9: Op.Eff.STOTTE.NOFO.V2!F147 | AV9: Op.Eff.STOTTE.NOFO.V2!G147 | AW9: Op.Eff.STOTTE.NOFO.V2!H147 | AY9: 0.6366095375 | AZ9: 0.7674414375 | BA9: 0.8239807125 | BB9: 0.7167780625 | BC9: 0.7362024375 | BE9: 74 | BF9: 125 | BG9: 154 | BH9: 95
AB10: 7 | AC10: ='Op.Eff.STOTTE.NOFO'!D171 -> 0.4541734625 | AD10: ='Op.Eff.STOTTE.NOFO'!E171 -> 0.6524710042 | AE10: ='Op.Eff.STOTTE.NOFO'!F171 -> 0.7810673047 | AF10: ='Op.Eff.STOTTE.NOFO'!$G$171 -> 0.5911642396 | AG10: ='Op.Eff.STOTTE.NOFO'!H171 -> 0.6197190027 | AQ10: 7 | AR10: 171 | AS10: Op.Eff.STOTTE.NOFO.V2!D171 | AT10: Op.Eff.STOTTE.NOFO.V2!E171 | AU10: Op.Eff.STOTTE.NOFO.V2!F171 | AV10: Op.Eff.STOTTE.NOFO.V2!G171 | AW10: Op.Eff.STOTTE.NOFO.V2!H171 | AY10: 0.452133575 | AZ10: 0.6722071875 | BA10: 0.7710132 | BB10: 0.5782071 | BC10: 0.6183902656 | BE10: 74 | BF10: 125 | BG10: 154 | BH10: 95
AB11: 8 | AC11: ='Op.Eff.STOTTE.NOFO'!D195 -> 0.5779794119 | AD11: ='Op.Eff.STOTTE.NOFO'!E195 -> 0.7333887541 | AE11: ='Op.Eff.STOTTE.NOFO'!F195 -> 0.8244213903 | AF11: ='Op.Eff.STOTTE.NOFO'!$G$195 -> 0.6874520196 | AG11: ='Op.Eff.STOTTE.NOFO'!H195 -> 0.705810394 | AQ11: 8 | AR11: 195 | AS11: Op.Eff.STOTTE.NOFO.V2!D195 | AT11: Op.Eff.STOTTE.NOFO.V2!E195 | AU11: Op.Eff.STOTTE.NOFO.V2!F195 | AV11: Op.Eff.STOTTE.NOFO.V2!G195 | AW11: Op.Eff.STOTTE.NOFO.V2!H195 | AY11: 0.4614161875 | AZ11: 0.6721341875 | BA11: 0.7718401375 | BB11: 0.5856473625 | BC11: 0.6227594687 | BE11: 74 | BF11: 125 | BG11: 154 | BH11: 95
AB12: 9 | AC12: ='Op.Eff.STOTTE.NOFO'!D219 -> 0.617397278 | AD12: ='Op.Eff.STOTTE.NOFO'!E219 -> 0.7598729881 | AE12: ='Op.Eff.STOTTE.NOFO'!F219 -> 0.8374122388 | AF12: ='Op.Eff.STOTTE.NOFO'!$G$219 -> 0.71694755 | AG12: ='Op.Eff.STOTTE.NOFO'!H219 -> 0.7329075137 | AQ12: 9 | AR12: 219 | AS12: Op.Eff.STOTTE.NOFO.V2!D219 | AT12: Op.Eff.STOTTE.NOFO.V2!E219 | AU12: Op.Eff.STOTTE.NOFO.V2!F219 | AV12: Op.Eff.STOTTE.NOFO.V2!G219 | AW12: Op.Eff.STOTTE.NOFO.V2!H219 | AY12: 0.4599978875 | AZ12: 0.6663575375 | BA12: 0.7716104125 | BB12: 0.59046785 | BC12: 0.6221084219 | BE12: 74 | BF12: 125 | BG12: 154 | BH12: 95
AB13: 10 | AC13: ='Op.Eff.STOTTE.NOFO'!D243 -> 0.6952734832 | AD13: ='Op.Eff.STOTTE.NOFO'!E243 -> 0.8011938825 | AE13: ='Op.Eff.STOTTE.NOFO'!F243 -> 0.8543740999 | AF13: ='Op.Eff.STOTTE.NOFO'!$G$243 -> 0.7685549248 | AG13: ='Op.Eff.STOTTE.NOFO'!H243 -> 0.7798490976 | AQ13: 10 | AR13: 243 | AS13: Op.Eff.STOTTE.NOFO.V2!D243 | AT13: Op.Eff.STOTTE.NOFO.V2!E243 | AU13: Op.Eff.STOTTE.NOFO.V2!F243 | AV13: Op.Eff.STOTTE.NOFO.V2!G243 | AW13: Op.Eff.STOTTE.NOFO.V2!H243 | AY13: 0.41517975 | AZ13: 0.6367122625 | BA13: 0.764112825 | BB13: 0.5580569625 | BC13: 0.59351545 | BE13: 74 | BF13: 125 | BG13: 154 | BH13: 95
AB14: 11 | AC14: ='Op.Eff.STOTTE.NOFO'!D267 -> 0.5312266521 | AD14: ='Op.Eff.STOTTE.NOFO'!E267 -> 0.6981838146 | AE14: ='Op.Eff.STOTTE.NOFO'!F267 -> 0.8003795369 | AF14: ='Op.Eff.STOTTE.NOFO'!$G$267 -> 0.6523384125 | AG14: ='Op.Eff.STOTTE.NOFO'!H267 -> 0.670532104 | AQ14: 11 | AR14: 267 | AS14: Op.Eff.STOTTE.NOFO.V2!D267 | AT14: Op.Eff.STOTTE.NOFO.V2!E267 | AU14: Op.Eff.STOTTE.NOFO.V2!F267 | AV14: Op.Eff.STOTTE.NOFO.V2!G267 | AW14: Op.Eff.STOTTE.NOFO.V2!H267 | AY14: 0.453807375 | AZ14: 0.6588204375 | BA14: 0.7735277 | BB14: 0.593577925 | BC14: 0.6199333594 | BE14: 74 | BF14: 125 | BG14: 154 | BH14: 95
AQ15: 12 | AR15: 291 | AS15: Op.Eff.STOTTE.NOFO.V2!D291 | AT15: Op.Eff.STOTTE.NOFO.V2!E291 | AU15: Op.Eff.STOTTE.NOFO.V2!F291 | AV15: Op.Eff.STOTTE.NOFO.V2!G291 | AW15: Op.Eff.STOTTE.NOFO.V2!H291 | AY15: 0.5965072125 | AZ15: 0.73945445 | BA15: 0.82366745 | BB15: 0.6940695625 | BC15: 0.7134246688 | BE15: 74 | BF15: 125 | BG15: 154 | BH15: 95
AC16: FJORD_EFF | AI16: B3 KYST_EFF | AQ16: 13 | AR16: 315 | AS16: Op.Eff.STOTTE.NOFO.V2!D315 | AT16: Op.Eff.STOTTE.NOFO.V2!E315 | AU16: Op.Eff.STOTTE.NOFO.V2!F315 | AV16: Op.Eff.STOTTE.NOFO.V2!G315 | AW16: Op.Eff.STOTTE.NOFO.V2!H315 | AY16: 0.3711513375 | AZ16: 0.6085774 | BA16: 0.7543137625 | BB16: 0.5319919 | BC16: 0.5665086 | BE16: 74 | BF16: 125 | BG16: 154 | BH16: 95
AB17: Velg st. | AC17: 0 | AD17: 0 | AE17: 0 | AF17: 0 | AG17: 0 | AI17: Velg st. | AJ17: 0 | AK17: 0 | AL17: 0 | AM17: 0 | AN17: 0 | AQ17: 14 | AR17: 339 | AS17: Op.Eff.STOTTE.NOFO.V2!D339 | AT17: Op.Eff.STOTTE.NOFO.V2!E339 | AU17: Op.Eff.STOTTE.NOFO.V2!F339 | AV17: Op.Eff.STOTTE.NOFO.V2!G339 | AW17: Op.Eff.STOTTE.NOFO.V2!H339 | AY17: 0.5583084375 | AZ17: 0.70706235 | BA17: 0.8166416 | BB17: 0.666104675 | BC17: 0.6870292656 | BE17: 75 | BF17: 131 | BG17: 156 | BH17: 97
AB18: 1 | AC18: ='Op.Eff.STOTTE.FJORD'!L14 -> 0.0009890053432 | AD18: ='Op.Eff.STOTTE.FJORD'!M14 -> 0.05082413696 | AE18: ='Op.Eff.STOTTE.FJORD'!N14 -> 0.1095960611 | AF18: ='Op.Eff.STOTTE.FJORD'!O14 -> 0.03696988115 | AG18: =SUM(AC18:AF18)/4 -> 0.04959477113 | AI18: 1 | AJ18: ='Op.Eff.STOTTE.KYST'!L14 -> 0.02667488697 | AK18: ='Op.Eff.STOTTE.KYST'!M14 -> 0.1932265139 | AL18: ='Op.Eff.STOTTE.KYST'!N14 -> 0.3978597267 | AM18: ='Op.Eff.STOTTE.KYST'!O14 -> 0.1280051324 | AN18: =SUM(AJ18:AM18)/4 -> 0.186441565 | AQ18: 15 | AR18: 363 | AS18: Op.Eff.STOTTE.NOFO.V2!D363 | AT18: Op.Eff.STOTTE.NOFO.V2!E363 | AU18: Op.Eff.STOTTE.NOFO.V2!F363 | AV18: Op.Eff.STOTTE.NOFO.V2!G363 | AW18: Op.Eff.STOTTE.NOFO.V2!H363 | AY18: 0.3944132625 | AZ18: 0.59726825 | BA18: 0.7629092 | BB18: 0.5589369625 | BC18: 0.5783819187 | BE18: 75 | BF18: 131 | BG18: 156 | BH18: 97
AB19: 2 | AC19: ='Op.Eff.STOTTE.FJORD'!L42 -> 0.6662890464 | AD19: ='Op.Eff.STOTTE.FJORD'!M42 -> 0.734970996 | AE19: ='Op.Eff.STOTTE.FJORD'!N42 -> 0.8784297964 | AF19: ='Op.Eff.STOTTE.FJORD'!O42 -> 0.7192902485 | AG19: =SUM(AC19:AF19)/4 -> 0.7497450218 | AI19: 2 | AJ19: ='Op.Eff.STOTTE.KYST'!L42 -> 0.7953118578 | AK19: ='Op.Eff.STOTTE.KYST'!M42 -> 0.8320847482 | AL19: ='Op.Eff.STOTTE.KYST'!N42 -> 0.8921355841 | AM19: ='Op.Eff.STOTTE.KYST'!O42 -> 0.8312736359 | AN19: =SUM(AJ19:AM19)/4 -> 0.8377014565 | AQ19: 16 | AR19: 387 | AS19: Op.Eff.STOTTE.NOFO.V2!D387 | AT19: Op.Eff.STOTTE.NOFO.V2!E387 | AU19: Op.Eff.STOTTE.NOFO.V2!F387 | AV19: Op.Eff.STOTTE.NOFO.V2!G387 | AW19: Op.Eff.STOTTE.NOFO.V2!H387 | AY19: 0.4430177125 | AZ19: 0.6230419 | BA19: 0.7779057125 | BB19: 0.5589369625 | BC19: 0.6007255719 | BE19: 71 | BF19: 135 | BG19: 155 | BH19: 97
AB20: 3 | AC20: ='Op.Eff.STOTTE.FJORD'!L70 -> 0.8180487053 | AD20: ='Op.Eff.STOTTE.FJORD'!M70 -> 0.8217176005 | AE20: ='Op.Eff.STOTTE.FJORD'!N70 -> 0.8941351822 | AF20: ='Op.Eff.STOTTE.FJORD'!O70 -> 0.8436554565 | AG20: =SUM(AC20:AF20)/4 -> 0.8443892361 | AI20: 3 | AJ20: ='Op.Eff.STOTTE.KYST'!L70 -> 0.8659448212 | AK20: ='Op.Eff.STOTTE.KYST'!M70 -> 0.8805461234 | AL20: ='Op.Eff.STOTTE.KYST'!N70 -> 0.8968984459 | AM20: ='Op.Eff.STOTTE.KYST'!O70 -> 0.8849945975 | AN20: =SUM(AJ20:AM20)/4 -> 0.882095997 | AQ20: 17 | AR20: 411 | AS20: Op.Eff.STOTTE.NOFO.V2!D411 | AT20: Op.Eff.STOTTE.NOFO.V2!E411 | AU20: Op.Eff.STOTTE.NOFO.V2!F411 | AV20: Op.Eff.STOTTE.NOFO.V2!G411 | AW20: Op.Eff.STOTTE.NOFO.V2!H411 | AY20: 0.4147052 | AZ20: 0.6063543375 | BA20: 0.76754495 | BB20: 0.5745305 | BC20: 0.5907837469 | BE20: 67 | BF20: 141 | BG20: 155 | BH20: 96
AB21: 4 | AC21: ='Op.Eff.STOTTE.FJORD'!L98 -> 0.2259658857 | AD21: ='Op.Eff.STOTTE.FJORD'!M98 -> 0.4922962649 | AE21: ='Op.Eff.STOTTE.FJORD'!N98 -> 0.6242229368 | AF21: ='Op.Eff.STOTTE.FJORD'!O98 -> 0.4020732037 | AG21: =SUM(AC21:AF21)/4 -> 0.4361395728 | AI21: 4 | AJ21: ='Op.Eff.STOTTE.KYST'!L98 -> 0.4785013358 | AK21: ='Op.Eff.STOTTE.KYST'!M98 -> 0.6757852292 | AL21: ='Op.Eff.STOTTE.KYST'!N98 -> 0.8094721329 | AM21: ='Op.Eff.STOTTE.KYST'!O98 -> 0.5877093463 | AN21: =SUM(AJ21:AM21)/4 -> 0.6378670111 | AQ21: 18 | AR21: 435 | AS21: Op.Eff.STOTTE.NOFO.V2!D435 | AT21: Op.Eff.STOTTE.NOFO.V2!E435 | AU21: Op.Eff.STOTTE.NOFO.V2!F435 | AV21: Op.Eff.STOTTE.NOFO.V2!G435 | AW21: Op.Eff.STOTTE.NOFO.V2!H435 | AY21: 0.5780598125 | AZ21: 0.7612096375 | BA21: 0.8727666125 | BB21: 0.7340219625 | BC21: 0.7365145063 | BE21: 67 | BF21: 141 | BG21: 155 | BH21: 96
AB22: 5 | AC22: ='Op.Eff.STOTTE.FJORD'!L126 -> 0.8742524661 | AD22: ='Op.Eff.STOTTE.FJORD'!M126 -> 0.8844475099 | AE22: ='Op.Eff.STOTTE.FJORD'!N126 -> 0.8967343248 | AF22: ='Op.Eff.STOTTE.FJORD'!O126 -> 0.8797440573 | AG22: =SUM(AC22:AF22)/4 -> 0.8837945895 | AI22: 5 | AJ22: ='Op.Eff.STOTTE.KYST'!L126 -> 0.8932413687 | AK22: ='Op.Eff.STOTTE.KYST'!M126 -> 0.8946024335 | AL22: ='Op.Eff.STOTTE.KYST'!N126 -> 0.8981712219 | AM22: ='Op.Eff.STOTTE.KYST'!O126 -> 0.8925580767 | AN22: =SUM(AJ22:AM22)/4 -> 0.8946432752 | AQ22: 19 | AR22: 459 | AS22: Op.Eff.STOTTE.NOFO.V2!D459 | AT22: Op.Eff.STOTTE.NOFO.V2!E459 | AU22: Op.Eff.STOTTE.NOFO.V2!F459 | AV22: Op.Eff.STOTTE.NOFO.V2!G459 | AW22: Op.Eff.STOTTE.NOFO.V2!H459 | AY22: 0.6610735875 | AZ22: 0.730962675 | BA22: 0.8222515 | BB22: 0.7377199375 | BC22: 0.738001925 | BE22: 67 | BF22: 141 | BG22: 155 | BH22: 96
AQ23: 20 | AR23: 483 | AS23: Op.Eff.STOTTE.NOFO.V2!D483 | AT23: Op.Eff.STOTTE.NOFO.V2!E483 | AU23: Op.Eff.STOTTE.NOFO.V2!F483 | AV23: Op.Eff.STOTTE.NOFO.V2!G483 | AW23: Op.Eff.STOTTE.NOFO.V2!H483 | AY23: 0.74326125 | AZ23: 0.782623625 | BA23: 0.82875625 | BB23: 0.7731283625 | BC23: 0.7819423719 | BE23: 49 | BF23: 136 | BG23: 135 | BH23: 88
AI24: B4 KYST_EFF | AQ24: 21 | AR24: 507 | AS24: Op.Eff.STOTTE.NOFO.V2!D507 | AT24: Op.Eff.STOTTE.NOFO.V2!E507 | AU24: Op.Eff.STOTTE.NOFO.V2!F507 | AV24: Op.Eff.STOTTE.NOFO.V2!G507 | AW24: Op.Eff.STOTTE.NOFO.V2!H507 | AY24: 0.72244155 | AZ24: 0.771613 | BA24: 0.8268278125 | BB24: 0.7631549 | BC24: 0.7710093156 | BE24: 49 | BF24: 136 | BG24: 135 | BH24: 88
AI25: Velg st. | AJ25: 0 | AK25: 0 | AL25: 0 | AM25: 0 | AN25: 0 | AQ25: 22 | AR25: 531 | AS25: Op.Eff.STOTTE.NOFO.V2!D531 | AT25: Op.Eff.STOTTE.NOFO.V2!E531 | AU25: Op.Eff.STOTTE.NOFO.V2!F531 | AV25: Op.Eff.STOTTE.NOFO.V2!G531 | AW25: Op.Eff.STOTTE.NOFO.V2!H531 | AY25: 0.620800275 | AZ25: 0.7011948875 | BA25: 0.8061425 | BB25: 0.702370025 | BC25: 0.7076269219 | BE25: 49 | BF25: 136 | BG25: 135 | BH25: 88
AC26: NOFO_TILLATT | AI26: 1 | AJ26: ='Op.Eff.STOTTE.KYST'!L15 -> 0.0009890053432 | AK26: ='Op.Eff.STOTTE.KYST'!M15 -> 0.05082413696 | AL26: ='Op.Eff.STOTTE.KYST'!N15 -> 0.1095960611 | AM26: ='Op.Eff.STOTTE.KYST'!O15 -> 0.03696988115 | AN26: =SUM(AJ26:AM26)/4 -> 0.04959477113 | AQ26: 23 | AR26: 555 | AS26: Op.Eff.STOTTE.NOFO.V2!D555 | AT26: Op.Eff.STOTTE.NOFO.V2!E555 | AU26: Op.Eff.STOTTE.NOFO.V2!F555 | AV26: Op.Eff.STOTTE.NOFO.V2!G555 | AW26: Op.Eff.STOTTE.NOFO.V2!H555 | AY26: 0.5271988 | AZ26: 0.6614951375 | BA26: 0.7873864375 | BB26: 0.64789435 | BC26: 0.6559936813 | BE26: 49 | BF26: 136 | BG26: 135 | BH26: 88
C27: Gruppe A NOFO-system: | F27: Stasjon | G27: 11 | M27: Gruppe D system: | P27: Stasjon | Q27: 3 | AC27: Vinter | AD27: Vår | AE27: Sommer | AF27: Høst | AI27: 2 | AJ27: ='Op.Eff.STOTTE.KYST'!L43 -> 0.6662890464 | AK27: ='Op.Eff.STOTTE.KYST'!M43 -> 0.734970996 | AL27: ='Op.Eff.STOTTE.KYST'!N43 -> 0.8784297964 | AM27: ='Op.Eff.STOTTE.KYST'!O43 -> 0.7192902485 | AN27: =SUM(AJ27:AM27)/4 -> 0.7497450218 | AQ27: 24 | AR27: 579 | AS27: Op.Eff.STOTTE.NOFO.V2!D579 | AT27: Op.Eff.STOTTE.NOFO.V2!E579 | AU27: Op.Eff.STOTTE.NOFO.V2!F579 | AV27: Op.Eff.STOTTE.NOFO.V2!G579 | AW27: Op.Eff.STOTTE.NOFO.V2!H579 | AY27: 0.5767479875 | AZ27: 0.681872625 | BA27: 0.790818475 | BB27: 0.67642975 | BC27: 0.6814672094 | BE27: 49 | BF27: 136 | BG27: 135 | BH27: 88
AB28: Velg st. | AC28: 0 | AD28: 0 | AE28: 0 | AF28: 0 | AI28: 3 | AJ28: ='Op.Eff.STOTTE.KYST'!L71 -> 0.8180487053 | AK28: ='Op.Eff.STOTTE.KYST'!M71 -> 0.8217176005 | AL28: ='Op.Eff.STOTTE.KYST'!N71 -> 0.8941351822 | AM28: ='Op.Eff.STOTTE.KYST'!O71 -> 0.8436554565 | AN28: =SUM(AJ28:AM28)/4 -> 0.8443892361 | AQ28: 25 | AR28: 603 | AS28: Op.Eff.STOTTE.NOFO.V2!D603 | AT28: Op.Eff.STOTTE.NOFO.V2!E603 | AU28: Op.Eff.STOTTE.NOFO.V2!F603 | AV28: Op.Eff.STOTTE.NOFO.V2!G603 | AW28: Op.Eff.STOTTE.NOFO.V2!H603 | AY28: 0.5376589875 | AZ28: 0.6726068625 | BA28: 0.7849132125 | BB28: 0.6495936875 | BC28: 0.6611931875 | BE28: 49 | BF28: 136 | BG28: 135 | BH28: 88
C29: Gjennomsnittlig effektivitet | M29: Gjennomsnittlig effektivitet - Gruppe D | AB29: 1 | AC29: =('Op.Eff.STOTTE.NOFO'!O15+'Op.Eff.STOTTE.NOFO'!D15+'Op.Eff.STOTTE.NOFO'!E15)/3 -> 26.62113333 | AD29: =('Op.Eff.STOTTE.NOFO'!F15+'Op.Eff.STOTTE.NOFO'!$G$15+'Op.Eff.STOTTE.NOFO'!H15)/3 -> 0.3263696087 | AE29: =('Op.Eff.STOTTE.NOFO'!I15+'Op.Eff.STOTTE.NOFO'!J15+'Op.Eff.STOTTE.NOFO'!K15)/3 -> 32.80333333 | AF29: =('Op.Eff.STOTTE.NOFO'!L15+'Op.Eff.STOTTE.NOFO'!M15+'Op.Eff.STOTTE.NOFO'!N15)/3 -> 0.2809005042 | AI29: 4 | AJ29: ='Op.Eff.STOTTE.KYST'!L99 -> 0.2259658857 | AK29: ='Op.Eff.STOTTE.KYST'!M99 -> 0.4922962649 | AL29: ='Op.Eff.STOTTE.KYST'!N99 -> 0.6242229368 | AM29: ='Op.Eff.STOTTE.KYST'!O99 -> 0.4020732037 | AN29: 0.4361395728 | AQ29: 26 | AR29: 627 | AS29: Op.Eff.STOTTE.NOFO.V2!D627 | AT29: Op.Eff.STOTTE.NOFO.V2!E627 | AU29: Op.Eff.STOTTE.NOFO.V2!F627 | AV29: Op.Eff.STOTTE.NOFO.V2!G627 | AW29: Op.Eff.STOTTE.NOFO.V2!H627 | AY29: 0.5541607 | AZ29: 0.6809609625 | BA29: 0.786693575 | BB29: 0.6610210125 | BC29: 0.6707090625 | BE29: 49 | BF29: 136 | BG29: 135 | BH29: 88
C30: Vinter | D30: Vår | E30: Sommer | F30: Høst | G30: År | M30: Vinter | N30: Vår | O30: Sommer | P30: Høst | Q30: År | AB30: 2 | AC30: =('Op.Eff.STOTTE.NOFO'!O39+'Op.Eff.STOTTE.NOFO'!D39+'Op.Eff.STOTTE.NOFO'!E39)/3 -> 0.6847391343 | AD30: =('Op.Eff.STOTTE.NOFO'!F39+'Op.Eff.STOTTE.NOFO'!$G$39+'Op.Eff.STOTTE.NOFO'!H39)/3 -> 0.8814468092 | AE30: =('Op.Eff.STOTTE.NOFO'!I39+'Op.Eff.STOTTE.NOFO'!J39+'Op.Eff.STOTTE.NOFO'!K39)/3 -> 0.9837249816 | AF30: =('Op.Eff.STOTTE.NOFO'!L39+'Op.Eff.STOTTE.NOFO'!M39+'Op.Eff.STOTTE.NOFO'!N39)/3 -> 0.8292179005 | AI30: 5 | AJ30: ='Op.Eff.STOTTE.KYST'!L127 -> 0.8742524661 | AK30: ='Op.Eff.STOTTE.KYST'!M127 -> 0.8844475099 | AL30: ='Op.Eff.STOTTE.KYST'!N127 -> 0.8967343248 | AM30: ='Op.Eff.STOTTE.KYST'!O127 -> 0.8797440573 | AN30: 0.8837945895 | AQ30: 27 | AR30: 651 | AS30: Op.Eff.STOTTE.NOFO.V2!D651 | AT30: Op.Eff.STOTTE.NOFO.V2!E651 | AU30: Op.Eff.STOTTE.NOFO.V2!F651 | AV30: Op.Eff.STOTTE.NOFO.V2!G651 | AW30: Op.Eff.STOTTE.NOFO.V2!H651 | AY30: 0.4796347625 | AZ30: 0.656610725 | BA30: 0.7863025125 | BB30: 0.6175202875 | BC30: 0.6350170719 | BE30: 49 | BF30: 136 | BG30: 135 | BH30: 88
C31: =VLOOKUP($G$27,$AQ$4:$BC$30,9,FALSE) -> 0.453807375 | D31: =VLOOKUP($G$27,$AQ$4:$BC$30,10,FALSE) -> 0.6588204375 | E31: =VLOOKUP($G$27,$AQ$4:$BC$30,11,FALSE) -> 0.7735277 | F31: =VLOOKUP($G$27,$AQ$4:$BC$30,12,FALSE) -> 0.593577925 | G31: =VLOOKUP($G$27,$AQ$4:$BC$30,13,FALSE) -> 0.6199333594 | M31: =VLOOKUP($Q$27,$AI$17:$AN$22,2,FALSE) -> 0.8659448212 | N31: =VLOOKUP($Q$27,$AI$17:$AN$22,3,FALSE) -> 0.8805461234 | O31: =VLOOKUP($Q$27,$AI$17:$AN$22,4,FALSE) -> 0.8968984459 | P31: =VLOOKUP($Q$27,$AI$17:$AN$22,5,FALSE) -> 0.8849945975 | Q31: =VLOOKUP($Q$27,$AI$17:$AN$22,6,FALSE) -> 0.882095997 | AB31: 3 | AC31: =('Op.Eff.STOTTE.NOFO'!O63+'Op.Eff.STOTTE.NOFO'!D63+'Op.Eff.STOTTE.NOFO'!E63)/3 -> 0.85285774 | AD31: =('Op.Eff.STOTTE.NOFO'!F63+'Op.Eff.STOTTE.NOFO'!$G$63+'Op.Eff.STOTTE.NOFO'!H63)/3 -> 0.9515023113 | AE31: =('Op.Eff.STOTTE.NOFO'!I63+'Op.Eff.STOTTE.NOFO'!J63+'Op.Eff.STOTTE.NOFO'!K63)/3 -> 0.9957671847 | AF31: =('Op.Eff.STOTTE.NOFO'!L63+'Op.Eff.STOTTE.NOFO'!M63+'Op.Eff.STOTTE.NOFO'!N63)/3 -> 0.9323272809
AB32: 4 | AC32: =('Op.Eff.STOTTE.NOFO'!O87+'Op.Eff.STOTTE.NOFO'!D87+'Op.Eff.STOTTE.NOFO'!E87)/3 -> 0.660935076 | AD32: =('Op.Eff.STOTTE.NOFO'!F87+'Op.Eff.STOTTE.NOFO'!$G$87+'Op.Eff.STOTTE.NOFO'!H87)/3 -> 0.8735184161 | AE32: =('Op.Eff.STOTTE.NOFO'!I87+'Op.Eff.STOTTE.NOFO'!J87+'Op.Eff.STOTTE.NOFO'!K87)/3 -> 0.9837472722 | AF32: =('Op.Eff.STOTTE.NOFO'!L87+'Op.Eff.STOTTE.NOFO'!M87+'Op.Eff.STOTTE.NOFO'!N87)/3 -> 0.8156974138 | AQ32: Op.Eff.STOTTE.KYSTVAKT.V2! | AT32: EFFEKTIVITET VED DE ULIKE STASJONENE
C33: Gruppe B system | F33: Stasjon | G33: 2 | M33: Gruppe E system: | P33: Stasjon | Q33: 3 | AB33: 5 | AC33: =('Op.Eff.STOTTE.NOFO'!O111+'Op.Eff.STOTTE.NOFO'!D111+'Op.Eff.STOTTE.NOFO'!E111)/3 -> 0.7904156446 | AD33: =('Op.Eff.STOTTE.NOFO'!F111+'Op.Eff.STOTTE.NOFO'!$G$111+'Op.Eff.STOTTE.NOFO'!H111)/3 -> 0.9304375771 | AE33: =('Op.Eff.STOTTE.NOFO'!I111+'Op.Eff.STOTTE.NOFO'!J111+'Op.Eff.STOTTE.NOFO'!K111)/3 -> 0.9920993225 | AF33: =('Op.Eff.STOTTE.NOFO'!L111+'Op.Eff.STOTTE.NOFO'!M111+'Op.Eff.STOTTE.NOFO'!N111)/3 -> 0.8982594262 | AQ33: Velg st.
Q34: Velg region | AB34: 6 | AC34: =('Op.Eff.STOTTE.NOFO'!O135+'Op.Eff.STOTTE.NOFO'!D135+'Op.Eff.STOTTE.NOFO'!E135)/3 -> 0.8729473456 | AD34: =('Op.Eff.STOTTE.NOFO'!F135+'Op.Eff.STOTTE.NOFO'!$G$135+'Op.Eff.STOTTE.NOFO'!H135)/3 -> 0.9631860564 | AE34: =('Op.Eff.STOTTE.NOFO'!I135+'Op.Eff.STOTTE.NOFO'!J135+'Op.Eff.STOTTE.NOFO'!K135)/3 -> 0.9965758867 | AF34: =('Op.Eff.STOTTE.NOFO'!L135+'Op.Eff.STOTTE.NOFO'!M135+'Op.Eff.STOTTE.NOFO'!N135)/3 -> 0.9421246779 | AQ34: 1 | AR34: 27 | AS34: =$AQ$32&"D"&$AR34 -> Op.Eff.STOTTE.KYSTVAKT.V2!D27 | AT34: =$AQ$32&"E"&$AR34 -> Op.Eff.STOTTE.KYSTVAKT.V2!E27 | AU34: =$AQ$32&"F"&$AR34 -> Op.Eff.STOTTE.KYSTVAKT.V2!F27 | AV34: =$AQ$32&"G"&$AR34 -> Op.Eff.STOTTE.KYSTVAKT.V2!G27 | AW34: =$AQ$32&"H"&$AR34 -> Op.Eff.STOTTE.KYSTVAKT.V2!H27 | AY34: =INDIRECT(AS34,TRUE) -> 0.382277325 | AZ34: =INDIRECT(AT34,TRUE) -> 0.6353289 | BA34: =INDIRECT(AU34,TRUE) -> 0.7522316375 | BB34: =INDIRECT(AV34,TRUE) -> 0.5020497 | BC34: =INDIRECT(AW34,TRUE) -> 0.5679718906
C35: Gjennomsnittlig effektivitet | M35: Gjennomsnittlig effektivitet | AB35: 7 | AC35: =('Op.Eff.STOTTE.NOFO'!O159+'Op.Eff.STOTTE.NOFO'!D159+'Op.Eff.STOTTE.NOFO'!E159)/3 -> 0.6631846344 | AD35: =('Op.Eff.STOTTE.NOFO'!F159+'Op.Eff.STOTTE.NOFO'!$G$159+'Op.Eff.STOTTE.NOFO'!H159)/3 -> 0.8787056675 | AE35: =('Op.Eff.STOTTE.NOFO'!I159+'Op.Eff.STOTTE.NOFO'!J159+'Op.Eff.STOTTE.NOFO'!K159)/3 -> 0.9865013776 | AF35: =('Op.Eff.STOTTE.NOFO'!L159+'Op.Eff.STOTTE.NOFO'!M159+'Op.Eff.STOTTE.NOFO'!N159)/3 -> 0.8217482683 | AQ35: 2 | AR35: 51 | AS35: Op.Eff.STOTTE.KYSTVAKT.V2!D51 | AT35: Op.Eff.STOTTE.KYSTVAKT.V2!E51 | AU35: Op.Eff.STOTTE.KYSTVAKT.V2!F51 | AV35: Op.Eff.STOTTE.KYSTVAKT.V2!G51 | AW35: Op.Eff.STOTTE.KYSTVAKT.V2!H51 | AY35: 0.584184525 | AZ35: 0.77877125 | BA35: 0.8248125 | BB35: 0.6788632125 | BC35: 0.7166578719
C36: Vinter | D36: Velg st. | E36: Sommer | F36: Høst | G36: År | M36: Vinter | N36: Vår | O36: Sommer | P36: Høst | Q36: År | AB36: 8 | AC36: =('Op.Eff.STOTTE.NOFO'!O183+'Op.Eff.STOTTE.NOFO'!D183+'Op.Eff.STOTTE.NOFO'!E183)/3 -> 0.7972549875 | AD36: =('Op.Eff.STOTTE.NOFO'!F183+'Op.Eff.STOTTE.NOFO'!$G$183+'Op.Eff.STOTTE.NOFO'!H183)/3 -> 0.9352490413 | AE36: =('Op.Eff.STOTTE.NOFO'!I183+'Op.Eff.STOTTE.NOFO'!J183+'Op.Eff.STOTTE.NOFO'!K183)/3 -> 0.9938208114 | AF36: =('Op.Eff.STOTTE.NOFO'!L183+'Op.Eff.STOTTE.NOFO'!M183+'Op.Eff.STOTTE.NOFO'!N183)/3 -> 0.9020929553 | AQ36: 3 | AR36: 75 | AS36: Op.Eff.STOTTE.KYSTVAKT.V2!D75 | AT36: Op.Eff.STOTTE.KYSTVAKT.V2!E75 | AU36: Op.Eff.STOTTE.KYSTVAKT.V2!F75 | AV36: Op.Eff.STOTTE.KYSTVAKT.V2!G75 | AW36: Op.Eff.STOTTE.KYSTVAKT.V2!H75 | AY36: 0.2605527 | AZ36: 0.53680515 | BA36: 0.724300325 | BB36: 0.4093203875 | BC36: 0.4827446406
C37: =VLOOKUP($G$33,$AQ$34:$BC$64,9,FALSE) -> 0.584184525 | D37: =VLOOKUP($G$33,$AQ$34:$BC$64,10,FALSE) -> 0.77877125 | E37: =VLOOKUP($G$33,$AQ$34:$BC$64,11,FALSE) -> 0.8248125 | F37: =VLOOKUP($G$33,$AQ$34:$BC$64,12,FALSE) -> 0.6788632125 | G37: =VLOOKUP($G$33,$AQ$34:$BC$64,13,FALSE) -> 0.7166578719 | M37: =VLOOKUP($Q$33,$AB$17:$AG$22,2,FALSE) -> 0.8180487053 | N37: =VLOOKUP($Q$33,$AB$17:$AG$22,3,FALSE) -> 0.8217176005 | O37: =VLOOKUP($Q$33,$AB$17:$AG$22,4,FALSE) -> 0.8941351822 | P37: =VLOOKUP($Q$33,$AB$17:$AG$22,5,FALSE) -> 0.8436554565 | Q37: =VLOOKUP($Q$33,$AB$17:$AG$22,6,FALSE) -> 0.8443892361 | AB37: 9 | AC37: =('Op.Eff.STOTTE.NOFO'!O207+'Op.Eff.STOTTE.NOFO'!D207+'Op.Eff.STOTTE.NOFO'!E207)/3 -> 0.8325281071 | AD37: =('Op.Eff.STOTTE.NOFO'!F207+'Op.Eff.STOTTE.NOFO'!$G$207+'Op.Eff.STOTTE.NOFO'!H207)/3 -> 0.9526616769 | AE37: =('Op.Eff.STOTTE.NOFO'!I207+'Op.Eff.STOTTE.NOFO'!J207+'Op.Eff.STOTTE.NOFO'!K207)/3 -> 0.9957407939 | AF37: =('Op.Eff.STOTTE.NOFO'!L207+'Op.Eff.STOTTE.NOFO'!M207+'Op.Eff.STOTTE.NOFO'!N207)/3 -> 0.9229123151 | AQ37: 4 | AR37: 99 | AS37: Op.Eff.STOTTE.KYSTVAKT.V2!D99 | AT37: Op.Eff.STOTTE.KYSTVAKT.V2!E99 | AU37: Op.Eff.STOTTE.KYSTVAKT.V2!F99 | AV37: Op.Eff.STOTTE.KYSTVAKT.V2!G99 | AW37: Op.Eff.STOTTE.KYSTVAKT.V2!H99 | AY37: 0.4078105125 | AZ37: 0.655623725 | BA37: 0.770895025 | BB37: 0.5195703875 | BC37: 0.5884749125
M38: Gruppe E system:
M40: Gjennomsnittlig effektivitet - Gruppe E
M41: Vinter | N41: Vår | O41: Sommer | P41: Høst | Q41: År
M42: 0.818 | N42: 0.822 | O42: 0.894 | P42: 0.844 | Q42: 0.844 | AB42: 10 | AC42: =('Op.Eff.STOTTE.NOFO'!O231+'Op.Eff.STOTTE.NOFO'!D231+'Op.Eff.STOTTE.NOFO'!E231)/3 -> 0.9008200077 | AD42: =('Op.Eff.STOTTE.NOFO'!F231+'Op.Eff.STOTTE.NOFO'!$G$231+'Op.Eff.STOTTE.NOFO'!H231)/3 -> 0.9742539717 | AE42: =('Op.Eff.STOTTE.NOFO'!I231+'Op.Eff.STOTTE.NOFO'!J231+'Op.Eff.STOTTE.NOFO'!K231)/3 -> 0.9981575533 | AF42: =('Op.Eff.STOTTE.NOFO'!L231+'Op.Eff.STOTTE.NOFO'!M231+'Op.Eff.STOTTE.NOFO'!N231)/3 -> 0.9546886298 | AQ42: 5 | AR42: 123 | AS42: Op.Eff.STOTTE.KYSTVAKT.V2!D123 | AT42: Op.Eff.STOTTE.KYSTVAKT.V2!E123 | AU42: Op.Eff.STOTTE.KYSTVAKT.V2!F123 | AV42: Op.Eff.STOTTE.KYSTVAKT.V2!G123 | AW42: Op.Eff.STOTTE.KYSTVAKT.V2!H123 | AY42: 0.234723875 | AZ42: 0.511109975 | BA42: 0.71046855 | BB42: 0.3757819125 | BC42: 0.4580210781
AB43: 11 | AC43: =('Op.Eff.STOTTE.NOFO'!O255+'Op.Eff.STOTTE.NOFO'!D255+'Op.Eff.STOTTE.NOFO'!E255)/3 -> 0.7543557387 | AD43: =('Op.Eff.STOTTE.NOFO'!F255+'Op.Eff.STOTTE.NOFO'!$G$255+'Op.Eff.STOTTE.NOFO'!H255)/3 -> 0.9196602933 | AE43: =('Op.Eff.STOTTE.NOFO'!I255+'Op.Eff.STOTTE.NOFO'!J255+'Op.Eff.STOTTE.NOFO'!K255)/3 -> 0.9938033385 | AF43: =('Op.Eff.STOTTE.NOFO'!L255+'Op.Eff.STOTTE.NOFO'!M255+'Op.Eff.STOTTE.NOFO'!N255)/3 -> 0.8817544427 | AQ43: 6 | AR43: 147 | AS43: Op.Eff.STOTTE.KYSTVAKT.V2!D147 | AT43: Op.Eff.STOTTE.KYSTVAKT.V2!E147 | AU43: Op.Eff.STOTTE.KYSTVAKT.V2!F147 | AV43: Op.Eff.STOTTE.KYSTVAKT.V2!G147 | AW43: Op.Eff.STOTTE.KYSTVAKT.V2!H147 | AY43: 0.4693472625 | AZ43: 0.6800366375 | BA43: 0.7971957125 | BB43: 0.5858030375 | BC43: 0.6330956625
AC44: KYST_TILLAT | AI44: FJORD_TILLATT | AQ44: 7 | AR44: 171 | AS44: Op.Eff.STOTTE.KYSTVAKT.V2!D171 | AT44: Op.Eff.STOTTE.KYSTVAKT.V2!E171 | AU44: Op.Eff.STOTTE.KYSTVAKT.V2!F171 | AV44: Op.Eff.STOTTE.KYSTVAKT.V2!G171 | AW44: Op.Eff.STOTTE.KYSTVAKT.V2!H171 | AY44: 0.229866075 | AZ44: 0.5012132125 | BA44: 0.7027953 | BB44: 0.368328575 | BC44: 0.4505507906
AB45: Velg st. | AC45: 0 | AD45: 0 | AE45: 0 | AF45: 0 | AH45: Velg st. | AI45: 0 | AJ45: 0 | AK45: 0 | AL45: 0 | AQ45: 8 | AR45: 195 | AS45: Op.Eff.STOTTE.KYSTVAKT.V2!D195 | AT45: Op.Eff.STOTTE.KYSTVAKT.V2!E195 | AU45: Op.Eff.STOTTE.KYSTVAKT.V2!F195 | AV45: Op.Eff.STOTTE.KYSTVAKT.V2!G195 | AW45: Op.Eff.STOTTE.KYSTVAKT.V2!H195 | AY45: 0.2410118125 | AZ45: 0.5066445875 | BA45: 0.6986555625 | BB45: 0.3787980375 | BC45: 0.4562775
C46: Innhold i denne rammen er kun til informasjon - forslagsvis henvis til planverket | AB46: 1 | AC46: =SUM('Op.Eff.STOTTE.KYST'!D7:D9) -> 0.03226469379 | AD46: =SUM('Op.Eff.STOTTE.KYST'!E7:E9) -> 0.2306168647 | AE46: =SUM('Op.Eff.STOTTE.KYST'!F7:F9) -> 0.4745444802 | AF46: =SUM('Op.Eff.STOTTE.KYST'!$G$7:G9) -> 0.1524851432 | AH46: 1 | AI46: =SUM('Op.Eff.STOTTE.KYST'!D7:D8) -> 0.001130291821 | AJ46: =SUM('Op.Eff.STOTTE.KYST'!E7:E8) -> 0.05800792303 | AK46: =SUM('Op.Eff.STOTTE.KYST'!F7:F8) -> 0.1251339764 | AL46: =SUM('Op.Eff.STOTTE.KYST'!$G$7:G8) -> 0.04213938412 | AQ46: 9 | AR46: 219 | AS46: Op.Eff.STOTTE.KYSTVAKT.V2!D219 | AT46: Op.Eff.STOTTE.KYSTVAKT.V2!E219 | AU46: Op.Eff.STOTTE.KYSTVAKT.V2!F219 | AV46: Op.Eff.STOTTE.KYSTVAKT.V2!G219 | AW46: Op.Eff.STOTTE.KYSTVAKT.V2!H219 | AY46: 0.2422378625 | AZ46: 0.4993183375 | BA46: 0.6994210375 | BB46: 0.382812025 | BC46: 0.4559473156
AB47: 2 | AC47: =SUM('Op.Eff.STOTTE.KYST'!D35:D37) -> 0.9059802713 | AD47: =SUM('Op.Eff.STOTTE.KYST'!E35:E37) -> 0.9408602151 | AE47: =SUM('Op.Eff.STOTTE.KYST'!F35:F37) -> 0.9973204716 | AF47: =SUM('Op.Eff.STOTTE.KYST'!$G$35:G37) -> 0.9415180983 | AH47: 2 | AI47: =SUM('Op.Eff.STOTTE.KYST'!D35:D36) -> 0.7495889848 | AJ47: =SUM('Op.Eff.STOTTE.KYST'!E35:E36) -> 0.8231465761 | AK47: =SUM('Op.Eff.STOTTE.KYST'!F35:F36) -> 0.9807073955 | AL47: =SUM('Op.Eff.STOTTE.KYST'!$G$35:G36) -> 0.8057806591 | AQ47: 10 | AR47: 243 | AS47: Op.Eff.STOTTE.KYSTVAKT.V2!D243 | AT47: Op.Eff.STOTTE.KYSTVAKT.V2!E243 | AU47: Op.Eff.STOTTE.KYSTVAKT.V2!F243 | AV47: Op.Eff.STOTTE.KYSTVAKT.V2!G243 | AW47: Op.Eff.STOTTE.KYSTVAKT.V2!H243 | AY47: 0.19444125 | AZ47: 0.4546336875 | BA47: 0.6803395 | BB47: 0.3425919625 | BC47: 0.4180016
AB48: 3 | AC48: =SUM('Op.Eff.STOTTE.KYST'!D63:D65) -> 0.9718454583 | AD48: =SUM('Op.Eff.STOTTE.KYST'!E63:E65) -> 0.9881154499 | AE48: =SUM('Op.Eff.STOTTE.KYST'!F63:F65) -> 0.9986602358 | AF48: =SUM('Op.Eff.STOTTE.KYST'!$G$63:G65) -> 0.9914910859 | AH48: 3 | AI48: =SUM('Op.Eff.STOTTE.KYST'!D63:D64) -> 0.9137895602 | AJ48: =SUM('Op.Eff.STOTTE.KYST'!E63:E64) -> 0.9168081494 | AK48: =SUM('Op.Eff.STOTTE.KYST'!F63:F64) -> 0.9953108253 | AL48: =SUM('Op.Eff.STOTTE.KYST'!$G$63:G64) -> 0.9413830362 | AQ48: 11 | AR48: 267 | AS48: Op.Eff.STOTTE.KYSTVAKT.V2!D267 | AT48: Op.Eff.STOTTE.KYSTVAKT.V2!E267 | AU48: Op.Eff.STOTTE.KYSTVAKT.V2!F267 | AV48: Op.Eff.STOTTE.KYSTVAKT.V2!G267 | AW48: Op.Eff.STOTTE.KYSTVAKT.V2!H267 | AY48: 0.2413705 | AZ48: 0.4902069375 | BA48: 0.696405025 | BB48: 0.38988625 | BC48: 0.4544671781
AB49: 4 | AC49: =SUM('Op.Eff.STOTTE.KYST'!D91:D93) -> 0.5639128648 | AD49: =SUM('Op.Eff.STOTTE.KYST'!E91:E93) -> 0.7805602716 | AE49: =SUM('Op.Eff.STOTTE.KYST'!F91:F93) -> 0.9322079314 | AF49: =SUM('Op.Eff.STOTTE.KYST'!$G$91:G93) -> 0.6811183144 | AH49: 4 | AI49: =SUM('Op.Eff.STOTTE.KYST'!D91:D92) -> 0.2578092889 | AJ49: =SUM('Op.Eff.STOTTE.KYST'!E91:E92) -> 0.5581494058 | AK49: =SUM('Op.Eff.STOTTE.KYST'!F91:F92) -> 0.7076634512 | AL49: =SUM('Op.Eff.STOTTE.KYST'!$G$91:G92) -> 0.4561048082 | AQ49: 12 | AR49: 291 | AS49: Op.Eff.STOTTE.KYSTVAKT.V2!D291 | AT49: Op.Eff.STOTTE.KYSTVAKT.V2!E291 | AU49: Op.Eff.STOTTE.KYSTVAKT.V2!F291 | AV49: Op.Eff.STOTTE.KYSTVAKT.V2!G291 | AW49: Op.Eff.STOTTE.KYSTVAKT.V2!H291 | AY49: 0.3967357375 | AZ49: 0.624047375 | BA49: 0.791265125 | BB49: 0.5429036875 | BC49: 0.5887379812
C50: =VLOOKUP($G$27,$AQ$4:$BH$30,15,FALSE) -> 74 | D50: =VLOOKUP($G$27,$AQ$4:$BH$30,16,FALSE) -> 125 | E50: =VLOOKUP($G$27,$AQ$4:$BH$30,17,FALSE) -> 154 | F50: =VLOOKUP($G$27,$AQ$4:$BH$30,18,FALSE) -> 95 | H50: Sommer | I50: Høst | AB50: 5 | AC50: =SUM('Op.Eff.STOTTE.KYST'!D119:D121) -> 0.998972462 | AD50: =SUM('Op.Eff.STOTTE.KYST'!E119:E121) -> 0.9983022071 | AE50: =SUM('Op.Eff.STOTTE.KYST'!F119:F121) -> 1 | AF50: =SUM('Op.Eff.STOTTE.KYST'!$G$119:G121) -> 0.9978390059 | AH50: 5 | AI50: =SUM('Op.Eff.STOTTE.KYST'!D119:D120) -> 0.9759556104 | AJ50: =SUM('Op.Eff.STOTTE.KYST'!E119:E120) -> 0.9859932088 | AK50: =SUM('Op.Eff.STOTTE.KYST'!F119:F120) -> 0.9982583065 | AL50: =SUM('Op.Eff.STOTTE.KYST'!$G$119:G120) -> 0.9823068612 | AQ50: 13 | AR50: 315 | AS50: Op.Eff.STOTTE.KYSTVAKT.V2!D315 | AT50: Op.Eff.STOTTE.KYSTVAKT.V2!E315 | AU50: Op.Eff.STOTTE.KYSTVAKT.V2!F315 | AV50: Op.Eff.STOTTE.KYSTVAKT.V2!G315 | AW50: Op.Eff.STOTTE.KYSTVAKT.V2!H315 | AY50: 0.1566680125 | AZ50: 0.409390325 | BA50: 0.6592858625 | BB50: 0.3083525 | BC50: 0.383424175
C51: Gruooe A system (Hs < 4 m) | F51: =VLOOKUP($G$27,$AQ$68:$AV$94,3,FALSE) -> 0.649399 | G51: =VLOOKUP($G$27,$AQ$68:$AV$94,4,FALSE) -> 0.887833 | H51: =VLOOKUP($G$27,$AQ$68:$AV$94,5,FALSE) -> 0.978367 | I51: =VLOOKUP($G$27,$AQ$68:$AV$94,6,FALSE) -> 0.818299 | AC51: KYSTVAKT_TILLATT | AQ51: 14 | AR51: 339 | AS51: Op.Eff.STOTTE.KYSTVAKT.V2!D339 | AT51: Op.Eff.STOTTE.KYSTVAKT.V2!E339 | AU51: Op.Eff.STOTTE.KYSTVAKT.V2!F339 | AV51: Op.Eff.STOTTE.KYSTVAKT.V2!G339 | AW51: Op.Eff.STOTTE.KYSTVAKT.V2!H339 | AY51: 0.3426530375 | AZ51: 0.56832735 | BA51: 0.781078925 | BB51: 0.506218 | BC51: 0.5495693281
C52: Gruooe A system (Hs < 4 m) | F52: =VLOOKUP($G$27,$AQ$68:$AV$94,3,FALSE) -> 0.649399 | G52: =VLOOKUP($G$27,$AQ$68:$AV$94,4,FALSE) -> 0.887833 | H52: =VLOOKUP($G$27,$AQ$68:$AV$94,5,FALSE) -> 0.978367 | I52: =VLOOKUP($G$27,$AQ$68:$AV$94,6,FALSE) -> 0.818299 | AC52: Vinter | AD52: Vår | AE52: Sommer | AF52: Høst | AQ52: 15 | AR52: 363 | AS52: Op.Eff.STOTTE.KYSTVAKT.V2!D363 | AT52: Op.Eff.STOTTE.KYSTVAKT.V2!E363 | AU52: Op.Eff.STOTTE.KYSTVAKT.V2!F363 | AV52: Op.Eff.STOTTE.KYSTVAKT.V2!G363 | AW52: Op.Eff.STOTTE.KYSTVAKT.V2!H363 | AY52: 0.1798336875 | AZ52: 0.424684075 | BA52: 0.686358575 | BB52: 0.3477644625 | BC52: 0.4096602
C53: Gruppe B system (Hs < 2,5 m) | F53: =VLOOKUP($G$33,$AQ$98:$AV$124,3,FALSE) -> 0.714401 | G53: =VLOOKUP($G$33,$AQ$98:$AV$124,4,FALSE) -> 0.9273 | H53: =VLOOKUP($G$33,$AQ$98:$AV$124,5,FALSE) -> 0.972 | I53: =VLOOKUP($G$33,$AQ$98:$AV$124,6,FALSE) -> 0.827367 | AB53: Velg st. | AC53: 0 | AD53: 0 | AE53: 0 | AF53: 0 | AQ53: 16 | AR53: 387 | AS53: Op.Eff.STOTTE.KYSTVAKT.V2!D387 | AT53: Op.Eff.STOTTE.KYSTVAKT.V2!E387 | AU53: Op.Eff.STOTTE.KYSTVAKT.V2!F387 | AV53: Op.Eff.STOTTE.KYSTVAKT.V2!G387 | AW53: Op.Eff.STOTTE.KYSTVAKT.V2!H387 | AY53: 0.2121478875 | AZ53: 0.456895 | BA53: 0.7139417875 | BB53: 0.3985141375 | BC53: 0.4453747031
C54: Gruppe D system (Hs < 1,5 m) | F54: =VLOOKUP($Q$27,$AB$45:$AF$50,2,FALSE) -> 0.9718454583 | G54: =VLOOKUP($Q$27,$AB$45:$AF$50,3,FALSE) -> 0.9881154499 | H54: =VLOOKUP($Q$27,$AB$45:$AF$50,4,FALSE) -> 0.9986602358 | I54: =VLOOKUP($Q$27,$AB$45:$AF$50,5,FALSE) -> 0.9914910859 | AB54: 1 | AC54: =(SUM('Op.Eff.STOTTE.NOFO'!O11:O13)+SUM('Op.Eff.STOTTE.NOFO'!D11:D13)+SUM('Op.Eff.STOTTE.NOFO'!E11:E13))/3 -> 20.5878 | AD54: =(SUM('Op.Eff.STOTTE.NOFO'!F11:F13)+SUM('Op.Eff.STOTTE.NOFO'!$G$11:G13)+SUM('Op.Eff.STOTTE.NOFO'!H11:H13))/3 -> 0.3136574808 | AE54: =(SUM('Op.Eff.STOTTE.NOFO'!I11:I13)+SUM('Op.Eff.STOTTE.NOFO'!J11:J13)+SUM('Op.Eff.STOTTE.NOFO'!K11:K13))/3 -> 31.7811 | AF54: =(SUM('Op.Eff.STOTTE.NOFO'!L11:L13)+SUM('Op.Eff.STOTTE.NOFO'!M11:M13)+SUM('Op.Eff.STOTTE.NOFO'!N11:N13))/3 -> 0.2244897173 | AQ54: 17 | AR54: 411 | AS54: Op.Eff.STOTTE.KYSTVAKT.V2!D411 | AT54: Op.Eff.STOTTE.KYSTVAKT.V2!E411 | AU54: Op.Eff.STOTTE.KYSTVAKT.V2!F411 | AV54: Op.Eff.STOTTE.KYSTVAKT.V2!G411 | AW54: Op.Eff.STOTTE.KYSTVAKT.V2!H411 | AY54: 0.175731425 | AZ54: 0.4191230625 | BA54: 0.698717025 | BB54: 0.3559578 | BC54: 0.4123823281
C55: Gruppe E system (Hs < 1 m) | F55: =VLOOKUP($Q$33,$AH$45:$AL$50,2,FALSE) -> 0.9137895602 | G55: =VLOOKUP($Q$33,$AH$45:$AL$50,3,FALSE) -> 0.9168081494 | H55: =VLOOKUP($Q$33,$AH$45:$AL$50,4,FALSE) -> 0.9953108253 | I55: =VLOOKUP($Q$33,$AH$45:$AL$50,5,FALSE) -> 0.9413830362 | AB55: 2 | AC55: =(SUM('Op.Eff.STOTTE.NOFO'!O35:O37)+SUM('Op.Eff.STOTTE.NOFO'!D35:D37)+SUM('Op.Eff.STOTTE.NOFO'!E35:E37))/3 -> 0.4567879312 | AD55: =(SUM('Op.Eff.STOTTE.NOFO'!F35:F37)+SUM('Op.Eff.STOTTE.NOFO'!$G$35:G37)+SUM('Op.Eff.STOTTE.NOFO'!H35:H37))/3 -> 0.7536641879 | AE55: =(SUM('Op.Eff.STOTTE.NOFO'!I35:I37)+SUM('Op.Eff.STOTTE.NOFO'!J35:J37)+SUM('Op.Eff.STOTTE.NOFO'!K35:K37))/3 -> 0.9436073942 | AF55: =(SUM('Op.Eff.STOTTE.NOFO'!L35:L37)+SUM('Op.Eff.STOTTE.NOFO'!M35:M37)+SUM('Op.Eff.STOTTE.NOFO'!N35:N37))/3 -> 0.6528135043 | AQ55: 18 | AR55: 435 | AS55: Op.Eff.STOTTE.KYSTVAKT.V2!D435 | AT55: Op.Eff.STOTTE.KYSTVAKT.V2!E435 | AU55: Op.Eff.STOTTE.KYSTVAKT.V2!F435 | AV55: Op.Eff.STOTTE.KYSTVAKT.V2!G435 | AW55: Op.Eff.STOTTE.KYSTVAKT.V2!H435 | AY55: 0.2002077375 | AZ55: 0.440449675 | BA55: 0.7033696125 | BB55: 0.3859567875 | BC55: 0.4324959531
AB56: 3 | AC56: =(SUM('Op.Eff.STOTTE.NOFO'!O59:O61)+SUM('Op.Eff.STOTTE.NOFO'!D59:D61)+SUM('Op.Eff.STOTTE.NOFO'!E59:E61))/3 -> 0.6837015316 | AD56: =(SUM('Op.Eff.STOTTE.NOFO'!F59:F61)+SUM('Op.Eff.STOTTE.NOFO'!$G$59:G61)+SUM('Op.Eff.STOTTE.NOFO'!H59:H61))/3 -> 0.8776117456 | AE56: =(SUM('Op.Eff.STOTTE.NOFO'!I59:I61)+SUM('Op.Eff.STOTTE.NOFO'!J59:J61)+SUM('Op.Eff.STOTTE.NOFO'!K59:K61))/3 -> 0.9801803563 | AF56: =(SUM('Op.Eff.STOTTE.NOFO'!L59:L61)+SUM('Op.Eff.STOTTE.NOFO'!M59:M61)+SUM('Op.Eff.STOTTE.NOFO'!N59:N61))/3 -> 0.8244794744 | AQ56: 19 | AR56: 459 | AS56: Op.Eff.STOTTE.KYSTVAKT.V2!D459 | AT56: Op.Eff.STOTTE.KYSTVAKT.V2!E459 | AU56: Op.Eff.STOTTE.KYSTVAKT.V2!F459 | AV56: Op.Eff.STOTTE.KYSTVAKT.V2!G459 | AW56: Op.Eff.STOTTE.KYSTVAKT.V2!H459 | AY56: 0.4969131875 | AZ56: 0.622384975 | BA56: 0.800641075 | BB56: 0.6268491375 | BC56: 0.6366970938
AB57: 4 | AC57: =(SUM('Op.Eff.STOTTE.NOFO'!O83:O85)+SUM('Op.Eff.STOTTE.NOFO'!D83:D85)+SUM('Op.Eff.STOTTE.NOFO'!E83:E85))/3 -> 0.4211057982 | AD57: =(SUM('Op.Eff.STOTTE.NOFO'!F81:F85)+SUM('Op.Eff.STOTTE.NOFO'!$G$83:G85)+SUM('Op.Eff.STOTTE.NOFO'!H83:H85))/3 -> 0.7368936071 | AE57: =(SUM('Op.Eff.STOTTE.NOFO'!I83:I85)+SUM('Op.Eff.STOTTE.NOFO'!J83:J85)+SUM('Op.Eff.STOTTE.NOFO'!K83:K85))/3 -> 0.9418418518 | AF57: =(SUM('Op.Eff.STOTTE.NOFO'!L83:L85)+SUM('Op.Eff.STOTTE.NOFO'!M83:M85)+SUM('Op.Eff.STOTTE.NOFO'!N83:N85))/3 -> 0.6241962569 | AQ57: 20 | AR57: 483 | AS57: Op.Eff.STOTTE.KYSTVAKT.V2!D483 | AT57: Op.Eff.STOTTE.KYSTVAKT.V2!E483 | AU57: Op.Eff.STOTTE.KYSTVAKT.V2!F483 | AV57: Op.Eff.STOTTE.KYSTVAKT.V2!G483 | AW57: Op.Eff.STOTTE.KYSTVAKT.V2!H483 | AY57: 0.656592675 | AZ57: 0.7182745 | BA57: 0.803181225 | BB57: 0.7039308875 | BC57: 0.7204948219
AB58: 5 | AC58: =(SUM('Op.Eff.STOTTE.NOFO'!O107:O109)+SUM('Op.Eff.STOTTE.NOFO'!D107:D109)+SUM('Op.Eff.STOTTE.NOFO'!E107:E109))/3 -> 0.600516885 | AD58: =(SUM('Op.Eff.STOTTE.NOFO'!F107:F109)+SUM('Op.Eff.STOTTE.NOFO'!$G$107:G109)+SUM('Op.Eff.STOTTE.NOFO'!H107:H109))/3 -> 0.8370542891 | AE58: =(SUM('Op.Eff.STOTTE.NOFO'!I107:I109)+SUM('Op.Eff.STOTTE.NOFO'!J107:J109)+SUM('Op.Eff.STOTTE.NOFO'!K107:K109))/3 -> 0.9694069031 | AF58: =(SUM('Op.Eff.STOTTE.NOFO'!L107:L109)+SUM('Op.Eff.STOTTE.NOFO'!M107:M109)+SUM('Op.Eff.STOTTE.NOFO'!N107:N109))/3 -> 0.7676981517 | AQ58: 21 | AR58: 507 | AS58: Op.Eff.STOTTE.KYSTVAKT.V2!D507 | AT58: Op.Eff.STOTTE.KYSTVAKT.V2!E507 | AU58: Op.Eff.STOTTE.KYSTVAKT.V2!F507 | AV58: Op.Eff.STOTTE.KYSTVAKT.V2!G507 | AW58: Op.Eff.STOTTE.KYSTVAKT.V2!H507 | AY58: 0.60954155 | AZ58: 0.689934675 | BA58: 0.8033407125 | BB58: 0.683997175 | BC58: 0.6967035281
AB59: 6 | AC59: =(SUM('Op.Eff.STOTTE.NOFO'!O131:O133)+SUM('Op.Eff.STOTTE.NOFO'!D131:D133)+SUM('Op.Eff.STOTTE.NOFO'!E131:E133))/3 -> 0.727044999 | AD59: =(SUM('Op.Eff.STOTTE.NOFO'!F131:F133)+SUM('Op.Eff.STOTTE.NOFO'!$G$131:G133)+SUM('Op.Eff.STOTTE.NOFO'!H131:H133))/3 -> 0.8984590669 | AE59: =(SUM('Op.Eff.STOTTE.NOFO'!I131:I133)+SUM('Op.Eff.STOTTE.NOFO'!J131:J133)+SUM('Op.Eff.STOTTE.NOFO'!K131:K133))/3 -> 0.9854257885 | AF59: =(SUM('Op.Eff.STOTTE.NOFO'!L131:L133)+SUM('Op.Eff.STOTTE.NOFO'!M131:M133)+SUM('Op.Eff.STOTTE.NOFO'!N131:N133))/3 -> 0.8535359684 | AQ59: 22 | AR59: 531 | AS59: Op.Eff.STOTTE.KYSTVAKT.V2!D531 | AT59: Op.Eff.STOTTE.KYSTVAKT.V2!E531 | AU59: Op.Eff.STOTTE.KYSTVAKT.V2!F531 | AV59: Op.Eff.STOTTE.KYSTVAKT.V2!G531 | AW59: Op.Eff.STOTTE.KYSTVAKT.V2!H531 | AY59: 0.4185436 | AZ59: 0.5763442625 | BA59: 0.7695725 | BB59: 0.55372395 | BC59: 0.5795460781
AB60: 7 | AC60: =(SUM('Op.Eff.STOTTE.NOFO'!O155:O157)+SUM('Op.Eff.STOTTE.NOFO'!D155:D157)+SUM('Op.Eff.STOTTE.NOFO'!E155:E157))/3 -> 0.4188260833 | AD60: =(SUM('Op.Eff.STOTTE.NOFO'!F155:F157)+SUM('Op.Eff.STOTTE.NOFO'!$G$155:G157)+SUM('Op.Eff.STOTTE.NOFO'!H155:H157))/3 -> 0.7377838631 | AE60: =(SUM('Op.Eff.STOTTE.NOFO'!I155:I157)+SUM('Op.Eff.STOTTE.NOFO'!J155:J157)+SUM('Op.Eff.STOTTE.NOFO'!K155:K157))/3 -> 0.9457488907 | AF60: =(SUM('Op.Eff.STOTTE.NOFO'!L155:L157)+SUM('Op.Eff.STOTTE.NOFO'!M155:M157)+SUM('Op.Eff.STOTTE.NOFO'!N155:N157))/3 -> 0.6276699543 | AQ60: 23 | AR60: 555 | AS60: Op.Eff.STOTTE.KYSTVAKT.V2!D555 | AT60: Op.Eff.STOTTE.KYSTVAKT.V2!E555 | AU60: Op.Eff.STOTTE.KYSTVAKT.V2!F555 | AV60: Op.Eff.STOTTE.KYSTVAKT.V2!G555 | AW60: Op.Eff.STOTTE.KYSTVAKT.V2!H555 | AY60: 0.2982536 | AZ60: 0.4948855375 | BA60: 0.7317177125 | BB60: 0.449986225 | BC60: 0.4937107687
AB61: 8 | AC61: =(SUM('Op.Eff.STOTTE.NOFO'!O179:O181)+SUM('Op.Eff.STOTTE.NOFO'!D179:D181)+SUM('Op.Eff.STOTTE.NOFO'!E179:E181))/3 -> 0.6135431891 | AD61: =(SUM('Op.Eff.STOTTE.NOFO'!F179:F181)+SUM('Op.Eff.STOTTE.NOFO'!$G$179:G181)+SUM('Op.Eff.STOTTE.NOFO'!H179:H181))/3 -> 0.8458568633 | AE61: =(SUM('Op.Eff.STOTTE.NOFO'!I179:I181)+SUM('Op.Eff.STOTTE.NOFO'!J179:J181)+SUM('Op.Eff.STOTTE.NOFO'!K179:K181))/3 -> 0.9733850363 | AF61: =(SUM('Op.Eff.STOTTE.NOFO'!L179:L181)+SUM('Op.Eff.STOTTE.NOFO'!M179:M181)+SUM('Op.Eff.STOTTE.NOFO'!N179:N181))/3 -> 0.7790661149 | AQ61: 24 | AR61: 579 | AS61: Op.Eff.STOTTE.KYSTVAKT.V2!D579 | AT61: Op.Eff.STOTTE.KYSTVAKT.V2!E579 | AU61: Op.Eff.STOTTE.KYSTVAKT.V2!F579 | AV61: Op.Eff.STOTTE.KYSTVAKT.V2!G579 | AW61: Op.Eff.STOTTE.KYSTVAKT.V2!H579 | AY61: 0.3491006875 | AZ61: 0.532321125 | BA61: 0.745197475 | BB61: 0.494467675 | BC61: 0.5302717406
AB62: 9 | AC62: =(SUM('Op.Eff.STOTTE.NOFO'!O203:O205)+SUM('Op.Eff.STOTTE.NOFO'!D203:D205)+SUM('Op.Eff.STOTTE.NOFO'!E203:E205))/3 -> 0.6821284514 | AD62: =(SUM('Op.Eff.STOTTE.NOFO'!F203:F205)+SUM('Op.Eff.STOTTE.NOFO'!$G$203:G205)+SUM('Op.Eff.STOTTE.NOFO'!H203:H205))/3 -> 0.8817344611 | AE62: =(SUM('Op.Eff.STOTTE.NOFO'!I203:I205)+SUM('Op.Eff.STOTTE.NOFO'!J203:J205)+SUM('Op.Eff.STOTTE.NOFO'!K203:K205))/3 -> 0.9789457327 | AF62: =(SUM('Op.Eff.STOTTE.NOFO'!L203:L205)+SUM('Op.Eff.STOTTE.NOFO'!M203:M205)+SUM('Op.Eff.STOTTE.NOFO'!N203:N205))/3 -> 0.8239522351 | AQ62: 25 | AR62: 603 | AS62: Op.Eff.STOTTE.KYSTVAKT.V2!D603 | AT62: Op.Eff.STOTTE.KYSTVAKT.V2!E603 | AU62: Op.Eff.STOTTE.KYSTVAKT.V2!F603 | AV62: Op.Eff.STOTTE.KYSTVAKT.V2!G603 | AW62: Op.Eff.STOTTE.KYSTVAKT.V2!H603 | AY62: 0.2986956875 | AZ62: 0.5043516625 | BA62: 0.7351907375 | BB62: 0.4536193125 | BC62: 0.49796435
AB63: 10 | AC63: =(SUM('Op.Eff.STOTTE.NOFO'!O227:O229)+SUM('Op.Eff.STOTTE.NOFO'!D227:D229)+SUM('Op.Eff.STOTTE.NOFO'!E227:E229))/3 -> 0.7903919229 | AD63: =(SUM('Op.Eff.STOTTE.NOFO'!F227:F229)+SUM('Op.Eff.STOTTE.NOFO'!$G$227:G229)+SUM('Op.Eff.STOTTE.NOFO'!H227:H229))/3 -> 0.9268800915 | AE63: =(SUM('Op.Eff.STOTTE.NOFO'!I227:I229)+SUM('Op.Eff.STOTTE.NOFO'!J227:J229)+SUM('Op.Eff.STOTTE.NOFO'!K227:K229))/3 -> 0.9861171653 | AF63: =(SUM('Op.Eff.STOTTE.NOFO'!L227:L229)+SUM('Op.Eff.STOTTE.NOFO'!M227:M229)+SUM('Op.Eff.STOTTE.NOFO'!N227:N229))/3 -> 0.8867022955 | AQ63: 26 | AR63: 627 | AS63: Op.Eff.STOTTE.KYSTVAKT.V2!D627 | AT63: Op.Eff.STOTTE.KYSTVAKT.V2!E627 | AU63: Op.Eff.STOTTE.KYSTVAKT.V2!F627 | AV63: Op.Eff.STOTTE.KYSTVAKT.V2!G627 | AW63: Op.Eff.STOTTE.KYSTVAKT.V2!H627 | AY63: 0.323954675 | AZ63: 0.5171180375 | BA63: 0.73519 | BB63: 0.4758210375 | BC63: 0.5130209375
AB64: 11 | AC64: =(SUM('Op.Eff.STOTTE.NOFO'!O251:O253)+SUM('Op.Eff.STOTTE.NOFO'!D251:D253)+SUM('Op.Eff.STOTTE.NOFO'!E251:E253))/3 -> 0.5352569926 | AD64: =(SUM('Op.Eff.STOTTE.NOFO'!F251:F253)+SUM('Op.Eff.STOTTE.NOFO'!$G$251:G253)+SUM('Op.Eff.STOTTE.NOFO'!H251:H253))/3 -> 0.8023530952 | AE64: =(SUM('Op.Eff.STOTTE.NOFO'!I251:I253)+SUM('Op.Eff.STOTTE.NOFO'!J251:J253)+SUM('Op.Eff.STOTTE.NOFO'!K251:K253))/3 -> 0.9656185834 | AF64: =(SUM('Op.Eff.STOTTE.NOFO'!L251:L253)+SUM('Op.Eff.STOTTE.NOFO'!M251:M253)+SUM('Op.Eff.STOTTE.NOFO'!N251:N253))/3 -> 0.7285097905 | AQ64: 27 | AR64: 651 | AS64: Op.Eff.STOTTE.KYSTVAKT.V2!D651 | AT64: Op.Eff.STOTTE.KYSTVAKT.V2!E651 | AU64: Op.Eff.STOTTE.KYSTVAKT.V2!F651 | AV64: Op.Eff.STOTTE.KYSTVAKT.V2!G651 | AW64: Op.Eff.STOTTE.KYSTVAKT.V2!H651 | AY64: 0.2219047875 | AZ64: 0.477788425 | BA64: 0.7294068375 | BB64: 0.4026892625 | BC64: 0.4579473281
AQ66: Op.Eff.STOTTE.NOFO.V2! | AT66: ANDEL AV TIDEN HVOR BØLGEFORHOLDENE TILLATER OPERASJON
AQ67: Velg st.
AB68: KYSTVAKT_EFF | AQ68: 1 | AS68: =('Op.Eff.STOTTE.NOFO.V2'!$O$15+'Op.Eff.STOTTE.NOFO.V2'!$D$15+'Op.Eff.STOTTE.NOFO.V2'!$E$15) -> 0.798634 | AT68: =('Op.Eff.STOTTE.NOFO.V2'!$F$15+'Op.Eff.STOTTE.NOFO.V2'!$G$15+'Op.Eff.STOTTE.NOFO.V2'!$H$15) -> 0.9592 | AU68: =('Op.Eff.STOTTE.NOFO.V2'!$I$15+'Op.Eff.STOTTE.NOFO.V2'!$J$15+'Op.Eff.STOTTE.NOFO.V2'!$K$15) -> 0.9841 | AV68: =('Op.Eff.STOTTE.NOFO.V2'!$L$15+'Op.Eff.STOTTE.NOFO.V2'!$M$15+'Op.Eff.STOTTE.NOFO.V2'!$N$15) -> 0.896167
AB69: Velg st. | AC69: 0 | AD69: 0 | AE69: 0 | AF69: 0 | AG69: 0 | AQ69: 2 | AS69: =('Op.Eff.STOTTE.NOFO.V2'!$O$39+'Op.Eff.STOTTE.NOFO.V2'!$D$39+'Op.Eff.STOTTE.NOFO.V2'!$E$39) -> 0.912334 | AT69: =('Op.Eff.STOTTE.NOFO.V2'!$F$39+'Op.Eff.STOTTE.NOFO.V2'!$G$39+'Op.Eff.STOTTE.NOFO.V2'!$H$39) -> 0.991766 | AU69: =('Op.Eff.STOTTE.NOFO.V2'!$I$39+'Op.Eff.STOTTE.NOFO.V2'!$J$39+'Op.Eff.STOTTE.NOFO.V2'!$K$39) -> 0.997167 | AV69: =('Op.Eff.STOTTE.NOFO.V2'!$L$39+'Op.Eff.STOTTE.NOFO.V2'!$M$39+'Op.Eff.STOTTE.NOFO.V2'!$N$39) -> 0.975167
AB70: 1 | AC70: ='Op.Eff.STOTTE.KYSTVAKT'!D27 -> 0.391160918 | AD70: ='Op.Eff.STOTTE.KYSTVAKT'!E27 -> 0.5811161291 | AE70: ='Op.Eff.STOTTE.KYSTVAKT'!F27 -> 0.7078454424 | AF70: ='Op.Eff.STOTTE.KYSTVAKT'!$G$27 -> 0.5214608775 | AG70: ='Op.Eff.STOTTE.KYSTVAKT'!H27 -> 0.5503958417 | AQ70: 3 | AS70: =('Op.Eff.STOTTE.NOFO.V2'!$O$63+'Op.Eff.STOTTE.NOFO.V2'!$D$63+'Op.Eff.STOTTE.NOFO.V2'!$E$63) -> 0.6871 | AT70: =('Op.Eff.STOTTE.NOFO.V2'!$F$63+'Op.Eff.STOTTE.NOFO.V2'!$G$63+'Op.Eff.STOTTE.NOFO.V2'!$H$63) -> 0.923033 | AU70: =('Op.Eff.STOTTE.NOFO.V2'!$I$63+'Op.Eff.STOTTE.NOFO.V2'!$J$63+'Op.Eff.STOTTE.NOFO.V2'!$K$63) -> 0.978966 | AV70: =('Op.Eff.STOTTE.NOFO.V2'!$L$63+'Op.Eff.STOTTE.NOFO.V2'!$M$63+'Op.Eff.STOTTE.NOFO.V2'!$N$63) -> 0.821734
AB71: 2 | AC71: ='Op.Eff.STOTTE.KYSTVAKT'!D51 -> 0.3035389806 | AD71: ='Op.Eff.STOTTE.KYSTVAKT'!E51 -> 0.5245880211 | AE71: ='Op.Eff.STOTTE.KYSTVAKT'!F51 -> 0.6814911076 | AF71: ='Op.Eff.STOTTE.KYSTVAKT'!$G$51 -> 0.4478587565 | AG71: ='Op.Eff.STOTTE.KYSTVAKT'!H51 -> 0.4893692165 | AQ71: 4 | AS71: =('Op.Eff.STOTTE.NOFO.V2'!$O$87+'Op.Eff.STOTTE.NOFO.V2'!$D$87+'Op.Eff.STOTTE.NOFO.V2'!$E$87) -> 0.797233 | AT71: =('Op.Eff.STOTTE.NOFO.V2'!$F$87+'Op.Eff.STOTTE.NOFO.V2'!$G$87+'Op.Eff.STOTTE.NOFO.V2'!$H$87) -> 0.966434 | AU71: =('Op.Eff.STOTTE.NOFO.V2'!$I$87+'Op.Eff.STOTTE.NOFO.V2'!$J$87+'Op.Eff.STOTTE.NOFO.V2'!$K$87) -> 0.988134 | AV71: =('Op.Eff.STOTTE.NOFO.V2'!$L$87+'Op.Eff.STOTTE.NOFO.V2'!$M$87+'Op.Eff.STOTTE.NOFO.V2'!$N$87) -> 0.9112
AB72: 3 | AC72: ='Op.Eff.STOTTE.KYSTVAKT'!D75 -> 0.4663340926 | AD72: ='Op.Eff.STOTTE.KYSTVAKT'!E75 -> 0.6289600766 | AE72: ='Op.Eff.STOTTE.KYSTVAKT'!F75 -> 0.7297803786 | AF72: ='Op.Eff.STOTTE.KYSTVAKT'!$G$75 -> 0.5820895154 | AG72: ='Op.Eff.STOTTE.KYSTVAKT'!H75 -> 0.6017910158 | AQ72: 5 | AS72: =('Op.Eff.STOTTE.NOFO.V2'!$O$111+'Op.Eff.STOTTE.NOFO.V2'!$D$111+'Op.Eff.STOTTE.NOFO.V2'!$E$11) -> 0.0519 | AT72: =('Op.Eff.STOTTE.NOFO.V2'!$F$111+'Op.Eff.STOTTE.NOFO.V2'!$G$111+'Op.Eff.STOTTE.NOFO.V2'!$H$11) -> 0.161534 | AU72: =('Op.Eff.STOTTE.NOFO.V2'!$I$111+'Op.Eff.STOTTE.NOFO.V2'!$J$111+'Op.Eff.STOTTE.NOFO.V2'!$K$11) -> 0.323733 | AV72: =('Op.Eff.STOTTE.NOFO.V2'!$L$111+'Op.Eff.STOTTE.NOFO.V2'!$M$111+'Op.Eff.STOTTE.NOFO.V2'!$N$11) -> 0.1052
AB73: 4 | AC73: ='Op.Eff.STOTTE.KYSTVAKT'!D99 -> 0.2777188131 | AD73: ='Op.Eff.STOTTE.KYSTVAKT'!E99 -> 0.5097531872 | AE73: ='Op.Eff.STOTTE.KYSTVAKT'!F99 -> 0.677225963 | AF73: ='Op.Eff.STOTTE.KYSTVAKT'!$G$99 -> 0.4248240344 | AG73: ='Op.Eff.STOTTE.KYSTVAKT'!H99 -> 0.4723804994 | AQ73: 6 | AS73: =('Op.Eff.STOTTE.NOFO.V2'!$O$135+'Op.Eff.STOTTE.NOFO.V2'!$D$135+'Op.Eff.STOTTE.NOFO.V2'!$E$135) -> 0.855765 | AT73: =('Op.Eff.STOTTE.NOFO.V2'!$F$135+'Op.Eff.STOTTE.NOFO.V2'!$G$135+'Op.Eff.STOTTE.NOFO.V2'!$H$135) -> 0.966833 | AU73: =('Op.Eff.STOTTE.NOFO.V2'!$I$135+'Op.Eff.STOTTE.NOFO.V2'!$J$135+'Op.Eff.STOTTE.NOFO.V2'!$K$135) -> 0.992867 | AV73: =('Op.Eff.STOTTE.NOFO.V2'!$L$135+'Op.Eff.STOTTE.NOFO.V2'!$M$135+'Op.Eff.STOTTE.NOFO.V2'!$N$135) -> 0.928834
AB74: 5 | AC74: ='Op.Eff.STOTTE.KYSTVAKT'!D123 -> 0.4066251531 | AD74: ='Op.Eff.STOTTE.KYSTVAKT'!E123 -> 0.5964135123 | AE74: ='Op.Eff.STOTTE.KYSTVAKT'!F123 -> 0.7168196473 | AF74: ='Op.Eff.STOTTE.KYSTVAKT'!$G$123 -> 0.5378812182 | AG74: ='Op.Eff.STOTTE.KYSTVAKT'!H123 -> 0.5644348827 | AQ74: 7 | AS74: =('Op.Eff.STOTTE.NOFO.V2'!$O$159+'Op.Eff.STOTTE.NOFO.V2'!$D$159+'Op.Eff.STOTTE.NOFO.V2'!$E$159) -> 0.652666 | AT74: =('Op.Eff.STOTTE.NOFO.V2'!$F$159+'Op.Eff.STOTTE.NOFO.V2'!$G$159+'Op.Eff.STOTTE.NOFO.V2'!$H$159) -> 0.907199 | AU74: =('Op.Eff.STOTTE.NOFO.V2'!$I$159+'Op.Eff.STOTTE.NOFO.V2'!$J$159+'Op.Eff.STOTTE.NOFO.V2'!$K$159) -> 0.977832 | AV74: =('Op.Eff.STOTTE.NOFO.V2'!$L$159+'Op.Eff.STOTTE.NOFO.V2'!$M$159+'Op.Eff.STOTTE.NOFO.V2'!$N$159) -> 0.801534
AB75: 6 | AC75: ='Op.Eff.STOTTE.KYSTVAKT'!D147 -> 0.5051620232 | AD75: ='Op.Eff.STOTTE.KYSTVAKT'!E147 -> 0.6574543767 | AE75: ='Op.Eff.STOTTE.KYSTVAKT'!F147 -> 0.746903859 | AF75: ='Op.Eff.STOTTE.KYSTVAKT'!$G$147 -> 0.6128492248 | AG75: ='Op.Eff.STOTTE.KYSTVAKT'!H147 -> 0.6305923709 | AQ75: 8 | AS75: =('Op.Eff.STOTTE.NOFO.V2'!$O$183+'Op.Eff.STOTTE.NOFO.V2'!$D$183+'Op.Eff.STOTTE.NOFO.V2'!$E$183) -> 0.664332 | AT75: =('Op.Eff.STOTTE.NOFO.V2'!$F$183+'Op.Eff.STOTTE.NOFO.V2'!$G$183+'Op.Eff.STOTTE.NOFO.V2'!$H$183) -> 0.904733 | AU75: =('Op.Eff.STOTTE.NOFO.V2'!$I$183+'Op.Eff.STOTTE.NOFO.V2'!$J$183+'Op.Eff.STOTTE.NOFO.V2'!$K$183) -> 0.978099 | AV75: =('Op.Eff.STOTTE.NOFO.V2'!$L$183+'Op.Eff.STOTTE.NOFO.V2'!$M$183+'Op.Eff.STOTTE.NOFO.V2'!$N$183) -> 0.810801
AB76: 7 | AC76: ='Op.Eff.STOTTE.KYSTVAKT'!D171 -> 0.2754030709 | AD76: ='Op.Eff.STOTTE.KYSTVAKT'!E171 -> 0.5094399309 | AE76: ='Op.Eff.STOTTE.KYSTVAKT'!F171 -> 0.6794226459 | AF76: ='Op.Eff.STOTTE.KYSTVAKT'!$G$171 -> 0.4256122755 | AG76: ='Op.Eff.STOTTE.KYSTVAKT'!H171 -> 0.4724694808 | AQ76: 9 | AS76: =('Op.Eff.STOTTE.NOFO.V2'!$O$207+'Op.Eff.STOTTE.NOFO.V2'!$D$207+'Op.Eff.STOTTE.NOFO.V2'!$E$207) -> 0.6603 | AT76: =('Op.Eff.STOTTE.NOFO.V2'!$F$207+'Op.Eff.STOTTE.NOFO.V2'!$G$207+'Op.Eff.STOTTE.NOFO.V2'!$H$207) -> 0.897699 | AU76: =('Op.Eff.STOTTE.NOFO.V2'!$I$207+'Op.Eff.STOTTE.NOFO.V2'!$J$207+'Op.Eff.STOTTE.NOFO.V2'!$K$207) -> 0.976432 | AV76: =('Op.Eff.STOTTE.NOFO.V2'!$L$207+'Op.Eff.STOTTE.NOFO.V2'!$M$207+'Op.Eff.STOTTE.NOFO.V2'!$N$207) -> 0.815701
AB77: 8 | AC77: ='Op.Eff.STOTTE.KYSTVAKT'!D195 -> 0.4193727522 | AD77: ='Op.Eff.STOTTE.KYSTVAKT'!E195 -> 0.6098862707 | AE77: ='Op.Eff.STOTTE.KYSTVAKT'!F195 -> 0.7286957939 | AF77: ='Op.Eff.STOTTE.KYSTVAKT'!$G$195 -> 0.5504847546 | AG77: ='Op.Eff.STOTTE.KYSTVAKT'!H195 -> 0.5771098928 | AQ77: 10 | AS77: =('Op.Eff.STOTTE.NOFO.V2'!$O$231+'Op.Eff.STOTTE.NOFO.V2'!$D$231+'Op.Eff.STOTTE.NOFO.V2'!$E$231) -> 0.605567 | AT77: =('Op.Eff.STOTTE.NOFO.V2'!$F$231+'Op.Eff.STOTTE.NOFO.V2'!$G$231+'Op.Eff.STOTTE.NOFO.V2'!$H$231) -> 0.869633 | AU77: =('Op.Eff.STOTTE.NOFO.V2'!$I$231+'Op.Eff.STOTTE.NOFO.V2'!$J$231+'Op.Eff.STOTTE.NOFO.V2'!$K$231) -> 0.9763 | AV77: =('Op.Eff.STOTTE.NOFO.V2'!$L$231+'Op.Eff.STOTTE.NOFO.V2'!$M$231+'Op.Eff.STOTTE.NOFO.V2'!$N$231) -> 0.781367
AB78: 9 | AC78: ='Op.Eff.STOTTE.KYSTVAKT'!D219 -> 0.4727261816 | AD78: ='Op.Eff.STOTTE.KYSTVAKT'!E219 -> 0.6435073389 | AE78: ='Op.Eff.STOTTE.KYSTVAKT'!F219 -> 0.7420699929 | AF78: ='Op.Eff.STOTTE.KYSTVAKT'!$G$219 -> 0.5898939649 | AG78: ='Op.Eff.STOTTE.KYSTVAKT'!H219 -> 0.6120493696 | AQ78: 11 | AS78: =('Op.Eff.STOTTE.NOFO.V2'!$O$255+'Op.Eff.STOTTE.NOFO.V2'!$D$255+'Op.Eff.STOTTE.NOFO.V2'!$E$255) -> 0.649399 | AT78: =('Op.Eff.STOTTE.NOFO.V2'!$F$255+'Op.Eff.STOTTE.NOFO.V2'!$G$255+'Op.Eff.STOTTE.NOFO.V2'!$H$255) -> 0.887833 | AU78: =('Op.Eff.STOTTE.NOFO.V2'!$I$255+'Op.Eff.STOTTE.NOFO.V2'!$J$255+'Op.Eff.STOTTE.NOFO.V2'!$K$255) -> 0.978367 | AV78: =('Op.Eff.STOTTE.NOFO.V2'!$L$255+'Op.Eff.STOTTE.NOFO.V2'!$M$255+'Op.Eff.STOTTE.NOFO.V2'!$N$255) -> 0.818299
AB79: 10 | AC79: ='Op.Eff.STOTTE.KYSTVAKT'!D243 -> 0.5641872474 | AD79: ='Op.Eff.STOTTE.KYSTVAKT'!E243 -> 0.6930326688 | AE79: ='Op.Eff.STOTTE.KYSTVAKT'!F243 -> 0.7594850715 | AF79: ='Op.Eff.STOTTE.KYSTVAKT'!$G$243 -> 0.6527288572 | AG79: ='Op.Eff.STOTTE.KYSTVAKT'!H243 -> 0.6673584612 | AQ79: 12 | AS79: =('Op.Eff.STOTTE.NOFO.V2'!$O$279+'Op.Eff.STOTTE.NOFO.V2'!$D$279+'Op.Eff.STOTTE.NOFO.V2'!$E$279) -> 0.8198 | AT79: =('Op.Eff.STOTTE.NOFO.V2'!$F$279+'Op.Eff.STOTTE.NOFO.V2'!$G$279+'Op.Eff.STOTTE.NOFO.V2'!$H$279) -> 0.948433 | AU79: =('Op.Eff.STOTTE.NOFO.V2'!$I$279+'Op.Eff.STOTTE.NOFO.V2'!$J$279+'Op.Eff.STOTTE.NOFO.V2'!$K$279) -> 0.996366 | AV79: =('Op.Eff.STOTTE.NOFO.V2'!$L$279+'Op.Eff.STOTTE.NOFO.V2'!$M$279+'Op.Eff.STOTTE.NOFO.V2'!$N$279) -> 0.915566
AB80: 11 | AC80: ='Op.Eff.STOTTE.KYSTVAKT'!D267 -> 0.3582242267 | AD80: ='Op.Eff.STOTTE.KYSTVAKT'!E267 -> 0.5633206868 | AE80: ='Op.Eff.STOTTE.KYSTVAKT'!F267 -> 0.7033818866 | AF80: ='Op.Eff.STOTTE.KYSTVAKT'!$G$267 -> 0.5026689047 | AG80: ='Op.Eff.STOTTE.KYSTVAKT'!H267 -> 0.5318989262 | AQ80: 13 | AS80: =('Op.Eff.STOTTE.NOFO.V2'!$O$303+'Op.Eff.STOTTE.NOFO.V2'!$D$303+'Op.Eff.STOTTE.NOFO.V2'!$E$303) -> 0.546633 | AT80: =('Op.Eff.STOTTE.NOFO.V2'!$F$303+'Op.Eff.STOTTE.NOFO.V2'!$G$303+'Op.Eff.STOTTE.NOFO.V2'!$H$303) -> 0.8418 | AU80: =('Op.Eff.STOTTE.NOFO.V2'!$I$303+'Op.Eff.STOTTE.NOFO.V2'!$J$303+'Op.Eff.STOTTE.NOFO.V2'!$K$303) -> 0.974466 | AV80: =('Op.Eff.STOTTE.NOFO.V2'!$L$303+'Op.Eff.STOTTE.NOFO.V2'!$M$303+'Op.Eff.STOTTE.NOFO.V2'!$N$303) -> 0.752767
AQ81: 14 | AS81: =('Op.Eff.STOTTE.NOFO.V2'!$O$327+'Op.Eff.STOTTE.NOFO.V2'!$D$327+'Op.Eff.STOTTE.NOFO.V2'!$E$327) -> 0.780999 | AT81: =('Op.Eff.STOTTE.NOFO.V2'!$F$327+'Op.Eff.STOTTE.NOFO.V2'!$G$327+'Op.Eff.STOTTE.NOFO.V2'!$H$327) -> 0.925167 | AU81: =('Op.Eff.STOTTE.NOFO.V2'!$I$327+'Op.Eff.STOTTE.NOFO.V2'!$J$327+'Op.Eff.STOTTE.NOFO.V2'!$K$327) -> 0.9963 | AV81: =('Op.Eff.STOTTE.NOFO.V2'!$L$327+'Op.Eff.STOTTE.NOFO.V2'!$M$327+'Op.Eff.STOTTE.NOFO.V2'!$N$327) -> 0.8883
AQ82: 15 | AS82: =('Op.Eff.STOTTE.NOFO.V2'!$O$351+'Op.Eff.STOTTE.NOFO.V2'!$D$351+'Op.Eff.STOTTE.NOFO.V2'!$E$351) -> 0.5784 | AT82: =('Op.Eff.STOTTE.NOFO.V2'!$F$351+'Op.Eff.STOTTE.NOFO.V2'!$G$351+'Op.Eff.STOTTE.NOFO.V2'!$H$351) -> 0.817166 | AU82: =('Op.Eff.STOTTE.NOFO.V2'!$I$351+'Op.Eff.STOTTE.NOFO.V2'!$J$351+'Op.Eff.STOTTE.NOFO.V2'!$K$351) -> 0.977168 | AV82: =('Op.Eff.STOTTE.NOFO.V2'!$L$351+'Op.Eff.STOTTE.NOFO.V2'!$M$351+'Op.Eff.STOTTE.NOFO.V2'!$N$351) -> 0.781067
AQ83: 16 | AS83: =('Op.Eff.STOTTE.NOFO.V2'!$O$375+'Op.Eff.STOTTE.NOFO.V2'!$D$375+'Op.Eff.STOTTE.NOFO.V2'!$E$375) -> 0.644734 | AT83: =('Op.Eff.STOTTE.NOFO.V2'!$F$375+'Op.Eff.STOTTE.NOFO.V2'!$G$375+'Op.Eff.STOTTE.NOFO.V2'!$H$375) -> 0.844767 | AU83: =('Op.Eff.STOTTE.NOFO.V2'!$I$375+'Op.Eff.STOTTE.NOFO.V2'!$J$375+'Op.Eff.STOTTE.NOFO.V2'!$K$375) -> 0.984367 | AV83: =('Op.Eff.STOTTE.NOFO.V2'!$L$375+'Op.Eff.STOTTE.NOFO.V2'!$M$375+'Op.Eff.STOTTE.NOFO.V2'!$N$375) -> 0.781067
AQ84: 17 | AS84: =('Op.Eff.STOTTE.NOFO.V2'!$O$399+'Op.Eff.STOTTE.NOFO.V2'!$D$399+'Op.Eff.STOTTE.NOFO.V2'!$E$399) -> 0.613967 | AT84: =('Op.Eff.STOTTE.NOFO.V2'!$F$399+'Op.Eff.STOTTE.NOFO.V2'!$G$399+'Op.Eff.STOTTE.NOFO.V2'!$H$399) -> 0.834167 | AU84: =('Op.Eff.STOTTE.NOFO.V2'!$I$399+'Op.Eff.STOTTE.NOFO.V2'!$J$399+'Op.Eff.STOTTE.NOFO.V2'!$K$399) -> 0.981535 | AV84: =('Op.Eff.STOTTE.NOFO.V2'!$L$399+'Op.Eff.STOTTE.NOFO.V2'!$M$399+'Op.Eff.STOTTE.NOFO.V2'!$N$399) -> 0.804265
AQ85: 18 | AS85: =('Op.Eff.STOTTE.NOFO.V2'!$O$423+'Op.Eff.STOTTE.NOFO.V2'!$D$423+'Op.Eff.STOTTE.NOFO.V2'!$E$423) -> 0.651335 | AT85: =('Op.Eff.STOTTE.NOFO.V2'!$F$423+'Op.Eff.STOTTE.NOFO.V2'!$G$423+'Op.Eff.STOTTE.NOFO.V2'!$H$423) -> 0.857701 | AU85: =('Op.Eff.STOTTE.NOFO.V2'!$I$423+'Op.Eff.STOTTE.NOFO.V2'!$J$423+'Op.Eff.STOTTE.NOFO.V2'!$K$423) -> 0.983399 | AV85: =('Op.Eff.STOTTE.NOFO.V2'!$L$423+'Op.Eff.STOTTE.NOFO.V2'!$M$423+'Op.Eff.STOTTE.NOFO.V2'!$N$423) -> 0.827067
AQ86: 19 | AS86: =('Op.Eff.STOTTE.NOFO.V2'!$O$447+'Op.Eff.STOTTE.NOFO.V2'!$D$447+'Op.Eff.STOTTE.NOFO.V2'!$E$447) -> 0.887732 | AT86: =('Op.Eff.STOTTE.NOFO.V2'!$F$447+'Op.Eff.STOTTE.NOFO.V2'!$G$447+'Op.Eff.STOTTE.NOFO.V2'!$H$447) -> 0.941598 | AU86: =('Op.Eff.STOTTE.NOFO.V2'!$I$447+'Op.Eff.STOTTE.NOFO.V2'!$J$447+'Op.Eff.STOTTE.NOFO.V2'!$K$447) -> 0.997601 | AV86: =('Op.Eff.STOTTE.NOFO.V2'!$L$447+'Op.Eff.STOTTE.NOFO.V2'!$M$447+'Op.Eff.STOTTE.NOFO.V2'!$N$447) -> 0.9524
AQ87: 20 | AS87: =('Op.Eff.STOTTE.NOFO.V2'!$O$471+'Op.Eff.STOTTE.NOFO.V2'!$D$471+'Op.Eff.STOTTE.NOFO.V2'!$E$471) -> 0.9562 | AT87: =('Op.Eff.STOTTE.NOFO.V2'!$F$471+'Op.Eff.STOTTE.NOFO.V2'!$G$471+'Op.Eff.STOTTE.NOFO.V2'!$H$471) -> 0.9794 | AU87: =('Op.Eff.STOTTE.NOFO.V2'!$I$471+'Op.Eff.STOTTE.NOFO.V2'!$J$471+'Op.Eff.STOTTE.NOFO.V2'!$K$471) -> 0.9962 | AV87: =('Op.Eff.STOTTE.NOFO.V2'!$L$471+'Op.Eff.STOTTE.NOFO.V2'!$M$471+'Op.Eff.STOTTE.NOFO.V2'!$N$471) -> 0.9726
AQ88: 21 | AS88: =('Op.Eff.STOTTE.NOFO.V2'!$O$495+'Op.Eff.STOTTE.NOFO.V2'!$D$495+'Op.Eff.STOTTE.NOFO.V2'!$E$495) -> 0.946766 | AT88: =('Op.Eff.STOTTE.NOFO.V2'!$F$495+'Op.Eff.STOTTE.NOFO.V2'!$G$495+'Op.Eff.STOTTE.NOFO.V2'!$H$495) -> 0.975434 | AU88: =('Op.Eff.STOTTE.NOFO.V2'!$I$495+'Op.Eff.STOTTE.NOFO.V2'!$J$495+'Op.Eff.STOTTE.NOFO.V2'!$K$495) -> 0.996201 | AV88: =('Op.Eff.STOTTE.NOFO.V2'!$L$495+'Op.Eff.STOTTE.NOFO.V2'!$M$495+'Op.Eff.STOTTE.NOFO.V2'!$N$495) -> 0.969801
AQ89: 22 | AS89: =('Op.Eff.STOTTE.NOFO.V2'!$O$519+'Op.Eff.STOTTE.NOFO.V2'!$D$519+'Op.Eff.STOTTE.NOFO.V2'!$E$519) -> 0.856166 | AT89: =('Op.Eff.STOTTE.NOFO.V2'!$F$519+'Op.Eff.STOTTE.NOFO.V2'!$G$519+'Op.Eff.STOTTE.NOFO.V2'!$H$519) -> 0.918334 | AU89: =('Op.Eff.STOTTE.NOFO.V2'!$I$519+'Op.Eff.STOTTE.NOFO.V2'!$J$519+'Op.Eff.STOTTE.NOFO.V2'!$K$519) -> 0.9926 | AV89: =('Op.Eff.STOTTE.NOFO.V2'!$L$519+'Op.Eff.STOTTE.NOFO.V2'!$M$519+'Op.Eff.STOTTE.NOFO.V2'!$N$519) -> 0.934601
AQ90: 23 | AS90: =('Op.Eff.STOTTE.NOFO.V2'!$O$543+'Op.Eff.STOTTE.NOFO.V2'!$D$543+'Op.Eff.STOTTE.NOFO.V2'!$E$543) -> 0.753934 | AT90: =('Op.Eff.STOTTE.NOFO.V2'!$F$543+'Op.Eff.STOTTE.NOFO.V2'!$G$543+'Op.Eff.STOTTE.NOFO.V2'!$H$543) -> 0.894267 | AU90: =('Op.Eff.STOTTE.NOFO.V2'!$I$543+'Op.Eff.STOTTE.NOFO.V2'!$J$543+'Op.Eff.STOTTE.NOFO.V2'!$K$543) -> 0.990701 | AV90: =('Op.Eff.STOTTE.NOFO.V2'!$L$543+'Op.Eff.STOTTE.NOFO.V2'!$M$543+'Op.Eff.STOTTE.NOFO.V2'!$N$543) -> 0.889433
AQ91: 24 | AS91: =('Op.Eff.STOTTE.NOFO.V2'!$O$567+'Op.Eff.STOTTE.NOFO.V2'!$D$567+'Op.Eff.STOTTE.NOFO.V2'!$E$567) -> 0.812067 | AT91: =('Op.Eff.STOTTE.NOFO.V2'!$F$567+'Op.Eff.STOTTE.NOFO.V2'!$G$567+'Op.Eff.STOTTE.NOFO.V2'!$H$567) -> 0.909601 | AU91: =('Op.Eff.STOTTE.NOFO.V2'!$I$567+'Op.Eff.STOTTE.NOFO.V2'!$J$567+'Op.Eff.STOTTE.NOFO.V2'!$K$567) -> 0.989866 | AV91: =('Op.Eff.STOTTE.NOFO.V2'!$L$567+'Op.Eff.STOTTE.NOFO.V2'!$M$567+'Op.Eff.STOTTE.NOFO.V2'!$N$567) -> 0.918299
AQ92: 25 | AS92: =('Op.Eff.STOTTE.NOFO.V2'!$O$591+'Op.Eff.STOTTE.NOFO.V2'!$D$591+'Op.Eff.STOTTE.NOFO.V2'!$E$591) -> 0.768066 | AT92: =('Op.Eff.STOTTE.NOFO.V2'!$F$591+'Op.Eff.STOTTE.NOFO.V2'!$G$591+'Op.Eff.STOTTE.NOFO.V2'!$H$591) -> 0.907468 | AU92: =('Op.Eff.STOTTE.NOFO.V2'!$I$591+'Op.Eff.STOTTE.NOFO.V2'!$J$591+'Op.Eff.STOTTE.NOFO.V2'!$K$591) -> 0.987967 | AV92: =('Op.Eff.STOTTE.NOFO.V2'!$L$591+'Op.Eff.STOTTE.NOFO.V2'!$M$591+'Op.Eff.STOTTE.NOFO.V2'!$N$591) -> 0.8916
AQ93: 26 | AS93: =('Op.Eff.STOTTE.NOFO.V2'!$O$615+'Op.Eff.STOTTE.NOFO.V2'!$D$615+'Op.Eff.STOTTE.NOFO.V2'!$E$615) -> 0.786201 | AT93: =('Op.Eff.STOTTE.NOFO.V2'!$F$615+'Op.Eff.STOTTE.NOFO.V2'!$G$615+'Op.Eff.STOTTE.NOFO.V2'!$H$615) -> 0.912368 | AU93: =('Op.Eff.STOTTE.NOFO.V2'!$I$615+'Op.Eff.STOTTE.NOFO.V2'!$J$615+'Op.Eff.STOTTE.NOFO.V2'!$K$615) -> 0.988766 | AV93: =('Op.Eff.STOTTE.NOFO.V2'!$L$615+'Op.Eff.STOTTE.NOFO.V2'!$M$615+'Op.Eff.STOTTE.NOFO.V2'!$N$615) -> 0.901733
AQ94: 27 | AS94: =('Op.Eff.STOTTE.NOFO.V2'!$O$639+'Op.Eff.STOTTE.NOFO.V2'!$D$639+'Op.Eff.STOTTE.NOFO.V2'!$E$639) -> 0.699533 | AT94: =('Op.Eff.STOTTE.NOFO.V2'!$F$639+'Op.Eff.STOTTE.NOFO.V2'!$G$639+'Op.Eff.STOTTE.NOFO.V2'!$H$639) -> 0.892566 | AU94: =('Op.Eff.STOTTE.NOFO.V2'!$I$639+'Op.Eff.STOTTE.NOFO.V2'!$J$639+'Op.Eff.STOTTE.NOFO.V2'!$K$639) -> 0.991767 | AV94: =('Op.Eff.STOTTE.NOFO.V2'!$L$639+'Op.Eff.STOTTE.NOFO.V2'!$M$639+'Op.Eff.STOTTE.NOFO.V2'!$N$639) -> 0.8605
AQ96: Op.Eff.STOTTE.KYSTVAKT.V2! | AT96: ANDEL AV TIDEN HVOR BØLGEFORHOLDENE TILLATER OPERASJON
AQ97: Velg st.
AQ98: 1 | AS98: =('Op.Eff.STOTTE.KYSTVAKT.V2'!$O$15+'Op.Eff.STOTTE.KYSTVAKT.V2'!$D$15+'Op.Eff.STOTTE.KYSTVAKT.V2'!$E$15) -> 0.486567 | AT98: =('Op.Eff.STOTTE.KYSTVAKT.V2'!$F$15+'Op.Eff.STOTTE.KYSTVAKT.V2'!$G$15+'Op.Eff.STOTTE.KYSTVAKT.V2'!$H$15) -> 0.789934 | AU98: =('Op.Eff.STOTTE.KYSTVAKT.V2'!$I$15+'Op.Eff.STOTTE.KYSTVAKT.V2'!$J$15+'Op.Eff.STOTTE.KYSTVAKT.V2'!$K$15) -> 0.9121 | AV98: =('Op.Eff.STOTTE.KYSTVAKT.V2'!$L$15+'Op.Eff.STOTTE.KYSTVAKT.V2'!$M$15+'Op.Eff.STOTTE.KYSTVAKT.V2'!$N$15) -> 0.630934
AQ99: 2 | AS99: =('Op.Eff.STOTTE.KYSTVAKT.V2'!$O$39+'Op.Eff.STOTTE.KYSTVAKT.V2'!$D$39+'Op.Eff.STOTTE.KYSTVAKT.V2'!$E$39) -> 0.714401 | AT99: =('Op.Eff.STOTTE.KYSTVAKT.V2'!$F$39+'Op.Eff.STOTTE.KYSTVAKT.V2'!$G$39+'Op.Eff.STOTTE.KYSTVAKT.V2'!$H$39) -> 0.9273 | AU99: =('Op.Eff.STOTTE.KYSTVAKT.V2'!$I$39+'Op.Eff.STOTTE.KYSTVAKT.V2'!$J$39+'Op.Eff.STOTTE.KYSTVAKT.V2'!$K$39) -> 0.972 | AV99: =('Op.Eff.STOTTE.KYSTVAKT.V2'!$L$39+'Op.Eff.STOTTE.KYSTVAKT.V2'!$M$39+'Op.Eff.STOTTE.KYSTVAKT.V2'!$N$39) -> 0.827367
AQ100: 3 | AS100: =('Op.Eff.STOTTE.KYSTVAKT.V2'!$O$63+'Op.Eff.STOTTE.KYSTVAKT.V2'!$D$63+'Op.Eff.STOTTE.KYSTVAKT.V2'!$E$63) -> 0.336134 | AT100: =('Op.Eff.STOTTE.KYSTVAKT.V2'!$F$63+'Op.Eff.STOTTE.KYSTVAKT.V2'!$G$63+'Op.Eff.STOTTE.KYSTVAKT.V2'!$H$63) -> 0.678333 | AU100: =('Op.Eff.STOTTE.KYSTVAKT.V2'!$I$63+'Op.Eff.STOTTE.KYSTVAKT.V2'!$J$63+'Op.Eff.STOTTE.KYSTVAKT.V2'!$K$63) -> 0.888866 | AV100: =('Op.Eff.STOTTE.KYSTVAKT.V2'!$L$63+'Op.Eff.STOTTE.KYSTVAKT.V2'!$M$63+'Op.Eff.STOTTE.KYSTVAKT.V2'!$N$63) -> 0.521901
AQ101: 4 | AS101: =('Op.Eff.STOTTE.KYSTVAKT.V2'!$O$87+'Op.Eff.STOTTE.KYSTVAKT.V2'!$D$87+'Op.Eff.STOTTE.KYSTVAKT.V2'!$E$87) -> 0.512933 | AT101: =('Op.Eff.STOTTE.KYSTVAKT.V2'!$F$87+'Op.Eff.STOTTE.KYSTVAKT.V2'!$G$87+'Op.Eff.STOTTE.KYSTVAKT.V2'!$H$87) -> 0.8058 | AU101: =('Op.Eff.STOTTE.KYSTVAKT.V2'!$I$87+'Op.Eff.STOTTE.KYSTVAKT.V2'!$J$87+'Op.Eff.STOTTE.KYSTVAKT.V2'!$K$87) -> 0.9295 | AV101: =('Op.Eff.STOTTE.KYSTVAKT.V2'!$L$87+'Op.Eff.STOTTE.KYSTVAKT.V2'!$M$87+'Op.Eff.STOTTE.KYSTVAKT.V2'!$N$87) -> 0.6483
AQ102: 5 | AS102: =('Op.Eff.STOTTE.KYSTVAKT.V2'!$O$111+'Op.Eff.STOTTE.KYSTVAKT.V2'!$D$111+'Op.Eff.STOTTE.KYSTVAKT.V2'!$E$11) -> 0.0519 | AT102: =('Op.Eff.STOTTE.KYSTVAKT.V2'!$F$111+'Op.Eff.STOTTE.KYSTVAKT.V2'!$G$111+'Op.Eff.STOTTE.KYSTVAKT.V2'!$H$11) -> 0.161534 | AU102: =('Op.Eff.STOTTE.KYSTVAKT.V2'!$I$111+'Op.Eff.STOTTE.KYSTVAKT.V2'!$J$111+'Op.Eff.STOTTE.KYSTVAKT.V2'!$K$11) -> 0.323733 | AV102: =('Op.Eff.STOTTE.KYSTVAKT.V2'!$L$111+'Op.Eff.STOTTE.KYSTVAKT.V2'!$M$111+'Op.Eff.STOTTE.KYSTVAKT.V2'!$N$11) -> 0.1052
AQ103: 6 | AS103: =('Op.Eff.STOTTE.KYSTVAKT.V2'!$O$135+'Op.Eff.STOTTE.KYSTVAKT.V2'!$D$135+'Op.Eff.STOTTE.KYSTVAKT.V2'!$E$135) -> 0.587832 | AT103: =('Op.Eff.STOTTE.KYSTVAKT.V2'!$F$135+'Op.Eff.STOTTE.KYSTVAKT.V2'!$G$135+'Op.Eff.STOTTE.KYSTVAKT.V2'!$H$135) -> 0.8283 | AU103: =('Op.Eff.STOTTE.KYSTVAKT.V2'!$I$135+'Op.Eff.STOTTE.KYSTVAKT.V2'!$J$135+'Op.Eff.STOTTE.KYSTVAKT.V2'!$K$135) -> 0.949567 | AV103: =('Op.Eff.STOTTE.KYSTVAKT.V2'!$L$135+'Op.Eff.STOTTE.KYSTVAKT.V2'!$M$135+'Op.Eff.STOTTE.KYSTVAKT.V2'!$N$135) -> 0.721634
AQ104: 7 | AS104: =('Op.Eff.STOTTE.KYSTVAKT.V2'!$O$159+'Op.Eff.STOTTE.KYSTVAKT.V2'!$D$159+'Op.Eff.STOTTE.KYSTVAKT.V2'!$E$159) -> 0.297666 | AT104: =('Op.Eff.STOTTE.KYSTVAKT.V2'!$F$159+'Op.Eff.STOTTE.KYSTVAKT.V2'!$G$159+'Op.Eff.STOTTE.KYSTVAKT.V2'!$H$159) -> 0.636566 | AU104: =('Op.Eff.STOTTE.KYSTVAKT.V2'!$I$159+'Op.Eff.STOTTE.KYSTVAKT.V2'!$J$159+'Op.Eff.STOTTE.KYSTVAKT.V2'!$K$159) -> 0.869066 | AV104: =('Op.Eff.STOTTE.KYSTVAKT.V2'!$L$159+'Op.Eff.STOTTE.KYSTVAKT.V2'!$M$159+'Op.Eff.STOTTE.KYSTVAKT.V2'!$N$159) -> 0.468667
AQ105: 8 | AS105: =('Op.Eff.STOTTE.KYSTVAKT.V2'!$O$183+'Op.Eff.STOTTE.KYSTVAKT.V2'!$D$183+'Op.Eff.STOTTE.KYSTVAKT.V2'!$E$183) -> 0.311933 | AT105: =('Op.Eff.STOTTE.KYSTVAKT.V2'!$F$183+'Op.Eff.STOTTE.KYSTVAKT.V2'!$G$183+'Op.Eff.STOTTE.KYSTVAKT.V2'!$H$183) -> 0.642399 | AU105: =('Op.Eff.STOTTE.KYSTVAKT.V2'!$I$183+'Op.Eff.STOTTE.KYSTVAKT.V2'!$J$183+'Op.Eff.STOTTE.KYSTVAKT.V2'!$K$183) -> 0.861833 | AV105: =('Op.Eff.STOTTE.KYSTVAKT.V2'!$L$183+'Op.Eff.STOTTE.KYSTVAKT.V2'!$M$183+'Op.Eff.STOTTE.KYSTVAKT.V2'!$N$183) -> 0.481234
AQ106: 9 | AS106: =('Op.Eff.STOTTE.KYSTVAKT.V2'!$O$207+'Op.Eff.STOTTE.KYSTVAKT.V2'!$D$207+'Op.Eff.STOTTE.KYSTVAKT.V2'!$E$207) -> 0.3132 | AT106: =('Op.Eff.STOTTE.KYSTVAKT.V2'!$F$207+'Op.Eff.STOTTE.KYSTVAKT.V2'!$G$207+'Op.Eff.STOTTE.KYSTVAKT.V2'!$H$207) -> 0.632599 | AU106: =('Op.Eff.STOTTE.KYSTVAKT.V2'!$I$207+'Op.Eff.STOTTE.KYSTVAKT.V2'!$J$207+'Op.Eff.STOTTE.KYSTVAKT.V2'!$K$207) -> 0.861733 | AV106: =('Op.Eff.STOTTE.KYSTVAKT.V2'!$L$207+'Op.Eff.STOTTE.KYSTVAKT.V2'!$M$207+'Op.Eff.STOTTE.KYSTVAKT.V2'!$N$207) -> 0.486001
AQ107: 10 | AS107: =('Op.Eff.STOTTE.KYSTVAKT.V2'!$O$231+'Op.Eff.STOTTE.KYSTVAKT.V2'!$D$231+'Op.Eff.STOTTE.KYSTVAKT.V2'!$E$231) -> 0.2533 | AT107: =('Op.Eff.STOTTE.KYSTVAKT.V2'!$F$231+'Op.Eff.STOTTE.KYSTVAKT.V2'!$G$231+'Op.Eff.STOTTE.KYSTVAKT.V2'!$H$231) -> 0.580166 | AU107: =('Op.Eff.STOTTE.KYSTVAKT.V2'!$I$231+'Op.Eff.STOTTE.KYSTVAKT.V2'!$J$231+'Op.Eff.STOTTE.KYSTVAKT.V2'!$K$231) -> 0.8431 | AV107: =('Op.Eff.STOTTE.KYSTVAKT.V2'!$L$231+'Op.Eff.STOTTE.KYSTVAKT.V2'!$M$231+'Op.Eff.STOTTE.KYSTVAKT.V2'!$N$231) -> 0.438467
AQ108: 11 | AS108: =('Op.Eff.STOTTE.KYSTVAKT.V2'!$O$255+'Op.Eff.STOTTE.KYSTVAKT.V2'!$D$255+'Op.Eff.STOTTE.KYSTVAKT.V2'!$E$255) -> 0.3113 | AT108: =('Op.Eff.STOTTE.KYSTVAKT.V2'!$F$255+'Op.Eff.STOTTE.KYSTVAKT.V2'!$G$255+'Op.Eff.STOTTE.KYSTVAKT.V2'!$H$255) -> 0.620066 | AU108: =('Op.Eff.STOTTE.KYSTVAKT.V2'!$I$255+'Op.Eff.STOTTE.KYSTVAKT.V2'!$J$255+'Op.Eff.STOTTE.KYSTVAKT.V2'!$K$255) -> 0.8562 | AV108: =('Op.Eff.STOTTE.KYSTVAKT.V2'!$L$255+'Op.Eff.STOTTE.KYSTVAKT.V2'!$M$255+'Op.Eff.STOTTE.KYSTVAKT.V2'!$N$255) -> 0.494999
AQ109: 12 | AS109: =('Op.Eff.STOTTE.KYSTVAKT.V2'!$O$279+'Op.Eff.STOTTE.KYSTVAKT.V2'!$D$279+'Op.Eff.STOTTE.KYSTVAKT.V2'!$E$279) -> 0.501567 | AT109: =('Op.Eff.STOTTE.KYSTVAKT.V2'!$F$279+'Op.Eff.STOTTE.KYSTVAKT.V2'!$G$279+'Op.Eff.STOTTE.KYSTVAKT.V2'!$H$279) -> 0.766067 | AU109: =('Op.Eff.STOTTE.KYSTVAKT.V2'!$I$279+'Op.Eff.STOTTE.KYSTVAKT.V2'!$J$279+'Op.Eff.STOTTE.KYSTVAKT.V2'!$K$279) -> 0.945033 | AV109: =('Op.Eff.STOTTE.KYSTVAKT.V2'!$L$279+'Op.Eff.STOTTE.KYSTVAKT.V2'!$M$279+'Op.Eff.STOTTE.KYSTVAKT.V2'!$N$279) -> 0.674566
AQ110: 13 | AS110: =('Op.Eff.STOTTE.KYSTVAKT.V2'!$O$303+'Op.Eff.STOTTE.KYSTVAKT.V2'!$D$303+'Op.Eff.STOTTE.KYSTVAKT.V2'!$E$303) -> 0.205333 | AT110: =('Op.Eff.STOTTE.KYSTVAKT.V2'!$F$303+'Op.Eff.STOTTE.KYSTVAKT.V2'!$G$303+'Op.Eff.STOTTE.KYSTVAKT.V2'!$H$303) -> 0.525066 | AU110: =('Op.Eff.STOTTE.KYSTVAKT.V2'!$I$303+'Op.Eff.STOTTE.KYSTVAKT.V2'!$J$303+'Op.Eff.STOTTE.KYSTVAKT.V2'!$K$303) -> 0.8229 | AV110: =('Op.Eff.STOTTE.KYSTVAKT.V2'!$L$303+'Op.Eff.STOTTE.KYSTVAKT.V2'!$M$303+'Op.Eff.STOTTE.KYSTVAKT.V2'!$N$303) -> 0.3974
AQ111: 14 | AS111: =('Op.Eff.STOTTE.KYSTVAKT.V2'!$O$327+'Op.Eff.STOTTE.KYSTVAKT.V2'!$D$327+'Op.Eff.STOTTE.KYSTVAKT.V2'!$E$327) -> 0.437933 | AT111: =('Op.Eff.STOTTE.KYSTVAKT.V2'!$F$327+'Op.Eff.STOTTE.KYSTVAKT.V2'!$G$327+'Op.Eff.STOTTE.KYSTVAKT.V2'!$H$327) -> 0.705067 | AU111: =('Op.Eff.STOTTE.KYSTVAKT.V2'!$I$327+'Op.Eff.STOTTE.KYSTVAKT.V2'!$J$327+'Op.Eff.STOTTE.KYSTVAKT.V2'!$K$327) -> 0.939333 | AV111: =('Op.Eff.STOTTE.KYSTVAKT.V2'!$L$327+'Op.Eff.STOTTE.KYSTVAKT.V2'!$M$327+'Op.Eff.STOTTE.KYSTVAKT.V2'!$N$327) -> 0.6337
AQ112: 15 | AS112: =('Op.Eff.STOTTE.KYSTVAKT.V2'!$O$351+'Op.Eff.STOTTE.KYSTVAKT.V2'!$D$351+'Op.Eff.STOTTE.KYSTVAKT.V2'!$E$351) -> 0.235966 | AT112: =('Op.Eff.STOTTE.KYSTVAKT.V2'!$F$351+'Op.Eff.STOTTE.KYSTVAKT.V2'!$G$351+'Op.Eff.STOTTE.KYSTVAKT.V2'!$H$351) -> 0.542066 | AU112: =('Op.Eff.STOTTE.KYSTVAKT.V2'!$I$351+'Op.Eff.STOTTE.KYSTVAKT.V2'!$J$351+'Op.Eff.STOTTE.KYSTVAKT.V2'!$K$351) -> 0.854767 | AV112: =('Op.Eff.STOTTE.KYSTVAKT.V2'!$L$351+'Op.Eff.STOTTE.KYSTVAKT.V2'!$M$351+'Op.Eff.STOTTE.KYSTVAKT.V2'!$N$351) -> 0.446067
AQ113: 16 | AS113: =('Op.Eff.STOTTE.KYSTVAKT.V2'!$O$375+'Op.Eff.STOTTE.KYSTVAKT.V2'!$D$375+'Op.Eff.STOTTE.KYSTVAKT.V2'!$E$375) -> 0.277201 | AT113: =('Op.Eff.STOTTE.KYSTVAKT.V2'!$F$375+'Op.Eff.STOTTE.KYSTVAKT.V2'!$G$375+'Op.Eff.STOTTE.KYSTVAKT.V2'!$H$375) -> 0.5803 | AU113: =('Op.Eff.STOTTE.KYSTVAKT.V2'!$I$375+'Op.Eff.STOTTE.KYSTVAKT.V2'!$J$375+'Op.Eff.STOTTE.KYSTVAKT.V2'!$K$375) -> 0.882534 | AV113: =('Op.Eff.STOTTE.KYSTVAKT.V2'!$L$375+'Op.Eff.STOTTE.KYSTVAKT.V2'!$M$375+'Op.Eff.STOTTE.KYSTVAKT.V2'!$N$375) -> 0.5082
AQ114: 17 | AS114: =('Op.Eff.STOTTE.KYSTVAKT.V2'!$O$399+'Op.Eff.STOTTE.KYSTVAKT.V2'!$D$399+'Op.Eff.STOTTE.KYSTVAKT.V2'!$E$399) -> 0.231933 | AT114: =('Op.Eff.STOTTE.KYSTVAKT.V2'!$F$399+'Op.Eff.STOTTE.KYSTVAKT.V2'!$G$399+'Op.Eff.STOTTE.KYSTVAKT.V2'!$H$399) -> 0.536233 | AU114: =('Op.Eff.STOTTE.KYSTVAKT.V2'!$I$399+'Op.Eff.STOTTE.KYSTVAKT.V2'!$J$399+'Op.Eff.STOTTE.KYSTVAKT.V2'!$K$399) -> 0.870101 | AV114: =('Op.Eff.STOTTE.KYSTVAKT.V2'!$L$399+'Op.Eff.STOTTE.KYSTVAKT.V2'!$M$399+'Op.Eff.STOTTE.KYSTVAKT.V2'!$N$399) -> 0.457466
AQ115: 18 | AS115: =('Op.Eff.STOTTE.KYSTVAKT.V2'!$O$423+'Op.Eff.STOTTE.KYSTVAKT.V2'!$D$423+'Op.Eff.STOTTE.KYSTVAKT.V2'!$E$423) -> 0.261568 | AT115: =('Op.Eff.STOTTE.KYSTVAKT.V2'!$F$423+'Op.Eff.STOTTE.KYSTVAKT.V2'!$G$423+'Op.Eff.STOTTE.KYSTVAKT.V2'!$H$423) -> 0.560834 | AU115: =('Op.Eff.STOTTE.KYSTVAKT.V2'!$I$423+'Op.Eff.STOTTE.KYSTVAKT.V2'!$J$423+'Op.Eff.STOTTE.KYSTVAKT.V2'!$K$423) -> 0.872299 | AV115: =('Op.Eff.STOTTE.KYSTVAKT.V2'!$L$423+'Op.Eff.STOTTE.KYSTVAKT.V2'!$M$423+'Op.Eff.STOTTE.KYSTVAKT.V2'!$N$423) -> 0.494834
AQ116: 19 | AS116: =('Op.Eff.STOTTE.KYSTVAKT.V2'!$O$447+'Op.Eff.STOTTE.KYSTVAKT.V2'!$D$447+'Op.Eff.STOTTE.KYSTVAKT.V2'!$E$447) -> 0.627566 | AT116: =('Op.Eff.STOTTE.KYSTVAKT.V2'!$F$447+'Op.Eff.STOTTE.KYSTVAKT.V2'!$G$447+'Op.Eff.STOTTE.KYSTVAKT.V2'!$H$447) -> 0.769599 | AU116: =('Op.Eff.STOTTE.KYSTVAKT.V2'!$I$447+'Op.Eff.STOTTE.KYSTVAKT.V2'!$J$447+'Op.Eff.STOTTE.KYSTVAKT.V2'!$K$447) -> 0.962667 | AV116: =('Op.Eff.STOTTE.KYSTVAKT.V2'!$L$447+'Op.Eff.STOTTE.KYSTVAKT.V2'!$M$447+'Op.Eff.STOTTE.KYSTVAKT.V2'!$N$447) -> 0.7775
AQ117: 20 | AS117: =('Op.Eff.STOTTE.KYSTVAKT.V2'!$O$471+'Op.Eff.STOTTE.KYSTVAKT.V2'!$D$471+'Op.Eff.STOTTE.KYSTVAKT.V2'!$E$471) -> 0.818433 | AT117: =('Op.Eff.STOTTE.KYSTVAKT.V2'!$F$471+'Op.Eff.STOTTE.KYSTVAKT.V2'!$G$471+'Op.Eff.STOTTE.KYSTVAKT.V2'!$H$471) -> 0.8768 | AU117: =('Op.Eff.STOTTE.KYSTVAKT.V2'!$I$471+'Op.Eff.STOTTE.KYSTVAKT.V2'!$J$471+'Op.Eff.STOTTE.KYSTVAKT.V2'!$K$471) -> 0.9553 | AV117: =('Op.Eff.STOTTE.KYSTVAKT.V2'!$L$471+'Op.Eff.STOTTE.KYSTVAKT.V2'!$M$471+'Op.Eff.STOTTE.KYSTVAKT.V2'!$N$471) -> 0.8634
AQ118: 21 | AS118: =('Op.Eff.STOTTE.KYSTVAKT.V2'!$O$495+'Op.Eff.STOTTE.KYSTVAKT.V2'!$D$495+'Op.Eff.STOTTE.KYSTVAKT.V2'!$E$495) -> 0.767466 | AT118: =('Op.Eff.STOTTE.KYSTVAKT.V2'!$F$495+'Op.Eff.STOTTE.KYSTVAKT.V2'!$G$495+'Op.Eff.STOTTE.KYSTVAKT.V2'!$H$495) -> 0.846534 | AU118: =('Op.Eff.STOTTE.KYSTVAKT.V2'!$I$495+'Op.Eff.STOTTE.KYSTVAKT.V2'!$J$495+'Op.Eff.STOTTE.KYSTVAKT.V2'!$K$495) -> 0.958867 | AV118: =('Op.Eff.STOTTE.KYSTVAKT.V2'!$L$495+'Op.Eff.STOTTE.KYSTVAKT.V2'!$M$495+'Op.Eff.STOTTE.KYSTVAKT.V2'!$N$495) -> 0.843934
AQ119: 22 | AS119: =('Op.Eff.STOTTE.KYSTVAKT.V2'!$O$519+'Op.Eff.STOTTE.KYSTVAKT.V2'!$D$519+'Op.Eff.STOTTE.KYSTVAKT.V2'!$E$519) -> 0.537466 | AT119: =('Op.Eff.STOTTE.KYSTVAKT.V2'!$F$519+'Op.Eff.STOTTE.KYSTVAKT.V2'!$G$519+'Op.Eff.STOTTE.KYSTVAKT.V2'!$H$519) -> 0.720733 | AU119: =('Op.Eff.STOTTE.KYSTVAKT.V2'!$I$519+'Op.Eff.STOTTE.KYSTVAKT.V2'!$J$519+'Op.Eff.STOTTE.KYSTVAKT.V2'!$K$519) -> 0.9342 | AV119: =('Op.Eff.STOTTE.KYSTVAKT.V2'!$L$519+'Op.Eff.STOTTE.KYSTVAKT.V2'!$M$519+'Op.Eff.STOTTE.KYSTVAKT.V2'!$N$519) -> 0.699434
AQ120: 23 | AS120: =('Op.Eff.STOTTE.KYSTVAKT.V2'!$O$543+'Op.Eff.STOTTE.KYSTVAKT.V2'!$D$543+'Op.Eff.STOTTE.KYSTVAKT.V2'!$E$543) -> 0.389667 | AT120: =('Op.Eff.STOTTE.KYSTVAKT.V2'!$F$543+'Op.Eff.STOTTE.KYSTVAKT.V2'!$G$543+'Op.Eff.STOTTE.KYSTVAKT.V2'!$H$543) -> 0.629833 | AU120: =('Op.Eff.STOTTE.KYSTVAKT.V2'!$I$543+'Op.Eff.STOTTE.KYSTVAKT.V2'!$J$543+'Op.Eff.STOTTE.KYSTVAKT.V2'!$K$543) -> 0.901667 | AV120: =('Op.Eff.STOTTE.KYSTVAKT.V2'!$L$543+'Op.Eff.STOTTE.KYSTVAKT.V2'!$M$543+'Op.Eff.STOTTE.KYSTVAKT.V2'!$N$543) -> 0.5763
AQ121: 24 | AS121: =('Op.Eff.STOTTE.KYSTVAKT.V2'!$O$567+'Op.Eff.STOTTE.KYSTVAKT.V2'!$D$567+'Op.Eff.STOTTE.KYSTVAKT.V2'!$E$567) -> 0.452366 | AT121: =('Op.Eff.STOTTE.KYSTVAKT.V2'!$F$567+'Op.Eff.STOTTE.KYSTVAKT.V2'!$G$567+'Op.Eff.STOTTE.KYSTVAKT.V2'!$H$567) -> 0.672968 | AU121: =('Op.Eff.STOTTE.KYSTVAKT.V2'!$I$567+'Op.Eff.STOTTE.KYSTVAKT.V2'!$J$567+'Op.Eff.STOTTE.KYSTVAKT.V2'!$K$567) -> 0.916199 | AV121: =('Op.Eff.STOTTE.KYSTVAKT.V2'!$L$567+'Op.Eff.STOTTE.KYSTVAKT.V2'!$M$567+'Op.Eff.STOTTE.KYSTVAKT.V2'!$N$567) -> 0.630233
AQ122: 25 | AS122: =('Op.Eff.STOTTE.KYSTVAKT.V2'!$O$591+'Op.Eff.STOTTE.KYSTVAKT.V2'!$D$591+'Op.Eff.STOTTE.KYSTVAKT.V2'!$E$591) -> 0.389666 | AT122: =('Op.Eff.STOTTE.KYSTVAKT.V2'!$F$591+'Op.Eff.STOTTE.KYSTVAKT.V2'!$G$591+'Op.Eff.STOTTE.KYSTVAKT.V2'!$H$591) -> 0.640101 | AU122: =('Op.Eff.STOTTE.KYSTVAKT.V2'!$I$591+'Op.Eff.STOTTE.KYSTVAKT.V2'!$J$591+'Op.Eff.STOTTE.KYSTVAKT.V2'!$K$591) -> 0.907067 | AV122: =('Op.Eff.STOTTE.KYSTVAKT.V2'!$L$591+'Op.Eff.STOTTE.KYSTVAKT.V2'!$M$591+'Op.Eff.STOTTE.KYSTVAKT.V2'!$N$591) -> 0.580933
AQ123: 26 | AS123: =('Op.Eff.STOTTE.KYSTVAKT.V2'!$O$615+'Op.Eff.STOTTE.KYSTVAKT.V2'!$D$615+'Op.Eff.STOTTE.KYSTVAKT.V2'!$E$615) -> 0.421434 | AT123: =('Op.Eff.STOTTE.KYSTVAKT.V2'!$F$615+'Op.Eff.STOTTE.KYSTVAKT.V2'!$G$615+'Op.Eff.STOTTE.KYSTVAKT.V2'!$H$615) -> 0.653734 | AU123: =('Op.Eff.STOTTE.KYSTVAKT.V2'!$I$615+'Op.Eff.STOTTE.KYSTVAKT.V2'!$J$615+'Op.Eff.STOTTE.KYSTVAKT.V2'!$K$615) -> 0.905699 | AV123: =('Op.Eff.STOTTE.KYSTVAKT.V2'!$L$615+'Op.Eff.STOTTE.KYSTVAKT.V2'!$M$615+'Op.Eff.STOTTE.KYSTVAKT.V2'!$N$615) -> 0.608533
AQ124: 27 | AS124: =('Op.Eff.STOTTE.KYSTVAKT.V2'!$O$639+'Op.Eff.STOTTE.KYSTVAKT.V2'!$D$639+'Op.Eff.STOTTE.KYSTVAKT.V2'!$E$639) -> 0.290833 | AT124: =('Op.Eff.STOTTE.KYSTVAKT.V2'!$F$639+'Op.Eff.STOTTE.KYSTVAKT.V2'!$G$639+'Op.Eff.STOTTE.KYSTVAKT.V2'!$H$639) -> 0.608433 | AU124: =('Op.Eff.STOTTE.KYSTVAKT.V2'!$I$639+'Op.Eff.STOTTE.KYSTVAKT.V2'!$J$639+'Op.Eff.STOTTE.KYSTVAKT.V2'!$K$639) -> 0.901234 | AV124: =('Op.Eff.STOTTE.KYSTVAKT.V2'!$L$639+'Op.Eff.STOTTE.KYSTVAKT.V2'!$M$639+'Op.Eff.STOTTE.KYSTVAKT.V2'!$N$639) -> 0.519833

Sheet Ark2 (hidden)

Sheet 3. Barriere 1 og 2
B2: Valg av bekjempelse i barriere 1 og 2
D4: Vinter | F4: Vår | H4: Sommer | J4: Høst
B5: Parameter | C5: Timer | D5: 5°C - 10 m/s vind | F5: 5°C - 5 m/s vind | H5: 15°C - 5 m/s vind | J5: 15°C - 10 m/s vind
B6: Utstrømningsrate (Sm3/d) | D6: ='1. Input fra oljedrift og MRA'!C10 -> 1000 | F6: ='1. Input fra oljedrift og MRA'!C10 -> 1000 | H6: ='1. Input fra oljedrift og MRA'!C10 -> 1000 | J6: ='1. Input fra oljedrift og MRA'!C10 -> 1000
B8: Fordampning etter antall timer på sjø (%) | C8: 2 | D8: =(VLOOKUP('1. Input fra oljedrift og MRA'!$C$35&"-"&"Vinterforhold"&"-"&10&"-"&$C8,Oljedatabase!$C:$S,9,FALSE))*100 -> 14 | F8: =VLOOKUP('1. Input fra oljedrift og MRA'!$C$35&"-"&"Vinterforhold"&"-"&5&"-"&$C8,Oljedatabase!$C:$S,9,FALSE)*100 -> 11 | H8: =VLOOKUP('1. Input fra oljedrift og MRA'!$C$35&"-"&"Sommerforhold"&"-"&5&"-"&$C8,Oljedatabase!$C:$S,9,FALSE)*100 -> 13 | J8: =VLOOKUP('1. Input fra oljedrift og MRA'!$C$35&"-"&"Sommerforhold"&"-"&10&"-"&$C8,Oljedatabase!$C:$S,9,FALSE)*100 -> 16 | S8: =ISERROR(D8) -> FALSE | U8: =ISERROR(J8) -> FALSE
B9: Nedblanding etter antall timer på sjø (%) | D9: =VLOOKUP('1. Input fra oljedrift og MRA'!$C$35&"-"&"Vinterforhold"&"-"&10&"-"&'3. Barriere 1 og 2'!$C8,Oljedatabase!$C:$S,11,FALSE)*100 -> 5 | F9: =VLOOKUP('1. Input fra oljedrift og MRA'!$C$35&"-"&"Vinterforhold"&"-"&5&"-"&$C8,Oljedatabase!$C:$S,11,FALSE)*100 -> 0 | H9: =VLOOKUP('1. Input fra oljedrift og MRA'!$C$35&"-"&"Sommerforhold"&"-"&5&"-"&$C8,Oljedatabase!$C:$S,11,FALSE)*100 -> 0 | J9: =VLOOKUP('1. Input fra oljedrift og MRA'!$C$35&"-"&"Sommerforhold"&"-"&10&"-"&$C8,Oljedatabase!$C:$S,11,FALSE)*100 -> 5 | N9: =IF(COUNTIF(S8:U13,"Sann")>0,"Forvitringsstudiet for denne oljen er mangelfullt for tidenheten du har valgt ","Ok") -> Ok | S9: =ISERROR(D9) -> FALSE | U9: =ISERROR(J9) -> FALSE
B10: Oljemengde tilgjengelig for emulsjonsdannelse (Sm3/d) | D10: =D6-(D6*((D8+D9)/100)) -> 810 | F10: =F6-(F6*((F8+F9)/100)) -> 890 | H10: =H6-(H6*((H8+H9)/100)) -> 870 | J10: =J6-(J6*((J8+J9)/100)) -> 790
B11: Vanninnhold etter antall timer på sjø (%) | D11: =VLOOKUP('1. Input fra oljedrift og MRA'!$C$35&"-"&"Vinterforhold"&"-"&10&"-"&'3. Barriere 1 og 2'!$C8,Oljedatabase!$C:$S,6,FALSE)*100 -> 18 | F11: =VLOOKUP('1. Input fra oljedrift og MRA'!$C$35&"-"&"Vinterforhold"&"-"&5&"-"&$C8,Oljedatabase!$C:$S,6,FALSE)*100 -> 6 | H11: =VLOOKUP('1. Input fra oljedrift og MRA'!$C$35&"-"&"Sommerforhold"&"-"&5&"-"&$C8,Oljedatabase!$C:$S,6,FALSE)*100 -> 6 | J11: =VLOOKUP('1. Input fra oljedrift og MRA'!$C$35&"-"&"Sommerforhold"&"-"&10&"-"&$C8,Oljedatabase!$C:$S,6,FALSE)*100 -> 20 | S11: =ISERROR(D11) -> FALSE | U11: =ISERROR(J11) -> FALSE
B12: Emulsjonsmengde tilgjengelig for opptak i barriere 1 (Sm3/d) | D12: =D10+(((D11/100)/((100-D11)/100))*D10) -> 987.804878 | F12: =F10+(((F11/100)/((100-F11)/100))*F10) -> 946.8085106 | H12: =H10+(((H11/100)/((100-H11)/100))*H10) -> 925.5319149 | J12: =J10+(((J11/100)/((100-J11)/100))*J10) -> 987.5
B13: Viskositet av emulsjon inn til barriere 1 (cP) | D13: =VLOOKUP('1. Input fra oljedrift og MRA'!$C$35&"-"&"Vinterforhold"&"-"&10&"-"&'3. Barriere 1 og 2'!$C8,Oljedatabase!$C:$S,7,FALSE) -> 966 | F13: =VLOOKUP('1. Input fra oljedrift og MRA'!$C$35&"-"&"Vinterforhold"&"-"&5&"-"&'3. Barriere 1 og 2'!$C8,Oljedatabase!$C:$S,7,FALSE) -> 448 | H13: =VLOOKUP('1. Input fra oljedrift og MRA'!$C$35&"-"&"Sommerforhold"&"-"&5&"-"&'3. Barriere 1 og 2'!$C8,Oljedatabase!$C:$S,7,FALSE) -> 308 | J13: =VLOOKUP('1. Input fra oljedrift og MRA'!$C$35&"-"&"Sommerforhold"&"-"&10&"-"&'3. Barriere 1 og 2'!$C8,Oljedatabase!$C:$S,7,FALSE) -> 677 | S13: =ISERROR(D13) -> FALSE | U13: =ISERROR(J13) -> FALSE
B14: Behov for høyvikskositets opptager (>50.000 cP)? | D14: Nei | F14: Nei | H14: Nei | J14: Nei
B16: Beredskapsbehov i barriere 1 | D16: Vinter | F16: Vår | H16: Sommer | J16: Høst
B17: Beregnet behov for NOFO-systemer | D17: =IF(D14="Nei",(D12/Sys.Kapasitet!$C$5),(D12/Sys.Kapasitet!$D$5)) -> 0.3447835525 | F17: =IF(F14="Nei",(F12/Sys.Kapasitet!#REF!),(F12/Sys.Kapasitet!#REF!)) ->  | H17: =IF(H14="Nei",(H12/Sys.Kapasitet!A5),(H12/Sys.Kapasitet!B5)) ->  | J17: =IF(J14="Nei",(J12/Sys.Kapasitet!C5),(J12/Sys.Kapasitet!D5)) -> 0.3446771379
B18: s | D18: =IF(D17<1,ROUNDUP(D17,0) & " NOFO-system",ROUNDUP(D17,0) & " NOFO-systemer") -> 1 NOFO-system | F18: =IF(F17<1,ROUNDUP(F17,0) & " NOFO-system",ROUNDUP(F17,0) & " NOFO-systemer") ->  | H18: =IF(H17<1,ROUNDUP(H17,0) & " NOFO-system",ROUNDUP(H17,0) & " NOFO-systemer") ->  | J18: =IF(J17<1,ROUNDUP(J17,0) & " NOFO-system",ROUNDUP(J17,0) & " NOFO-systemer") -> 1 NOFO-system
B19: Beredskapsløsning i barriere 1 | C19: Antall | D19: Ytelse - Vinter | E19: Antall | F19: Ytelse - Vår | G19: Antall | H19: Ytelse - Sommer | I19: Antall | J19: Ytelse - Høst
B20: NOFO J med overløpsskimmer | C20: 1 | D20: =IF(D14="Nei",C20*Sys.Kapasitet!$C$5,C20*Sys.Kapasitet!$D$5) -> 2865 | E20: 1 | F20: =IF(F14="Nei",E20*Sys.Kapasitet!$C$5,E20*Sys.Kapasitet!$D$5) -> 2865 | G20: 1 | H20: =IF(H14="Nei",G20*Sys.Kapasitet!$C$5,G20*Sys.Kapasitet!$D$5) -> 2865 | I20: 1 | J20: =IF(J14="Nei",I20*Sys.Kapasitet!$C$5,I20*Sys.Kapasitet!$D$5) -> 2865
B21: NOFO J med høyviskositetsskimmer | C21: 0 | D21: =IF(D14="Nei",C21*Sys.Kapasitet!$C$7,C21*Sys.Kapasitet!$C$7) -> 0 | E21: 0 | F21: =IF(F15="Nei",E21*Sys.Kapasitet!$C$5,E21*Sys.Kapasitet!$C$7) -> 0 | G21: 0 | H21: =IF(H14="Nei",G21*Sys.Kapasitet!$C$7,G21*Sys.Kapasitet!$D$7) -> 0 | I21: 0 | J21: =IF(J14="Nei",I21*Sys.Kapasitet!$C$7,I21*Sys.Kapasitet!$D$7) -> 0
B22: NOFO havgående høyhastighetssystem | C22: 0 | D22: =IF(D14="Nei",C22*Sys.Kapasitet!$C$9,C22*Sys.Kapasitet!$D$9) -> 0 | E22: 0 | F22: =IF(F16="Nei",E22*Sys.Kapasitet!$C$5,E22*Sys.Kapasitet!$C$9) -> 0 | G22: 0 | H22: =IF(H14="Nei",G22*Sys.Kapasitet!$C$9,G22*Sys.Kapasitet!$D$9) -> 0 | I22: 0 | J22: =IF(J14="Nei",I22*Sys.Kapasitet!$C$9,I22*Sys.Kapasitet!$D$9) -> 0
B23: NOFO båtdispergering - høy doseringsrate | C23: 0 | D23: =IF(D14="Nei",C23*Sys.Kapasitet!$C$11,C23*Sys.Kapasitet!$D$11) -> 0 | E23: 0 | F23: =IF(F14="Nei",E23*Sys.Kapasitet!$C$11,E23*Sys.Kapasitet!$C$12) -> 0 | G23: 0 | H23: =IF(H14="Nei",G23*Sys.Kapasitet!$C$11,G23*Sys.Kapasitet!$D$11) -> 0 | I23: 0 | J23: =IF(J14="Nei",I23*Sys.Kapasitet!$C$11,I23*Sys.Kapasitet!$C$11) -> 0
B24: NOFO båtdispergering - lav doseringsrate | C24: 0 | D24: =IF(D15="Nei",C24*Sys.Kapasitet!$C$11,C24*Sys.Kapasitet!$C$13) -> 0 | E24: 0 | F24: =IF(F14="Nei",E24*Sys.Kapasitet!$C$13,E24*Sys.Kapasitet!$C$13) -> 0 | G24: 0 | H24: =IF(H14="Nei",G24*Sys.Kapasitet!$C$13,G24*Sys.Kapasitet!$D$13) -> 0 | I24: 0 | J24: =IF(J14="Nei",I24*Sys.Kapasitet!$C$13,I24*Sys.Kapasitet!$C$13) -> 0
B25: Kapasitet av valgt beredskapsløsning (Sm3/d) | D25: =ROUNDDOWN(SUM(D20:D24),0) -> 2865 | F25: =ROUNDDOWN(SUM(F20:F24),0) -> 2865 | H25: =ROUNDDOWN(SUM(H20:H24),0) -> 2865 | J25: =ROUNDDOWN(SUM(J20:J24),0) -> 2865
B26: Gjenværende emulsjon tilgjengelig for bekjempelse (Sm3/d) | D26: =IF(D12>D25,D12-D25,"Behov dekket") -> Behov dekket | F26: =IF(F12>F25,F12-F25,"Behov dekket") -> Behov dekket | H26: =IF(H12>H25,H12-H25,"Behov dekket") -> Behov dekket | J26: =IF(J12>J25,J12-J25,"Behov dekket") -> Behov dekket
B27: Effektivitet av systemer i primærkonfigurasjon (%) | D27: =IF(SUM(D20:D24)>0,((C20*(Sys.Effektivitet!C6/100))+(C21*(Sys.Effektivitet!C8/100))+(C22*(Sys.Effektivitet!C10/100))+(C23*(Sys.Effektivitet!C12/100)+(C24*(Sys.Effektivitet!C14/100))))/SUM(C20:C24),"Velg beredskapsløsning") -> 0.453807375 | F27: =IF(SUM(F20:F24)>0,((E20*(Sys.Effektivitet!D6/100))+(E21*(Sys.Effektivitet!D8/100))+(E22*(Sys.Effektivitet!D10/100))+(E23*(Sys.Effektivitet!D12/100))+(E24*(Sys.Effektivitet!D14/100)))/SUM(E20:E24),"Velg beredskapsløsning") -> 0.6588204375 | H27: =IF(SUM(H20:H24)>0,((G20*(Sys.Effektivitet!E6/100))+(G21*(Sys.Effektivitet!E8/100))+(G22*(Sys.Effektivitet!E18/100))+(G23*(Sys.Effektivitet!E12/100))+(G24*(Sys.Effektivitet!E14/100)))/SUM(G20:G24),"Velg beredskapsløsning") -> 0.7735277 | J27: =IF(SUM(J20:J24)>0,((I20*(Sys.Effektivitet!F6/100))+(I21*(Sys.Effektivitet!F8/100))+(I22*(Sys.Effektivitet!F10/100))+(I23*(Sys.Effektivitet!F12/100))+(I24*(Sys.Effektivitet!F14/100)))/SUM(I20:I24),"Velg beredskapsløsning") -> 0.593577925
B28: Ytelse av valgt beredskapsløsning i primærkonfigurasjon (Sm3/d) | D28: =IF(D25>0,D25*D27,"Velg beredskapsløsning") -> 1300.158129 | F28: =IF(F25>0,F25*F27,"Velg beredskapsløsning") -> 1887.520553 | H28: =IF(H25>0,H25*H27,"Velg beredskapsløsning") -> 2216.156861 | J28: =IF(J25>0,J25*J27,"Velg beredskapsløsning") -> 1700.600755
B29: Emulsjonsmengde ut av primærkonfigurasjon (Sm3/d) | D29: =IF(D25=0,D12,(IF(D25<D12,D12-D28,D12*(1-D27)))) -> 539.5317393 | F29: =IF(F25=0,F12,(IF(F25<F12,F12-F28,F12*(1-F27)))) -> 323.0317134 | H29: =IF(H25=0,H12,(IF(H25<H12,H12-H28,H12*(1-H27)))) -> 209.6073415 | J29: =IF(J25=0,J12,(IF(J25<J12,J12-J28,J12*(1-J27)))) -> 401.3417991
B30: NOFO J med overløpsskimmer | C30: 0 | D30: =IF(D14="Nei",(C30*Sys.Kapasitet!$C$6),(C30*Sys.Kapasitet!$C$6)) -> 0 | E30: 0 | F30: =IF(F14="Nei",(E30*Sys.Kapasitet!$C$6),(E30*Sys.Kapasitet!$C$6)) -> 0 | G30: 0 | H30: =IF(H14="Nei",(G30*Sys.Kapasitet!$C$6),(G30*Sys.Kapasitet!$C$6)) -> 0 | I30: 0 | J30: =IF(J14="Nei",(I30*Sys.Kapasitet!$C$6),(I30*Sys.Kapasitet!$C$6)) -> 0
B31: NOFO J med høyviskositetsskimmer | C31: 0 | D31: =IF(D14="Nei",(C31*Sys.Kapasitet!$C$8),(C31*Sys.Kapasitet!$C$8)) -> 0 | E31: 0 | F31: =IF(F14="Nei",(E31*Sys.Kapasitet!$C$8),(E31*Sys.Kapasitet!$C$8)) -> 0 | G31: 0 | H31: =IF(H14="Nei",(G31*Sys.Kapasitet!$C$8),(G31*Sys.Kapasitet!$C$8)) -> 0 | I31: 0 | J31: =IF(J14="Nei",(I31*Sys.Kapasitet!$C$8),(I31*Sys.Kapasitet!$C$8)) -> 0
B32: NOFO havgående høyhastighetssystem | C32: 0 | D32: =IF(D14="Nei",(C32*Sys.Kapasitet!$C$10),(C32*Sys.Kapasitet!$C$10)) -> 0 | E32: 0 | F32: =IF(F14="Nei",(E32*Sys.Kapasitet!$C$10),(E32*Sys.Kapasitet!$C$10)) -> 0 | G32: 0 | H32: =IF(H14="Nei",(G32*Sys.Kapasitet!$C$10),(G32*Sys.Kapasitet!$C$10)) -> 0 | I32: 0 | J32: =IF(J14="Nei",(I32*Sys.Kapasitet!$C$10),(I32*Sys.Kapasitet!$C$10)) -> 0
B33: NOFO båtdispergering - høy doseringsrate | C33: 0 | D33: =IF(D14="Nei",(C33*Sys.Kapasitet!$C$12),(C33*Sys.Kapasitet!$C$12)) -> 0 | E33: 0 | F33: =IF(F14="Nei",(E33*Sys.Kapasitet!$C$12),(E33*Sys.Kapasitet!$C$12)) -> 0 | G33: 0 | H33: =IF(H14="Nei",(G33*Sys.Kapasitet!$C$12),(G33*Sys.Kapasitet!$C$12)) -> 0 | I33: 0 | J33: =IF(J14="Nei",(I33*Sys.Kapasitet!$C$12),(I33*Sys.Kapasitet!$C$12)) -> 0
B34: NOFO båtdispergering - lav doseringsrate | C34: 0 | D34: =IF(D14="Nei",(C34*Sys.Kapasitet!$C$14),(C34*Sys.Kapasitet!$D$14)) -> 0 | E34: 0 | F34: =IF(F14="Nei",(E34*Sys.Kapasitet!$C$14),(E34*Sys.Kapasitet!$D$14)) -> 0 | G34: 0 | H34: =IF(H14="Nei",(G34*Sys.Kapasitet!$C$14),(G34*Sys.Kapasitet!$D$14)) -> 0 | I34: 0 | J34: =IF(J14="Nei",(I34*Sys.Kapasitet!$C$14),(I34*Sys.Kapasitet!$D$14)) -> 0
B35: Kapasitet av sekundærkonfigurasjon (Sm3/d) | D35: =ROUNDDOWN(SUM(D30:D34),0) -> 0 | F35: =ROUNDDOWN(SUM(F30:F34),0) -> 0 | H35: =ROUNDDOWN(SUM(H30:H34),0) -> 0 | J35: =ROUNDDOWN(SUM(J30:J34),0) -> 0
B36: Gjenværende emulsjon tilgjengelig for bekjempelse (Sm3/d) | D36: =IF(D29>D35,D29-D35,"Ingen") -> 539.5317393 | F36: =IF(F29>F35,F29-F35,"Ingen") -> 323.0317134 | H36: =IF(H29>H35,H29-H35,"Ingen") -> 209.6073415 | J36: =IF(J29>J35,J29-J35,"Ingen") -> 401.3417991
B37: Effektivitet av systemer i sekundærkonfigurasjon (%) | D37: =IF(SUM(C30:C34)>0,MIN((IF(SUM(D29:D34)>0,((((C30*(Sys.Effektivitet!$C$7/100))+(C31*(Sys.Effektivitet!$C$9/100)))+(C32*(Sys.Effektivitet!$C$11/100))+(C33*(Sys.Effektivitet!$C$13/100))+(C34*(Sys.Effektivitet!$C$15/100))/SUM(C30:C34))),"Ingen fartøy i sek. konfig.")),(D27)/2),"Ingen fartøy i sek. konfig") -> Ingen fartøy i sek. konfig | F37: =IF(SUM(E30:E34)>0,MIN((IF(SUM(F30:F34)>0,((((E30*(Sys.Effektivitet!$C$7/100))+(E31*(Sys.Effektivitet!$C$9/100)))+(E32*(Sys.Effektivitet!$C$11/100))+(E33*(Sys.Effektivitet!$C$13/100))+(E34*(Sys.Effektivitet!$C$15/100))/SUM(E30:E34))),"Ingen fartøy i sek. konfig.")),(F27)/2),"Ingen fartøy i sek. konfig") -> Ingen fartøy i sek. konfig | H37: =IF(SUM(G30:G34)>0,MIN((IF(SUM(H29:H34)>0,((((G30*(Sys.Effektivitet!$C$7/100))+(G31*(Sys.Effektivitet!$C$9/100)))+(G32*(Sys.Effektivitet!$C$11/100))+(G33*(Sys.Effektivitet!$C$13/100))+(G34*(Sys.Effektivitet!$C$15/100))/SUM(G30:G34))),"Ingen fartøy i sek. konfig.")),(H27)/2),"Ingen fartøy i sek. konfig") -> Ingen fartøy i sek. konfig | J37: =IF(SUM(I30:I34)>0,MIN((IF(SUM(J29:J34)>0,((((I30*(Sys.Effektivitet!$C$7/100))+(I31*(Sys.Effektivitet!$C$9/100)))+(I32*(Sys.Effektivitet!$C$11/100))+(I33*(Sys.Effektivitet!$C$13/100))+(I34*(Sys.Effektivitet!$C$15/100))/SUM(I30:I34))),"Ingen fartøy i sek. konfig.")),(J27)/2),"Ingen fartøy i sek. konfig") -> Ingen fartøy i sek. konfig
B38: Ytelse av valgt beredskapsløsning i sekundærkonfigurajson (Sm3/d) | D38: =IF(D35>0,D35*D37,"Ingen fartøy i sek. konfig") -> Ingen fartøy i sek. konfig | F38: =IF(F35>0,F35*F37,"Ingen fartøy i sek. konfig") -> Ingen fartøy i sek. konfig | H38: =IF(H35>0,H35*H37,"Ingen fartøy i sek. konfig") -> Ingen fartøy i sek. konfig | J38: =IF(J35>0,J35*J37,"Ingen fartøy i sek. konfig") -> Ingen fartøy i sek. konfig
B39: Emulsjonsmengde ut av sekundærkonfigurasjon (Sm3/d) | D39: =IF(D35=0,D29,(IF(D35<D29,D29-D38,D29*(1-D37)))) -> 539.5317393 | F39: =IF(F35=0,F29,(IF(F35<F29,F29-F38,F29*(1-F37)))) -> 323.0317134 | H39: =IF(H35=0,H29,(IF(H35<H29,H29-H38,H29*(1-H37)))) -> 209.6073415 | J39: =IF(J35=0,J29,(IF(J35<J29,J29-J38,J29*(1-J37)))) -> 401.3417991
B40: Status | D40: =IF(SUM(D20+D21+D22+D23+D24+D30+D31+D32+D33+D34)>D12,"Valgt beredskapsløsning er tilstrekkelig for å bekjempe beregnet emulsjonsmengde på havoverflaten","Valgt beredskapsløsning er ikke tilstrekkelig for å bekjempe beregnet emulsjonsmengde på havoverflaten") -> Valgt beredskapsløsning er tilstrekkelig for å bekjempe beregnet emulsjonsmengde på havoverflaten | F40: =IF(SUM(F20+F21+F22+F23+F24+F30+F31+F32+F33+F34)>F12,"Valgt beredskapsløsning er tilstrekkelig for å bekjempe beregnet emulsjonsmengde på havoverflaten","Valgt beredskapsløsning er ikke tilstrekkelig for å bekjempe beregnet emulsjonsmengde på havoverflaten") -> Valgt beredskapsløsning er tilstrekkelig for å bekjempe beregnet emulsjonsmengde på havoverflaten | H40: =IF(SUM(H20+H21+H22+H23+H24+H30+H31+H32+H33+H34)>H12,"Valgt beredskapsløsning er tilstrekkelig for å bekjempe beregnet emulsjonsmengde på havoverflaten","Valgt beredskapsløsning er ikke tilstrekkelig for å bekjempe beregnet emulsjonsmengde på havoverflaten") -> Valgt beredskapsløsning er tilstrekkelig for å bekjempe beregnet emulsjonsmengde på havoverflaten | J40: =IF(SUM(J20+J21+J22+J23+J34+J30+J31+J32+J33+J34)>J12,"Valgt beredskapsløsning er tilstrekkelig for å bekjempe beregnet emulsjonsmengde på havoverflaten","Valgt beredskapsløsning er ikke tilstrekkelig for å bekjempe beregnet emulsjonsmengde på havoverflaten") -> Valgt beredskapsløsning er tilstrekkelig for å bekjempe beregnet emulsjonsmengde på havoverflaten
B41: Samlet barriereeffektivitet i barriere 1 (%) | D41: =D42/D12 -> 0.453807375 | F41: =F42/F12 -> 0.6588204375 | H41: =H42/H12 -> 0.7735277 | J41: =J42/J12 -> 0.593577925
B42: Samlet ytelse av barriere 1 (Sm3/d) | D42: =IF(D35>0,(D12-D29)+(D29-D39),(D12-D29)) -> 448.2731387 | F42: =IF(F35>0,(F12-F29)+(F29-F39),(F12-F29)) -> 623.7767972 | H42: =IF(H35>0,(H12-H29)+(H29-H39),(H12-H29)) -> 715.9245734 | J42: =IF(J35>0,(J12-J29)+(J29-J39),(J12-J29)) -> 586.1582009
B43: Emulsjonsmengde ut av barriere 1 (Sm3/d) | D43: =D39 -> 539.5317393 | F43: =F39 -> 323.0317134 | H43: =H39 -> 209.6073415 | J43: =J39 -> 401.3417991
C46: Timer | D46: Vinter | F46: Vår | H46: Sommer | J46: Høst
B47: Parameter | D47: 5°C - 10 m/s vind | F47: 5°C - 5 m/s vind | H47: 15°C - 5 m/s vind | J47: 15°C - 10 m/s vind
B48: Emulsjonsmengde inn til barriere 2 (Sm3/d) | D48: =D43 -> 539.5317393 | F48: =F43 -> 323.0317134 | H48: =H43 -> 209.6073415 | J48: =J43 -> 401.3417991
B49: Oljemengde inn til barriere 2 (Sm3/d) | D49: =D48/(1+((D11/100)/((100-D11)/100))) -> 442.4160262 | F49: =F48/(1+((F11/100)/((100-F11)/100))) -> 303.6498106 | H49: =H48/(1+((H11/100)/((100-H11)/100))) -> 197.030901 | J49: =J48/(1+((J11/100)/((100-J11)/100))) -> 321.0734393
B50: Fordampning etter antall timer på sjø (%) | C50: 12 | D50: =VLOOKUP('1. Input fra oljedrift og MRA'!$C$35&"-"&"Vinterforhold"&"-"&10&"-"&$C50,Oljedatabase!$C:$S,9,FALSE)*100 -> 19 | F50: =VLOOKUP('1. Input fra oljedrift og MRA'!$C$35&"-"&"Vinterforhold"&"-"&5&"-"&$C50,Oljedatabase!$C:$S,9,FALSE)*100 -> 16 | H50: =VLOOKUP('1. Input fra oljedrift og MRA'!$C$35&"-"&"Sommerforhold"&"-"&5&"-"&$C50,Oljedatabase!$C:$S,9,FALSE)*100 -> 18 | J50: =VLOOKUP('1. Input fra oljedrift og MRA'!$C$35&"-"&"Sommerforhold"&"-"&10&"-"&$C50,Oljedatabase!$C:$S,9,FALSE)*100 -> 21 | S50: =ISERROR(D50) -> FALSE | U50: =ISERROR(J50) -> FALSE
B51: Nedblanding etter antall timer på sjø (%) | D51: =VLOOKUP('1. Input fra oljedrift og MRA'!$C$35&"-"&"Vinterforhold"&"-"&10&"-"&$C50,Oljedatabase!$C:$S,11,FALSE)*100 -> 17 | F51: =VLOOKUP('1. Input fra oljedrift og MRA'!$C$35&"-"&"Vinterforhold"&"-"&5&"-"&$C50,Oljedatabase!$C:$S,11,FALSE)*100 -> 1 | H51: =VLOOKUP('1. Input fra oljedrift og MRA'!$C$35&"-"&"Sommerforhold"&"-"&5&"-"&$C50,Oljedatabase!$C:$S,11,FALSE)*100 -> 1 | J51: =VLOOKUP('1. Input fra oljedrift og MRA'!$C$35&"-"&"Sommerforhold"&"-"&10&"-"&$C50,Oljedatabase!$C:$S,11,FALSE)*100 -> 19 | N51: =IF(COUNTIF(S50:U55,"Sann")>0,"Forvitringsstudiet for denne oljen er mangelfullt for tidenheten du har valgt ","Ok") -> Ok | S51: =ISERROR(D51) -> FALSE | U51: =ISERROR(J51) -> FALSE
B52: Oljemengde tilgjengelig for emulsjonsdannelse (Sm3/d) | D52: =D49-(D49*(((D50-D8)/100)+((D51-D9)/100))) -> 367.2053018 | F52: =F49-(F49*(((F50-F8)/100)+((F51-F9)/100))) -> 285.430822 | H52: =H49-(H49*(((H50-H8)/100)+((H51-H9)/100))) -> 185.2090469 | J52: =J49-(J49*(((J50-J8)/100)+((J51-J9)/100))) -> 260.0694858
B53: Vanninnhold etter 12 timer på sjø (%) | D53: =VLOOKUP('1. Input fra oljedrift og MRA'!$C$35&"-"&"Vinterforhold"&"-"&10&"-"&$C50,Oljedatabase!$C:$S,6,FALSE)*100 -> 57 | F53: =VLOOKUP('1. Input fra oljedrift og MRA'!$C$35&"-"&"Vinterforhold"&"-"&5&"-"&$C50,Oljedatabase!$C:$S,6,FALSE)*100 -> 29 | H53: =VLOOKUP('1. Input fra oljedrift og MRA'!$C$35&"-"&"Sommerforhold"&"-"&5&"-"&$C50,Oljedatabase!$C:$S,6,FALSE)*100 -> 31 | J53: =VLOOKUP('1. Input fra oljedrift og MRA'!$C$35&"-"&"Sommerforhold"&"-"&10&"-"&$C50,Oljedatabase!$C:$S,6,FALSE)*100 -> 61 | S53: =ISERROR(D53) -> FALSE | U53: =ISERROR(J53) -> FALSE
B54: Emulsjonsmengde tilgjengelig for opptak i barriere 2 (Sm3/d) | D54: =D52+(((D53/100)/(1-(D53/100)))*D52) -> 853.9658181 | F54: =F52+(((F53/100)/(1-(F53/100)))*F52) -> 402.0152422 | H54: =H52+(((H53/100)/(1-(H53/100)))*H52) -> 268.4189086 | J54: =J52+(((J53/100)/(1-(J53/100)))*J52) -> 666.8448354
B55: Viskositet av emulsjon inn til barriere 2 (cP) | D55: =VLOOKUP('1. Input fra oljedrift og MRA'!$C$35&"-"&"Vinterforhold"&"-"&10&"-"&$C50,Oljedatabase!$C:$S,7,FALSE) -> 11300 | F55: =VLOOKUP('1. Input fra oljedrift og MRA'!$C$35&"-"&"Vinterforhold"&"-"&5&"-"&$C50,Oljedatabase!$C:$S,7,FALSE) -> 1870 | H55: =VLOOKUP('1. Input fra oljedrift og MRA'!$C$35&"-"&"Sommerforhold"&"-"&5&"-"&$C50,Oljedatabase!$C:$S,7,FALSE) -> 1350 | J55: =VLOOKUP('1. Input fra oljedrift og MRA'!$C$35&"-"&"Sommerforhold"&"-"&10&"-"&$C50,Oljedatabase!$C:$S,7,FALSE) -> 9540 | S55: =ISERROR(D55) -> FALSE | U55: =ISERROR(J55) -> FALSE
B56: Økt systembehov grunnet høy viskositet (>50.000 cP)? | D56: Nei | F56: Nei | H56: Nei | J56: Nei
B58: Beredskapsbehov i barriere 2 | D58: Vinter | F58: Vår | H58: Sommer | J58: Høst
B59: Beregnet behov for NOFO-systemer | D59: =IF(D56="Nei",(D54/Sys.Kapasitet!$C$5),(D54/Sys.Kapasitet!$D$5)) -> 0.2980683484 | F59: =IF(F56="Nei",(F54/Sys.Kapasitet!$C$5),(F54/Sys.Kapasitet!$D$5)) -> 0.1403194563 | H59: =IF(H56="Nei",(H54/Sys.Kapasitet!$C$5),(H54/Sys.Kapasitet!$D$5)) -> 0.09368897334 | J59: =IF(J56="Nei",(J54/Sys.Kapasitet!$C$5),(J54/Sys.Kapasitet!$D$5)) -> 0.2327556144
B60: Antatt behov for NOFO-systemer | D60: =IF(D59<1,ROUNDUP(D59,0) & " NOFO-system",ROUNDUP(D59,0) & " NOFO-systemer") -> 1 NOFO-system | F60: =IF(F59<1,ROUNDUP(F59,0) & " NOFO-system",ROUNDUP(F59,0) & " NOFO-systemer") -> 1 NOFO-system | H60: =IF(H59<1,ROUNDUP(H59,0) & " NOFO-system",ROUNDUP(H59,0) & " NOFO-systemer") -> 1 NOFO-system | J60: =IF(J59<1,ROUNDUP(J59,0) & " NOFO-system",ROUNDUP(J59,0) & " NOFO-systemer") -> 1 NOFO-system
B61: Beredskapsløsning i barriere 2 | C61: Antall | D61: Vinter | E61: Antall | F61: Vår | G61: Antall | H61: Sommer | I61: Antall | J61: Høst
B62: NOFO J med overløpsskimmer | C62: 1 | D62: =IF(D56="Nei",C62*Sys.Kapasitet!$C$22,C62*Sys.Kapasitet!$C$22) -> 2101 | E62: 1 | F62: =IF(F56="Nei",E62*Sys.Kapasitet!$C$22,E62*Sys.Kapasitet!$C$22) -> 2101 | G62: 1 | H62: =IF(H56="Nei",G62*Sys.Kapasitet!$C22,H62*Sys.Kapasitet!$C$22) -> 2101 | I62: 1 | J62: =IF(J56="Nei",I62*Sys.Kapasitet!$C22,J62*Sys.Kapasitet!$C$22) -> 2101
B63: NOFO J med høyviskositetsskimmer | C63: 0 | D63: =IF(D56="Nei",C63*Sys.Kapasitet!$C$24,C63*Sys.Kapasitet!$C$24) -> 0 | E63: 0 | F63: =IF(F56="Nei",E63*Sys.Kapasitet!$C$24,E63*Sys.Kapasitet!$C$24) -> 0 | G63: 0 | H63: =IF(H56="Nei",G63*Sys.Kapasitet!$C$24,G63*Sys.Kapasitet!$C$24) -> 0 | I63: 0 | J63: =IF(J56="Nei",I63*Sys.Kapasitet!$C$24,I63*Sys.Kapasitet!$C$24) -> 0
B64: NOFO havgående høyhastighetssystem | C64: 0 | D64: =IF(D56="Nei",C64*Sys.Kapasitet!$C$26,C64*Sys.Kapasitet!$C$26) -> 0 | E64: 0 | F64: =IF(F56="Nei",E64*Sys.Kapasitet!$C$26,E64*Sys.Kapasitet!$C$26) -> 0 | G64: 0 | H64: =IF(H56="Nei",G64*Sys.Kapasitet!$C$26,G64*Sys.Kapasitet!$C$26) -> 0 | I64: 0 | J64: =IF(J56="Nei",I64*Sys.Kapasitet!$C$26,I64*Sys.Kapasitet!$C$26) -> 0
B65: NOFO båtdispergering - lav doseringsrate | C65: 0 | D65: =IF(D56="Nei",C65*Sys.Kapasitet!$C$30,C65*Sys.Kapasitet!$C$30) -> 0 | E65: 0 | F65: =IF(F56="Nei",E65*Sys.Kapasitet!$C$30,E65*Sys.Kapasitet!$C$30) -> 0 | G65: 0 | H65: =IF(H56="Nei",G65*Sys.Kapasitet!$C30,G65*Sys.Kapasitet!$C$30) -> 0 | I65: 0 | J65: =IF(J56="Nei",I65*Sys.Kapasitet!$C30,I65*Sys.Kapasitet!$C$30) -> 0
B66: NOFO båtdispergering - høy doseringsrate | C66: 0 | D66: =IF(D56="Nei",C66*Sys.Kapasitet!$C$28,C66*Sys.Kapasitet!$C$28) -> 0 | E66: 0 | F66: =IF(F56="Nei",E66*Sys.Kapasitet!$C$28,E66*Sys.Kapasitet!$C$28) -> 0 | G66: 0 | H66: =IF(H56="Nei",G66*Sys.Kapasitet!$C$28,G66*Sys.Kapasitet!$C$28) -> 0 | I66: 0 | J66: =IF(J56="Nei",I66*Sys.Kapasitet!$C$28,I66*Sys.Kapasitet!$C$28) -> 0
B67: Kapasitet av valgt beredskapsløsning (Sm3/d) | D67: =ROUNDDOWN(SUM(D62:D66),0) -> 2101 | F67: =ROUNDDOWN(SUM(F62:F66),0) -> 2101 | H67: =ROUNDDOWN(SUM(H62:H66),0) -> 2101 | J67: =ROUNDDOWN(SUM(J62:J66),0) -> 2101
B68: Gjenværende emulsjon tilgjengelig for bekjempelse (Sm3/d) | D68: =IF(D54>D67,D54-D67,"Behov dekket") -> Behov dekket | F68: =IF(F54>F67,F54-F67,"Behov dekket") -> Behov dekket | H68: =IF(H54>H67,H54-H67,"Behov dekket") -> Behov dekket | J68: =IF(J54>J67,J54-J67,"Behov dekket") -> Behov dekket
B69: Effektivitet av systemer i primærkonfigurasjon (%) | D69: =IF(SUM(C62:C66)>0,MIN((IF(SUM(D62:D66)>0,(((C62*(Sys.Effektivitet!C6/100))+(C63*(Sys.Effektivitet!C8/100))+(C64*(Sys.Effektivitet!C10/100))+(C65*(Sys.Effektivitet!C14/100))+(C66*(Sys.Effektivitet!C12/100))))/SUM(C62:C66),"Velg beredskapsløsning")),(D27)/2),"Velg beredskapsløsning") -> 0.2269036875 | F69: =IF(SUM(E62:E66)>0,MIN((IF(SUM(F62:F66)>0,(((E62*(Sys.Effektivitet!D6/100))+(E63*(Sys.Effektivitet!D8/100))+(E64*(Sys.Effektivitet!D10/100))+(E65*(Sys.Effektivitet!D14/100))+(E66*(Sys.Effektivitet!D12/100))))/SUM(E62:E66),"Velg beredskapsløsning")),(F27)/2),"Velg beredskapsløsning") -> 0.3294102187 | H69: =IF(SUM(G62:G66)>0,MIN((IF(SUM(H62:H66)>0,(((G62*(Sys.Effektivitet!E6/100))+(G63*(Sys.Effektivitet!E8/100))+(G64*(Sys.Effektivitet!E10/100))+(G65*(Sys.Effektivitet!E14/100))+(G66*(Sys.Effektivitet!E12/100))))/SUM(G62:G66),"Velg beredskapsløsning")),(H27)/2),"Velg beredskapsløsning") -> 0.38676385 | J69: =IF(SUM(I62:I66)>0,MIN((IF(SUM(J62:J66)>0,(((I62*(Sys.Effektivitet!F6/100))+(I63*(Sys.Effektivitet!F8/100))+(I64*(Sys.Effektivitet!F10/100))+(I65*(Sys.Effektivitet!F14/100))+(I66*(Sys.Effektivitet!F12/100))))/SUM(I62:I66),"Velg beredskapsløsning")),(J27)/2),"Velg beredskapsløsning") -> 0.2967889625
B70: Ytelse av valgt beredskapsløsning i primærkonfigurasjon (Sm3/d) | D70: =IF(D67>0,D67*D69,"Velg beredskapsløsning") -> 476.7246474 | F70: =IF(F67>0,F67*F69,"Velg beredskapsløsning") -> 692.0908696 | H70: =IF(H67>0,H67*H69,"Velg beredskapsløsning") -> 812.5908489 | J70: =IF(J67>0,J67*J69,"Velg beredskapsløsning") -> 623.5536102
B71: Emulsjonsmengde ut av primærkonfigurasjon (Sm3/d) | D71: =IF(D67=0,D54,(IF(D67<D54,D54-D70,D54*(1-D69)))) -> 660.197825 | F71: =IF(F67=0,F54,(IF(F67<F54,F54-F70,F54*(1-F69)))) -> 269.5873134 | H71: =IF(H67=0,H54,(IF(H67<H54,H54-H70,H54*(1-H69)))) -> 164.6041781 | J71: =IF(J67=0,J54,(IF(J67<J54,J54-J70,J54*(1-J69)))) -> 468.9326485
B72: NOFO J med overløpsskimmer | C72: 0 | D72: =IF(D56="Nei",C72*Sys.Kapasitet!$C$23,C72*Sys.Kapasitet!$C$23) -> 0 | E72: 0 | F72: =IF(F56="Nei",E72*Sys.Kapasitet!$C$23,E72*Sys.Kapasitet!$C$23) -> 0 | G72: 0 | H72: =IF(H56="Nei",G72*Sys.Kapasitet!$C$23,G72*Sys.Kapasitet!$C$23) -> 0 | I72: 0 | J72: =IF(J56="Nei",I72*Sys.Kapasitet!$C$23,I72*Sys.Kapasitet!$C$23) -> 0
B73: NOFO J med høyviskositetsskimmer | C73: 0 | D73: =IF(D57="Nei",C73*Sys.Kapasitet!$C$25,C73*Sys.Kapasitet!$C$25) -> 0 | E73: 0 | F73: =IF(F57="Nei",E73*Sys.Kapasitet!$C$25,E73*Sys.Kapasitet!$C$25) -> 0 | G73: 0 | H73: =IF(H57="Nei",G73*Sys.Kapasitet!$C$25,G73*Sys.Kapasitet!$C$25) -> 0 | I73: 0 | J73: =IF(J57="Nei",I73*Sys.Kapasitet!$C$25,I73*Sys.Kapasitet!$C$25) -> 0
B74: NOFO havgående høyhastighetssystem | C74: 0 | D74: =IF(D58="Nei",C74*Sys.Kapasitet!$C$27,C74*Sys.Kapasitet!$C$27) -> 0 | E74: 0 | F74: =IF(F58="Nei",E74*Sys.Kapasitet!$C$27,E74*Sys.Kapasitet!$C$27) -> 0 | G74: 0 | H74: =IF(H58="Nei",G74*Sys.Kapasitet!$C$27,G74*Sys.Kapasitet!$C$27) -> 0 | I74: 0 | J74: =IF(J58="Nei",I74*Sys.Kapasitet!$C$27,I74*Sys.Kapasitet!$C$27) -> 0
B75: NOFO båtdispergering - lav doseringsrate | C75: 0 | D75: =IF(D59="Nei",C75*Sys.Kapasitet!$C$31,C75*Sys.Kapasitet!$C$31) -> 0 | E75: 0 | F75: =IF(F59="Nei",E75*Sys.Kapasitet!$C$31,E75*Sys.Kapasitet!$C$31) -> 0 | G75: 0 | H75: =IF(H59="Nei",G75*Sys.Kapasitet!$C$31,G75*Sys.Kapasitet!$C$31) -> 0 | I75: 0 | J75: =IF(J59="Nei",I75*Sys.Kapasitet!$C$31,I75*Sys.Kapasitet!$C$31) -> 0
B76: NOFO båtdispergering - høy doseringsrate | C76: 0 | D76: =IF(D60="Nei",C76*Sys.Kapasitet!$C$27,C76*Sys.Kapasitet!$D$27) -> 0 | E76: 0 | F76: =IF(F60="Nei",E76*Sys.Kapasitet!$C$27,E76*Sys.Kapasitet!$D$27) -> 0 | G76: 0 | H76: =IF(H60="Nei",G76*Sys.Kapasitet!$C$27,G76*Sys.Kapasitet!$D$27) -> 0 | I76: 0 | J76: =IF(J60="Nei",I76*Sys.Kapasitet!$C$27,I76*Sys.Kapasitet!$D$27) -> 0
B77: Kapasitet av sekundærkonfigurasjon (Sm3/d) | D77: =ROUNDDOWN(SUM(D72:D76),0) -> 0 | F77: =ROUNDDOWN(SUM(F72:F76),0) -> 0 | H77: =ROUNDDOWN(SUM(H72:H76),0) -> 0 | J77: =ROUNDDOWN(SUM(J72:J76),0) -> 0
B78: Gjenværende emulsjon tilgjengelig for bekjempelse (Sm3/d) | D78: =IF(D71>D77,D71-D77,"Ingen") -> 660.197825 | F78: =IF(F71>F77,F71-F77,"Ingen") -> 269.5873134 | H78: =IF(H71>H77,H71-H77,"Ingen") -> 164.6041781 | J78: =IF(J71>J77,J71-J77,"Ingen") -> 468.9326485
B79: Effektivitet av systemer i sekundærkonfigurasjon (%) | D79: =IF(SUM(C72:C76)>0,MIN((IF(SUM(D72:D76)>0,((((C72*(Sys.Effektivitet!$C$7/100))+(C73*(Sys.Effektivitet!$C$9/100))+(C74*(Sys.Effektivitet!$C$11/100))+(C75*(Sys.Effektivitet!$C$15/100))+(C76*(Sys.Effektivitet!$C$13/100)))/SUM(C72:C76))),"Ingen fartøy i sek. konfig.")),(D27)/2),"Ingen fartøy i sek. konfig") -> Ingen fartøy i sek. konfig | F79: =IF(SUM(E72:E76)>0,MIN((IF(SUM(F72:F76)>0,((((E72*(Sys.Effektivitet!$C$7/100))+(E73*(Sys.Effektivitet!$C$9/100))+(E74*(Sys.Effektivitet!$C$11/100))+(E75*(Sys.Effektivitet!$C$15/100))+(E76*(Sys.Effektivitet!$C$13/100)))/SUM(E72:E76))),"Ingen fartøy i sek. konfig.")),(F27)/2),"Ingen fartøy i sek. konfig") -> Ingen fartøy i sek. konfig | H79: =IF(SUM(G72:G76)>0,MIN((IF(SUM(H72:H76)>0,((((G72*(Sys.Effektivitet!$C$7/100))+(G73*(Sys.Effektivitet!$C$9/100))+(G74*(Sys.Effektivitet!$C$11/100))+(G75*(Sys.Effektivitet!$C$15/100))+(G76*(Sys.Effektivitet!$C$13/100)))/SUM(G72:G76))),"Ingen fartøy i sek. konfig.")),(H27)/2),"Ingen fartøy i sek. konfig") -> Ingen fartøy i sek. konfig | J79: =IF(SUM(I72:I76)>0,MIN((IF(SUM(J72:J76)>0,((((I72*(Sys.Effektivitet!$C$7/100))+(I73*(Sys.Effektivitet!$C$9/100))+(I74*(Sys.Effektivitet!$C$11/100))+(I75*(Sys.Effektivitet!$C$15/100))+(I76*(Sys.Effektivitet!$C$13/100)))/SUM(I72:I76))),"Ingen fartøy i sek. konfig.")),(J27)/2),"Ingen fartøy i sek. konfig") -> Ingen fartøy i sek. konfig
B80: Ytelse av valgt beredskapsløsning i sekundærkonfigurasjon (Sm3/d) | D80: =IF(D77>0,D77*D79,"Ingen fartøy i sek. konfig") -> Ingen fartøy i sek. konfig | F80: =IF(F77>0,F77*F79,"Ingen fartøy i sek. konfig") -> Ingen fartøy i sek. konfig | H80: =IF(H77>0,H77*H79,"Ingen fartøy i sek. konfig") -> Ingen fartøy i sek. konfig | J80: =IF(J77>0,J77*J79,"Ingen fartøy i sek. konfig") -> Ingen fartøy i sek. konfig
B81: Emulsjonsmengde ut av sekundærkonfigurasjon (Sm3/d) | D81: =IF(D77=0,D71,(IF(D77<D71,D71-D80,D71*(1-D79)))) -> 660.197825 | F81: =IF(F77=0,F71,(IF(F77<F71,F71-F80,F71*(1-F79)))) -> 269.5873134 | H81: =IF(H77=0,H71,(IF(H77<H71,H71-H80,H71*(1-H79)))) -> 164.6041781 | J81: =IF(J77=0,J71,(IF(J77<J71,J71-J80,J71*(1-J79)))) -> 468.9326485
B82: Status | D82: =IF(SUM(D62+D63+D64+D65+D66+D72+D73+D74+D75+D76)>D54,"Valgt beredskapsløsning er tilstrekkelig for å bekjempe beregnet emulsjonsmengde på havoverflaten","Valgt beredskapsløsning er ikke tilstrekkelig for å bekjempe beregnet emulsjonsmengde på havoverflaten") -> Valgt beredskapsløsning er tilstrekkelig for å bekjempe beregnet emulsjonsmengde på havoverflaten | F82: =IF(SUM(F62+F63+F64+F65+F66+F72+F73+F74+F75+F76)>F54,"Valgt beredskapsløsning er tilstrekkelig for å bekjempe beregnet emulsjonsmengde på havoverflaten","Valgt beredskapsløsning er ikke tilstrekkelig for å bekjempe beregnet emulsjonsmengde på havoverflaten") -> Valgt beredskapsløsning er tilstrekkelig for å bekjempe beregnet emulsjonsmengde på havoverflaten | H82: =IF(SUM(H62+H63+H64+H65+H66+H72+H73+H74+H75+H76)>H54,"Valgt beredskapsløsning er tilstrekkelig for å bekjempe beregnet emulsjonsmengde på havoverflaten","Valgt beredskapsløsning er ikke tilstrekkelig for å bekjempe beregnet emulsjonsmengde på havoverflaten") -> Valgt beredskapsløsning er tilstrekkelig for å bekjempe beregnet emulsjonsmengde på havoverflaten | J82: =IF(SUM(J62+J63+J64+J65+J66+J72+J73+J74+J75+J76)>J54,"Valgt beredskapsløsning er tilstrekkelig for å bekjempe beregnet emulsjonsmengde på havoverflaten","Valgt beredskapsløsning er ikke tilstrekkelig for å bekjempe beregnet emulsjonsmengde på havoverflaten") -> Valgt beredskapsløsning er tilstrekkelig for å bekjempe beregnet emulsjonsmengde på havoverflaten
B83: Samlet barriereeffektivitet i barriere 2 (%) | D83: =D84/D54 -> 0.2269036875 | F83: =F84/F54 -> 0.3294102187 | H83: =H84/H54 -> 0.38676385 | J83: =J84/J54 -> 0.2967889625
B84: Samlet ytelse av barriere 2 (Sm3/d) | D84: =IF(D77>0,(D54-D71)+(D71-D81),(D54-D71)) -> 193.7679931 | F84: =IF(F77>0,(F54-F71)+(F71-F81),(F54-F71)) -> 132.4279289 | H84: =IF(H77>0,(H54-H71)+(H71-H81),(H54-H71)) -> 103.8147305 | J84: =IF(J77>0,(J54-J71)+(J71-J81),(J54-J71)) -> 197.9121868
B85: Emulsjonsmengde ut av barriere 2 (Sm3/d) | D85: =D81 -> 660.197825 | F85: =F81 -> 269.5873134 | H85: =H81 -> 164.6041781 | J85: =J81 -> 468.9326485
D88: Vinter | F88: Vår | H88: Sommer | J88: Høst
B89: Oppsummering av beredskap i barriere 1 og 2 | D89: 5°C - 10 m/s vind | F89: 5°C - 5 m/s vind | H89: 15°C - 5 m/s vind | J89: 15°C - 10 m/s vind
B90: Emulsjonsmengde ut av barriere 1 og 2 (Sm3/d) | D90: =D85 -> 660.197825 | F90: =F85 -> 269.5873134 | H90: =H85 -> 164.6041781 | J90: =J85 -> 468.9326485
B91: Totalt antall systemer i barriere 1 og 2
B92: NOFO J med overløpsskimmer | D92: =C20+C62 -> 2 | F92: =E20+E62 -> 2 | H92: =G20+G62 -> 2 | J92: =I20+I62 -> 2
B93: NOFO J med høyviskositetsskimmer | D93: =C21+C63 -> 0 | F93: =E21+E63 -> 0 | H93: =G21+G63 -> 0 | J93: =I21+I63 -> 0
B94: NOFO havgående høyhastighetssystem | D94: =C22+C64 -> 0 | F94: =E22+E64 -> 0 | H94: =G22+G64 -> 0 | J94: =I22+I64 -> 0
B95: NOFO båtdispergering - lav doseringsrate | D95: =C24+C65 -> 0 | F95: =E24+E65 -> 0 | H95: =G24+G65 -> 0 | J95: =I24+I65 -> 0
B96: NOFO båtdispergering - høy doseringsrate | D96: =C23+C66 -> 0 | F96: =E23+E66 -> 0 | H96: =G23+G66 -> 0 | J96: =I23+I66 -> 0
B97: NOFO J med overløpsskimmer (sekundærkonfigurasjon) | D97: =C30+C72 -> 0 | F97: =E30+E72 -> 0 | H97: =G30+G72 -> 0 | J97: =I30+I72 -> 0
B98: NOFO J med høyviskositetsskimmer (sekundærkonfigurasjon) | D98: =C31+C73 -> 0 | F98: =E31+E73 -> 0 | H98: =G31+G73 -> 0 | J98: =I31+I73 -> 0
B99: NOFO havgående høyhastighetssystem (sekundærkonfigurasjon) | D99: =C32+C74 -> 0 | F99: =E32+E74 -> 0 | H99: =G32+G74 -> 0 | J99: =I32+I74 -> 0
B100: NOFO båtdispergering - lav doseringsrate (sekundærkonfigurasjon) | D100: =C34+C75 -> 0 | F100: =E34+E75 -> 0 | H100: =G34+G75 -> 0 | J100: =I34+I75 -> 0
B101: NOFO båtdispergering - høy doseringsrate (sekundærkonfigurasjon) | D101: =C76+C33 -> 0 | F101: =E76+E33 -> 0 | H101: =G76+G33 -> 0 | J101: =I76+I33 -> 0
B102: Samlet ytelse av barriere 1 og 2 (Sm3/d) | D102: =D42+D84 -> 642.0411318 | F102: =F42+F84 -> 756.2047261 | H102: =H42+H84 -> 819.7393039 | J102: =J42+J84 -> 784.0703878
B103: Beregnet effektivitet av barriere 1 og 2 (%) | D103: =D102/(D12+D54) -> 0.3485999279 | F103: =F102/(F12+F54) -> 0.5606401314 | H103: =H102/(H12+H54) -> 0.6865771083 | J103: =J102/(J12+J54) -> 0.4739461635

Sheet 4. Barriere 3 og 4
B2: Valg av bekjempelse i barriere 3 og 4
D4: Vinter | F4: Vår | H4: Sommer | J4: Høst
B5: Parameter | D5: 5°C - 10 m/s vind | F5: 5°C - 5 m/s vind | H5: 15°C - 5 m/s vind | J5: 15°C - 10 m/s vind
B6: 95-persentil av strandet emulsjonsmengde (tonn) | D6: ='1. Input fra oljedrift og MRA'!C31 -> 100 | F6: ='1. Input fra oljedrift og MRA'!C32 -> 100 | H6: ='1. Input fra oljedrift og MRA'!C33 -> 100 | J6: ='1. Input fra oljedrift og MRA'!C34 -> 100
B7: Samlet barriereeffektivitet i barriere 1 (%) | D7: ='3. Barriere 1 og 2'!D41 -> 0.453807375 | F7: ='3. Barriere 1 og 2'!F41 -> 0.6588204375 | H7: ='3. Barriere 1 og 2'!H41 -> 0.7735277 | J7: ='3. Barriere 1 og 2'!J41 -> 0.593577925
B8: Strandet mengde etter effekt av barriere 1 (tonn) | D8: =D6*(1-D7) -> 54.6192625 | F8: =F6*(1-F7) -> 34.11795625 | H8: =H6*(1-H7) -> 22.64723 | J8: =J6*(1-J7) -> 40.6422075
B9: Samlet barriereeffektivitet i barriere 2 (%) | D9: ='3. Barriere 1 og 2'!D83 -> 0.2269036875 | F9: ='3. Barriere 1 og 2'!F83 -> 0.3294102187 | H9: ='3. Barriere 1 og 2'!H83 -> 0.38676385 | J9: ='3. Barriere 1 og 2'!J83 -> 0.2967889625
B10: Strandet mengde etter effekt av barriere 2 (tonn) | D10: =D8*(1-D9) -> 42.22595043 | F10: =F8*(1-F9) -> 22.87915282 | H10: =H8*(1-H9) -> 13.88810013 | J10: =J8*(1-J9) -> 28.5800489
B11: Antall døgn hvor stranding forekommer (d) | D11: 10 | F11: 10 | H11: 10 | J11: 10
B12: Emulsjonsmengde tilgjengelig for opptak i barriere 3 (tonn/d) | D12: =ROUNDUP(D10/D11,0) -> 5 | F12: =ROUNDUP(F10/F11,0) -> 3 | H12: =ROUNDUP(H10/H11,0) -> 2 | J12: =ROUNDUP(J10/J11,0) -> 3
B15: Beredskapsbehov i barriere 3
B16: Beregnet behov for Kystsystemer | D16: =(D12/Sys.Kapasitet!$C$11) -> 0.007215007215 | F16: =(F12/Sys.Kapasitet!$C$11) -> 0.004329004329 | H16: =(H12/Sys.Kapasitet!$C$11) -> 0.002886002886 | J16: =(J12/Sys.Kapasitet!$C$11) -> 0.004329004329
B17: Antatt behov for Kystsystemer | D17: =IF(D16<1,ROUNDUP(D16,0) & " Kystsystem",ROUNDUP(D16,0) & " Kystsystemer") -> 1 Kystsystem | F17: =IF(F16<1,ROUNDUP(F16,0) & " Kystsystem",ROUNDUP(F16,0) & " Kystsystemer") -> 1 Kystsystem | H17: =IF(H16<1,ROUNDUP(H16,0) & " Kystsystem",ROUNDUP(H16,0) & " Kystsystemer") -> 1 Kystsystem | J17: =IF(J16<1,ROUNDUP(J16,0) & " Kystsystem",ROUNDUP(J16,0) & " Kystsystemer") -> 1 Kystsystem
B18: Beredskapsløsning i barriere 3 | C18: Antall | D18: Ytelse - Vinter | E18: Antall | F18: Ytelse - Vår | G18: Antall | H18: Ytelse - Sommer | I18: Antall | J18: Ytelse - Høst
B19: Høyhastighetssystem kyst | C19: 1 | D19: =C19*'2. Effektivitet'!C50 -> 74 | E19: 1 | F19: =E19*'2. Effektivitet'!D50 -> 125 | G19: 1 | H19: =G19*'2. Effektivitet'!E50 -> 154 | I19: 1 | J19: =I19*'2. Effektivitet'!F50 -> 95
B20: Konvensjonelt system kyst | C20: 0 | D20: =(C20*'2. Effektivitet'!C50)/2 -> 0 | E20: 0 | F20: =(E20*'2. Effektivitet'!D50)/2 -> 0 | G20: 0 | H20: =(G20*'2. Effektivitet'!E50)/2 -> 0 | I20: 0 | J20: =(I20*'2. Effektivitet'!F50)/2 -> 0
B21: Kapasitet av valgt beredskapsløsning (Sm3/d) | D21: =ROUNDDOWN(SUM(D19:D20),0) -> 74 | F21: =ROUNDDOWN(SUM(F19:F20),0) -> 125 | H21: =ROUNDDOWN(SUM(H19:H20),0) -> 154 | J21: =ROUNDDOWN(SUM(J19:J20),0) -> 95 | K21: 3
B22: Gjenværende emulsjon tilgjengelig for bekjempelse (Sm3/d) | D22: =IF(D12>D21,D12-D21,"Behov dekket") -> Behov dekket | F22: =IF(F12>F21,F12-F21,"Behov dekket") -> Behov dekket | H22: =IF(H12>H21,H12-H21,"Behov dekket") -> Behov dekket | J22: =IF(J12>J21,J12-J21,"Behov dekket") -> Behov dekket
B23: Effektivitet av systemer i primærkonfigurasjon (%) | D23: =IF(SUM(D19:D20)>0,((C19*(Sys.Effektivitet!C16/100))+(C20*(Sys.Effektivitet!C18/100)))/SUM(C19:C20),"Velg beredskapsløsning") -> 0.8659448212 | F23: =IF(SUM(F19:F20)>0,((E19*(Sys.Effektivitet!D16/100))+(E20*(Sys.Effektivitet!D18/100)))/SUM(E19:E20),"Velg beredskapsløsning") -> 0.8805461234 | H23: =IF(SUM(H19:H20)>0,((G19*(Sys.Effektivitet!E16/100))+(G20*(Sys.Effektivitet!E18/100)))/SUM(G19:G20),"Velg beredskapsløsning") -> 0.8968984459 | J23: =IF(SUM(J19:J20)>0,((I19*(Sys.Effektivitet!F16/100))+(I20*(Sys.Effektivitet!F18/100)))/SUM(I19:I20),"Velg beredskapsløsning") -> 0.8849945975
B24: Ytelse av valgt beredskapsløsning i primærkonfigurasjon (Sm3/d) | D24: =IF(D21>0,D21*D23,"Velg beredskapsløsning") -> 64.07991677 | F24: =IF(F21>0,F21*F23,"Velg beredskapsløsning") -> 110.0682654 | H24: =IF(H21>0,H21*H23,"Velg beredskapsløsning") -> 138.1223607 | J24: =IF(J21>0,J21*J23,"Velg beredskapsløsning") -> 84.07448676
B25: Emulsjonsmengde ut av primærkonfigurasjon (Sm3/d) | D25: =IF(D21=0,D12,(IF(D21<D12,D12-D24,D12*(1-D23)))) -> 0.670275894 | F25: =IF(F21=0,F12,(IF(F21<F12,F12-F24,F12*(1-F23)))) -> 0.3583616299 | H25: =IF(H21=0,H12,(IF(H21<H12,H12-H24,H12*(1-H23)))) -> 0.2062031083 | J25: =IF(J21=0,J12,(IF(J21<J12,J12-J24,J12*(1-J23)))) -> 0.3450162075
B26: NOFO J overløp | C26: 0 | D26: =C26*Sys.Kapasitet!$C$36 -> 0 | E26: 0 | F26: =E26*Sys.Kapasitet!$C$36 -> 0 | G26: 0 | H26: =G26*Sys.Kapasitet!$C$36 -> 0 | I26: 0 | J26: =I26*Sys.Kapasitet!$C$36 -> 0
B27: NOFO J HiVisc | C27: 0 | D27: =C27*Sys.Kapasitet!$C$38 -> 0 | E27: 0 | F27: =E27*Sys.Kapasitet!$C$38 -> 0 | G27: 0 | H27: =G27*Sys.Kapasitet!$C$38 -> 0 | I27: 0 | J27: =I27*Sys.Kapasitet!$C$38 -> 0
B28: MOS Sweeper | C28: 0 | D28: =C28*Sys.Kapasitet!$C$40 -> 0 | E28: 0 | F28: =E28*Sys.Kapasitet!$C$40 -> 0 | G28: 0 | H28: =G28*Sys.Kapasitet!$C$40 -> 0 | I28: 0 | J28: =I28*Sys.Kapasitet!$C$40 -> 0
B29: Høyhastighetssystem kyst | C29: 0 | D29: =(C29*'2. Effektivitet'!C50)*0.75 -> 0 | E29: 0 | F29: =(E29*'2. Effektivitet'!D50)*0.75 -> 0 | G29: 0 | H29: =(G29*'2. Effektivitet'!E50)*0.75 -> 0 | I29: 0 | J29: =(I29*'2. Effektivitet'!F50)*0.75 -> 0
B30: Konvensjonelt system kyst | C30: 0 | D30: =((C30*'2. Effektivitet'!C50)/2)*0.75 -> 0 | E30: 0 | F30: =((E30*'2. Effektivitet'!D50)/2)*0.75 -> 0 | G30: 0 | H30: =((G30*'2. Effektivitet'!E50)/2)*0.75 -> 0 | I30: 0 | J30: =((I30*'2. Effektivitet'!F50)/2)*0.75 -> 0
B31: Kapasitet av sekundærkonfigurasjon (Sm3/d) | D31: =ROUNDDOWN(SUM(D26:D30),0) -> 0 | F31: =ROUNDDOWN(SUM(F26:F30),0) -> 0 | H31: =ROUNDDOWN(SUM(H26:H30),0) -> 0 | J31: =ROUNDDOWN(SUM(J26:J30),0) -> 0
B32: Gjenværende emulsjon tilgjengelig for bekjempelse (Sm3/d) | D32: =IF(D25>D31,D25-D31,"Behov dekket") -> 0.670275894 | F32: =IF(F25>F31,F25-F31,"Behov dekket") -> 0.3583616299 | H32: =IF(H25>H31,H25-H31,"Behov dekket") -> 0.2062031083 | J32: =IF(J25>J31,J25-J31,"Behov dekket") -> 0.3450162075
B33: Effektivitet av systemer i sekundærkonfigurasjon (%) | D33: =IF(SUM(D29:D30)>0,((C29*(Sys.Effektivitet!C16/100))+(C30*(Sys.Effektivitet!C17/100)))/SUM(C29:C30),"Ingen fartøy i sek. konfig") -> Ingen fartøy i sek. konfig | F33: =IF(SUM(F29:F30)>0,((E29*(Sys.Effektivitet!D16/100))+(E30*(Sys.Effektivitet!D17/100)))/SUM(E29:E30),"Ingen fartøy i sek. konfig") -> Ingen fartøy i sek. konfig | H33: =IF(SUM(H29:H30)>0,((G29*(Sys.Effektivitet!E16/100))+(G30*(Sys.Effektivitet!E17/100)))/SUM(G29:G30),"Ingen fartøy i sek. konfig") -> Ingen fartøy i sek. konfig | J33: =IF(SUM(J29:J30)>0,((I29*(Sys.Effektivitet!F16/100))+(I30*(Sys.Effektivitet!F17/100)))/SUM(I29:I30),"Ingen fartøy i sek. konfig") -> Ingen fartøy i sek. konfig
B34: Ytelse av valgt beredskapsløsning i sekundærkonfigurasjon (Sm3/d) | D34: =IF(D31>0,D31*D33,"Ingen fartøy i sek. konfig") -> Ingen fartøy i sek. konfig | F34: =IF(F31>0,F31*F33,"Ingen fartøy i sek. konfig") -> Ingen fartøy i sek. konfig | H34: =IF(H31>0,H31*H33,"Ingen fartøy i sek. konfig") -> Ingen fartøy i sek. konfig | J34: =IF(J31>0,J31*J33,"Ingen fartøy i sek. konfig") -> Ingen fartøy i sek. konfig
B35: Emulsjonsmengde ut av sekundærkonfigurasjon (Sm3/d) | D35: =IF(D31=0,D25,(IF(D31<D25,D25-D34,D25*(1-D33)))) -> 0.670275894 | F35: =IF(F31=0,F25,(IF(F31<F25,F25-F34,F25*(1-F33)))) -> 0.3583616299 | H35: =IF(H31=0,H25,(IF(H31<H25,H25-H34,H25*(1-H33)))) -> 0.2062031083 | J35: =IF(J31=0,J25,(IF(J31<J25,J25-J34,J25*(1-J33)))) -> 0.3450162075
B36: Status | D36: =IF(SUM(D19+D20+D29+D30)>D12,"Valgt beredskapsløsning er tilstrekkelig for å bekjempe beregnet emulsjonsmengde på havoverflaten","Valgt beredskapsløsning er ikke tilstrekkelig for å bekjempe beregnet emulsjonsmengde på havoverflaten") -> Valgt beredskapsløsning er tilstrekkelig for å bekjempe beregnet emulsjonsmengde på havoverflaten | F36: =IF(SUM(F19+F20+F29+F30)>F12,"Valgt beredskapsløsning er tilstrekkelig for å bekjempe beregnet emulsjonsmengde på havoverflaten","Valgt beredskapsløsning er ikke tilstrekkelig for å bekjempe beregnet emulsjonsmengde på havoverflaten") -> Valgt beredskapsløsning er tilstrekkelig for å bekjempe beregnet emulsjonsmengde på havoverflaten | H36: =IF(SUM(H19+H20+H29+H30)>H12,"Valgt beredskapsløsning er tilstrekkelig for å bekjempe beregnet emulsjonsmengde på havoverflaten","Valgt beredskapsløsning er ikke tilstrekkelig for å bekjempe beregnet emulsjonsmengde på havoverflaten") -> Valgt beredskapsløsning er tilstrekkelig for å bekjempe beregnet emulsjonsmengde på havoverflaten | J36: =IF(SUM(J19+J20+J29+J30)>J12,"Valgt beredskapsløsning er tilstrekkelig for å bekjempe beregnet emulsjonsmengde på havoverflaten","Valgt beredskapsløsning er ikke tilstrekkelig for å bekjempe beregnet emulsjonsmengde på havoverflaten") -> Valgt beredskapsløsning er tilstrekkelig for å bekjempe beregnet emulsjonsmengde på havoverflaten
B37: Total barriereeffektivitet i barriere 3 (%) | D37: =D38/D12 -> 0.8659448212 | F37: =F38/F12 -> 0.8805461234 | H37: =H38/H12 -> 0.8968984459 | J37: =J38/J12 -> 0.8849945975
B38: Total ytelse av barriere 3 (Sm3/d) | D38: =D12-D35 -> 4.329724106 | F38: =F12-F35 -> 2.64163837 | H38: =H12-H35 -> 1.793796892 | J38: =J12-J35 -> 2.654983793
B39: Emulsjonsmengde ut av barriere 3 (Sm3/d) | D39: =D35 -> 0.670275894 | F39: =F35 -> 0.3583616299 | H39: =H35 -> 0.2062031083 | J39: =J35 -> 0.3450162075
D42: Vinter | F42: Vår | H42: Sommer | J42: Høst
B43: Parameter | D43: 5°C - 10 m/s vind | F43: 5°C - 5 m/s vind | H43: 15°C - 5 m/s vind | J43: 15°C - 10 m/s vind
B44: Emulsjonsmengde tilgjengelig for opptak i barriere 4 (Sm3/d) | D44: =D39 -> 0.670275894 | F44: =F39 -> 0.3583616299 | H44: =H39 -> 0.2062031083 | J44: =J39 -> 0.3450162075
B47: Beredskapsbehov i barriere 4 | D47: Vinter | F47: Vår | H47: Sommer | J47: Høst
B48: Beregnet behov for Kystsystemer | D48: =D44/Sys.Kapasitet!C15 -> 0.008378448674 | F48: =F44/Sys.Kapasitet!E15 ->  | H48: =H44/Sys.Kapasitet!C15 -> 0.002577538853 | J48: =J44/Sys.Kapasitet!E15 -> 
B49: Antatt behov for Kystsystemer | D49: =IF(D48<1,ROUNDUP(D48,0) & " Fjordsystem",ROUNDUP(D48,0) & " Fjordsystemer") -> 1 Fjordsystem | F49: =IF(F48<1,ROUNDUP(F48,0) & " Fjordsystem",ROUNDUP(F48,0) & " Fjordsystemer") ->  | H49: =IF(H48<1,ROUNDUP(H48,0) & " Fjordsystem",ROUNDUP(H48,0) & " Fjordsystemer") -> 1 Fjordsystem | J49: =IF(J48<1,ROUNDUP(J48,0) & " Fjordsystem",ROUNDUP(J48,0) & " Fjordsystemer") -> 
B50: Beredskapsløsning i barriere 4 | C50: Antall | D50: Effektivitet - Vinter | E50: Antall | F50: Effektivitet - Vår | G50: Antall | H50: Effektivitet - Sommer | I50: Antall | J50: Effektivitet - Høst
B51: NOFO J overløp | C51: 0 | D51: =C51*Sys.Kapasitet!$C$35 -> 0 | E51: 0 | F51: =E51*Sys.Kapasitet!$C$35 -> 0 | G51: 0 | H51: =G51*Sys.Kapasitet!$C$35 -> 0 | I51: 0 | J51: =I51*Sys.Kapasitet!$C$35 -> 0
B52: NOFO J HiVisc | C52: 0 | D52: =C52*Sys.Kapasitet!$C$37 -> 0 | E52: 0 | F52: =E52*Sys.Kapasitet!$C$37 -> 0 | G52: 0 | H52: =G52*Sys.Kapasitet!$C$37 -> 0 | I52: 0 | J52: =I52*Sys.Kapasitet!$C$37 -> 0
B53: MOS Sweeper | C53: 0 | D53: =C53*Sys.Kapasitet!$C$39 -> 0 | E53: 0 | F53: =E53*Sys.Kapasitet!$C$39 -> 0 | G53: 0 | H53: =G53*Sys.Kapasitet!$C$39 -> 0 | I53: 0 | J53: =I53*Sys.Kapasitet!$C$39 -> 0
B54: NOFO båtdispergering Høy | C54: 0 | D54: =C54*Sys.Kapasitet!$C$41 -> 0 | E54: 0 | F54: =E54*Sys.Kapasitet!$C$41 -> 0 | G54: 0 | H54: =G54*Sys.Kapasitet!$C$41 -> 0 | I54: 0 | J54: =I54*Sys.Kapasitet!$C$41 -> 0
B55: NOFO båtdispergering Lav | C55: 0 | D55: =C55*Sys.Kapasitet!$C$43 -> 0 | E55: 0 | F55: =E55*Sys.Kapasitet!$C$43 -> 0 | G55: 0 | H55: =G55*Sys.Kapasitet!$C$43 -> 0 | I55: 0 | J55: =I55*Sys.Kapasitet!$C$43 -> 0
B56: NOFO Barriere 4-pakke | C56: ='1. Input fra oljedrift og MRA'!C40*4 -> 4 | D56: =(Sys.Effektivitet!C19/100) -> 0.818 | E56: ='1. Input fra oljedrift og MRA'!C41*4 -> 8 | F56: =(Sys.Effektivitet!D19/100) -> 0.822 | G56: ='1. Input fra oljedrift og MRA'!C42*4 -> 12 | H56: =(Sys.Effektivitet!E19/100) -> 0.894 | I56: ='1. Input fra oljedrift og MRA'!C43*4 -> 16 | J56: =(Sys.Effektivitet!F19/100) -> 0.844
B57: Emulsjonsmengde ut av barriere 4 (Sm3/d) | D57: =IF(D44>0,D44*(1-D56),"Ingen") -> 0.1219902127 | F57: =IF(F44>0,F44*(1-F56),"Ingen") -> 0.06378837012 | H57: 0.02185752947 | J57: 0.05382252836
B58: NOFO J overløp | C58: 0 | D58: =C58*Sys.Kapasitet!C36 -> 0 | E58: 0 | F58: =E58*Sys.Kapasitet!E36 -> 0 | G58: 0 | H58: =G58*Sys.Kapasitet!C36 -> 0 | I58: 0 | J58: =I58*Sys.Kapasitet!E36 -> 0
B59: NOFO J HiVisc | C59: 0 | D59: =C59*Sys.Kapasitet!C38 -> 0 | E59: 0 | F59: =E59*Sys.Kapasitet!E38 -> 0 | G59: 0 | H59: =G59*Sys.Kapasitet!C38 -> 0 | I59: 0 | J59: =I59*Sys.Kapasitet!E38 -> 0
B60: MOS Sweeper | C60: 0 | D60: =C60*Sys.Kapasitet!C40 -> 0 | E60: 0 | F60: =E60*Sys.Kapasitet!E40 -> 0 | G60: 0 | H60: =G60*Sys.Kapasitet!C40 -> 0 | I60: 0 | J60: =I60*Sys.Kapasitet!E40 -> 0
D63: Vinter | F63: Vår | H63: Sommer | J63: Høst
B64: Parameter | D64: 5°C - 10 m/s vind | F64: 5°C - 5 m/s vind | H64: 15°C - 5 m/s vind | J64: 15°C - 10 m/s vind
B65: Emulsjonsmengde ut av barriere 3 og 4 (Sm3/d) | D65: =D57 -> 0.1219902127 | F65: =F57 -> 0.06378837012 | H65: =H57 -> 0.02185752947 | J65: =J57 -> 0.05382252836
B66: Totalt antall systemer i barriere 3 og 4
B67: NOFO J med overløpsopptaker | D67: =#REF!+C51 ->  | F67: =#REF!+E51 ->  | H67: =#REF!+G51 ->  | J67: =#REF!+I51 -> 
B68: NOFO J med HiVisc oljeooptaker | D68: =#REF!+C52 ->  | F68: =#REF!+E52 ->  | H68: =#REF!+G52 ->  | J68: =#REF!+I52 -> 
B69: MOS Sweeper | D69: =#REF!+C53 ->  | F69: =#REF!+E53 ->  | H69: =#REF!+G53 ->  | J69: =#REF!+I53 -> 
B70: Høyhastighetssystem kyst | D70: =C19+C29 -> 1 | F70: =E19+E29 -> 1 | H70: =G19+G29 -> 1 | J70: =I19+I29 -> 1
B71: Konvensjonelt system kyst | D71: =C20+C30 -> 0 | F71: =E20+E30 -> 0 | H71: =G20+G30 -> 0 | J71: =I20+I30 -> 0
B72: NOFO Barriere 4-pakke | D72: =C56 -> 4 | F72: =E56 -> 8 | H72: =G56 -> 12 | J72: =I56 -> 16
B73: Total ytelse av barriere 3 og 4 (Sm3/d) | D73: =D38+(D44*D56) -> 4.878009787 | F73: =F38+(F44*F56) -> 2.93621163 | H73: =H38+(H44*H56) -> 1.978142471 | J73: =J38+(J44*J56) -> 2.946177472
B74: Beregnet effektivitet av barriere 3 og 4 (%) | D74: =D73/(D12+D44) -> 0.8602773266 | F74: =F73/(F12+F44) -> 0.8742988259 | H74: =H73/(H12+H44) -> 0.8966275422 | J74: =J73/(J12+J44) -> 0.880766277

Sheet 5. Barriere 5
B2: Strandrensing
D4: Vinter | F4: Vår | H4: Sommer | J4: Høst
B5: Parameter | D5: 5°C - 10 m/s vind | F5: 5°C - 5 m/s vind | H5: 15°C - 5 m/s vind | J5: 15°C - 10 m/s vind
B6: Beregningsalternativ 1
B7: Strandet mengde emulsjon fra MRA (tonn) | D7: ='1. Input fra oljedrift og MRA'!C31 -> 100 | F7: ='1. Input fra oljedrift og MRA'!C32 -> 100 | H7: ='1. Input fra oljedrift og MRA'!C33 -> 100 | J7: ='1. Input fra oljedrift og MRA'!C34 -> 100
B8: Effektivitet av barriere 1 til 4 (%) | D8: ='6. Oppsummering'!C46/100 -> 0.9878009787 | F8: ='6. Oppsummering'!D46/100 -> 0.993621163 | H8: ='6. Oppsummering'!E46/100 -> 0.9978142471 | J8: ='6. Oppsummering'!F46/100 -> 0.9946177472
B9: Ytelse av foregående barrierer (tonn) | D9: =D7*D8 -> 98.78009787 | F9: =F7*F8 -> 99.3621163 | H9: =H7*H8 -> 99.78142471 | J9: =J7*J8 -> 99.46177472
B10: Mengde emulsjon inn til barriere 5 (tonn) | D10: =D7-D9 -> 1.219902127 | F10: =F7-F9 -> 0.6378837012 | H10: =H7-H9 -> 0.2185752947 | J10: =J7-J9 -> 0.5382252836
B11: Reduksjonsfaktor mellom B4 og B5 (%) | D11: 0 | F11: 0 | H11: 0 | J11: 0
B12: Volumøkning grunnet innblanding av annet materiale (%) | D12: 5 | F12: 5 | H12: 5 | J12: 5
B13: Mengde oljebefengt masse som må bekjempes i barriere 5 (tonn) | D13: =D10*(1-D11)*(IF(D12>0,(1+D12),1)) -> 7.319412762 | F13: =F10*(1-F11)*(IF(F12>0,(1+F12),1)) -> 3.827302207 | H13: =H10*(1-H11)*(IF(H12>0,(1+H12),1)) -> 1.311451768 | J13: =J10*(1-J11)*(IF(J12>0,(1+J12),1)) -> 3.229351702
B14: Antall døgn som strandrensing skal være gjennomført innen (d) | D14: 100 | F14: 100 | H14: 100 | J14: 100
B15: Mengde oljebefengt masse som må bekjempes per døgn (tonn/d) | D15: =D13/D14 -> 0.07319412762 | F15: =F13/F14 -> 0.03827302207 | H15: =H13/H14 -> 0.01311451768 | J15: =J13/J14 -> 0.03229351702
B16: Kapasitet per dagsverk (tonn/d) | D16: 0.18 | F16: 0.18 | H16: 0.18 | J16: 0.18
B17: Reduksjon i effektivitet grunnet kulde og mørke (%) | D17: 0.5 | F17: 0 | H17: 0 | J17: 0
B18: Antall personer nødvendig for å oppnå rensing innen angitt tid (dagsverk) | D18: =ROUNDUP(D15/(IF(D17>0,(D16*(1-D17)),D16)),0) &" ("&ROUNDUP(D13/(IF(D17>0,(D16*(1-D17)),D16)),0)&")" -> 1 (82) | F18: =ROUNDUP(F15/(IF(F17>0,(F16*(1-F17)),F16)),0) &" ("&ROUNDUP(F13/(IF(F17>0,(F16*(1-F17)),F16)),0)&")" -> 1 (22) | H18: =ROUNDUP(H15/(IF(H17>0,(H16*(1-H17)),H16)),0) &" ("&ROUNDUP(H13/(IF(H17>0,(H16*(1-H17)),H16)),0)&")" -> 1 (8) | J18: =ROUNDUP(J15/(IF(J17>0,(J16*(1-J17)),J16)),0) &" ("&ROUNDUP(J13/(IF(J17>0,(J16*(1-J17)),J16)),0)&")" -> 1 (18)
B20: Beregningsalternativ 2
D21: Vinter | F21: Vår | H21: Sommer | J21: Høst
B22: Antall meter kontaminert strandlinje (m) | D22: =IF('1. Input fra oljedrift og MRA'!C26>0,'1. Input fra oljedrift og MRA'!C26,"Ingen data") -> Ingen data | F22: =IF('1. Input fra oljedrift og MRA'!C27>0,'1. Input fra oljedrift og MRA'!C27,"Ingen data") -> Ingen data | H22: =IF('1. Input fra oljedrift og MRA'!C28>0,'1. Input fra oljedrift og MRA'!C28,"Ingen data") -> Ingen data | J22: =IF('1. Input fra oljedrift og MRA'!C29>0,'1. Input fra oljedrift og MRA'!C29,"Ingen data") -> Ingen data
B23: Antall døgn som strandrensing skal være gjennomført innen | D23: 100 | F23: 100 | H23: 100 | J23: 100
B24: Lengde strand som må renses per døgn (m/d) | D24: =IF(D22="Ingen data","Ingen data",D22/D23) -> Ingen data | F24: =IF(F22="Ingen data","Ingen data",F22/F23) -> Ingen data | H24: =IF(H22="Ingen data","Ingen data",H22/H23) -> Ingen data | J24: =IF(J22="Ingen data","Ingen data",J22/J23) -> Ingen data
B25: Lengde strand renset per dagsverk (meter/d) | D25: 4 | F25: 4 | H25: 4 | J25: 4
B26: Reduksjon i effektivitet grunnet kulde og mørke | D26: 0.5 | F26: 0 | H26: 0 | J26: 0
B27: =IF('1. Input fra oljedrift og MRA'!C28*'1. Input fra oljedrift og MRA'!C29>0,"Antall personer nødvendig for å rense kontaminert strand innen angitt tid (dagsverk)","Dagsverk nødvendig for å rense kontaminert strand (dagsverk)") -> Dagsverk nødvendig for å rense kontaminert strand (dagsverk) | D27: =IF(D22="Ingen data","Ingen data",ROUNDUP(D24/(IF(D26>0,(D25*(1-D26)),D25)),0)&" ("&ROUNDUP(D22/(IF(D26>0,(D25*(1-D26)),D25)),0)&")") -> Ingen data | F27: =IF(F22="Ingen data","Ingen data",ROUNDUP(F24/(IF(F26>0,(F25*(1-F26)),F25)),0)&" ("&ROUNDUP(F22/(IF(F26>0,(F25*(1-F26)),F25)),0)&")") -> Ingen data | H27: =IF(H22="Ingen data","Ingen data",ROUNDUP(H24/(IF(H26>0,(H25*(1-H26)),H25)),0)&" ("&ROUNDUP(H22/(IF(H26>0,(H25*(1-H26)),H25)),0)&")") -> Ingen data | J27: =IF(J22="Ingen data","Ingen data",ROUNDUP(J24/(IF(J26>0,(J25*(1-J26)),J25)),0)&" ("&ROUNDUP(J22/(IF(J26>0,(J25*(1-J26)),J25)),0)&")") -> Ingen data

Sheet Ark1 (hidden)

Sheet 6. Oppsummering
B2: Kapasitet, ytelse og effektivitet av valgt beredskapsløsning
B4: Om aktiviteten
B5: Navn | C5: ='1. Input fra oljedrift og MRA'!C7 -> Test
B6: Type | C6: ='1. Input fra oljedrift og MRA'!C9 -> 0
B7: Dato | C7: ='1. Input fra oljedrift og MRA'!C13 -> 00:00:00
B8: Lokasjon | C8: ='1. Input fra oljedrift og MRA'!C12 -> 0
B9: Dim. utblåsningsrate | C9: ='1. Input fra oljedrift og MRA'!C10&" Sm3/d" -> 1000 Sm3/d
B11: Barriere 1 og 2 | C11: Vinter (5°C - 10 m/s vind) | D11: Vår (5°C - 5 m/s vind) | E11: Sommer (15°C - 5 m/s vind) | F11: Høst (15°C - 10 m/s vind)
B12: Emulsjonsmengde inn til barriere 1 | C12: =ROUNDUP('3. Barriere 1 og 2'!D12,0) & " Sm3/d" -> 988 Sm3/d | D12: =ROUNDUP('3. Barriere 1 og 2'!F12,0) & " Sm3/d" -> 947 Sm3/d | E12: =ROUNDUP('3. Barriere 1 og 2'!H12,0) & " Sm3/d" -> 926 Sm3/d | F12: =ROUNDUP('3. Barriere 1 og 2'!J12,0) & " Sm3/d" -> 988 Sm3/d
B13: Viskositet av emulsjon inn til barriere 1 | C13: =ROUNDUP('3. Barriere 1 og 2'!D13,0)&" cP" -> 966 cP | D13: =ROUNDUP('3. Barriere 1 og 2'!F13,9)&" cP" -> 448 cP | E13: =ROUNDUP('3. Barriere 1 og 2'!H13,9)&" cP" -> 308 cP | F13: =ROUNDUP('3. Barriere 1 og 2'!J13,9)&" cP" -> 677 cP
B15: Antall og systemtyper i valgt beredskapsløsning i barriere 1 og 2
B16: NOFO J med overløpsskimmer | C16: ='3. Barriere 1 og 2'!D92+'3. Barriere 1 og 2'!D97 -> 2 | D16: ='3. Barriere 1 og 2'!F92+'3. Barriere 1 og 2'!F97 -> 2 | E16: ='3. Barriere 1 og 2'!H92+'3. Barriere 1 og 2'!H97 -> 2 | F16: ='3. Barriere 1 og 2'!J92+'3. Barriere 1 og 2'!J97 -> 2
B17: NOFO J med høyviskositetsskimmer | C17: ='3. Barriere 1 og 2'!D93+'3. Barriere 1 og 2'!D98 -> 0 | D17: ='3. Barriere 1 og 2'!F93+'3. Barriere 1 og 2'!F98 -> 0 | E17: ='3. Barriere 1 og 2'!H93+'3. Barriere 1 og 2'!H98 -> 0 | F17: ='3. Barriere 1 og 2'!J93+'3. Barriere 1 og 2'!J98 -> 0
B18: NOFO havgående høyhastighetssystem | C18: ='3. Barriere 1 og 2'!D94+'3. Barriere 1 og 2'!D99 -> 0 | D18: ='3. Barriere 1 og 2'!F94+'3. Barriere 1 og 2'!F99 -> 0 | E18: ='3. Barriere 1 og 2'!H94+'3. Barriere 1 og 2'!H99 -> 0 | F18: ='3. Barriere 1 og 2'!J94+'3. Barriere 1 og 2'!J99 -> 0
B19: NOFO båtdispergering - lav doseringsrate | C19: ='3. Barriere 1 og 2'!D95+'3. Barriere 1 og 2'!D100 -> 0 | D19: ='3. Barriere 1 og 2'!F95+'3. Barriere 1 og 2'!F100 -> 0 | E19: ='3. Barriere 1 og 2'!H95+'3. Barriere 1 og 2'!H100 -> 0 | F19: ='3. Barriere 1 og 2'!J95+'3. Barriere 1 og 2'!J100 -> 0
B20: NOFO båtdispergering - høy doseringsrate | C20: ='3. Barriere 1 og 2'!D96+'3. Barriere 1 og 2'!D101 -> 0 | D20: ='3. Barriere 1 og 2'!F96+'3. Barriere 1 og 2'!F101 -> 0 | E20: ='3. Barriere 1 og 2'!H96+'3. Barriere 1 og 2'!H101 -> 0 | F20: ='3. Barriere 1 og 2'!J96+'3. Barriere 1 og 2'!J101 -> 0
B21: Emulsjonsdannelse mellom barriere 1 og 2 | C21: =ROUNDUP(('3. Barriere 1 og 2'!D54-'3. Barriere 1 og 2'!D43),0)&" Sm3/d" -> 315 Sm3/d | D21: =ROUNDUP(('3. Barriere 1 og 2'!F54-'3. Barriere 1 og 2'!F43),0)&" Sm3/d" -> 79 Sm3/d | E21: =ROUNDUP(('3. Barriere 1 og 2'!H54-'3. Barriere 1 og 2'!H43),0)&" Sm3/d" -> 59 Sm3/d | F21: =ROUNDUP(('3. Barriere 1 og 2'!J54-'3. Barriere 1 og 2'!J43),0)&" Sm3/d" -> 266 Sm3/d
B22: Ytelse av valgt beredskapsløsning i barriere 1 og 2 | C22: =ROUNDUP('3. Barriere 1 og 2'!D102,0)&" Sm3/d" -> 643 Sm3/d | D22: =ROUNDUP('3. Barriere 1 og 2'!F102,0)&" Sm3/d" -> 757 Sm3/d | E22: =ROUNDUP('3. Barriere 1 og 2'!H102,0)&" Sm3/d" -> 820 Sm3/d | F22: =ROUNDUP('3. Barriere 1 og 2'!J102,0)&" Sm3/d" -> 785 Sm3/d
B23: Emulsjonsmengde ut av barriere 2 | C23: =ROUNDUP('3. Barriere 1 og 2'!D85,0) & " Sm3/d" -> 661 Sm3/d | D23: =ROUNDUP('3. Barriere 1 og 2'!F85,0) & " Sm3/d" -> 270 Sm3/d | E23: =ROUNDUP('3. Barriere 1 og 2'!H85,0) & " Sm3/d" -> 165 Sm3/d | F23: =ROUNDUP('3. Barriere 1 og 2'!J85,0) & " Sm3/d" -> 469 Sm3/d
B24: Effekt av barriere 1 og 2 | C24: ='3. Barriere 1 og 2'!D103 -> 0.3485999279 | D24: ='3. Barriere 1 og 2'!F103 -> 0.5606401314 | E24: ='3. Barriere 1 og 2'!H103 -> 0.6865771083 | F24: ='3. Barriere 1 og 2'!J103 -> 0.4739461635
B26: Barriere 3 og 4 | C26: Vinter (5°C - 10 m/s vind) | D26: Vår (5°C - 5 m/s vind) | E26: Sommer (15°C - 5 m/s vind) | F26: Høst (15°C - 10 m/s vind)
B27: Emulsjonsmengde inn til barriere 3 | C27: =ROUNDUP('4. Barriere 3 og 4'!D12,0) & " tonn/d" -> 5 tonn/d | D27: =ROUNDUP('4. Barriere 3 og 4'!F12,0) & " tonn/d" -> 3 tonn/d | E27: =ROUNDUP('4. Barriere 3 og 4'!H12,0) & " tonn/d" -> 2 tonn/d | F27: =ROUNDUP('4. Barriere 3 og 4'!J12,0) & " tonn/d" -> 3 tonn/d
B29: Antall og systemtyper i valgt beredskapsløsning i barriere 3 og 4
B30: Høyhastighetssystem kyst | C30: ='4. Barriere 3 og 4'!D70 -> 1 | D30: ='4. Barriere 3 og 4'!F70 -> 1 | E30: ='4. Barriere 3 og 4'!H70 -> 1 | F30: ='4. Barriere 3 og 4'!J70 -> 1
B31: Konvensjonelt system kyst | C31: ='4. Barriere 3 og 4'!D71 -> 0 | D31: ='4. Barriere 3 og 4'!F71 -> 0 | E31: ='4. Barriere 3 og 4'!H71 -> 0 | F31: ='4. Barriere 3 og 4'!J71 -> 0
B32: NOFO Barriere 4-pakke | C32: ='4. Barriere 3 og 4'!D72 -> 4 | D32: ='4. Barriere 3 og 4'!F72 -> 8 | E32: ='4. Barriere 3 og 4'!H72 -> 12 | F32: ='4. Barriere 3 og 4'!J72 -> 16
B33: Ytelse av valgt beredskapsløsning i barriere 3 og 4 | C33: =ROUNDUP('4. Barriere 3 og 4'!D73,0)& " Sm3/d" -> 5 Sm3/d | D33: =ROUNDUP('4. Barriere 3 og 4'!F73,0)& " Sm3/d" -> 3 Sm3/d | E33: =ROUNDUP('4. Barriere 3 og 4'!H73,0)& " Sm3/d" -> 2 Sm3/d | F33: =ROUNDUP('4. Barriere 3 og 4'!J73,0)& " Sm3/d" -> 3 Sm3/d
B34: Emulsjonsmengde ut av barriere 4 | C34: =ROUNDUP('4. Barriere 3 og 4'!D65,0)&" Sm3/d" -> 1 Sm3/d | D34: =ROUNDUP('4. Barriere 3 og 4'!F65,0)&" Sm3/d" -> 1 Sm3/d | E34: =ROUNDUP('4. Barriere 3 og 4'!H65,0)&" Sm3/d" -> 1 Sm3/d | F34: =ROUNDUP('4. Barriere 3 og 4'!J65,0)&" Sm3/d" -> 1 Sm3/d
B35: Effekt av barriere 3 og 4 | C35: ='4. Barriere 3 og 4'!D74 -> 0.8602773266 | D35: ='4. Barriere 3 og 4'!F74 -> 0.8742988259 | E35: ='4. Barriere 3 og 4'!H74 -> 0.8966275422 | F35: ='4. Barriere 3 og 4'!J74 -> 0.880766277
B37: Barriere 5 | C37: Vinter (5°C - 10 m/s vind) | D37: Sommer (15°C - 5 m/s vind) | E37: Sommer (15°C - 5 m/s vind) | F37: Sommer (15°C - 5 m/s vind)
B38: Dimensjonerende parameter for barriere 5 | C38: =IF('5. Barriere 5'!#REF!="Beregningsalternativ 1","Strandet mengde emulsjon","Antall meter kontaminert strandlinje") ->  | D38: =IF('5. Barriere 5'!#REF!="Beregningsalternativ 1","Strandet mengde emulsjon","Antall meter kontaminert strandlinje") ->  | E38: =IF('5. Barriere 5'!#REF!="Beregningsalternativ 1","Strandet mengde emulsjon","Antall meter kontaminert strandlinje") ->  | F38: =IF('5. Barriere 5'!#REF!="Beregningsalternativ 1","Strandet mengde emulsjon","Antall meter kontaminert strandlinje") -> 
B39: Antall døgn strandrensing skal være gjennomført innen | C39: =IF(C38="Strandet mengde emulsjon",'5. Barriere 5'!D14&" døgn",'5. Barriere 5'!D23&" døgn") ->  | D39: =IF(D38="Strandet mengde emulsjon",'5. Barriere 5'!H14&" døgn",'5. Barriere 5'!H23&" døgn") ->  | E39: =IF(E38="Strandet mengde emulsjon",'5. Barriere 5'!I14&" døgn",'5. Barriere 5'!I23&" døgn") ->  | F39: =IF(F38="Strandet mengde emulsjon",'5. Barriere 5'!J14&" døgn",'5. Barriere 5'!J23&" døgn") -> 
B40: Mengde emulsjon/antall meter strandlinje som må bekjempes per dag | C40: =IF(C38="Strandet mengde emulsjon",ROUNDUP('5. Barriere 5'!D15,2)&" tonn/d",ROUNDUP('5. Barriere 5'!D24,2)&" m/d") ->  | D40: =IF(D38="Strandet mengde emulsjon",ROUNDUP('5. Barriere 5'!H15,2)&" tonn/d",ROUNDUP('5. Barriere 5'!H24,2)&" m/d") ->  | E40: =IF(E38="Strandet mengde emulsjon",ROUNDUP('5. Barriere 5'!I15,2)&" tonn/d",ROUNDUP('5. Barriere 5'!I24,2)&" m/d") ->  | F40: =IF(F38="Strandet mengde emulsjon",ROUNDUP('5. Barriere 5'!J15,2)&" tonn/d",ROUNDUP('5. Barriere 5'!J24,2)&" m/d") -> 
B41: Antall personer nødvendig for å oppnå rensing innen angitt tid | C41: ='5. Barriere 5'!#REF! ->  | D41: ='5. Barriere 5'!#REF! ->  | E41: ='5. Barriere 5'!#REF! ->  | F41: ='5. Barriere 5'!#REF! -> 
C42: ="Personer (dagsverk)" -> Personer (dagsverk) | D42: ="Personer (dagsverk)" -> Personer (dagsverk) | E42: ="Personer (dagsverk)" -> Personer (dagsverk) | F42: ="Personer (dagsverk)" -> Personer (dagsverk)
B43: Reduksjon i effektivitet grunnet kulde og mørke | C43: =IF(C38="Strandet mengde emulsjon",'5. Barriere 5'!D17&" %",'5. Barriere 5'!D26&" %") ->  | D43: =IF(D38="Strandet mengde emulsjon",'5. Barriere 5'!H17&" %",'5. Barriere 5'!H26&" %") ->  | E43: =IF(E38="Strandet mengde emulsjon",'5. Barriere 5'!I17&" %",'5. Barriere 5'!I26&" %") ->  | F43: =IF(F38="Strandet mengde emulsjon",'5. Barriere 5'!J17&" %",'5. Barriere 5'!J26&" %") -> 
B45: Samlet effektivitet B1 - B3 | C45: =-((('4. Barriere 3 og 4'!D11*'4. Barriere 3 og 4'!D39)/'1. Input fra oljedrift og MRA'!C31)*100)+100 -> 93.29724106 | D45: =-((('4. Barriere 3 og 4'!F11*'4. Barriere 3 og 4'!F39)/'1. Input fra oljedrift og MRA'!C32)*100)+100 -> 96.4163837 | E45: =-((('4. Barriere 3 og 4'!H11*'4. Barriere 3 og 4'!H39)/'1. Input fra oljedrift og MRA'!C33)*100)+100 -> 97.93796892 | F45: =-((('4. Barriere 3 og 4'!J11*'4. Barriere 3 og 4'!J39)/'1. Input fra oljedrift og MRA'!C33)*100)+100 -> 96.54983793
B46: Samlet effektivitet B1 - B4 | C46: =-((('4. Barriere 3 og 4'!D11*'4. Barriere 3 og 4'!D65)/'1. Input fra oljedrift og MRA'!C31)*100)+100 -> 98.78009787 | D46: =-((('4. Barriere 3 og 4'!F11*'4. Barriere 3 og 4'!F65)/'1. Input fra oljedrift og MRA'!C32)*100)+100 -> 99.3621163 | E46: =-((('4. Barriere 3 og 4'!H11*'4. Barriere 3 og 4'!H65)/'1. Input fra oljedrift og MRA'!C33)*100)+100 -> 99.78142471 | F46: =-((('4. Barriere 3 og 4'!J11*'4. Barriere 3 og 4'!J65)/'1. Input fra oljedrift og MRA'!C33)*100)+100 -> 99.46177472

Sheet Par. (hidden)
B2: Systemgruppe | C2: Effektivitet Vinter | D2: Effektivitet Sommer | E2: Effektivitet vår | F2: Effektivitet høst | G2: Datakilde
B3: A (Hs 4) | C3: ='2. Effektivitet'!C31*100 -> 45.3807375 | D3: ='2. Effektivitet'!E31*100 -> 77.35277 | E3: ='2. Effektivitet'!D31*100 -> 65.88204375 | F3: ='2. Effektivitet'!F31*100 -> 59.3577925 | G3: NORA
B4: B (2.5)
B5: C (OSRL)
B6: D (Hs 1,5) | C6: ='2. Effektivitet'!M31*100 -> 86.59448212 | D6: ='2. Effektivitet'!O31*100 -> 89.68984459 | E6: ='2. Effektivitet'!N31*100 -> 88.05461234 | F6: ='2. Effektivitet'!P31*100 -> 88.49945975 | G6: Trondheimsfjorden
B7: E (Hs 1) | C7: ='2. Effektivitet'!M42*100 -> 81.8 | D7: ='2. Effektivitet'!O42*100 -> 89.4 | E7: ='2. Effektivitet'!N42*100 -> 82.2 | F7: ='2. Effektivitet'!P42*100 -> 84.4 | G7: Trondheimsfjorden

Sheet Sys.Kapasitet (hidden)
B4: Barriere 1 | E4: Tidsandel med tilgang til emulsjon
B5: NOFO J m/overløp (primærkonfigurasjon) | C5: 2865 | D5: 2865 | E5: 1
B6: NOFO J m/overløp (sekundærkonfigurasjon) | C6: 2149 | D6: 2149 | E6: 1
B7: NOFO J m/HiVisc (primærkonfigurasjon) | C7: 1920 | D7: 1920 | E7: 1
B8: NOFO J m/HiVisc (sekundærkonfigurasjon) | C8: =C7*0.75 -> 1440 | D8: =D7*0.75 -> 1440 | E8: 1
B9: MOS Sweeper (primærkonfigurasjon) | C9: 1459 | D9: 1459 | E9: 1
B10: MOS Sweeper (sekundærkonfigurasjon) | C10: =C9*0.75 -> 1094.25 | D10: =D9*0.75 -> 1094.25 | E10: 1
B11: NOFO Båtdispergering - Høy (primærkonfigurasjon) | C11: 693 | D11: 693 | E11: 1
B12: NOFO Båtdispergering - Høy (sekundærkonfigurasjon) | C12: =C11*0.75 -> 519.75 | D12: =D11*0.75 -> 519.75 | E12: 1
B13: NOFO Båtdispergering - Lav (primærkonfigurasjon) | C13: 542 | D13: 542 | E13: 1
B14: NOFO Båtdispergering - Lav (sekundærkonfigurasjon) | C14: =C13*0.75 -> 406.5 | D14: =D13*0.75 -> 406.5 | E14: 1
B15: NOFO Kyst HH CB4 – TF | C15: 80 | D15: 80
B16: NOFO Kyst HH CB2 – TF | C16: 80 | D16: 80
B17: NOFO Kyst SH – TF | C17: 80 | D17: 80
B18: NOFO Kyst HH CB2 – TF (sekundærkonfigurasjon | C18: 60 | D18: 60
B20: Barriere 2
B22: NOFO J m/overløp (primærkonfigurasjon) | C22: 2101 | D22: 2101 | E22: 0.5
B23: NOFO J m/overløp (sekundærkonfigurasjon) | C23: =C22*0.75 -> 1575.75 | D23: =D22*0.75 -> 1575.75 | E23: 0.5
B24: NOFO J m/HiVisc (primærkonfigurasjon) | C24: 1220 | D24: 1220 | E24: 0.5
B25: NOFO J m/HiVisc (sekundærkonfigurasjon) | C25: =C24*0.75 -> 915 | D25: =D24*0.75 -> 915 | E25: 0.5
B26: MOS Sweeper (primærkonfigurasjon) | C26: 1459 | D26: 1459 | E26: 1
B27: MOS Sweeper (sekundærkonfigurasjon) | C27: =C26*0.75 -> 1094.25 | D27: =D26*0.75 -> 1094.25 | E27: 1
B28: NOFO Båtdispergering - Høy (primærkonfigurasjon) | C28: 693 | D28: 693 | E28: 1
B29: NOFO Båtdispergering - Høy (sekundærkonfigurasjon) | C29: =C28*0.75 -> 519.75 | D29: =D28*0.75 -> 519.75 | E29: 1
B30: NOFO Båtdispergering - Lav (primærkonfigurasjon) | C30: 542 | D30: 542 | E30: 1
B31: NOFO Båtdispergering - Lav (sekundærkonfigurasjon) | C31: =C30*0.75 -> 406.5 | D31: =D30*0.75 -> 406.5 | E31: 1
B33: Barriere 3 og 4
B35: NOFO J m/overløp (primærkonfigurasjon) | C35: 1168 | D35: 1168 | E35: 0.2
B36: NOFO J m/overløp (sekundærkonfigurasjon) | C36: =C35*0.75 -> 876 | D36: =D35*0.75 -> 876 | E36: 0.2
B37: NOFO J m/HiVisc (primærkonfigurasjon) | C37: 583 | D37: 583 | E37: 0.2
B38: NOFO J m/HiVisc (sekundærkonfigurasjon) | C38: =C37*0.75 -> 437.25 | D38: =D37*0.75 -> 437.25 | E38: 0.2
B39: MOS Sweeper (primærkonfigurasjon) | C39: 1149 | D39: 1149 | E39: 0.7
B40: MOS Sweeper (sekundærkonfigurasjon) | C40: =C39*0.75 -> 861.75 | D40: =D39*0.75 -> 861.75 | E40: 0.7
B41: NOFO Båtdispergering - Høy (primærkonfigurasjon) | C41: 346 | D41: 346
B42: NOFO Båtdispergering - Høy (sekundærkonfigurasjon) | C42: =C41*0.75 -> 259.5 | D42: =D41*0.75 -> 259.5
B43: NOFO Båtdispergering - Lav (primærkonfigurasjon) | C43: 271 | D43: 271
B44: NOFO Båtdispergering - Lav (sekundærkonfigurasjon) | C44: =C43*0.75 -> 203.25 | D44: =D43*0.75 -> 203.25
B45: NOFO Kyst HH CB4 | C45: 80 | D45: 80
B46: NOFO Kyst HH CB2/NOFO Kyst SH | C46: 40 | D46: 40

Sheet Sys.Ytelse (hidden)
B2: Ys: En systemenhets ytelse (m3/døgn) = K * Es
C4: Vinter | D4: Vår | E4: Sommer | F4: Høst
B5: Systemtype | C5: 5°C - 10 m/s vind | E5: 15°C - 5 m/s vind
B6: NOFO J m/overløp (primærkonfigurasjon) | C6: =Sys.Kapasitet!$C5*(Sys.Effektivitet!C6/100) -> 1300.158129 | E6: =Sys.Kapasitet!$C5*(Sys.Effektivitet!E6/100) -> 2216.156861
B7: NOFO J m/overløp (sekundærkonfigurasjon) | C7: =Sys.Kapasitet!$C6*(Sys.Effektivitet!C7/100) -> 731.4240367 | E7: =Sys.Kapasitet!$C6*(Sys.Effektivitet!E7/100) -> 1246.73327
B8: NOFO J m/HiVisc (primærkonfigurasjon) | C8: =Sys.Kapasitet!$C7*(Sys.Effektivitet!C8/100) -> 871.31016 | E8: =Sys.Kapasitet!$C7*(Sys.Effektivitet!E8/100) -> 1485.173184
B9: NOFO J m/HiVisc (sekundærkonfigurasjon) | C9: =Sys.Kapasitet!$C8*(Sys.Effektivitet!C9/100) -> 490.111965 | E9: =Sys.Kapasitet!$C8*(Sys.Effektivitet!E9/100) -> 835.409916
B10: MOS Sweeper (primærkonfigurasjon) | C10: =Sys.Kapasitet!$C9*(Sys.Effektivitet!C10/100) -> 662.1049601 | E10: =Sys.Kapasitet!$C9*(Sys.Effektivitet!E10/100) -> 1128.576914
B11: MOS Sweeper (sekundærkonfigurasjon) | C11: =Sys.Kapasitet!$C10*(Sys.Effektivitet!C11/100) -> 372.4340401 | E11: =Sys.Kapasitet!$C10*(Sys.Effektivitet!E11/100) -> 634.8245143
B12: NOFO Båtdispergering - Høy (primærkonfigurasjon) | C12: =Sys.Kapasitet!$C11*(Sys.Effektivitet!C12/100) -> 314.4885109 | E12: =Sys.Kapasitet!$C11*(Sys.Effektivitet!E12/100) -> 536.0546961
B13: NOFO Båtdispergering - Høy (sekundærkonfigurasjon) | C13: =Sys.Kapasitet!$C12*(Sys.Effektivitet!C13/100) -> 176.8997874 | E13: =Sys.Kapasitet!$C12*(Sys.Effektivitet!E13/100) -> 301.5307666
B14: NOFO Båtdispergering - Lav (primærkonfigurasjon) | C14: =Sys.Kapasitet!$C13*(Sys.Effektivitet!C14/100) -> 245.9635973 | E14: =Sys.Kapasitet!$C13*(Sys.Effektivitet!E14/100) -> 419.2520134
B15: NOFO Båtdispergering - Lav (sekundærkonfigurasjon) | C15: =Sys.Kapasitet!$C14*(Sys.Effektivitet!C15/100) -> 138.3545235 | E15: =Sys.Kapasitet!$C14*(Sys.Effektivitet!E15/100) -> 235.8292575
B16: NOFO Kyst HH CB4 – TF | C16: =Sys.Kapasitet!$C15*(Sys.Effektivitet!C16/100) -> 69.2755857 | E16: =Sys.Kapasitet!$C15*(Sys.Effektivitet!E16/100) -> 71.75187567
B17: NOFO Kyst HH CB2 – TF | C17: =Sys.Kapasitet!$C16*(Sys.Effektivitet!C17/100) -> 69.2755857 | E17: =Sys.Kapasitet!$C16*(Sys.Effektivitet!E17/100) -> 71.75187567
B18: NOFO Kyst SH – TF | C18: =Sys.Kapasitet!$C17*(Sys.Effektivitet!C18/100) -> 69.2755857 | E18: =Sys.Kapasitet!$C17*(Sys.Effektivitet!E18/100) -> 71.75187567
B19: OFO Kyst HH CB2 – TF (sekundærkonfigurasjon | C19: =Sys.Kapasitet!$C18*(Sys.Effektivitet!C19/100) -> 49.08 | E19: =Sys.Kapasitet!$C18*(Sys.Effektivitet!E19/100) -> 53.64

Sheet Sys.Effektivitet (hidden)
B4: Systemtype | C4: Vinter | D4: Vår | E4: Sommer | F4: Høst
C5: 5°C - 10 m/s vind | E5: 15°C - 5 m/s vind
B6: NOFO J m/overløp (primærkonfigurasjon) | C6: =Par.!C3 -> 45.3807375 | D6: =Par.!E3 -> 65.88204375 | E6: =Par.!D3 -> 77.35277 | F6: =Par.!F3 -> 59.3577925
B7: NOFO J m/overløp (sekundærkonfigurasjon) | C7: =(Par.!C3)*0.75 -> 34.03555312 | D7: =(Par.!E3)*0.75 -> 49.41153281 | E7: =(Par.!D3)*0.75 -> 58.0145775 | F7: =(Par.!F3)*0.75 -> 44.51834437
B8: NOFO J m/HiVisc (primærkonfigurasjon) | C8: =Par.!C3 -> 45.3807375 | D8: =Par.!E3 -> 65.88204375 | E8: =Par.!D3 -> 77.35277 | F8: =Par.!F3 -> 59.3577925
B9: NOFO J m/HiVisc (sekundærkonfigurasjon) | C9: =(Par.!C3)*0.75 -> 34.03555312 | D9: =D7 -> 49.41153281 | E9: =(Par.!D3)*0.75 -> 58.0145775 | F9: =F7 -> 44.51834437
B10: MOS Sweeper (primærkonfigurasjon) | C10: =Par.!C3 -> 45.3807375 | D10: =D6 -> 65.88204375 | E10: =Par.!D3 -> 77.35277 | F10: =F6 -> 59.3577925
B11: MOS Sweeper (sekundærkonfigurasjon) | C11: =(Par.!C3)*0.75 -> 34.03555312 | D11: =D9 -> 49.41153281 | E11: =(Par.!D3)*0.75 -> 58.0145775 | F11: =F9 -> 44.51834437
B12: NOFO Båtdispergering - Høy (primærkonfigurasjon) | C12: =Par.!C3 -> 45.3807375 | D12: =D10 -> 65.88204375 | E12: =Par.!D3 -> 77.35277 | F12: =F10 -> 59.3577925
B13: NOFO Båtdispergering - Høy (sekundærkonfigurasjon) | C13: =(Par.!C3)*0.75 -> 34.03555312 | D13: =D11 -> 49.41153281 | E13: =(Par.!D3)*0.75 -> 58.0145775 | F13: =F11 -> 44.51834437
B14: NOFO Båtdispergering - Lav (primærkonfigurasjon) | C14: =Par.!C3 -> 45.3807375 | D14: =D12 -> 65.88204375 | E14: =Par.!D3 -> 77.35277 | F14: =F12 -> 59.3577925
B15: NOFO Båtdispergering - Lav (sekundærkonfigurasjon) | C15: =(Par.!C3)*0.75 -> 34.03555312 | D15: =D13 -> 49.41153281 | E15: =(Par.!D3)*0.75 -> 58.0145775 | F15: =F13 -> 44.51834437
B16: NOFO Kyst HH CB4 – TF | C16: =Par.!C6 -> 86.59448212 | D16: =Par.!E6 -> 88.05461234 | E16: =Par.!D6 -> 89.68984459 | F16: =Par.!F6 -> 88.49945975
B17: NOFO Kyst HH CB2 – TF | C17: =Par.!C6 -> 86.59448212 | D17: =Par.!E6 -> 88.05461234 | E17: =Par.!D6 -> 89.68984459 | F17: =Par.!F6 -> 88.49945975
B18: NOFO Kyst SH – TF | C18: =Par.!C6 -> 86.59448212 | D18: =Par.!E6 -> 88.05461234 | E18: =Par.!D6 -> 89.68984459 | F18: =Par.!F6 -> 88.49945975 | G18: <-
B19: B4 | C19: =Par.!C7 -> 81.8 | D19: =Par.!E7 -> 82.2 | E19: =Par.!D7 -> 89.4 | F19: =Par.!F7 -> 84.4

Sheet Op.Lys.STOTTE (hidden)
C2: Tidsandel med fravær av operasjons beregnet for beredskapsregionenes midtpunkt i nord-syd retning
B3: Region | C3: Jan | D3: Feb | E3: Mar | F3: Apr | G3: Mai | H3: Jun | I3: Jul | J3: Aug | K3: Sep | L3: Okt | M3: Nov | N3: Des
B4: 1 | C4: 0.642 | D4: 0.558 | E4: 0.458 | F4: 0.34 | G4: 0.222 | H4: 0.132 | I4: 0.166 | J4: 0.278 | K4: 0.398 | L4: 0.51 | M4: 0.608 | N4: 0.66
B5: 2 | C5: 0.64 | D5: 0.556 | E5: 0.458 | F5: 0.342 | G5: 0.226 | H5: 0.138 | I5: 0.17 | J5: 0.282 | K5: 0.402 | L5: 0.508 | M5: 0.606 | N5: 0.66
B6: 3 | C6: 0.666 | D6: 0.566 | E6: 0.456 | F6: 0.318 | G6: 0.17 | H6: 0 | I6: 0.07 | J6: 0.244 | K6: 0.388 | L6: 0.512 | M6: 0.626 | N6: 0.688
B7: 4 | C7: 0.712 | D7: 0.588 | E7: 0.448 | F7: 0.274 | G7: 0 | H7: 0 | I7: 0 | J7: 0.164 | K7: 0.366 | L7: 0.52 | M7: 0.66 | N7: 0.748
B8: 5 | C8: 0.804 | D8: 0.62 | E8: 0.436 | F8: 0.184 | G8: 0 | H8: 0 | I8: 0 | J8: 0 | K8: 0.324 | L8: 0.53 | M8: 0.722 | N8: 0.876
D10: Gjennomsnitt andel dagslys
C11: Region | D11: Vinter | E11: Vår | F11: Sommer | G11: Høst | H11: År | J11: Data fra DNVs rapport til NOFO
C12: 1 | D12: =1-((N4+C4+D4)/3) -> 0.38 | E12: =1-((E4+F4+G4)/3) -> 0.66 | F12: =1-((H4+I4+J4)/3) -> 0.808 | G12: =1-((K4+L4+M4)/3) -> 0.4946666667 | H12: =1-(SUM(C4:N4)/12) -> 0.5856666667
C13: 2 | D13: =1-((N5+C5+D5)/3) -> 0.3813333333 | E13: =1-((E5+F5+G5)/3) -> 0.658 | F13: =1-((H5+I5+J5)/3) -> 0.8033333333 | G13: =1-((K5+L5+M5)/3) -> 0.4946666667 | H13: =1-(SUM(C5:N5)/12) -> 0.5843333333
C14: 3 | D14: 0.36 | E14: 0.6853333333 | F14: 0.8953333333 | G14: 0.4913333333 | H14: 0.608
C15: 4 | D15: 0.3173333333 | E15: 0.7593333333 | F15: 0.9453333333 | G15: 0.4846666667 | H15: 0.6266666667
C16: 5 | D16: 0.2333333333 | E16: 0.7933333333 | F16: 1 | G16: 0.4746666667 | H16: 0.6253333333

Sheet Eff.Red.STOTTE (hidden)
A2: 0 | B2: 0.8 | D2: =90-(9.8*A2) -> 90 | H2: 0,0-0,5 m Hs | I2: 0,5-1,0 m Hs | J2: 1,0-1,5 m Hs | K2: 1,5-2,0 m Hs | L2: 2,0-2,5 m Hs | M2: 2,5-3,0 m Hs | N2: 3,0-3,5 m Hs | O2: 3,5-4,0 m Hs
A3: 1 | B3: 0.79 | D3: =90-(9.8*A3) -> 80.2
A4: 2 | B4: 0.74 | D4: 70.4
A5: 3 | B5: 0.7 | D5: 60.6
A6: 4 | B6: 0.65 | D6: 50.8
A7: 5 | B7: 0.6 | D7: 41
A8: 6 | B8: 0.55 | D8: 31.2
A9: 7 | B9: 0.5 | D9: 21.4
B11: Hs
B12: 1 | C12: =87-(9.8*B12) -> 77.2
B13: 2 | C13: =87-(9.8*B13) -> 67.4
B14: 3 | C14: 57.6
B15: 4 | C15: 47.8
B16: 5 | C16: 38
C26: reduksjon | D26: reduksjon i % | F26: Kyst-system | K26: Fjord-system | N26: Gammelt nofo-system | P26: Kystvakt-system
A27: 0,0 - 0,5 | C27: =B2-B3 -> 0.01 | D27: =C27/B2 -> 0.0125 | F27: 0.72 | K27: 0.72 | N27: 0.8 | P27: 0.8
A28: 0,5 - 1 | C28: =B3-B4 -> 0.05 | D28: =C28/B3 -> 0.06329113924 | F28: =F27*(1-D27) -> 0.711 | K28: =K27*(1-D27) -> 0.711 | N28: =N27*(1-D27) -> 0.79 | P28: =P27*(1-D27) -> 0.79
A29: 1,0 - 1,5 | C29: 0.04 | D29: 0.05405405405 | F29: =F28*(1-D28) -> 0.666 | N29: =N28*(1-D28) -> 0.74 | P29: =P28*(1-D28) -> 0.74
A30: 1,5 - 2,0 | C30: 0.05 | D30: 0.07142857143 | N30: 0.7 | P30: 0.7
A31: 2,0 - 2,5 | C31: 0.05 | D31: 0.07692307692 | N31: 0.65 | P31: 0.65
A32: 2,5 - 3,0 | C32: 0.05 | D32: 0.08333333333 | N32: 0.6 | P32: 0.6
A33: 3,0 - 3,5 | C33: 0.05 | D33: 0.09090909091 | N33: =N32*(1-D32) -> 0.55
A34: 3,5 - 4,0 | C34: 0.5 | D34: 1 | N34: 0.5
H36: Midlet til bruk i kalkulatoren
I37: =(I27+I28)/2 -> 0
I38: =(I29+I30)/2 -> 0
I39: =(I31+I32)/2 -> 0
A40: 0.03 | B40: 0.8 | C40: 0,0 - 0,5 | D40: 0.9 | I40: =(I33+I34)/2 -> 0
A41: 0.07 | B41: 0.79 | C41: 0,5 - 1 | D41: =D40*(1-A40) -> 0.873
A42: 0.08 | B42: 0.74 | C42: 1,0 - 1,5 | D42: 0.81189
A43: 0.082 | B43: 0.7 | C43: 1,5 - 2,0 | D43: 0.7469388
A44: 0.09 | B44: 0.65 | C44: 2,0 - 2,5 | D44: 0.6856898184
A45: 0.1 | B45: 0.6 | C45: 2,5 - 3,0 | D45: 0.6239777347
A46: 0.11 | B46: 0.55 | C46: 3,0 - 3,5 | D46: 0.5615799613 | F46: Midlet "nytt" nofosystem
B47: 0.5 | C47: 3,5 - 4,0 | D47: 0.4998061655 | F47: =(D40+D41)/2 -> 0.8865
F48: =(D42+D43)/2 -> 0.7794144
F49: =(D44+D45)/2 -> 0.6548337766
F50: =(D46+D47)/2 -> 0.5306930634

Sheet Op.Eff.STOTTE.NOFO (hidden)
C3: Hs intervall (m) | E3: 0,0 - 1,0 | F3: 1,0 -2,0 | G3: 2,0 - 3,0 | H3: 3,0 - 4,0
C4: Opptakseffektivitet | E4: 0.8875 | F4: 0.8 | G4: 0.7 | H4: 0.6 | J4: Tall fra Ny_eff.xls
C7: Lokasjon | D7: Stasjon1
C9: Sesongvise frekvensfordelinger av signifikante bølgehøydeintervaller
C10: Hs (m) | E10: Vinter | H10: Vår | K10: Sommer | N10: Høst
C11: 0,0 - 1,0 | E11: 5.19 | H11: 0.28299714 | K11: 32.3733 | N11: 0.07773958991
C12: 1,0 - 2,0 | E12: 28.11 | H12: 0.5198524255 | K12: 51.1367 | N12: 0.3184665849
C13: 2,0 - 3,0 | E13: 28.4634 | H13: 0.1381228769 | K13: 11.8333 | N13: 0.2772629772
C14: 3,0 - 4,0 | E14: 18.1 | H14: 0.03813638361 | K14: 3.0667 | N14: 0.1692323607
C15: Ʃ | D15: =SUM(D11:D14) -> 0 | E15: =SUM(E11:E14) -> 79.8634 | F15: 0 | G15: 0 | H15: 0.979108826 | I15: 0 | J15: 0 | K15: 98.41 | L15: 0 | M15: 0 | N15: 0.8427015127 | O15: 0
C17: Vektede effektiviteter (forventet effektivitet)
C18: Hs (m) | E18: Vinter | H18: Vår | K18: Sommer | N18: Høst
C19: 0,0 - 1,0 | E19: =$E$4*E11 -> 4.606125 | H19: 0.2511599617 | K19: 28.73130375 | N19: 0.06899388605
C20: 1,0 - 2,0 | E20: =$F$4*E12 -> 22.488 | H20: 0.4158819404 | K20: 40.90936 | N20: 0.2547732679
C21: 2,0 - 3,0 | E21: =$G$4*E13 -> 19.92438 | H21: 0.09668601383 | K21: 8.28331 | N21: 0.1940840841
C22: 3,0 - 4,0 | E22: =$H$4*E14 -> 10.86 | H22: 0.02288183017 | K22: 1.84002 | N22: 0.1015394164
C23: Σ | E23: =SUM(E19:E22)/100 -> 0.57878505 | H23: =SUM(H19:H22) -> 0.7866097461 | K23: =SUM(K19:K22)/100 -> 0.7976399375 | N23: 0.6193906544
D25: Gjennomsnittlig opptakseffektivitet NOFO-system
D26: Vinter | E26: Vår | F26: Sommer | G26: Høst | H26: År
D27: =E23 -> 0.57878505 | E27: =(F23+G23+H23)/3 -> 0.2622032487 | F27: =K23 -> 0.7976399375 | G27: =(L23+M23+N23)/3 -> 0.2064635515 | H27: =SUM(D23:O23)/12 -> 0.2318687823
C31: Lokasjon | D31: Stasjon2_Cutoff1_nymetode_etterGMS.xls
C33: Sesongvise frekvensfordelinger av signifikante bølgehøydeintervaller
C34: Hs (m) | E34: Vinter | H34: Vår | K34: Sommer | N34: Høst
C35: 0,0 - 1,0 | D35: 0.008646218067 | E35: 0.01933846402 | F35: 0.03471107724 | G35: 0.06965544796 | H35: 0.170561037 | I35: 0.1894764178 | J35: 0.2461015523 | K35: 0.2255059572 | L35: 0.1029754815 | M35: 0.04234197155 | N35: 0.02422641144 | O35: 0.00643815833
C36: 1,0 - 2,0 | D36: 0.16318971 | E36: 0.1901651636 | F36: 0.2415723209 | G36: 0.4150203218 | H36: 0.5424181522 | I36: 0.5877574064 | J36: 0.5706712632 | K36: 0.5555207092 | L36: 0.4144750761 | M36: 0.3013499704 | N36: 0.2392117122 | O36: 0.1549365796
C37: 2,0 - 3,0 | D37: 0.2653680034 | E37: 0.2750540707 | F37: 0.2918493104 | G37: 0.2924005942 | H37: 0.2028043021 | I37: 0.1593189322 | J37: 0.1412332823 | K37: 0.1552366619 | L37: 0.2579043545 | M37: 0.2831641786 | N37: 0.2927913566 | O37: 0.2872274259
C38: 3,0 - 4,0 | D38: 0.2367964278 | E38: 0.2157117207 | F38: 0.2005212116 | G38: 0.1301114342 | H38: 0.05271521809 | I38: 0.04029293956 | J38: 0.03335092081 | K38: 0.04670890187 | L38: 0.1244475822 | M38: 0.1900222652 | N38: 0.2147433412 | O38: 0.2313454609
C39: Ʃ | D39: =SUM(D35:D38) -> 0.6740003593 | E39: =SUM(E35:E38) -> 0.700269419 | F39: =SUM(F35:F38) -> 0.7686539201 | G39: =SUM(G35:G38) -> 0.9071877982 | H39: =SUM(H35:H38) -> 0.9684987094 | I39: =SUM(I35:I38) -> 0.9768456959 | J39: =SUM(J35:J38) -> 0.9913570187 | K39: =SUM(K35:K38) -> 0.9829722301 | L39: =SUM(L35:L38) -> 0.8998024943 | M39: =SUM(M35:M38) -> 0.8168783858 | N39: =SUM(N35:N38) -> 0.7709728214 | O39: =SUM(O35:O38) -> 0.6799476246
C41: Vektede effektiviteter (forventet effektivitet)
C42: Hs (m) | D42: Jan | E42: Feb | F42: Mar | G42: Apr | H42: Mai | I42: Jun | J42: Jul | K42: Aug | L42: Sep | M42: Okt | N42: Nov | O42: Des
C43: 0,0 - 1,0 | D43: =$E$4*D35 -> 0.007673518534 | E43: 0.01716288681 | F43: 0.03080608105 | G43: 0.06181921006 | H43: 0.1513729204 | I43: 0.1681603208 | J43: 0.2184151277 | K43: 0.200136537 | L43: 0.09139073982 | M43: 0.03757849975 | N43: 0.02150094015 | O43: 0.005713865518
C44: 1,0 - 2,0 | D44: =$F$4*D36 -> 0.130551768 | E44: 0.1521321309 | F44: 0.1932578567 | G44: 0.3320162574 | H44: 0.4339345217 | I44: 0.4702059252 | J44: 0.4565370106 | K44: 0.4444165673 | L44: 0.3315800609 | M44: 0.2410799764 | N44: 0.1913693698 | O44: 0.1239492636
C45: 2,0 - 3,0 | D45: =$G$4*D37 -> 0.1857576024 | E45: 0.1925378495 | F45: 0.2042945173 | G45: 0.204680416 | H45: 0.1419630114 | I45: 0.1115232525 | J45: 0.09886329764 | K45: 0.1086656633 | L45: 0.1805330482 | M45: 0.198214925 | N45: 0.2049539496 | O45: 0.2010591981
C46: 3,0 - 4,0 | D46: =$H$4*D38 -> 0.1420778567 | E46: 0.1294270324 | F46: 0.120312727 | G46: 0.07806686055 | H46: 0.03162913086 | I46: 0.02417576374 | J46: 0.02001055248 | K46: 0.02802534112 | L46: 0.07466854933 | M46: 0.1140133591 | N46: 0.1288460047 | O46: 0.1388072765
C47: Σ | D47: =SUM(D43:D46) -> 0.4660607456 | E47: 0.4912598996 | F47: 0.548671182 | G47: 0.676582744 | H47: 0.7588995844 | I47: 0.7740652622 | J47: 0.7938259884 | K47: 0.7812441088 | L47: 0.6781723982 | M47: 0.5908867602 | N47: 0.5466702642 | O47: 0.4695296038
D49: Gjennomsnittlig opptakseffektivitet NOFO-system
D50: Vinter | E50: Vår | F50: Sommer | G50: Høst | H50: År
D51: =(O47+D47+E47)/3 -> 0.4756167497 | E51: =(F47+G47+H47)/3 -> 0.6613845035 | F51: =(I47+J47+K47)/3 -> 0.7830451198 | G51: =(L47+M47+N47)/3 -> 0.6052431409 | H51: =SUM(D47:O47)/12 -> 0.6313223785
C55: Lokasjon | D55: Stasjon3_Cutoff1_nymetode_etterGMS.xls
C57: Sesongvise frekvensfordelinger av signifikante bølgehøydeintervaller
C58: Hs (m) | E58: Vinter | H58: Vår | K58: Sommer | N58: Høst
C59: 0,0 - 1,0 | D59: 0.04273906437 | E59: 0.06324450825 | F59: 0.09761855167 | G59: 0.1901627455 | H59: 0.3449510089 | I59: 0.3672444553 | J59: 0.4577731705 | K59: 0.4304453578 | L59: 0.2447955462 | M59: 0.1405528416 | N59: 0.08464095098 | O59: 0.035978533
C60: 1,0 - 2,0 | D60: 0.3275326016 | E60: 0.3315787606 | F60: 0.4009710719 | G60: 0.493592594 | H60: 0.5137912284 | I60: 0.5240966825 | J60: 0.4592021076 | K60: 0.4701144789 | L60: 0.4560937186 | M60: 0.4175680644 | N60: 0.3944576288 | O60: 0.3190817775
C61: 2,0 - 3,0 | D61: 0.3049580518 | E61: 0.3018583705 | F61: 0.2704003617 | G61: 0.2144627152 | H61: 0.1068849593 | I61: 0.08010088066 | J61: 0.07194272404 | K61: 0.07962121162 | L61: 0.1880326671 | M61: 0.25421093 | N61: 0.2930860755 | O61: 0.3241329271
C62: 3,0 - 4,0 | D62: 0.1650148133 | E62: 0.1645886127 | F62: 0.1333818509 | G62: 0.06272442931 | H62: 0.02556541696 | I62: 0.02152398194 | J62: 0.00919994965 | K62: 0.0160365536 | L62: 0.07008743086 | M62: 0.1169719423 | N62: 0.1364840463 | O62: 0.1778651992
C63: Ʃ | D63: =SUM(D59:D62) -> 0.8402445311 | E63: =SUM(E59:E62) -> 0.861270252 | F63: =SUM(F59:F62) -> 0.9023718362 | G63: =SUM(G59:G62) -> 0.960942484 | H63: =SUM(H59:H62) -> 0.9911926136 | I63: =SUM(I59:I62) -> 0.9929660005 | J63: =SUM(J59:J62) -> 0.9981179518 | K63: =SUM(K59:K62) -> 0.9962176019 | L63: =SUM(L59:L62) -> 0.9590093628 | M63: =SUM(M59:M62) -> 0.9293037783 | N63: =SUM(N59:N62) -> 0.9086687016 | O63: =SUM(O59:O62) -> 0.8570584369
C65: Vektede effektiviteter (forventet effektivitet)
C66: Hs (m) | D66: Jan | E66: Feb | F66: Mar | G66: Apr | H66: Mai | I66: Jun | J66: Jul | K66: Aug | L66: Sep | M66: Okt | N66: Nov | O66: Des
C67: 0,0 - 1,0 | D67: =$E$4*D59 -> 0.03793091963 | E67: 0.05612950107 | F67: 0.08663646461 | G67: 0.1687694366 | H67: 0.3061440204 | I67: 0.3259294541 | J67: 0.4062736888 | K67: 0.382020255 | L67: 0.2172560473 | M67: 0.1247406469 | N67: 0.07511884399 | O67: 0.03193094803
C68: 1,0 - 2,0 | D68: =$F$4*D60 -> 0.2620260813 | E68: 0.2652630084 | F68: 0.3207768575 | G68: 0.3948740752 | H68: 0.4110329827 | I68: 0.419277346 | J68: 0.3673616861 | K68: 0.3760915831 | L68: 0.3648749749 | M68: 0.3340544515 | N68: 0.315566103 | O68: 0.255265422
C69: 2,0 - 3,0 | D69: =$G$4*D61 -> 0.2134706363 | E69: 0.2113008593 | F69: 0.1892802532 | G69: 0.1501239006 | H69: 0.07481947154 | I69: 0.05607061646 | J69: 0.05035990683 | K69: 0.05573484814 | L69: 0.131622867 | M69: 0.177947651 | N69: 0.2051602529 | O69: 0.226893049
C70: 3,0 - 4,0 | D70: =$H$4*D62 -> 0.09900888798 | E70: 0.09875316761 | F70: 0.08002911052 | G70: 0.03763465758 | H70: 0.01533925017 | I70: 0.01291438916 | J70: 0.00551996979 | K70: 0.00962193216 | L70: 0.04205245852 | M70: 0.07018316536 | N70: 0.08189042777 | O70: 0.1067191195
C71: Σ | D71: =SUM(D67:D70) -> 0.6124365252 | E71: 0.6314465365 | F71: 0.6767226859 | G71: 0.7514020701 | H71: 0.8073357248 | I71: 0.8141918058 | J71: 0.8295152515 | K71: 0.8234686185 | L71: 0.7558063476 | M71: 0.7069259148 | N71: 0.6777356277 | O71: 0.6208085386
D73: Gjennomsnittlig opptakseffektivitet NOFO-system
D74: Vinter | E74: Vår | F74: Sommer | G74: Høst | H74: År
D75: =(O71+D71+E71)/3 -> 0.6215638667 | E75: =(F71+G71+H71)/3 -> 0.7451534936 | F75: =(I71+J71+K71)/3 -> 0.8223918919 | G75: =(L71+M71+N71)/3 -> 0.7134892967 | H75: =SUM(D71:O71)/12 -> 0.7256496372
C79: Lokasjon | D79: Stasjon4_Cutoff1_nymetode_etterGMS.xls
C81: Sesongvise frekvensfordelinger av signifikante bølgehøydeintervaller
C82: Hs (m) | E82: Vinter | H82: Vår | K82: Sommer | N82: Høst
C83: 0,0 - 1,0 | D83: 0.003730715038 | E83: 0.008257019388 | F83: 0.02094559296 | G83: 0.05118017647 | H83: 0.152550196 | I83: 0.1684732725 | J83: 0.2284158935 | K83: 0.1943842421 | L83: 0.07301694131 | M83: 0.02433136643 | N83: 0.01433982771 | O83: 0.002264872443
C84: 1,0 - 2,0 | D84: 0.134066963 | E84: 0.1682743817 | F84: 0.2185984094 | G84: 0.3973185082 | H84: 0.5355476525 | I84: 0.5882446853 | J84: 0.5749609011 | K84: 0.5758253339 | L84: 0.4161691166 | M84: 0.2754699837 | N84: 0.2043307798 | O84: 0.1309231234
C85: 2,0 - 3,0 | D85: 0.2640231381 | E85: 0.270088106 | F85: 0.3026816947 | G85: 0.3111062856 | H85: 0.2207523054 | I85: 0.1788093838 | J85: 0.1528024749 | K85: 0.1636093681 | L85: 0.2745640702 | M85: 0.2943054377 | N85: 0.2960612473 | O85: 0.2816890755
C86: 3,0 - 4,0 | D86: 0.242979786 | E86: 0.2354265718 | F86: 0.2063830857 | G86: 0.141706382 | H86: 0.06178495934 | I86: 0.04265294009 | J86: 0.03541236441 | K86: 0.04765095695 | L86: 0.1322206792 | M86: 0.2088430094 | N86: 0.2334397821 | O86: 0.2410814759
C87: Ʃ | D87: =SUM(D83:D86) -> 0.6448006021 | E87: =SUM(E83:E86) -> 0.6820460788 | F87: =SUM(F83:F86) -> 0.7486087827 | G87: =SUM(G83:G86) -> 0.9013113523 | H87: =SUM(H83:H86) -> 0.9706351132 | I87: =SUM(I83:I86) -> 0.9781802817 | J87: =SUM(J83:J86) -> 0.9915916339 | K87: =SUM(K83:K86) -> 0.981469901 | L87: =SUM(L83:L86) -> 0.8959708073 | M87: =SUM(M83:M86) -> 0.8029497972 | N87: =SUM(N83:N86) -> 0.7481716369 | O87: =SUM(O83:O86) -> 0.6559585472
C89: Vektede effektiviteter (forventet effektivitet)
C90: Hs (m) | D90: Jan | E90: Feb | F90: Mar | G90: Apr | H90: Mai | I90: Jun | J90: Jul | K90: Aug | L90: Sep | M90: Okt | N90: Nov | O90: Des
C91: 0,0 - 1,0 | D91: =$E$4*D83 -> 0.003311009596 | E91: 0.007328104707 | F91: 0.01858921375 | G91: 0.04542240662 | H91: 0.1353882989 | I91: 0.1495200294 | J91: 0.2027191055 | K91: 0.1725160149 | L91: 0.06480253541 | M91: 0.02159408771 | N91: 0.01272659709 | O91: 0.002010074293
C92: 1,0 - 2,0 | D92: =$F$4*D84 -> 0.1072535704 | E92: 0.1346195053 | F92: 0.1748787275 | G92: 0.3178548065 | H92: 0.428438122 | I92: 0.4705957482 | J92: 0.4599687209 | K92: 0.4606602671 | L92: 0.3329352933 | M92: 0.2203759869 | N92: 0.1634646238 | O92: 0.1047384987
C93: 2,0 - 3,0 | D93: =$G$4*D85 -> 0.1848161966 | E93: 0.1890616742 | F93: 0.2118771863 | G93: 0.2177743999 | H93: 0.1545266138 | I93: 0.1251665687 | J93: 0.1069617324 | K93: 0.1145265576 | L93: 0.1921948491 | M93: 0.2060138064 | N93: 0.2072428731 | O93: 0.1971823529
C94: 3,0 - 4,0 | D94: =$H$4*D86 -> 0.1457878716 | E94: 0.1412559431 | F94: 0.1238298514 | G94: 0.0850238292 | H94: 0.03707097561 | I94: 0.02559176405 | J94: 0.02124741865 | K94: 0.02859057417 | L94: 0.07933240753 | M94: 0.1253058056 | N94: 0.1400638693 | O94: 0.1446488855
C95: Σ | D95: =SUM(D91:D94) -> 0.4411686482 | E95: 0.4722652273 | F95: 0.5291749789 | G95: 0.6660754423 | H95: 0.7554240103 | I95: 0.7708741103 | J95: 0.7908969775 | K95: 0.7762934138 | L95: 0.6692650854 | M95: 0.5732896867 | N95: 0.5234979633 | O95: 0.4485798114
D97: Gjennomsnittlig opptakseffektivitet NOFO-system
D98: Vinter | E98: Vår | F98: Sommer | G98: Høst | H98: År
D99: =(O95+D95+E95)/3 -> 0.4540045623 | E99: =(F95+G95+H95)/3 -> 0.6502248105 | F99: =(I95+J95+K95)/3 -> 0.7793548339 | G99: =(L95+M95+N95)/3 -> 0.5886842451 | H99: =SUM(D95:O95)/12 -> 0.618067113
C103: Lokasjon | D103: Stasjon5_Cutoff1_nymetode_etterGMS.xls
C105: Sesongvise frekvensfordelinger av signifikante bølgehøydeintervaller
C106: Hs (m) | E106: Vinter | H106: Vår | K106: Sommer | N106: Høst
C107: 0,0 - 1,0 | D107: 0.02627007195 | E107: 0.04449432107 | F107: 0.07241428264 | G107: 0.1651926638 | H107: 0.3282140224 | I107: 0.3392050297 | J107: 0.4016270309 | K107: 0.3960433301 | L107: 0.2073977797 | M107: 0.1019048358 | N107: 0.06348727767 | O107: 0.03410698823
C108: 1,0 - 2,0 | D108: 0.2689990888 | E108: 0.2742756685 | F108: 0.3412262134 | G108: 0.4631180731 | H108: 0.4964365553 | I108: 0.5150021372 | J108: 0.4893245269 | K108: 0.4646436736 | L108: 0.432854367 | M108: 0.3852637535 | N108: 0.3485696524 | O108: 0.2575480356
C109: 2,0 - 3,0 | D109: 0.299576358 | E109: 0.2891644725 | F109: 0.2866338051 | G109: 0.2323062104 | H109: 0.1256210412 | I109: 0.108495152 | J109: 0.08953433973 | K109: 0.1043454892 | L109: 0.2086602035 | M109: 0.2678155944 | N109: 0.2871409911 | O109: 0.3071156502
C110: 3,0 - 4,0 | D110: 0.1855227642 | E110: 0.1894751439 | F110: 0.1583948955 | G110: 0.0880092262 | H110: 0.0337457422 | I110: 0.02510195968 | J110: 0.01633919203 | K110: 0.02663610641 | L110: 0.09100577268 | M110: 0.1361426511 | N110: 0.1645353996 | O110: 0.194698371
C111: Ʃ | D111: =SUM(D107:D110) -> 0.780368283 | E111: =SUM(E107:E110) -> 0.7974096059 | F111: =SUM(F107:F110) -> 0.8586691966 | G111: =SUM(G107:G110) -> 0.9486261735 | H111: =SUM(H107:H110) -> 0.9840173611 | I111: =SUM(I107:I110) -> 0.9878042785 | J111: =SUM(J107:J110) -> 0.9968250896 | K111: =SUM(K107:K110) -> 0.9916685994 | L111: =SUM(L107:L110) -> 0.939918123 | M111: =SUM(M107:M110) -> 0.8911268347 | N111: =SUM(N107:N110) -> 0.8637333208 | O111: =SUM(O107:O110) -> 0.7934690451
C113: Vektede effektiviteter (forventet effektivitet)
C114: Hs (m) | D114: Jan | E114: Feb | F114: Mar | G114: Apr | H114: Mai | I114: Jun | J114: Jul | K114: Aug | L114: Sep | M114: Okt | N114: Nov | O114: Des
C115: 0,0 - 1,0 | D115: =$E$4*D107 -> 0.02331468886 | E115: 0.03948870995 | F115: 0.06426767584 | G115: 0.1466084891 | H115: 0.2912899449 | I115: 0.3010444639 | J115: 0.3564439899 | K115: 0.3514884555 | L115: 0.1840655295 | M115: 0.09044054176 | N115: 0.05634495894 | O115: 0.03026995206
C116: 1,0 - 2,0 | D116: =$F$4*D108 -> 0.2151992711 | E116: 0.2194205348 | F116: 0.2729809707 | G116: 0.3704944585 | H116: 0.3971492442 | I116: 0.4120017097 | J116: 0.3914596215 | K116: 0.3717149389 | L116: 0.3462834936 | M116: 0.3082110028 | N116: 0.2788557219 | O116: 0.2060384285
C117: 2,0 - 3,0 | D117: =$G$4*D109 -> 0.2097034506 | E117: 0.2024151307 | F117: 0.2006436636 | G117: 0.1626143473 | H117: 0.08793472886 | I117: 0.07594660638 | J117: 0.06267403781 | K117: 0.07304184246 | L117: 0.1460621424 | M117: 0.1874709161 | N117: 0.2009986938 | O117: 0.2149809551
C118: 3,0 - 4,0 | D118: =$H$4*D110 -> 0.1113136585 | E118: 0.1136850863 | F118: 0.09503693728 | G118: 0.05280553572 | H118: 0.02024744532 | I118: 0.01506117581 | J118: 0.009803515219 | K118: 0.01598166385 | L118: 0.05460346361 | M118: 0.08168559064 | N118: 0.09872123977 | O118: 0.1168190226
C119: Σ | D119: =SUM(D115:D118) -> 0.559531069 | E119: 0.5750094618 | F119: 0.6329292474 | G119: 0.7325228306 | H119: 0.7966213632 | I119: 0.8040539558 | J119: 0.8203811645 | K119: 0.8122269007 | L119: 0.7310146292 | M119: 0.6678080513 | N119: 0.6349206144 | O119: 0.5681083583
D121: Gjennomsnittlig opptakseffektivitet NOFO-system
D122: Vinter | E122: Vår | F122: Sommer | G122: Høst | H122: År
D123: =(O119+D119+E119)/3 -> 0.5675496297 | E123: =(F119+G119+H119)/3 -> 0.7206911471 | F123: =(I119+J119+K119)/3 -> 0.8122206737 | G123: =(L119+M119+N119)/3 -> 0.6779144316 | H123: =SUM(D119:O119)/12 -> 0.6945939705
C127: Lokasjon | D127: Stasjon6_Cutoff1_nymetode_etterGMS.xls
C129: Sesongvise frekvensfordelinger av signifikante bølgehøydeintervaller
C130: Hs (m) | E130: Vinter | H130: Vår | K130: Sommer | N130: Høst
C131: 0,0 - 1,0 | D131: 0.09239988456 | E131: 0.1117008905 | F131: 0.1712420583 | G131: 0.3294933812 | H131: 0.5303777738 | I131: 0.5676064568 | J131: 0.5938349959 | K131: 0.5706935028 | L131: 0.337092078 | M131: 0.2291880457 | N131: 0.1703543389 | O131: 0.1127008525
C132: 1,0 - 2,0 | D132: 0.3525075658 | E132: 0.3469905504 | F132: 0.3830746631 | G132: 0.4321090653 | H132: 0.3686387271 | I132: 0.3479968147 | J132: 0.3438042557 | K132: 0.3458334673 | L132: 0.404285396 | M132: 0.3953291098 | N132: 0.3892262825 | O132: 0.3365063023
C133: 2,0 - 3,0 | D133: 0.2729651939 | E133: 0.272451511 | F133: 0.2453032103 | G133: 0.1593747723 | H133: 0.07576354938 | I133: 0.06414893429 | J133: 0.05493011758 | K133: 0.06742882053 | L133: 0.1658773148 | M133: 0.2177529396 | N133: 0.2515023999 | O133: 0.282912246
C134: 3,0 - 4,0 | D134: 0.1449761 | E134: 0.1453682589 | F134: 0.1233222086 | G134: 0.05277692746 | H134: 0.01808183241 | I134: 0.01541417587 | J134: 0.006305567993 | K134: 0.01173055069 | L134: 0.06032267389 | M134: 0.09477534162 | N134: 0.1106681128 | O134: 0.1473626809
C135: Ʃ | D135: =SUM(D131:D134) -> 0.8628487442 | E135: =SUM(E131:E134) -> 0.8765112108 | F135: =SUM(F131:F134) -> 0.9229421404 | G135: =SUM(G131:G134) -> 0.9737541462 | H135: =SUM(H131:H134) -> 0.9928618827 | I135: =SUM(I131:I134) -> 0.9951663817 | J135: =SUM(J131:J134) -> 0.9988749372 | K135: =SUM(K131:K134) -> 0.9956863413 | L135: =SUM(L131:L134) -> 0.9675774627 | M135: =SUM(M131:M134) -> 0.9370454368 | N135: =SUM(N131:N134) -> 0.9217511341 | O135: =SUM(O131:O134) -> 0.8794820817
C137: Vektede effektiviteter (forventet effektivitet)
C138: Hs (m) | D138: Jan | E138: Feb | F138: Mar | G138: Apr | H138: Mai | I138: Jun | J138: Jul | K138: Aug | L138: Sep | M138: Okt | N138: Nov | O138: Des
C139: 0,0 - 1,0 | D139: =$E$4*D131 -> 0.08200489755 | E139: 0.09913454034 | F139: 0.1519773268 | G139: 0.2924253758 | H139: 0.4707102742 | I139: 0.5037507304 | J139: 0.5270285589 | K139: 0.5064904837 | L139: 0.2991692192 | M139: 0.2034043905 | N139: 0.1511894758 | O139: 0.1000220066
C140: 1,0 - 2,0 | D140: =$F$4*D132 -> 0.2820060527 | E140: 0.2775924403 | F140: 0.3064597305 | G140: 0.3456872522 | H140: 0.2949109817 | I140: 0.2783974518 | J140: 0.2750434046 | K140: 0.2766667738 | L140: 0.3234283168 | M140: 0.3162632879 | N140: 0.311381026 | O140: 0.2692050419
C141: 2,0 - 3,0 | D141: =$G$4*D133 -> 0.1910756357 | E141: 0.1907160577 | F141: 0.1717122472 | G141: 0.1115623406 | H141: 0.05303448457 | I141: 0.044904254 | J141: 0.0384510823 | K141: 0.04720017437 | L141: 0.1161141204 | M141: 0.1524270577 | N141: 0.1760516799 | O141: 0.1980385722
C142: 3,0 - 4,0 | D142: =$H$4*D134 -> 0.08698565997 | E142: 0.08722095535 | F142: 0.07399332517 | G142: 0.03166615648 | H142: 0.01084909945 | I142: 0.009248505519 | J142: 0.003783340796 | K142: 0.007038330412 | L142: 0.03619360434 | M142: 0.05686520497 | N142: 0.06640086765 | O142: 0.08841760854
C143: Σ | D143: =SUM(D139:D142) -> 0.6420722459 | E143: 0.6546639937 | F143: 0.7041426297 | G143: 0.7813411251 | H143: 0.8295048399 | I143: 0.8363009417 | J143: 0.8443063865 | K143: 0.8373957623 | L143: 0.7749052607 | M143: 0.7289599411 | N143: 0.7050230494 | O143: 0.6556832292
D145: Gjennomsnittlig opptakseffektivitet NOFO-system
D146: Vinter | E146: Vår | F146: Sommer | G146: Høst | H146: År
D147: =(O143+D143+E143)/3 -> 0.6508064896 | E147: =(F143+G143+H143)/3 -> 0.7716628649 | F147: =(I143+J143+K143)/3 -> 0.8393343635 | G147: =(L143+M143+N143)/3 -> 0.7362960837 | H147: =SUM(D143:O143)/12 -> 0.7495249504
C151: Lokasjon | D151: Stasjon7_Cutoff1_nymetode_etterGMS.xls
C153: Sesongvise frekvensfordelinger av signifikante bølgehøydeintervaller
C154: Hs (m) | E154: Vinter | H154: Vår | K154: Sommer | N154: Høst
C155: 0,0 - 1,0 | D155: 0.001096413455 | E155: 0.005481175386 | F155: 0.01533527564 | G155: 0.04810054337 | H155: 0.1472989534 | I155: 0.1587705291 | J155: 0.2180898044 | K155: 0.1889564374 | L155: 0.06925653829 | M155: 0.01986195375 | N155: 0.00773628612 | O155: 0.002395122088
C156: 1,0 - 2,0 | D156: 0.1253640836 | E156: 0.1574185445 | F156: 0.2131773737 | G156: 0.3942151219 | H156: 0.5415563272 | I156: 0.5984202411 | J156: 0.5943577161 | K156: 0.5840632693 | L156: 0.4145041942 | M156: 0.2665417669 | N156: 0.1977998262 | O156: 0.1317957464
C157: 2,0 - 3,0 | D157: 0.276798295 | E157: 0.2750379541 | F157: 0.3117820266 | G157: 0.3198430766 | H157: 0.2220428909 | I157: 0.1812617869 | J157: 0.1460023689 | K157: 0.1673245191 | L157: 0.290429777 | M157: 0.3126189798 | N157: 0.3042605408 | O157: 0.2810909154
C158: 3,0 - 4,0 | D158: 0.241075201 | E158: 0.2420323253 | F158: 0.2183950075 | G158: 0.1419895419 | H158: 0.06238086367 | I158: 0.04350693237 | J158: 0.03496292075 | K158: 0.04378760735 | L158: 0.1304639709 | M158: 0.2104141782 | N158: 0.2413567928 | O158: 0.2499681268
C159: Ʃ | D159: =SUM(D155:D158) -> 0.6443339931 | E159: =SUM(E155:E158) -> 0.6799699993 | F159: =SUM(F155:F158) -> 0.7586896834 | G159: =SUM(G155:G158) -> 0.9041482837 | H159: =SUM(H155:H158) -> 0.9732790352 | I159: =SUM(I155:I158) -> 0.9819594894 | J159: =SUM(J155:J158) -> 0.9934128101 | K159: =SUM(K155:K158) -> 0.9841318331 | L159: =SUM(L155:L158) -> 0.9046544803 | M159: =SUM(M155:M158) -> 0.8094368786 | N159: =SUM(N155:N158) -> 0.7511534459 | O159: =SUM(O155:O158) -> 0.6652499107
C161: Vektede effektiviteter (forventet effektivitet)
C162: Hs (m) | D162: Jan | E162: Feb | F162: Mar | G162: Apr | H162: Mai | I162: Jun | J162: Jul | K162: Aug | L162: Sep | M162: Okt | N162: Nov | O162: Des
C163: 0,0 - 1,0 | D163: =$E$4*D155 -> 0.0009730669411 | E163: 0.004864543155 | F163: 0.01361005713 | G163: 0.04268923224 | H163: 0.1307278212 | I163: 0.1409088445 | J163: 0.1935547014 | K163: 0.1676988382 | L163: 0.06146517774 | M163: 0.01762748396 | N163: 0.006865953932 | O163: 0.002125670853
C164: 1,0 - 2,0 | D164: =$F$4*D156 -> 0.1002912669 | E164: 0.1259348356 | F164: 0.1705418989 | G164: 0.3153720975 | H164: 0.4332450618 | I164: 0.4787361929 | J164: 0.4754861729 | K164: 0.4672506154 | L164: 0.3316033554 | M164: 0.2132334135 | N164: 0.158239861 | O164: 0.1054365971
C165: 2,0 - 3,0 | D165: =$G$4*D157 -> 0.1937588065 | E165: 0.1925265679 | F165: 0.2182474186 | G165: 0.2238901536 | H165: 0.1554300236 | I165: 0.1268832508 | J165: 0.1022016582 | K165: 0.1171271634 | L165: 0.2033008439 | M165: 0.2188332859 | N165: 0.2129823786 | O165: 0.1967636408
C166: 3,0 - 4,0 | D166: =$H$4*D158 -> 0.1446451206 | E166: 0.1452193952 | F166: 0.1310370045 | G166: 0.08519372516 | H166: 0.0374285182 | I166: 0.02610415942 | J166: 0.02097775245 | K166: 0.02627256441 | L166: 0.07827838254 | M166: 0.1262485069 | N166: 0.1448140757 | O166: 0.1499808761
C167: Σ | D167: =SUM(D163:D166) -> 0.4396682609 | E167: 0.4685453418 | F167: 0.5334363792 | G167: 0.6671452085 | H167: 0.7568314248 | I167: 0.7726324477 | J167: 0.7922202849 | K167: 0.7783491814 | L167: 0.6746477595 | M167: 0.5759426902 | N167: 0.5229022691 | O167: 0.4543067848
D169: Gjennomsnittlig opptakseffektivitet NOFO-system
D170: Vinter | E170: Vår | F170: Sommer | G170: Høst | H170: År
D171: =(O167+D167+E167)/3 -> 0.4541734625 | E171: =(F167+G167+H167)/3 -> 0.6524710042 | F171: =(I167+J167+K167)/3 -> 0.7810673047 | G171: =(L167+M167+N167)/3 -> 0.5911642396 | H171: =SUM(D167:O167)/12 -> 0.6197190027
C175: Lokasjon | D175: Stasjon8_Cutoff1_nymetode_etterGMS.xls
C177: Sesongvise frekvensfordelinger av signifikante bølgehøydeintervaller
C178: Hs (m) | E178: Vinter | H178: Vår | K178: Sommer | N178: Høst
C179: 0,0 - 1,0 | D179: 0.04601958312 | E179: 0.06173727716 | F179: 0.1031334028 | G179: 0.2249674455 | H179: 0.4270608926 | I179: 0.4572121153 | J179: 0.5049538854 | K179: 0.4854894902 | L179: 0.2530950121 | M179: 0.1403347966 | N179: 0.08905155802 | O179: 0.05848428582
C180: 1,0 - 2,0 | D180: 0.2825886128 | E180: 0.278640045 | F180: 0.340546637 | G180: 0.4511831419 | H180: 0.4219512486 | I180: 0.4174337059 | J180: 0.3999336056 | K180: 0.3919906362 | L180: 0.4135199111 | M180: 0.3758670565 | N180: 0.3546495168 | O180: 0.275232208
C181: 2,0 - 3,0 | D181: 0.2720094142 | E181: 0.2879975046 | F181: 0.2662546498 | G181: 0.1950323503 | H181: 0.1074408212 | I181: 0.09372904542 | J181: 0.07832102535 | K181: 0.09109159948 | L181: 0.1965034976 | M181: 0.2484593163 | N181: 0.2657176798 | O181: 0.2779206365
C182: 3,0 - 4,0 | D182: 0.1874216621 | E182: 0.1717164483 | F182: 0.1570121467 | G182: 0.07966090324 | H182: 0.03150348409 | I182: 0.02329370517 | J182: 0.01415091771 | K182: 0.02386270248 | L182: 0.08262522299 | M182: 0.1331513336 | N182: 0.1533039646 | O182: 0.191997285
C183: Ʃ | D183: =SUM(D179:D182) -> 0.7880392722 | E183: =SUM(E179:E182) -> 0.8000912751 | F183: =SUM(F179:F182) -> 0.8669468364 | G183: =SUM(G179:G182) -> 0.9508438409 | H183: =SUM(H179:H182) -> 0.9879564465 | I183: =SUM(I179:I182) -> 0.9916685718 | J183: =SUM(J179:J182) -> 0.9973594341 | K183: =SUM(K179:K182) -> 0.9924344284 | L183: =SUM(L179:L182) -> 0.9457436437 | M183: =SUM(M179:M182) -> 0.897812503 | N183: =SUM(N179:N182) -> 0.8627227192 | O183: =SUM(O179:O182) -> 0.8036344153
C185: Vektede effektiviteter (forventet effektivitet)
C186: Hs (m) | D186: Jan | E186: Feb | F186: Mar | G186: Apr | H186: Mai | I186: Jun | J186: Jul | K186: Aug | L186: Sep | M186: Okt | N186: Nov | O186: Des
C187: 0,0 - 1,0 | D187: =$E$4*D179 -> 0.04084238002 | E187: 0.05479183348 | F187: 0.09153089498 | G187: 0.1996586079 | H187: 0.3790165422 | I187: 0.4057757523 | J187: 0.4481465733 | K187: 0.4308719226 | L187: 0.2246218232 | M187: 0.124547132 | N187: 0.07903325774 | O187: 0.05190480366
C188: 1,0 - 2,0 | D188: =$F$4*D180 -> 0.2260708902 | E188: 0.222912036 | F188: 0.2724373096 | G188: 0.3609465135 | H188: 0.3375609989 | I188: 0.3339469647 | J188: 0.3199468845 | K188: 0.313592509 | L188: 0.3308159289 | M188: 0.3006936452 | N188: 0.2837196134 | O188: 0.2201857664
C189: 2,0 - 3,0 | D189: =$G$4*D181 -> 0.19040659 | E189: 0.2015982532 | F189: 0.1863782549 | G189: 0.1365226452 | H189: 0.07520857486 | I189: 0.0656103318 | J189: 0.05482471775 | K189: 0.06376411964 | L189: 0.1375524483 | M189: 0.1739215214 | N189: 0.1860023759 | O189: 0.1945444455
C190: 3,0 - 4,0 | D190: =$H$4*D182 -> 0.1124529973 | E190: 0.103029869 | F190: 0.09420728803 | G190: 0.04779654194 | H190: 0.01890209045 | I190: 0.0139762231 | J190: 0.008490550627 | K190: 0.01431762149 | L190: 0.0495751338 | M190: 0.07989080014 | N190: 0.09198237875 | O190: 0.115198371
C191: Σ | D191: =SUM(D187:D190) -> 0.5697728575 | E191: 0.5823319917 | F191: 0.6445537475 | G191: 0.7449243086 | H191: 0.8106882064 | I191: 0.8193092719 | J191: 0.8314087262 | K191: 0.8225461727 | L191: 0.7425653341 | M191: 0.6790530987 | N191: 0.6407376258 | O191: 0.5818333866
D193: Gjennomsnittlig opptakseffektivitet NOFO-system
D194: Vinter | E194: Vår | F194: Sommer | G194: Høst | H194: År
D195: =(O191+D191+E191)/3 -> 0.5779794119 | E195: =(F191+G191+H191)/3 -> 0.7333887541 | F195: =(I191+J191+K191)/3 -> 0.8244213903 | G195: =(L191+M191+N191)/3 -> 0.6874520196 | H195: =SUM(D191:O191)/12 -> 0.705810394
C199: Lokasjon | D199: Stasjon9_Cutoff1_nymetode_etterGMS.xls
C201: Sesongvise frekvensfordelinger av signifikante bølgehøydeintervaller
C202: Hs (m) | E202: Vinter | H202: Vår | K202: Sommer | N202: Høst
C203: 0,0 - 1,0 | D203: 0.0865184001 | E203: 0.09765879548 | F203: 0.1531890622 | G203: 0.3122753985 | H203: 0.5218986389 | I203: 0.571181689 | J203: 0.6125329263 | K203: 0.5666680725 | L203: 0.3274178009 | M203: 0.2001790312 | N203: 0.1521099719 | O203: 0.1068840073
C204: 1,0 - 2,0 | D204: 0.3038794948 | E204: 0.3231490631 | F204: 0.3635863782 | G204: 0.4274632973 | H204: 0.3607205898 | I204: 0.3317582897 | J204: 0.3143974245 | K204: 0.334072423 | L204: 0.4057271724 | M204: 0.3778128096 | N204: 0.3661578833 | O204: 0.317258746
C205: 2,0 - 3,0 | D205: 0.2772067899 | E205: 0.2694804182 | F205: 0.2507145337 | G205: 0.1681084133 | H205: 0.08724707112 | I205: 0.0708446203 | J205: 0.0586176869 | K205: 0.07676406581 | L205: 0.1670010128 | M205: 0.2302387773 | N205: 0.2452122459 | O205: 0.2643496393
C206: 3,0 - 4,0 | D206: 0.1598176936 | E206: 0.1421471003 | F206: 0.1299652895 | G206: 0.06104720822 | H206: 0.0217691498 | I206: 0.02076911626 | J206: 0.01248535536 | K206: 0.01713071199 | L206: 0.06054800061 | M206: 0.1093840913 | N206: 0.1269481484 | O206: 0.149234173
C207: Ʃ | D207: =SUM(D203:D206) -> 0.8274223784 | E207: =SUM(E203:E206) -> 0.8324353771 | F207: =SUM(F203:F206) -> 0.8974552636 | G207: =SUM(G203:G206) -> 0.9688943174 | H207: =SUM(H203:H206) -> 0.9916354497 | I207: =SUM(I203:I206) -> 0.9945537152 | J207: =SUM(J203:J206) -> 0.998033393 | K207: =SUM(K203:K206) -> 0.9946352733 | L207: =SUM(L203:L206) -> 0.9606939868 | M207: =SUM(M203:M206) -> 0.9176147093 | N207: =SUM(N203:N206) -> 0.8904282494 | O207: =SUM(O203:O206) -> 0.8377265657
C209: Vektede effektiviteter (forventet effektivitet)
C210: Hs (m) | D210: Jan | E210: Feb | F210: Mar | G210: Apr | H210: Mai | I210: Jun | J210: Jul | K210: Aug | L210: Sep | M210: Okt | N210: Nov | O210: Des
C211: 0,0 - 1,0 | D211: =$E$4*D203 -> 0.07678508009 | E211: 0.08667218099 | F211: 0.1359552927 | G211: 0.2771444162 | H211: 0.463185042 | I211: 0.506923749 | J211: 0.5436229721 | K211: 0.5029179144 | L211: 0.2905832983 | M211: 0.1776588902 | N211: 0.1349976 | O211: 0.09485955652
C212: 1,0 - 2,0 | D212: =$F$4*D204 -> 0.2431035958 | E212: 0.2585192505 | F212: 0.2908691026 | G212: 0.3419706379 | H212: 0.2885764719 | I212: 0.2654066317 | J212: 0.2515179396 | K212: 0.2672579384 | L212: 0.3245817379 | M212: 0.3022502477 | N212: 0.2929263066 | O212: 0.2538069968
C213: 2,0 - 3,0 | D213: =$G$4*D205 -> 0.1940447529 | E213: 0.1886362927 | F213: 0.1755001736 | G213: 0.1176758893 | H213: 0.06107294979 | I213: 0.04959123421 | J213: 0.04103238083 | K213: 0.05373484607 | L213: 0.116900709 | M213: 0.1611671441 | N213: 0.1716485721 | O213: 0.1850447475
C214: 3,0 - 4,0 | D214: =$H$4*D206 -> 0.09589061617 | E214: 0.0852882602 | F214: 0.07797917369 | G214: 0.03662832493 | H214: 0.01306148988 | I214: 0.01246146975 | J214: 0.007491213215 | K214: 0.01027842719 | L214: 0.03632880037 | M214: 0.06563045476 | N214: 0.07616888902 | O214: 0.08954050382
C215: Σ | D215: =SUM(D211:D214) -> 0.609824045 | E215: 0.6191159844 | F215: 0.6803037426 | G215: 0.7734192683 | H215: 0.8258959536 | I215: 0.8343830847 | J215: 0.8436645057 | K215: 0.834189126 | L215: 0.7683945456 | M215: 0.7067067367 | N215: 0.6757413678 | O215: 0.6232518047
D217: Gjennomsnittlig opptakseffektivitet NOFO-system
D218: Vinter | E218: Vår | F218: Sommer | G218: Høst | H218: År
D219: =(O215+D215+E215)/3 -> 0.617397278 | E219: =(F215+G215+H215)/3 -> 0.7598729881 | F219: =(I215+J215+K215)/3 -> 0.8374122388 | G219: =(L215+M215+N215)/3 -> 0.71694755 | H219: =SUM(D215:O215)/12 -> 0.7329075137
C223: Lokasjon | D223: Stasjon10_Cutoff1_nymetode_etterGMS.xls
C225: Sesongvise frekvensfordelinger av signifikante bølgehøydeintervaller
C226: Hs (m) | E226: Vinter | H226: Vår | K226: Sommer | N226: Høst
C227: 0,0 - 1,0 | D227: 0.2027733567 | E227: 0.2129914473 | F227: 0.2958194501 | G227: 0.499955728 | H227: 0.6897156269 | I227: 0.7233468055 | J227: 0.73818362 | K227: 0.7031276583 | L227: 0.4948496951 | M227: 0.3734383571 | N227: 0.3051343475 | O227: 0.2351433932
C228: 1,0 - 2,0 | D228: 0.3439539226 | E228: 0.3615743892 | F228: 0.3626565671 | G228: 0.3346644356 | H228: 0.2359884498 | I228: 0.2064701021 | J228: 0.2116011214 | K228: 0.2292304116 | L228: 0.3228338937 | M228: 0.32710838 | N228: 0.3620362491 | O228: 0.3462874054
C229: 2,0 - 3,0 | D229: 0.2399719071 | E229: 0.211123278 | F229: 0.2000805992 | G229: 0.1078733917 | H229: 0.05388602608 | I229: 0.05287933311 | J229: 0.04100949882 | K229: 0.0525029452 | L229: 0.1177797106 | M229: 0.1695125394 | N229: 0.1874137139 | O229: 0.2173566694
C230: 3,0 - 4,0 | D230: 0.1126296849 | E230: 0.1134678289 | F230: 0.08511428628 | G230: 0.04172899196 | H230: 0.01527836239 | I230: 0.01518990856 | J230: 0.008525381035 | K230: 0.01240587436 | L230: 0.0408202885 | M230: 0.07519852949 | N230: 0.08794018479 | O230: 0.1051867406
C231: Ʃ | D231: =SUM(D227:D230) -> 0.8993288712 | E231: =SUM(E227:E230) -> 0.8991569434 | F231: =SUM(F227:F230) -> 0.9436709027 | G231: =SUM(G227:G230) -> 0.9842225471 | H231: =SUM(H227:H230) -> 0.9948684652 | I231: =SUM(I227:I230) -> 0.9978861493 | J231: =SUM(J227:J230) -> 0.9993196213 | K231: =SUM(K227:K230) -> 0.9972668895 | L231: =SUM(L227:L230) -> 0.976283588 | M231: =SUM(M227:M230) -> 0.9452578061 | N231: =SUM(N227:N230) -> 0.9425244953 | O231: =SUM(O227:O230) -> 0.9039742086
C233: Vektede effektiviteter (forventet effektivitet)
C234: Hs (m) | D234: Jan | E234: Feb | F234: Mar | G234: Apr | H234: Mai | I234: Jun | J234: Jul | K234: Aug | L234: Sep | M234: Okt | N234: Nov | O234: Des
C235: 0,0 - 1,0 | D235: =$E$4*D227 -> 0.179961354 | E235: 0.1890299095 | F235: 0.262539762 | G235: 0.4437107086 | H235: 0.6121226189 | I235: 0.6419702899 | J235: 0.6551379628 | K235: 0.6240257968 | L235: 0.4391791044 | M235: 0.3314265419 | N235: 0.2708067334 | O235: 0.2086897615
C236: 1,0 - 2,0 | D236: =$F$4*D228 -> 0.2751631381 | E236: 0.2892595114 | F236: 0.2901252537 | G236: 0.2677315485 | H236: 0.1887907598 | I236: 0.1651760817 | J236: 0.1692808971 | K236: 0.1833843293 | L236: 0.258267115 | M236: 0.261686704 | N236: 0.2896289993 | O236: 0.2770299243
C237: 2,0 - 3,0 | D237: =$G$4*D229 -> 0.167980335 | E237: 0.1477862946 | F237: 0.1400564194 | G237: 0.07551137416 | H237: 0.03772021825 | I237: 0.03701553318 | J237: 0.02870664917 | K237: 0.03675206164 | L237: 0.08244579742 | M237: 0.1186587776 | N237: 0.1311895997 | O237: 0.1521496686
C238: 3,0 - 4,0 | D238: =$H$4*D230 -> 0.06757781093 | E238: 0.06808069733 | F238: 0.05106857177 | G238: 0.02503739517 | H238: 0.009167017436 | I238: 0.009113945137 | J238: 0.005115228621 | K238: 0.007443524616 | L238: 0.0244921731 | M238: 0.04511911769 | N238: 0.05276411088 | O238: 0.06311204437
C239: Σ | D239: =SUM(D235:D238) -> 0.690682638 | E239: 0.6941564128 | F239: 0.7437900069 | G239: 0.8119910264 | H239: 0.8478006144 | I239: 0.8532758499 | J239: 0.8582407377 | K239: 0.8516057123 | L239: 0.8043841899 | M239: 0.7568911412 | N239: 0.7443894433 | O239: 0.7009813987
D241: Gjennomsnittlig opptakseffektivitet NOFO-system
D242: Vinter | E242: Vår | F242: Sommer | G242: Høst | H242: År
D243: =(O239+D239+E239)/3 -> 0.6952734832 | E243: =(F239+G239+H239)/3 -> 0.8011938825 | F243: =(I239+J239+K239)/3 -> 0.8543740999 | G243: =(L239+M239+N239)/3 -> 0.7685549248 | H243: =SUM(D239:O239)/12 -> 0.7798490976
C247: Lokasjon | D247: Stasjon11_Cutoff1_nymetode_etterGMS.xls
C249: Sesongvise frekvensfordelinger av signifikante bølgehøydeintervaller
C250: Hs (m) | E250: Vinter | H250: Vår | K250: Sommer | N250: Høst
C251: 0,0 - 1,0 | D251: 0.01000624434 | E251: 0.0206619501 | F251: 0.03223087166 | G251: 0.09654421027 | H251: 0.2385025861 | I251: 0.2389343795 | J251: 0.3085762195 | K251: 0.2975182198 | L251: 0.128490254 | M251: 0.04940462088 | N251: 0.02988743759 | O251: 0.02269591032
C252: 1,0 - 2,0 | D252: 0.2128981067 | E252: 0.2246329885 | F252: 0.3043590585 | G252: 0.4653727985 | H252: 0.5261923879 | I252: 0.5588538824 | J252: 0.5591561429 | K252: 0.5236312017 | L252: 0.4572283368 | M252: 0.3540474905 | N252: 0.3121753712 | O252: 0.2150364962
C253: 2,0 - 3,0 | D253: 0.2928225486 | E253: 0.2971018968 | F253: 0.3074432524 | G253: 0.2648463602 | H253: 0.1715677601 | I253: 0.159229068 | J253: 0.1098661566 | K253: 0.1410904798 | L253: 0.2593369569 | M253: 0.2996222406 | N253: 0.2953366629 | O253: 0.3099148362
C254: 3,0 - 4,0 | D254: 0.2311030129 | E254: 0.2140427731 | F254: 0.1947810924 | G254: 0.1106865343 | H254: 0.04645396777 | I254: 0.03581647447 | J254: 0.01823925778 | K254: 0.03049853294 | L254: 0.09813652199 | M254: 0.1656188151 | N254: 0.1959786197 | O254: 0.2121504523
C255: Ʃ | D255: =SUM(D251:D254) -> 0.7468299125 | E255: =SUM(E251:E254) -> 0.7564396085 | F255: =SUM(F251:F254) -> 0.8388142749 | G255: =SUM(G251:G254) -> 0.9374499032 | H255: =SUM(H251:H254) -> 0.9827167018 | I255: =SUM(I251:I254) -> 0.9928338044 | J255: =SUM(J251:J254) -> 0.9958377768 | K255: =SUM(K251:K254) -> 0.9927384343 | L255: =SUM(L251:L254) -> 0.9431920698 | M255: =SUM(M251:M254) -> 0.8686931671 | N255: =SUM(N251:N254) -> 0.8333780913 | O255: =SUM(O251:O254) -> 0.759797695
C257: Vektede effektiviteter (forventet effektivitet)
C258: Hs (m) | D258: Jan | E258: Feb | F258: Mar | G258: Apr | H258: Mai | I258: Jun | J258: Jul | K258: Aug | L258: Sep | M258: Okt | N258: Nov | O258: Des
C259: 0,0 - 1,0 | D259: =$E$4*D251 -> 0.008880541853 | E259: 0.01833748071 | F259: 0.0286048986 | G259: 0.08568298661 | H259: 0.2116710452 | I259: 0.2120542618 | J259: 0.2738613948 | K259: 0.2640474201 | L259: 0.1140351004 | M259: 0.04384660103 | N259: 0.02652510086 | O259: 0.02014262041
C260: 1,0 - 2,0 | D260: =$F$4*D252 -> 0.1703184854 | E260: 0.1797063908 | F260: 0.2434872468 | G260: 0.3722982388 | H260: 0.4209539103 | I260: 0.447083106 | J260: 0.4473249143 | K260: 0.4189049614 | L260: 0.3657826695 | M260: 0.2832379924 | N260: 0.2497402969 | O260: 0.172029197
C261: 2,0 - 3,0 | D261: =$G$4*D253 -> 0.204975784 | E261: 0.2079713278 | F261: 0.2152102767 | G261: 0.1853924521 | H261: 0.120097432 | I261: 0.1114603476 | J261: 0.0769063096 | K261: 0.09876333587 | L261: 0.1815358698 | M261: 0.2097355684 | N261: 0.206735664 | O261: 0.2169403854
C262: 3,0 - 4,0 | D262: =$H$4*D254 -> 0.1386618077 | E262: 0.1284256638 | F262: 0.1168686554 | G262: 0.06641192055 | H262: 0.02787238066 | I262: 0.02148988468 | J262: 0.01094355467 | K262: 0.01829911976 | L262: 0.0588819132 | M262: 0.09937128906 | N262: 0.1175871718 | O262: 0.1272902714
C263: Σ | D263: =SUM(D259:D262) -> 0.522836619 | E263: 0.5344408632 | F263: 0.6041710775 | G263: 0.7097855981 | H263: 0.7805947682 | I263: 0.7920876 | J263: 0.8090361734 | K263: 0.8000148371 | L263: 0.7202355529 | M263: 0.6361914509 | N263: 0.6005882336 | O263: 0.5364024741
D265: Gjennomsnittlig opptakseffektivitet NOFO-system
D266: Vinter | E266: Vår | F266: Sommer | G266: Høst | H266: År
D267: =(O263+D263+E263)/3 -> 0.5312266521 | E267: =(F263+G263+H263)/3 -> 0.6981838146 | F267: =(I263+J263+K263)/3 -> 0.8003795369 | G267: =(L263+M263+N263)/3 -> 0.6523384125 | H267: =SUM(D263:O263)/12 -> 0.670532104

Sheet Op.Eff.STOTTE.NOFO.V2 (hidden)
C3: Hs intervall (m) | E3: 0,0 - 1,0 | F3: 1,0 -2,0 | G3: 2,0 - 3,0 | H3: 3,0 - 4,0
C4: Opptakseffektivitet | E4: 0.8875 | F4: 0.8 | G4: 0.7 | H4: 0.6
C7: Lokasjon | D7: 1
C9: Sesongvise frekvensfordelinger av signifikante bølgehøydeintervaller
C10: Hs (m) | E10: Vinter | H10: Vår | K10: Sommer | N10: Høst
C11: 0,0 - 1,0 | E11: 0.0519 | F11: 0 | G11: 0 | H11: 0.161534 | I11: 0 | J11: 0 | K11: 0.323733 | L11: 0 | M11: 0 | N11: 0.1052
C12: 1,0 - 2,0 | E12: 0.2811 | F12: 0 | G12: 0 | H12: 0.485033 | I12: 0 | J12: 0 | K12: 0.511367 | L12: 0 | M12: 0 | N12: 0.367034
C13: 2,0 - 3,0 | E13: 0.284634 | F13: 0 | G13: 0 | H13: 0.2257 | I13: 0 | J13: 0 | K13: 0.118333 | L13: 0 | M13: 0 | N13: 0.277067
C14: 3,0 - 4,0 | E14: 0.181 | F14: 0 | G14: 0 | H14: 0.086933 | I14: 0 | J14: 0 | K14: 0.030667 | L14: 0 | M14: 0 | N14: 0.146866
C15: Ʃ | E15: =SUM(E11:E14) -> 0.798634 | H15: 0.9592 | K15: 0.9841 | N15: 0.896167
C17: Vektede effektiviteter (forventet effektivitet)
C18: Hs (m) | E18: Vinter | H18: Vår | K18: Sommer | N18: Høst
C19: 0,0 - 1,0 | E19: =$E$4*E11 -> 0.04606125 | H19: 0.143361425 | K19: 0.2873130375 | N19: 0.093365
C20: 1,0 - 2,0 | E20: =$F$4*E12 -> 0.22488 | H20: 0.3880264 | K20: 0.4090936 | N20: 0.2936272
C21: 2,0 - 3,0 | E21: =$G$4*E13 -> 0.1992438 | H21: 0.15799 | K21: 0.0828331 | N21: 0.1939469
C22: 3,0 - 4,0 | E22: =$H$4*E14 -> 0.1086 | H22: =$H$4*H14 -> 0.0521598 | K22: 0.0184002 | N22: 0.0881196
C23: Σ | E23: =SUM(E19:E22) -> 0.57878505 | H23: =SUM(H19:H22) -> 0.741537625 | K23: =SUM(K19:K22) -> 0.7976399375 | N23: =SUM(N19:N22) -> 0.6690587
D25: Gjennomsnittlig opptakseffektivitet Gruppe A system | J25: Optimal ytelse hensyntatt sikt HH Kyst m3/d)
D26: Vinter | E26: Vår | F26: Sommer | G26: Høst | H26: År | J26: Vinter | K26: Vår | L26: Sommer | M26: Høst | N26: År
D27: =E23 -> 0.57878505 | E27: =H23 -> 0.741537625 | F27: =K23 -> 0.7976399375 | G27: =N23 -> 0.6690587 | H27: =SUM(D23:O23)/4 -> 0.6967553281 | J27: 49 | K27: 141 | L27: 154 | M27: 90 | N27: =(M27+L27+K27+J27)/4 -> 108.5
C31: Lokasjon | D31: 2
C33: Sesongvise frekvensfordelinger av signifikante bølgehøydeintervaller
C34: Hs (m) | E34: Vinter | H34: Vår | K34: Sommer | N34: Høst
C35: 0,0 - 1,0 | E35: 0.2485 | F35: 0 | G35: 0 | H35: 0.4783 | I35: 0 | J35: 0 | K35: 0.5664 | L35: 0 | M35: 0 | N35: 0.295767
C36: 1,0 - 2,0 | E36: 0.344834 | F36: 0 | G36: 0 | H36: 0.3834 | I36: 0 | J36: 0 | K36: 0.3743 | L36: 0 | M36: 0 | N36: 0.4128
C37: 2,0 - 3,0 | E37: 0.2036 | F37: 0 | G37: 0 | H37: 0.1026 | I37: 0 | J37: 0 | K37: 0.044767 | L37: 0 | M37: 0 | N37: 0.198333
C38: 3,0 - 4,0 | E38: 0.1154 | F38: 0 | G38: 0 | H38: 0.027466 | I38: 0 | J38: 0 | K38: 0.0117 | L38: 0 | M38: 0 | N38: 0.068267
C39: Ʃ | D39: =SUM(D35:D38) -> 0 | E39: =SUM(E35:E38) -> 0.912334 | F39: 0 | G39: 0 | H39: 0.991766 | I39: 0 | J39: 0 | K39: 0.997167 | L39: 0 | M39: 0 | N39: 0.975167 | O39: 0
C41: Vektede effektiviteter (forventet effektivitet)
C42: Hs (m) | E42: Vinter | H42: Vår | K42: Sommer | N42: Høst
C43: 0,0 - 1,0 | D43: =$E$4*D35 -> 0 | E43: 0.22054375 | F43: 0 | G43: 0 | H43: 0.42449125 | I43: 0 | J43: 0 | K43: 0.50268 | L43: 0 | M43: 0 | N43: 0.2624932125 | O43: 0
C44: 1,0 - 2,0 | D44: =$F$4*D36 -> 0 | E44: 0.2758672 | F44: 0 | G44: 0 | H44: 0.30672 | I44: 0 | J44: 0 | K44: 0.29944 | L44: 0 | M44: 0 | N44: 0.33024 | O44: 0
C45: 2,0 - 3,0 | D45: =$G$4*D37 -> 0 | E45: 0.14252 | F45: 0 | G45: 0 | H45: 0.07182 | I45: 0 | J45: 0 | K45: 0.0313369 | L45: 0 | M45: 0 | N45: 0.1388331 | O45: 0
C46: 3,0 - 4,0 | D46: =$H$4*D38 -> 0 | E46: 0.06924 | F46: 0 | G46: 0 | H46: 0.0164796 | I46: 0 | J46: 0 | K46: 0.00702 | L46: 0 | M46: 0 | N46: 0.0409602 | O46: 0
C47: Σ | E47: =SUM(E43:E46) -> 0.70817095 | H47: =SUM(H43:H46) -> 0.81951085 | K47: =SUM(K43:K46) -> 0.8404769 | N47: =SUM(N43:N46) -> 0.7725265125
D49: Gjennomsnittlig opptakseffektivitet Gruppe A system
D50: Vinter | E50: Vår | F50: Sommer | G50: Høst | H50: År
D51: =E47 -> 0.70817095 | E51: =H47 -> 0.81951085 | F51: =K47 -> 0.8404769 | G51: =N47 -> 0.7725265125 | H51: =SUM(D47:O47)/4 -> 0.7851713031
C55: Lokasjon | D55: 3
C57: Sesongvise frekvensfordelinger av signifikante bølgehøydeintervaller
C58: Hs (m) | E58: Vinter | H58: Vår | K58: Sommer | N58: Høst
C59: 0,0 - 1,0 | E59: 0.015634 | F59: 0 | G59: 0 | H59: 0.0831 | I59: 0 | J59: 0 | K59: 0.2366 | L59: 0 | M59: 0 | N59: 0.042967
C60: 1,0 - 2,0 | E60: 0.190867 | F60: 0 | G60: 0 | H60: 0.420133 | I60: 0 | J60: 0 | K60: 0.552333 | L60: 0 | M60: 0 | N60: 0.319467
C61: 2,0 - 3,0 | E61: 0.262366 | F61: 0 | G61: 0 | H61: 0.294367 | I61: 0 | J61: 0 | K61: 0.151866 | L61: 0 | M61: 0 | N61: 0.2897
C62: 3,0 - 4,0 | E62: 0.218233 | F62: 0 | G62: 0 | H62: 0.125433 | I62: 0 | J62: 0 | K62: 0.038167 | L62: 0 | M62: 0 | N62: 0.1696
C63: Ʃ | D63: =SUM(D59:D62) -> 0 | E63: =SUM(E59:E62) -> 0.6871 | F63: 0 | G63: 0 | H63: 0.923033 | I63: 0 | J63: 0 | K63: 0.978966 | L63: 0 | M63: 0 | N63: 0.821734 | O63: 0
C65: Vektede effektiviteter (forventet effektivitet)
C66: Hs (m) | E66: Vinter | H66: Vår | K66: Sommer | N66: Høst
C67: 0,0 - 1,0 | D67: =$E$4*D59 -> 0 | E67: 0.013875175 | F67: 0 | G67: 0 | H67: 0.07375125 | I67: 0 | J67: 0 | K67: 0.2099825 | L67: 0 | M67: 0 | N67: 0.0381332125 | O67: 0
C68: 1,0 - 2,0 | D68: =$F$4*D60 -> 0 | E68: 0.1526936 | F68: 0 | G68: 0 | H68: 0.3361064 | I68: 0 | J68: 0 | K68: 0.4418664 | L68: 0 | M68: 0 | N68: 0.2555736 | O68: 0
C69: 2,0 - 3,0 | D69: =$G$4*D61 -> 0 | E69: 0.1836562 | F69: 0 | G69: 0 | H69: 0.2060569 | I69: 0 | J69: 0 | K69: 0.1063062 | L69: 0 | M69: 0 | N69: 0.20279 | O69: 0
C70: 3,0 - 4,0 | D70: =$H$4*D62 -> 0 | E70: 0.1309398 | F70: 0 | G70: 0 | H70: 0.0752598 | I70: 0 | J70: 0 | K70: 0.0229002 | L70: 0 | M70: 0 | N70: 0.10176 | O70: 0
C71: Σ | E71: =SUM(E67:E70) -> 0.481164775 | H71: =SUM(H67:H70) -> 0.69117435 | K71: =SUM(K67:K70) -> 0.7810553 | N71: =SUM(N67:N70) -> 0.5982568125
D73: Gjennomsnittlig opptakseffektivitet Gruppe A system
D74: Vinter | E74: Vår | F74: Sommer | G74: Høst | H74: År
D75: =E71 -> 0.481164775 | E75: =H71 -> 0.69117435 | F75: =K71 -> 0.7810553 | G75: =N71 -> 0.5982568125 | H75: =SUM(D71:O71)/4 -> 0.6379128094
C79: Lokasjon | D79: 4
C81: Sesongvise frekvensfordelinger av signifikante bølgehøydeintervaller
C82: Hs (m) | E82: Vinter | H82: Vår | K82: Sommer | N82: Høst
C83: 0,0 - 1,0 | E83: 0.089533 | F83: 0 | G83: 0 | H83: 0.2401 | I83: 0 | J83: 0 | K83: 0.385 | L83: 0 | M83: 0 | N83: 0.138433
C84: 1,0 - 2,0 | E84: 0.285133 | F84: 0 | G84: 0 | H84: 0.432033 | I84: 0 | J84: 0 | K84: 0.459267 | L84: 0 | M84: 0 | N84: 0.360767
C85: 2,0 - 3,0 | E85: 0.254134 | F85: 0 | G85: 0 | H85: 0.216534 | I85: 0 | J85: 0 | K85: 0.120033 | L85: 0 | M85: 0 | N85: 0.267267
C86: 3,0 - 4,0 | E86: 0.168433 | F86: 0 | G86: 0 | H86: 0.077767 | I86: 0 | J86: 0 | K86: 0.023834 | L86: 0 | M86: 0 | N86: 0.144733
C87: Ʃ | D87: =SUM(D83:D86) -> 0 | E87: =SUM(E83:E86) -> 0.797233 | F87: 0 | G87: 0 | H87: 0.966434 | I87: 0 | J87: 0 | K87: 0.988134 | L87: 0 | M87: 0 | N87: 0.9112 | O87: 0
C89: Vektede effektiviteter (forventet effektivitet)
C90: Hs (m) | E90: Vinter | H90: Vår | K90: Sommer | N90: Høst
C91: 0,0 - 1,0 | D91: =$E$4*D83 -> 0 | E91: 0.0794605375 | F91: 0 | G91: 0 | H91: 0.21308875 | I91: 0 | J91: 0 | K91: 0.3416875 | L91: 0 | M91: 0 | N91: 0.1228592875 | O91: 0
C92: 1,0 - 2,0 | D92: =$F$4*D84 -> 0 | E92: 0.2281064 | F92: 0 | G92: 0 | H92: 0.3456264 | I92: 0 | J92: 0 | K92: 0.3674136 | L92: 0 | M92: 0 | N92: 0.2886136 | O92: 0
C93: 2,0 - 3,0 | D93: =$G$4*D85 -> 0 | E93: 0.1778938 | F93: 0 | G93: 0 | H93: 0.1515738 | I93: 0 | J93: 0 | K93: 0.0840231 | L93: 0 | M93: 0 | N93: 0.1870869 | O93: 0
C94: 3,0 - 4,0 | D94: =$H$4*D86 -> 0 | E94: 0.1010598 | F94: 0 | G94: 0 | H94: 0.0466602 | I94: 0 | J94: 0 | K94: 0.0143004 | L94: 0 | M94: 0 | N94: 0.0868398 | O94: 0
C95: Σ | E95: =SUM(E91:E94) -> 0.5865205375 | H95: =SUM(H91:H94) -> 0.75694915 | K95: =SUM(K91:K94) -> 0.8074246 | N95: =SUM(N91:N94) -> 0.6853995875
D97: Gjennomsnittlig opptakseffektivitet Gruppe A system
D98: Vinter | E98: Vår | F98: Sommer | G98: Høst | H98: År
D99: =E95 -> 0.5865205375 | E99: =H95 -> 0.75694915 | F99: =K95 -> 0.8074246 | G99: =N95 -> 0.6853995875 | H99: =SUM(D95:O95)/4 -> 0.7090734687
C103: Lokasjon | D103: 5
C105: Sesongvise frekvensfordelinger av signifikante bølgehøydeintervaller
C106: Hs (m) | E106: Vinter | H106: Vår | K106: Sommer | N106: Høst
C107: 0,0 - 1,0 | E107: 0.011466 | F107: 0 | G107: 0 | H107: 0.070066 | I107: 0 | J107: 0 | K107: 0.205066 | L107: 0 | M107: 0 | N107: 0.039333
C108: 1,0 - 2,0 | E108: 0.167766 | F108: 0 | G108: 0 | H108: 0.395133 | I108: 0 | J108: 0 | K108: 0.558033 | L108: 0 | M108: 0 | N108: 0.287466
C109: 2,0 - 3,0 | E109: 0.248967 | F109: 0 | G109: 0 | H109: 0.307533 | I109: 0 | J109: 0 | K109: 0.173067 | L109: 0 | M109: 0 | N109: 0.296667
C110: 3,0 - 4,0 | E110: 0.234234 | F110: 0 | G110: 0 | H110: 0.14 | I110: 0 | J110: 0 | K110: 0.041833 | L110: 0 | M110: 0 | N110: 0.181834
C111: Ʃ | D111: =SUM(D107:D110) -> 0 | E111: =SUM(E107:E110) -> 0.662433 | F111: 0 | G111: 0 | H111: 0.912732 | I111: 0 | J111: 0 | K111: 0.977999 | L111: 0 | M111: 0 | N111: 0.8053 | O111: 0
C113: Vektede effektiviteter (forventet effektivitet)
C114: Hs (m) | E114: Vinter | H114: Vår | K114: Sommer | N114: Høst
C115: 0,0 - 1,0 | D115: =$E$4*D107 -> 0 | E115: 0.010176075 | F115: 0 | G115: 0 | H115: 0.062183575 | I115: 0 | J115: 0 | K115: 0.181996075 | L115: 0 | M115: 0 | N115: 0.0349080375 | O115: 0
C116: 1,0 - 2,0 | D116: =$F$4*D108 -> 0 | E116: 0.1342128 | F116: 0 | G116: 0 | H116: 0.3161064 | I116: 0 | J116: 0 | K116: 0.4464264 | L116: 0 | M116: 0 | N116: 0.2299728 | O116: 0
C117: 2,0 - 3,0 | D117: =$G$4*D109 -> 0 | E117: 0.1742769 | F117: 0 | G117: 0 | H117: 0.2152731 | I117: 0 | J117: 0 | K117: 0.1211469 | L117: 0 | M117: 0 | N117: 0.2076669 | O117: 0
C118: 3,0 - 4,0 | D118: =$H$4*D110 -> 0 | E118: 0.1405404 | F118: 0 | G118: 0 | H118: 0.084 | I118: 0 | J118: 0 | K118: 0.0250998 | L118: 0 | M118: 0 | N118: 0.1091004 | O118: 0
C119: Σ | E119: =SUM(E115:E118) -> 0.459206175 | H119: =SUM(H115:H118) -> 0.677563075 | K119: =SUM(K115:K118) -> 0.774669175 | N119: =SUM(N115:N118) -> 0.5816481375
D121: Gjennomsnittlig opptakseffektivitet Gruppe A system
D122: Vinter | E122: Vår | F122: Sommer | G122: Høst | H122: År
D123: =E119 -> 0.459206175 | E123: =H119 -> 0.677563075 | F123: =K119 -> 0.774669175 | G123: =N119 -> 0.5816481375 | H123: =SUM(D119:O119)/4 -> 0.6232716406
C127: Lokasjon | D127: 6
C129: Sesongvise frekvensfordelinger av signifikante bølgehøydeintervaller
C130: Hs (m) | E130: Vinter | H130: Vår | K130: Sommer | N130: Høst
C131: 0,0 - 1,0 | E131: 0.119133 | F131: 0 | G131: 0 | H131: 0.300133 | I131: 0 | J131: 0 | K131: 0.484767 | L131: 0 | M131: 0 | N131: 0.206867
C132: 1,0 - 2,0 | E132: 0.317466 | F132: 0 | G132: 0 | H132: 0.409967 | I132: 0 | J132: 0 | K132: 0.3998 | L132: 0 | M132: 0 | N132: 0.3867
C133: 2,0 - 3,0 | E133: 0.254066 | F133: 0 | G133: 0 | H133: 0.1906 | I133: 0 | J133: 0 | K133: 0.0893 | L133: 0 | M133: 0 | N133: 0.226634
C134: 3,0 - 4,0 | E134: 0.1651 | F134: 0 | G134: 0 | H134: 0.066133 | I134: 0 | J134: 0 | K134: 0.019 | L134: 0 | M134: 0 | N134: 0.108633
C135: Ʃ | D135: =SUM(D131:D134) -> 0 | E135: =SUM(E131:E134) -> 0.855765 | F135: 0 | G135: 0 | H135: 0.966833 | I135: 0 | J135: 0 | K135: 0.992867 | L135: 0 | M135: 0 | N135: 0.928834 | O135: 0
C137: Vektede effektiviteter (forventet effektivitet)
C138: Hs (m) | E138: Vinter | H138: Vår | K138: Sommer | N138: Høst
C139: 0,0 - 1,0 | D139: =$E$4*D131 -> 0 | E139: 0.1057305375 | F139: 0 | G139: 0 | H139: 0.2663680375 | I139: 0 | J139: 0 | K139: 0.4302307125 | L139: 0 | M139: 0 | N139: 0.1835944625 | O139: 0
C140: 1,0 - 2,0 | D140: =$F$4*D132 -> 0 | E140: 0.2539728 | F140: 0 | G140: 0 | H140: 0.3279736 | I140: 0 | J140: 0 | K140: 0.31984 | L140: 0 | M140: 0 | N140: 0.30936 | O140: 0
C141: 2,0 - 3,0 | D141: =$G$4*D133 -> 0 | E141: 0.1778462 | F141: 0 | G141: 0 | H141: 0.13342 | I141: 0 | J141: 0 | K141: 0.06251 | L141: 0 | M141: 0 | N141: 0.1586438 | O141: 0
C142: 3,0 - 4,0 | D142: =$H$4*D134 -> 0 | E142: 0.09906 | F142: 0 | G142: 0 | H142: 0.0396798 | I142: 0 | J142: 0 | K142: 0.0114 | L142: 0 | M142: 0 | N142: 0.0651798 | O142: 0
C143: Σ | E143: =SUM(E139:E142) -> 0.6366095375 | H143: =SUM(H139:H142) -> 0.7674414375 | K143: =SUM(K139:K142) -> 0.8239807125 | N143: =SUM(N139:N142) -> 0.7167780625
D145: Gjennomsnittlig opptakseffektivitet Gruppe A system
D146: Vinter | E146: Vår | F146: Sommer | G146: Høst | H146: År
D147: =E143 -> 0.6366095375 | E147: =H143 -> 0.7674414375 | F147: =K143 -> 0.8239807125 | G147: =N143 -> 0.7167780625 | H147: =SUM(D143:O143)/4 -> 0.7362024375
C151: Lokasjon | D151: 7
C153: Sesongvise frekvensfordelinger av signifikante bølgehøydeintervaller
C154: Hs (m) | E154: Vinter | H154: Vår | K154: Sommer | N154: Høst
C155: 0,0 - 1,0 | E155: 0.010866 | F155: 0 | G155: 0 | H155: 0.063633 | I155: 0 | J155: 0 | K155: 0.1906 | L155: 0 | M155: 0 | N155: 0.0504
C156: 1,0 - 2,0 | E156: 0.1639 | F156: 0 | G156: 0 | H156: 0.3915 | I156: 0 | J156: 0 | K156: 0.556666 | L156: 0 | M156: 0 | N156: 0.2714
C157: 2,0 - 3,0 | E157: 0.2463 | F157: 0 | G157: 0 | H157: 0.312933 | I157: 0 | J157: 0 | K157: 0.181833 | L157: 0 | M157: 0 | N157: 0.285167
C158: 3,0 - 4,0 | E158: 0.2316 | F158: 0 | G158: 0 | H158: 0.139133 | I158: 0 | J158: 0 | K158: 0.048733 | L158: 0 | M158: 0 | N158: 0.194567
C159: Ʃ | D159: =SUM(D155:D158) -> 0 | E159: =SUM(E155:E158) -> 0.652666 | F159: 0 | G159: 0 | H159: 0.907199 | I159: 0 | J159: 0 | K159: 0.977832 | L159: 0 | M159: 0 | N159: 0.801534 | O159: 0
C161: Vektede effektiviteter (forventet effektivitet)
C162: Hs (m) | E162: Vinter | H162: Vår | K162: Sommer | N162: Høst
C163: 0,0 - 1,0 | D163: =$E$4*D155 -> 0 | E163: 0.009643575 | F163: 0 | G163: 0 | H163: 0.0564742875 | I163: 0 | J163: 0 | K163: 0.1691575 | L163: 0 | M163: 0 | N163: 0.04473 | O163: 0
C164: 1,0 - 2,0 | D164: =$F$4*D156 -> 0 | E164: 0.13112 | F164: 0 | G164: 0 | H164: 0.3132 | I164: 0 | J164: 0 | K164: 0.4453328 | L164: 0 | M164: 0 | N164: 0.21712 | O164: 0
C165: 2,0 - 3,0 | D165: =$G$4*D157 -> 0 | E165: 0.17241 | F165: 0 | G165: 0 | H165: 0.2190531 | I165: 0 | J165: 0 | K165: 0.1272831 | L165: 0 | M165: 0 | N165: 0.1996169 | O165: 0
C166: 3,0 - 4,0 | D166: =$H$4*D158 -> 0 | E166: 0.13896 | F166: 0 | G166: 0 | H166: 0.0834798 | I166: 0 | J166: 0 | K166: 0.0292398 | L166: 0 | M166: 0 | N166: 0.1167402 | O166: 0
C167: Σ | E167: =SUM(E163:E166) -> 0.452133575 | H167: =SUM(H163:H166) -> 0.6722071875 | K167: =SUM(K163:K166) -> 0.7710132 | N167: =SUM(N163:N166) -> 0.5782071
D169: Gjennomsnittlig opptakseffektivitet Gruppe A system
D170: Vinter | E170: Vår | F170: Sommer | G170: Høst | H170: År
D171: =E167 -> 0.452133575 | E171: =H167 -> 0.6722071875 | F171: =K167 -> 0.7710132 | G171: =N167 -> 0.5782071 | H171: =SUM(D167:O167)/4 -> 0.6183902656
C175: Lokasjon | D175: 8
C177: Sesongvise frekvensfordelinger av signifikante bølgehøydeintervaller
C178: Hs (m) | E178: Vinter | H178: Vår | K178: Sommer | N178: Høst
C179: 0,0 - 1,0 | E179: 0.013833 | F179: 0 | G179: 0 | H179: 0.067633 | I179: 0 | J179: 0 | K179: 0.202333 | L179: 0 | M179: 0 | N179: 0.058667
C180: 1,0 - 2,0 | E180: 0.168167 | F180: 0 | G180: 0 | H180: 0.398866 | I180: 0 | J180: 0 | K180: 0.545967 | L180: 0 | M180: 0 | N180: 0.2716
C181: 2,0 - 3,0 | E181: 0.252066 | F181: 0 | G181: 0 | H181: 0.300767 | I181: 0 | J181: 0 | K181: 0.176166 | L181: 0 | M181: 0 | N181: 0.2798
C182: 3,0 - 4,0 | E182: 0.230266 | F182: 0 | G182: 0 | H182: 0.137467 | I182: 0 | J182: 0 | K182: 0.053633 | L182: 0 | M182: 0 | N182: 0.200734
C183: Ʃ | D183: =SUM(D179:D182) -> 0 | E183: =SUM(E179:E182) -> 0.664332 | F183: 0 | G183: 0 | H183: 0.904733 | I183: 0 | J183: 0 | K183: 0.978099 | L183: 0 | M183: 0 | N183: 0.810801 | O183: 0
C185: Vektede effektiviteter (forventet effektivitet)
C186: Hs (m) | E186: Vinter | H186: Vår | K186: Sommer | N186: Høst
C187: 0,0 - 1,0 | D187: =$E$4*D179 -> 0 | E187: 0.0122767875 | F187: 0 | G187: 0 | H187: 0.0600242875 | I187: 0 | J187: 0 | K187: 0.1795705375 | L187: 0 | M187: 0 | N187: 0.0520669625 | O187: 0
C188: 1,0 - 2,0 | D188: =$F$4*D180 -> 0 | E188: 0.1345336 | F188: 0 | G188: 0 | H188: 0.3190928 | I188: 0 | J188: 0 | K188: 0.4367736 | L188: 0 | M188: 0 | N188: 0.21728 | O188: 0
C189: 2,0 - 3,0 | D189: =$G$4*D181 -> 0 | E189: 0.1764462 | F189: 0 | G189: 0 | H189: 0.2105369 | I189: 0 | J189: 0 | K189: 0.1233162 | L189: 0 | M189: 0 | N189: 0.19586 | O189: 0
C190: 3,0 - 4,0 | D190: =$H$4*D182 -> 0 | E190: 0.1381596 | F190: 0 | G190: 0 | H190: 0.0824802 | I190: 0 | J190: 0 | K190: 0.0321798 | L190: 0 | M190: 0 | N190: 0.1204404 | O190: 0
C191: Σ | E191: =SUM(E187:E190) -> 0.4614161875 | H191: =SUM(H187:H190) -> 0.6721341875 | K191: =SUM(K187:K190) -> 0.7718401375 | N191: =SUM(N187:N190) -> 0.5856473625
D193: Gjennomsnittlig opptakseffektivitet Gruppe A system
D194: Vinter | E194: Vår | F194: Sommer | G194: Høst | H194: År
D195: =E191 -> 0.4614161875 | E195: =H191 -> 0.6721341875 | F195: =K191 -> 0.7718401375 | G195: =N191 -> 0.5856473625 | H195: =SUM(D191:O191)/4 -> 0.6227594687
C199: Lokasjon | D199: 9
C201: Sesongvise frekvensfordelinger av signifikante bølgehøydeintervaller
C202: Hs (m) | E202: Vinter | H202: Vår | K202: Sommer | N202: Høst
C203: 0,0 - 1,0 | E203: 0.017233 | H203: 0.069733 | K203: 0.212167 | N203: 0.0613
C204: 1,0 - 2,0 | E204: 0.1649 | H204: 0.391366 | K204: 0.535833 | N204: 0.273334
C205: 2,0 - 3,0 | E205: 0.258834 | H205: 0.294167 | K205: 0.175866 | N205: 0.287567
C206: 3,0 - 4,0 | E206: 0.219333 | H206: 0.142433 | K206: 0.052566 | N206: 0.1935
C207: Ʃ | D207: =SUM(D203:D206) -> 0 | E207: =SUM(E203:E206) -> 0.6603 | F207: 0 | G207: 0 | H207: 0.897699 | I207: 0 | J207: 0 | K207: 0.976432 | L207: 0 | M207: 0 | N207: 0.815701 | O207: 0
C209: Vektede effektiviteter (forventet effektivitet)
C210: Hs (m) | E210: Vinter | H210: Vår | K210: Sommer | N210: Høst
C211: 0,0 - 1,0 | D211: =$E$4*D203 -> 0 | E211: 0.0152942875 | F211: 0 | G211: 0 | H211: 0.0618880375 | I211: 0 | J211: 0 | K211: 0.1882982125 | L211: 0 | M211: 0 | N211: 0.05440375 | O211: 0
C212: 1,0 - 2,0 | D212: =$F$4*D204 -> 0 | E212: 0.13192 | F212: 0 | G212: 0 | H212: 0.3130928 | I212: 0 | J212: 0 | K212: 0.4286664 | L212: 0 | M212: 0 | N212: 0.2186672 | O212: 0
C213: 2,0 - 3,0 | D213: =$G$4*D205 -> 0 | E213: 0.1811838 | F213: 0 | G213: 0 | H213: 0.2059169 | I213: 0 | J213: 0 | K213: 0.1231062 | L213: 0 | M213: 0 | N213: 0.2012969 | O213: 0
C214: 3,0 - 4,0 | D214: =$H$4*D206 -> 0 | E214: 0.1315998 | F214: 0 | G214: 0 | H214: 0.0854598 | I214: 0 | J214: 0 | K214: 0.0315396 | L214: 0 | M214: 0 | N214: 0.1161 | O214: 0
C215: Σ | E215: =SUM(E211:E214) -> 0.4599978875 | H215: =SUM(H211:H214) -> 0.6663575375 | K215: =SUM(K211:K214) -> 0.7716104125 | N215: =SUM(N211:N214) -> 0.59046785
D217: Gjennomsnittlig opptakseffektivitet Gruppe A system
D218: Vinter | E218: Vår | F218: Sommer | G218: Høst | H218: År
D219: =E215 -> 0.4599978875 | E219: =H215 -> 0.6663575375 | F219: =K215 -> 0.7716104125 | G219: =N215 -> 0.59046785 | H219: =SUM(D215:O215)/4 -> 0.6221084219
C223: Lokasjon | D223: 10
C225: Sesongvise frekvensfordelinger av signifikante bølgehøydeintervaller
C226: Hs (m) | E226: Vinter | H226: Vår | K226: Sommer | N226: Høst
C227: 0,0 - 1,0 | E227: 0.0083 | H227: 0.048067 | K227: 0.166966 | N227: 0.036267
C228: 1,0 - 2,0 | E228: 0.126 | H228: 0.349366 | K228: 0.559467 | N228: 0.2508
C229: 2,0 - 3,0 | E229: 0.242533 | H229: 0.3124 | K229: 0.184367 | N229: 0.2865
C230: 3,0 - 4,0 | E230: 0.228734 | H230: 0.1598 | K230: 0.0655 | N230: 0.2078
C231: Ʃ | D231: =SUM(D227:D230) -> 0 | E231: =SUM(E227:E230) -> 0.605567 | F231: 0 | G231: 0 | H231: 0.869633 | I231: 0 | J231: 0 | K231: 0.9763 | L231: 0 | M231: 0 | N231: 0.781367 | O231: 0
C233: Vektede effektiviteter (forventet effektivitet)
C234: Hs (m) | E234: Vinter | H234: Vår | K234: Sommer | N234: Høst
C235: 0,0 - 1,0 | D235: =$E$4*D227 -> 0 | E235: 0.00736625 | F235: 0 | G235: 0 | H235: 0.0426594625 | I235: 0 | J235: 0 | K235: 0.148182325 | L235: 0 | M235: 0 | N235: 0.0321869625 | O235: 0
C236: 1,0 - 2,0 | D236: =$F$4*D228 -> 0 | E236: 0.1008 | F236: 0 | G236: 0 | H236: 0.2794928 | I236: 0 | J236: 0 | K236: 0.4475736 | L236: 0 | M236: 0 | N236: 0.20064 | O236: 0
C237: 2,0 - 3,0 | D237: =$G$4*D229 -> 0 | E237: 0.1697731 | F237: 0 | G237: 0 | H237: 0.21868 | I237: 0 | J237: 0 | K237: 0.1290569 | L237: 0 | M237: 0 | N237: 0.20055 | O237: 0
C238: 3,0 - 4,0 | D238: =$H$4*D230 -> 0 | E238: 0.1372404 | F238: 0 | G238: 0 | H238: 0.09588 | I238: 0 | J238: 0 | K238: 0.0393 | L238: 0 | M238: 0 | N238: 0.12468 | O238: 0
C239: Σ | E239: =SUM(E235:E238) -> 0.41517975 | H239: =SUM(H235:H238) -> 0.6367122625 | K239: =SUM(K235:K238) -> 0.764112825 | N239: =SUM(N235:N238) -> 0.5580569625
D241: Gjennomsnittlig opptakseffektivitet Gruppe A system
D242: Vinter | E242: Vår | F242: Sommer | G242: Høst | H242: År
D243: =E239 -> 0.41517975 | E243: =H239 -> 0.6367122625 | F243: =K239 -> 0.764112825 | G243: =N239 -> 0.5580569625 | H243: =SUM(D239:O239)/4 -> 0.59351545
C247: Lokasjon | D247: 11
C249: Sesongvise frekvensfordelinger av signifikante bølgehøydeintervaller
C250: Hs (m) | E250: Vinter | H250: Vår | K250: Sommer | N250: Høst
C251: 0,0 - 1,0 | E251: 0.016434 | H251: 0.075133 | K251: 0.2234 | N251: 0.057966
C252: 1,0 - 2,0 | E252: 0.173433 | H252: 0.379333 | K252: 0.524767 | N252: 0.2879
C253: 2,0 - 3,0 | E253: 0.247566 | H253: 0.286533 | K253: 0.173266 | N253: 0.283533
C254: 3,0 - 4,0 | E254: 0.211966 | H254: 0.146834 | K254: 0.056934 | N254: 0.1889
C255: Ʃ | D255: =SUM(D251:D254) -> 0 | E255: =SUM(E251:E254) -> 0.649399 | F255: 0 | G255: 0 | H255: 0.887833 | I255: 0 | J255: 0 | K255: 0.978367 | L255: 0 | M255: 0 | N255: 0.818299 | O255: 0
C257: Vektede effektiviteter (forventet effektivitet)
C258: Hs (m) | E258: Vinter | H258: Vår | K258: Sommer | N258: Høst
C259: 0,0 - 1,0 | D259: =$E$4*D251 -> 0 | E259: 0.014585175 | F259: 0 | G259: 0 | H259: 0.0666805375 | I259: 0 | J259: 0 | K259: 0.1982675 | L259: 0 | M259: 0 | N259: 0.051444825 | O259: 0
C260: 1,0 - 2,0 | D260: =$F$4*D252 -> 0 | E260: 0.1387464 | F260: 0 | G260: 0 | H260: 0.3034664 | I260: 0 | J260: 0 | K260: 0.4198136 | L260: 0 | M260: 0 | N260: 0.23032 | O260: 0
C261: 2,0 - 3,0 | D261: =$G$4*D253 -> 0 | E261: 0.1732962 | F261: 0 | G261: 0 | H261: 0.2005731 | I261: 0 | J261: 0 | K261: 0.1212862 | L261: 0 | M261: 0 | N261: 0.1984731 | O261: 0
C262: 3,0 - 4,0 | D262: =$H$4*D254 -> 0 | E262: 0.1271796 | F262: 0 | G262: 0 | H262: 0.0881004 | I262: 0 | J262: 0 | K262: 0.0341604 | L262: 0 | M262: 0 | N262: 0.11334 | O262: 0
C263: Σ | E263: =SUM(E259:E262) -> 0.453807375 | H263: =SUM(H259:H262) -> 0.6588204375 | K263: =SUM(K259:K262) -> 0.7735277 | N263: =SUM(N259:N262) -> 0.593577925
D265: Gjennomsnittlig opptakseffektivitet Gruppe A system
D266: Vinter | E266: Vår | F266: Sommer | G266: Høst | H266: År
D267: =E263 -> 0.453807375 | E267: =H263 -> 0.6588204375 | F267: =K263 -> 0.7735277 | G267: =N263 -> 0.593577925 | H267: =SUM(D263:O263)/4 -> 0.6199333594
... 288 more rows

Sheet Op.Eff.STOTTE.KYSTVAKT.V2 (hidden)
C3: Hs intervall (m) | E3: 0,0 - 1,0 | F3: 1,0 -2,0 | G3: 2,0 - 2.5
C4: Opptakseffektivitet | E4: 0.8875 | F4: 0.8 | G4: 0.725
C7: Lokasjon | D7: 1
C9: Sesongvise frekvensfordelinger av signifikante bølgehøydeintervaller
C10: Hs (m) | E10: Vinter | H10: Vår | K10: Sommer | N10: Høst
C11: 0,0 - 1,0 | E11: 0.0519 | H11: 0.161534 | K11: 0.323733 | N11: 0.1052
C12: 1,0 - 2,0 | E12: 0.2811 | H12: 0.485033 | K12: 0.511367 | N12: 0.367034
C13: 2,0 - 3,0 | E13: 0.153567 | H13: 0.143367 | K13: 0.077 | N13: 0.1587
C14: 3,0 - 4,0 | E14: 0 | H14: 0 | K14: 0 | N14: 0
C15: Ʃ | E15: =SUM(E11:E14) -> 0.486567 | H15: 0.789934 | K15: 0.9121 | N15: 0.630934
C17: Vektede effektiviteter (forventet effektivitet)
C18: Hs (m) | E18: Vinter | H18: Vår | K18: Sommer | N18: Høst
C19: 0,0 - 1,0 | E19: =$E$4*E11 -> 0.04606125 | H19: 0.143361425 | K19: 0.2873130375 | N19: 0.093365
C20: 1,0 - 2,0 | E20: =$F$4*E12 -> 0.22488 | H20: 0.3880264 | K20: 0.4090936 | N20: 0.2936272
C21: 2,0 - 3,0 | E21: =$G$4*E13 -> 0.111336075 | H21: 0.103941075 | K21: 0.055825 | N21: 0.1150575
C22: 3,0 - 4,0 | E22: =$H$4*E14 -> 0 | H22: =$H$4*H14 -> 0 | K22: 0 | N22: 0
C23: Σ | E23: =SUM(E19:E22) -> 0.382277325 | H23: =SUM(H19:H22) -> 0.6353289 | K23: =SUM(K19:K22) -> 0.7522316375 | N23: =SUM(N19:N22) -> 0.5020497
D25: Gjennomsnittlig opptakseffektivitet Gruppe 2 system
D26: Vinter | E26: Vår | F26: Sommer | G26: Høst | H26: År
D27: =E23 -> 0.382277325 | E27: =H23 -> 0.6353289 | F27: =K23 -> 0.7522316375 | G27: =N23 -> 0.5020497 | H27: =SUM(D23:O23)/4 -> 0.5679718906
C31: Lokasjon | D31: 2
C33: Sesongvise frekvensfordelinger av signifikante bølgehøydeintervaller
C34: Hs (m) | E34: Vinter | H34: Vår | K34: Sommer | N34: Høst
C35: 0,0 - 1,0 | E35: 0.2485 | H35: 0.4783 | K35: 0.5664 | N35: 0.295767
C36: 1,0 - 2,0 | E36: 0.344834 | H36: 0.3834 | K36: 0.3743 | N36: 0.4128
C37: 2,0 - 3,0 | E37: 0.121067 | H37: 0.0656 | K37: 0.0313 | N37: 0.1188
C38: 3,0 - 4,0 | E38: 0 | H38: 0 | K38: 0 | N38: 0
C39: Ʃ | D39: =SUM(D35:D38) -> 0 | E39: =SUM(E35:E38) -> 0.714401 | F39: 0 | G39: 0 | H39: 0.9273 | I39: 0 | J39: 0 | K39: 0.972 | L39: 0 | M39: 0 | N39: 0.827367 | O39: 0
C41: Vektede effektiviteter (forventet effektivitet)
C42: Hs (m) | E42: Vinter | H42: Vår | K42: Sommer | N42: Høst
C43: 0,0 - 1,0 | D43: =$E$4*D35 -> 0 | E43: 0.22054375 | F43: 0 | G43: 0 | H43: 0.42449125 | I43: 0 | J43: 0 | K43: 0.50268 | L43: 0 | M43: 0 | N43: 0.2624932125 | O43: 0
C44: 1,0 - 2,0 | D44: =$F$4*D36 -> 0 | E44: 0.2758672 | F44: 0 | G44: 0 | H44: 0.30672 | I44: 0 | J44: 0 | K44: 0.29944 | L44: 0 | M44: 0 | N44: 0.33024 | O44: 0
C45: 2,0 - 3,0 | D45: =$G$4*D37 -> 0 | E45: 0.087773575 | F45: 0 | G45: 0 | H45: 0.04756 | I45: 0 | J45: 0 | K45: 0.0226925 | L45: 0 | M45: 0 | N45: 0.08613 | O45: 0
C46: 3,0 - 4,0 | D46: =$H$4*D38 -> 0 | E46: 0 | F46: 0 | G46: 0 | H46: 0 | I46: 0 | J46: 0 | K46: 0 | L46: 0 | M46: 0 | N46: 0 | O46: 0
C47: Σ | E47: =SUM(E43:E46) -> 0.584184525 | H47: =SUM(H43:H46) -> 0.77877125 | K47: =SUM(K43:K46) -> 0.8248125 | N47: =SUM(N43:N46) -> 0.6788632125
D49: Gjennomsnittlig opptakseffektivitet Gruppe 2 system
D50: Vinter | E50: Vår | F50: Sommer | G50: Høst | H50: År
D51: =E47 -> 0.584184525 | E51: =H47 -> 0.77877125 | F51: =K47 -> 0.8248125 | G51: =N47 -> 0.6788632125 | H51: =SUM(D47:O47)/4 -> 0.7166578719
C55: Lokasjon | D55: 3
C57: Sesongvise frekvensfordelinger av signifikante bølgehøydeintervaller
C58: Hs (m) | E58: Vinter | H58: Vår | K58: Sommer | N58: Høst
C59: 0,0 - 1,0 | E59: 0.015634 | H59: 0.0831 | K59: 0.2366 | N59: 0.042967
C60: 1,0 - 2,0 | E60: 0.190867 | H60: 0.420133 | K60: 0.552333 | N60: 0.319467
C61: 2,0 - 3,0 | E61: 0.129633 | H61: 0.1751 | K61: 0.099933 | N61: 0.159467
C62: 3,0 - 4,0 | E62: 0 | H62: 0 | K62: 0 | N62: 0
C63: Ʃ | D63: =SUM(D59:D62) -> 0 | E63: =SUM(E59:E62) -> 0.336134 | F63: 0 | G63: 0 | H63: 0.678333 | I63: 0 | J63: 0 | K63: 0.888866 | L63: 0 | M63: 0 | N63: 0.521901 | O63: 0
C65: Vektede effektiviteter (forventet effektivitet)
C66: Hs (m) | E66: Vinter | H66: Vår | K66: Sommer | N66: Høst
C67: 0,0 - 1,0 | D67: =$E$4*D59 -> 0 | E67: 0.013875175 | F67: 0 | G67: 0 | H67: 0.07375125 | I67: 0 | J67: 0 | K67: 0.2099825 | L67: 0 | M67: 0 | N67: 0.0381332125 | O67: 0
C68: 1,0 - 2,0 | D68: =$F$4*D60 -> 0 | E68: 0.1526936 | F68: 0 | G68: 0 | H68: 0.3361064 | I68: 0 | J68: 0 | K68: 0.4418664 | L68: 0 | M68: 0 | N68: 0.2555736 | O68: 0
C69: 2,0 - 3,0 | D69: =$G$4*D61 -> 0 | E69: 0.093983925 | F69: 0 | G69: 0 | H69: 0.1269475 | I69: 0 | J69: 0 | K69: 0.072451425 | L69: 0 | M69: 0 | N69: 0.115613575 | O69: 0
C70: 3,0 - 4,0 | D70: =$H$4*D62 -> 0 | E70: 0 | F70: 0 | G70: 0 | H70: 0 | I70: 0 | J70: 0 | K70: 0 | L70: 0 | M70: 0 | N70: 0 | O70: 0
C71: Σ | E71: =SUM(E67:E70) -> 0.2605527 | H71: =SUM(H67:H70) -> 0.53680515 | K71: =SUM(K67:K70) -> 0.724300325 | N71: =SUM(N67:N70) -> 0.4093203875
D73: Gjennomsnittlig opptakseffektivitet Gruppe 2 system
D74: Vinter | E74: Vår | F74: Sommer | G74: Høst | H74: År
D75: =E71 -> 0.2605527 | E75: =H71 -> 0.53680515 | F75: =K71 -> 0.724300325 | G75: =N71 -> 0.4093203875 | H75: =SUM(D71:O71)/4 -> 0.4827446406
C79: Lokasjon | D79: 4
C81: Sesongvise frekvensfordelinger av signifikante bølgehøydeintervaller
C82: Hs (m) | E82: Vinter | H82: Vår | K82: Sommer | N82: Høst
C83: 0,0 - 1,0 | E83: 0.089533 | H83: 0.2401 | K83: 0.385 | N83: 0.138433
C84: 1,0 - 2,0 | E84: 0.285133 | H84: 0.432033 | K84: 0.459267 | N84: 0.360767
C85: 2,0 - 3,0 | E85: 0.138267 | H85: 0.133667 | K85: 0.085233 | N85: 0.1491
C86: 3,0 - 4,0 | E86: 0 | H86: 0 | K86: 0 | N86: 0
C87: Ʃ | D87: =SUM(D83:D86) -> 0 | E87: =SUM(E83:E86) -> 0.512933 | F87: 0 | G87: 0 | H87: 0.8058 | I87: 0 | J87: 0 | K87: 0.9295 | L87: 0 | M87: 0 | N87: 0.6483 | O87: 0
C89: Vektede effektiviteter (forventet effektivitet)
C90: Hs (m) | E90: Vinter | H90: Vår | K90: Sommer | N90: Høst
C91: 0,0 - 1,0 | D91: =$E$4*D83 -> 0 | E91: 0.0794605375 | F91: 0 | G91: 0 | H91: 0.21308875 | I91: 0 | J91: 0 | K91: 0.3416875 | L91: 0 | M91: 0 | N91: 0.1228592875 | O91: 0
C92: 1,0 - 2,0 | D92: =$F$4*D84 -> 0 | E92: 0.2281064 | F92: 0 | G92: 0 | H92: 0.3456264 | I92: 0 | J92: 0 | K92: 0.3674136 | L92: 0 | M92: 0 | N92: 0.2886136 | O92: 0
C93: 2,0 - 3,0 | D93: =$G$4*D85 -> 0 | E93: 0.100243575 | F93: 0 | G93: 0 | H93: 0.096908575 | I93: 0 | J93: 0 | K93: 0.061793925 | L93: 0 | M93: 0 | N93: 0.1080975 | O93: 0
C94: 3,0 - 4,0 | D94: =$H$4*D86 -> 0 | E94: 0 | F94: 0 | G94: 0 | H94: 0 | I94: 0 | J94: 0 | K94: 0 | L94: 0 | M94: 0 | N94: 0 | O94: 0
C95: Σ | E95: =SUM(E91:E94) -> 0.4078105125 | H95: =SUM(H91:H94) -> 0.655623725 | K95: =SUM(K91:K94) -> 0.770895025 | N95: =SUM(N91:N94) -> 0.5195703875
D97: Gjennomsnittlig opptakseffektivitet Gruppe 2 system
D98: Vinter | E98: Vår | F98: Sommer | G98: Høst | H98: År
D99: =E95 -> 0.4078105125 | E99: =H95 -> 0.655623725 | F99: =K95 -> 0.770895025 | G99: =N95 -> 0.5195703875 | H99: =SUM(D95:O95)/4 -> 0.5884749125
C103: Lokasjon | D103: 5
C105: Sesongvise frekvensfordelinger av signifikante bølgehøydeintervaller
C106: Hs (m) | E106: Vinter | H106: Vår | K106: Sommer | N106: Høst
C107: 0,0 - 1,0 | E107: 0.011466 | H107: 0.070066 | K107: 0.205066 | N107: 0.039333
C108: 1,0 - 2,0 | E108: 0.167766 | H108: 0.395133 | K108: 0.558033 | N108: 0.287466
C109: 2,0 - 3,0 | E109: 0.1246 | H109: 0.1832 | K109: 0.113167 | N109: 0.152967
C110: 3,0 - 4,0 | E110: 0 | H110: 0 | K110: 0 | N110: 0
C111: Ʃ | D111: =SUM(D107:D110) -> 0 | E111: =SUM(E107:E110) -> 0.303832 | F111: 0 | G111: 0 | H111: 0.648399 | I111: 0 | J111: 0 | K111: 0.876266 | L111: 0 | M111: 0 | N111: 0.479766 | O111: 0
C113: Vektede effektiviteter (forventet effektivitet)
C114: Hs (m) | E114: Vinter | H114: Vår | K114: Sommer | N114: Høst
C115: 0,0 - 1,0 | D115: =$E$4*D107 -> 0 | E115: 0.010176075 | F115: 0 | G115: 0 | H115: 0.062183575 | I115: 0 | J115: 0 | K115: 0.181996075 | L115: 0 | M115: 0 | N115: 0.0349080375 | O115: 0
C116: 1,0 - 2,0 | D116: =$F$4*D108 -> 0 | E116: 0.1342128 | F116: 0 | G116: 0 | H116: 0.3161064 | I116: 0 | J116: 0 | K116: 0.4464264 | L116: 0 | M116: 0 | N116: 0.2299728 | O116: 0
C117: 2,0 - 3,0 | D117: =$G$4*D109 -> 0 | E117: 0.090335 | F117: 0 | G117: 0 | H117: 0.13282 | I117: 0 | J117: 0 | K117: 0.082046075 | L117: 0 | M117: 0 | N117: 0.110901075 | O117: 0
C118: 3,0 - 4,0 | D118: =$H$4*D110 -> 0 | E118: 0 | F118: 0 | G118: 0 | H118: 0 | I118: 0 | J118: 0 | K118: 0 | L118: 0 | M118: 0 | N118: 0 | O118: 0
C119: Σ | E119: =SUM(E115:E118) -> 0.234723875 | H119: =SUM(H115:H118) -> 0.511109975 | K119: =SUM(K115:K118) -> 0.71046855 | N119: =SUM(N115:N118) -> 0.3757819125
D121: Gjennomsnittlig opptakseffektivitet Gruppe 2 system
D122: Vinter | E122: Vår | F122: Sommer | G122: Høst | H122: År
D123: =E119 -> 0.234723875 | E123: =H119 -> 0.511109975 | F123: =K119 -> 0.71046855 | G123: =N119 -> 0.3757819125 | H123: =SUM(D119:O119)/4 -> 0.4580210781
C127: Lokasjon | D127: 6
C129: Sesongvise frekvensfordelinger av signifikante bølgehøydeintervaller
C130: Hs (m) | E130: Vinter | H130: Vår | K130: Sommer | N130: Høst
C131: 0,0 - 1,0 | E131: 0.119133 | H131: 0.300133 | K131: 0.484767 | N131: 0.206867
C132: 1,0 - 2,0 | E132: 0.317466 | H132: 0.409967 | K132: 0.3998 | N132: 0.3867
C133: 2,0 - 3,0 | E133: 0.151233 | H133: 0.1182 | K133: 0.065 | N133: 0.128067
C134: 3,0 - 4,0 | E134: 0 | H134: 0 | K134: 0 | N134: 0
C135: Ʃ | D135: =SUM(D131:D134) -> 0 | E135: =SUM(E131:E134) -> 0.587832 | F135: 0 | G135: 0 | H135: 0.8283 | I135: 0 | J135: 0 | K135: 0.949567 | L135: 0 | M135: 0 | N135: 0.721634 | O135: 0
C137: Vektede effektiviteter (forventet effektivitet)
C138: Hs (m) | E138: Vinter | H138: Vår | K138: Sommer | N138: Høst
C139: 0,0 - 1,0 | D139: =$E$4*D131 -> 0 | E139: 0.1057305375 | F139: 0 | G139: 0 | H139: 0.2663680375 | I139: 0 | J139: 0 | K139: 0.4302307125 | L139: 0 | M139: 0 | N139: 0.1835944625 | O139: 0
C140: 1,0 - 2,0 | D140: =$F$4*D132 -> 0 | E140: 0.2539728 | F140: 0 | G140: 0 | H140: 0.3279736 | I140: 0 | J140: 0 | K140: 0.31984 | L140: 0 | M140: 0 | N140: 0.30936 | O140: 0
C141: 2,0 - 3,0 | D141: =$G$4*D133 -> 0 | E141: 0.109643925 | F141: 0 | G141: 0 | H141: 0.085695 | I141: 0 | J141: 0 | K141: 0.047125 | L141: 0 | M141: 0 | N141: 0.092848575 | O141: 0
C142: 3,0 - 4,0 | D142: =$H$4*D134 -> 0 | E142: 0 | F142: 0 | G142: 0 | H142: 0 | I142: 0 | J142: 0 | K142: 0 | L142: 0 | M142: 0 | N142: 0 | O142: 0
C143: Σ | E143: =SUM(E139:E142) -> 0.4693472625 | H143: =SUM(H139:H142) -> 0.6800366375 | K143: =SUM(K139:K142) -> 0.7971957125 | N143: =SUM(N139:N142) -> 0.5858030375
D145: Gjennomsnittlig opptakseffektivitet Gruppe 2 system
D146: Vinter | E146: Vår | F146: Sommer | G146: Høst | H146: År
D147: =E143 -> 0.4693472625 | E147: =H143 -> 0.6800366375 | F147: =K143 -> 0.7971957125 | G147: =N143 -> 0.5858030375 | H147: =SUM(D143:O143)/4 -> 0.6330956625
C151: Lokasjon | D151: 7
C153: Sesongvise frekvensfordelinger av signifikante bølgehøydeintervaller
C154: Hs (m) | E154: Vinter | H154: Vår | K154: Sommer | N154: Høst
C155: 0,0 - 1,0 | E155: 0.010866 | H155: 0.063633 | K155: 0.1906 | N155: 0.0504
C156: 1,0 - 2,0 | E156: 0.1639 | H156: 0.3915 | K156: 0.556666 | N156: 0.2714
C157: 2,0 - 3,0 | E157: 0.1229 | H157: 0.181433 | K157: 0.1218 | N157: 0.146867
C158: 3,0 - 4,0 | E158: 0 | H158: 0 | K158: 0 | N158: 0
C159: Ʃ | D159: =SUM(D155:D158) -> 0 | E159: =SUM(E155:E158) -> 0.297666 | F159: 0 | G159: 0 | H159: 0.636566 | I159: 0 | J159: 0 | K159: 0.869066 | L159: 0 | M159: 0 | N159: 0.468667 | O159: 0
C161: Vektede effektiviteter (forventet effektivitet)
C162: Hs (m) | E162: Vinter | H162: Vår | K162: Sommer | N162: Høst
C163: 0,0 - 1,0 | D163: =$E$4*D155 -> 0 | E163: 0.009643575 | F163: 0 | G163: 0 | H163: 0.0564742875 | I163: 0 | J163: 0 | K163: 0.1691575 | L163: 0 | M163: 0 | N163: 0.04473 | O163: 0
C164: 1,0 - 2,0 | D164: =$F$4*D156 -> 0 | E164: 0.13112 | F164: 0 | G164: 0 | H164: 0.3132 | I164: 0 | J164: 0 | K164: 0.4453328 | L164: 0 | M164: 0 | N164: 0.21712 | O164: 0
C165: 2,0 - 3,0 | D165: =$G$4*D157 -> 0 | E165: 0.0891025 | F165: 0 | G165: 0 | H165: 0.131538925 | I165: 0 | J165: 0 | K165: 0.088305 | L165: 0 | M165: 0 | N165: 0.106478575 | O165: 0
C166: 3,0 - 4,0 | D166: =$H$4*D158 -> 0 | E166: 0 | F166: 0 | G166: 0 | H166: 0 | I166: 0 | J166: 0 | K166: 0 | L166: 0 | M166: 0 | N166: 0 | O166: 0
C167: Σ | E167: =SUM(E163:E166) -> 0.229866075 | H167: =SUM(H163:H166) -> 0.5012132125 | K167: =SUM(K163:K166) -> 0.7027953 | N167: =SUM(N163:N166) -> 0.368328575
D169: Gjennomsnittlig opptakseffektivitet Gruppe 2 system
D170: Vinter | E170: Vår | F170: Sommer | G170: Høst | H170: År
D171: =E167 -> 0.229866075 | E171: =H167 -> 0.5012132125 | F171: =K167 -> 0.7027953 | G171: =N167 -> 0.368328575 | H171: =SUM(D167:O167)/4 -> 0.4505507906
C175: Lokasjon | D175: 8
C177: Sesongvise frekvensfordelinger av signifikante bølgehøydeintervaller
C178: Hs (m) | E178: Vinter | H178: Vår | K178: Sommer | N178: Høst
C179: 0,0 - 1,0 | E179: 0.013833 | H179: 0.067633 | K179: 0.202333 | N179: 0.058667
C180: 1,0 - 2,0 | E180: 0.168167 | H180: 0.398866 | K180: 0.545967 | N180: 0.2716
C181: 2,0 - 3,0 | E181: 0.129933 | H181: 0.1759 | K181: 0.113533 | N181: 0.150967
C182: 3,0 - 4,0 | E182: 0 | H182: 0 | K182: 0 | N182: 0
C183: Ʃ | D183: =SUM(D179:D182) -> 0 | E183: =SUM(E179:E182) -> 0.311933 | F183: 0 | G183: 0 | H183: 0.642399 | I183: 0 | J183: 0 | K183: 0.861833 | L183: 0 | M183: 0 | N183: 0.481234 | O183: 0
C185: Vektede effektiviteter (forventet effektivitet)
C186: Hs (m) | E186: Vinter | H186: Vår | K186: Sommer | N186: Høst
C187: 0,0 - 1,0 | D187: =$E$4*D179 -> 0 | E187: 0.0122767875 | F187: 0 | G187: 0 | H187: 0.0600242875 | I187: 0 | J187: 0 | K187: 0.1795705375 | L187: 0 | M187: 0 | N187: 0.0520669625 | O187: 0
C188: 1,0 - 2,0 | D188: =$F$4*D180 -> 0 | E188: 0.1345336 | F188: 0 | G188: 0 | H188: 0.3190928 | I188: 0 | J188: 0 | K188: 0.4367736 | L188: 0 | M188: 0 | N188: 0.21728 | O188: 0
C189: 2,0 - 3,0 | D189: =$G$4*D181 -> 0 | E189: 0.094201425 | F189: 0 | G189: 0 | H189: 0.1275275 | I189: 0 | J189: 0 | K189: 0.082311425 | L189: 0 | M189: 0 | N189: 0.109451075 | O189: 0
C190: 3,0 - 4,0 | D190: =$H$4*D182 -> 0 | E190: 0 | F190: 0 | G190: 0 | H190: 0 | I190: 0 | J190: 0 | K190: 0 | L190: 0 | M190: 0 | N190: 0 | O190: 0
C191: Σ | E191: =SUM(E187:E190) -> 0.2410118125 | H191: =SUM(H187:H190) -> 0.5066445875 | K191: =SUM(K187:K190) -> 0.6986555625 | N191: =SUM(N187:N190) -> 0.3787980375
D193: Gjennomsnittlig opptakseffektivitet Gruppe 2 system
D194: Vinter | E194: Vår | F194: Sommer | G194: Høst | H194: År
D195: =E191 -> 0.2410118125 | E195: =H191 -> 0.5066445875 | F195: =K191 -> 0.6986555625 | G195: =N191 -> 0.3787980375 | H195: =SUM(D191:O191)/4 -> 0.4562775
C199: Lokasjon | D199: 9
C201: Sesongvise frekvensfordelinger av signifikante bølgehøydeintervaller
C202: Hs (m) | E202: Vinter | H202: Vår | K202: Sommer | N202: Høst
C203: 0,0 - 1,0 | E203: 0.017233 | H203: 0.069733 | K203: 0.212167 | N203: 0.0613
C204: 1,0 - 2,0 | E204: 0.1649 | H204: 0.391366 | K204: 0.535833 | N204: 0.273334
C205: 2,0 - 3,0 | E205: 0.131067 | H205: 0.1715 | K205: 0.113733 | N205: 0.151367
C206: 3,0 - 4,0 | E206: 0 | H206: 0 | K206: 0 | N206: 0
C207: Ʃ | D207: =SUM(D203:D206) -> 0 | E207: =SUM(E203:E206) -> 0.3132 | F207: 0 | G207: 0 | H207: 0.632599 | I207: 0 | J207: 0 | K207: 0.861733 | L207: 0 | M207: 0 | N207: 0.486001 | O207: 0
C209: Vektede effektiviteter (forventet effektivitet)
C210: Hs (m) | E210: Vinter | H210: Vår | K210: Sommer | N210: Høst
C211: 0,0 - 1,0 | D211: =$E$4*D203 -> 0 | E211: 0.0152942875 | F211: 0 | G211: 0 | H211: 0.0618880375 | I211: 0 | J211: 0 | K211: 0.1882982125 | L211: 0 | M211: 0 | N211: 0.05440375 | O211: 0
C212: 1,0 - 2,0 | D212: =$F$4*D204 -> 0 | E212: 0.13192 | F212: 0 | G212: 0 | H212: 0.3130928 | I212: 0 | J212: 0 | K212: 0.4286664 | L212: 0 | M212: 0 | N212: 0.2186672 | O212: 0
C213: 2,0 - 3,0 | D213: =$G$4*D205 -> 0 | E213: 0.095023575 | F213: 0 | G213: 0 | H213: 0.1243375 | I213: 0 | J213: 0 | K213: 0.082456425 | L213: 0 | M213: 0 | N213: 0.109741075 | O213: 0
C214: 3,0 - 4,0 | D214: =$H$4*D206 -> 0 | E214: 0 | F214: 0 | G214: 0 | H214: 0 | I214: 0 | J214: 0 | K214: 0 | L214: 0 | M214: 0 | N214: 0 | O214: 0
C215: Σ | E215: =SUM(E211:E214) -> 0.2422378625 | H215: =SUM(H211:H214) -> 0.4993183375 | K215: =SUM(K211:K214) -> 0.6994210375 | N215: =SUM(N211:N214) -> 0.382812025
D217: Gjennomsnittlig opptakseffektivitet Gruppe 2 system
D218: Vinter | E218: Vår | F218: Sommer | G218: Høst | H218: År
D219: =E215 -> 0.2422378625 | E219: =H215 -> 0.4993183375 | F219: =K215 -> 0.6994210375 | G219: =N215 -> 0.382812025 | H219: =SUM(D215:O215)/4 -> 0.4559473156
C223: Lokasjon | D223: 10
C225: Sesongvise frekvensfordelinger av signifikante bølgehøydeintervaller
C226: Hs (m) | E226: Vinter | H226: Vår | K226: Sommer | N226: Høst
C227: 0,0 - 1,0 | E227: 0.0083 | H227: 0.048067 | K227: 0.166966 | N227: 0.036267
C228: 1,0 - 2,0 | E228: 0.126 | H228: 0.349366 | K228: 0.559467 | N228: 0.2508
C229: 2,0 - 3,0 | E229: 0.119 | H229: 0.182733 | K229: 0.116667 | N229: 0.1514
C230: 3,0 - 4,0 | E230: 0 | H230: 0 | K230: 0 | N230: 0
C231: Ʃ | D231: =SUM(D227:D230) -> 0 | E231: =SUM(E227:E230) -> 0.2533 | F231: 0 | G231: 0 | H231: 0.580166 | I231: 0 | J231: 0 | K231: 0.8431 | L231: 0 | M231: 0 | N231: 0.438467 | O231: 0
C233: Vektede effektiviteter (forventet effektivitet)
C234: Hs (m) | E234: Vinter | H234: Vår | K234: Sommer | N234: Høst
C235: 0,0 - 1,0 | D235: =$E$4*D227 -> 0 | E235: 0.00736625 | F235: 0 | G235: 0 | H235: 0.0426594625 | I235: 0 | J235: 0 | K235: 0.148182325 | L235: 0 | M235: 0 | N235: 0.0321869625 | O235: 0
C236: 1,0 - 2,0 | D236: =$F$4*D228 -> 0 | E236: 0.1008 | F236: 0 | G236: 0 | H236: 0.2794928 | I236: 0 | J236: 0 | K236: 0.4475736 | L236: 0 | M236: 0 | N236: 0.20064 | O236: 0
C237: 2,0 - 3,0 | D237: =$G$4*D229 -> 0 | E237: 0.086275 | F237: 0 | G237: 0 | H237: 0.132481425 | I237: 0 | J237: 0 | K237: 0.084583575 | L237: 0 | M237: 0 | N237: 0.109765 | O237: 0
C238: 3,0 - 4,0 | D238: =$H$4*D230 -> 0 | E238: 0 | F238: 0 | G238: 0 | H238: 0 | I238: 0 | J238: 0 | K238: 0 | L238: 0 | M238: 0 | N238: 0 | O238: 0
C239: Σ | E239: =SUM(E235:E238) -> 0.19444125 | H239: =SUM(H235:H238) -> 0.4546336875 | K239: =SUM(K235:K238) -> 0.6803395 | N239: =SUM(N235:N238) -> 0.3425919625
D241: Gjennomsnittlig opptakseffektivitet Gruppe 2 system
D242: Vinter | E242: Vår | F242: Sommer | G242: Høst | H242: År
D243: =E239 -> 0.19444125 | E243: =H239 -> 0.4546336875 | F243: =K239 -> 0.6803395 | G243: =N239 -> 0.3425919625 | H243: =SUM(D239:O239)/4 -> 0.4180016
C247: Lokasjon | D247: 11
C249: Sesongvise frekvensfordelinger av signifikante bølgehøydeintervaller
C250: Hs (m) | E250: Vinter | H250: Vår | K250: Sommer | N250: Høst
C251: 0,0 - 1,0 | E251: 0.016434 | H251: 0.075133 | K251: 0.2234 | N251: 0.057966
C252: 1,0 - 2,0 | E252: 0.173433 | H252: 0.379333 | K252: 0.524767 | N252: 0.2879
C253: 2,0 - 3,0 | E253: 0.121433 | H253: 0.1656 | K253: 0.108033 | N253: 0.149133
C254: 3,0 - 4,0 | E254: 0 | H254: 0 | K254: 0 | N254: 0
C255: Ʃ | D255: =SUM(D251:D254) -> 0 | E255: =SUM(E251:E254) -> 0.3113 | F255: 0 | G255: 0 | H255: 0.620066 | I255: 0 | J255: 0 | K255: 0.8562 | L255: 0 | M255: 0 | N255: 0.494999 | O255: 0
C257: Vektede effektiviteter (forventet effektivitet)
C258: Hs (m) | E258: Vinter | H258: Vår | K258: Sommer | N258: Høst
C259: 0,0 - 1,0 | D259: =$E$4*D251 -> 0 | E259: 0.014585175 | F259: 0 | G259: 0 | H259: 0.0666805375 | I259: 0 | J259: 0 | K259: 0.1982675 | L259: 0 | M259: 0 | N259: 0.051444825 | O259: 0
C260: 1,0 - 2,0 | D260: =$F$4*D252 -> 0 | E260: 0.1387464 | F260: 0 | G260: 0 | H260: 0.3034664 | I260: 0 | J260: 0 | K260: 0.4198136 | L260: 0 | M260: 0 | N260: 0.23032 | O260: 0
C261: 2,0 - 3,0 | D261: =$G$4*D253 -> 0 | E261: 0.088038925 | F261: 0 | G261: 0 | H261: 0.12006 | I261: 0 | J261: 0 | K261: 0.078323925 | L261: 0 | M261: 0 | N261: 0.108121425 | O261: 0
C262: 3,0 - 4,0 | D262: =$H$4*D254 -> 0 | E262: 0 | F262: 0 | G262: 0 | H262: 0 | I262: 0 | J262: 0 | K262: 0 | L262: 0 | M262: 0 | N262: 0 | O262: 0
C263: Σ | E263: =SUM(E259:E262) -> 0.2413705 | H263: =SUM(H259:H262) -> 0.4902069375 | K263: =SUM(K259:K262) -> 0.696405025 | N263: =SUM(N259:N262) -> 0.38988625
D265: Gjennomsnittlig opptakseffektivitet Gruppe 2 system
D266: Vinter | E266: Vår | F266: Sommer | G266: Høst | H266: År
D267: =E263 -> 0.2413705 | E267: =H263 -> 0.4902069375 | F267: =K263 -> 0.696405025 | G267: =N263 -> 0.38988625 | H267: =SUM(D263:O263)/4 -> 0.4544671781
... 288 more rows

Sheet Op.Eff.STOTTE.KYSTVAKT (hidden)
C3: Hs intervall (m) | E3: 0,0 - 1,0 | F3: 1,0 -2,0 | G3: 2,0 - 3,0 | H3: 3,0 - 4,0
C4: Opptakseffektivitet | E4: 0.795 | F4: 0.72 | G4: 0.625 | H4: 0.525
C7: Lokasjon | D7: Stasjon1_Cutoff1_nymetode_etterGMS.xls
C9: Månedlige frekvensfordelinger av signifikante bølgehøydeintervaller
C10: Hs (m) | D10: Jan | E10: Feb | F10: Mar | G10: Apr | H10: Mai | I10: Jun | J10: Jul | K10: Aug | L10: Sep | M10: Okt | N10: Nov | O10: Des
C11: 0,0 - 1,0 | D11: 0.03684684769 | E11: 0.05334010377 | F11: 0.07848785203 | G11: 0.1454690094 | H11: 0.28299714 | I11: 0.2846939489 | J11: 0.3570962308 | K11: 0.341695352 | L11: 0.1895744465 | M11: 0.1168574461 | N11: 0.07773958991 | O11: 0.03215520333
C12: 1,0 - 2,0 | D12: 0.2523876756 | E12: 0.26195424 | F12: 0.3188044489 | G12: 0.4537472333 | H12: 0.5198524255 | I12: 0.5564920159 | J12: 0.5196647585 | K12: 0.5011521387 | L12: 0.4223001972 | M12: 0.3528704019 | N12: 0.3184665849 | O12: 0.2527733662
C13: 2,0 - 3,0 | D13: 0.2825011762 | E13: 0.2746089604 | F13: 0.2767787289 | G13: 0.2407607918 | H13: 0.1381228769 | I13: 0.1129389031 | J13: 0.09750256198 | K13: 0.1191631942 | L13: 0.2187182981 | M13: 0.2584947751 | N13: 0.2772629772 | O13: 0.281126244
C14: 3,0 - 4,0
C15: Ʃ | D15: =SUM(D11:D14) -> 0.5717356994 | E15: =SUM(E11:E14) -> 0.5899033042 | F15: 0.6740710299 | G15: 0.8399770346 | H15: 0.9409724424 | I15: 0.9541248678 | J15: 0.9742635513 | K15: 0.9620106849 | L15: 0.8305929417 | M15: 0.7282226231 | N15: 0.673469152 | O15: 0.5660548136
C17: Vektede effektiviteter (forventet effektivitet)
C18: Hs (m) | D18: Jan | E18: Feb | F18: Mar | G18: Apr | H18: Mai | I18: Jun | J18: Jul | K18: Aug | L18: Sep | M18: Okt | N18: Nov | O18: Des
C19: 0,0 - 1,0 | D19: =$E$4*D11 -> 0.02929324392 | E19: =$E$4*E11 -> 0.04240538249 | F19: 0.06239784236 | G19: 0.1156478625 | H19: 0.2249827263 | I19: 0.2263316893 | J19: 0.2838915035 | K19: 0.2716478048 | L19: 0.1507116849 | M19: 0.09290166967 | N19: 0.06180297398 | O19: 0.02556338665
C20: 1,0 - 2,0 | D20: =$F$4*D12 -> 0.1817191264 | E20: =$F$4*E12 -> 0.1886070528 | F20: 0.2295392032 | G20: 0.326698008 | H20: 0.3742937463 | I20: 0.4006742514 | J20: 0.3741586262 | K20: 0.3608295399 | L20: 0.304056142 | M20: 0.2540666894 | N20: 0.2292959411 | O20: 0.1819968237
C21: 2,0 - 3,0 | D21: =$G$4*D13 -> 0.1765632351 | E21: =$G$4*E13 -> 0.1716306003 | F21: 0.1729867056 | G21: 0.1504754949 | H21: 0.08632679806 | I21: 0.07058681442 | J21: 0.06093910123 | K21: 0.07447699639 | L21: 0.1366989363 | M21: 0.1615592344 | N21: 0.1732893608 | O21: 0.1757039025
C22: 3,0 - 4,0 | D22: =$H$4*D14 -> 0 | E22: =$H$4*E14 -> 0 | F22: 0 | G22: 0 | H22: 0 | I22: 0 | J22: 0 | K22: 0 | L22: 0 | M22: 0 | N22: 0 | O22: 0
C23: Σ | D23: =SUM(D19:D22) -> 0.3875756054 | E23: 0.4026430356 | F23: 0.4649237512 | G23: 0.5928213654 | H23: 0.6856032707 | I23: 0.6975927552 | J23: 0.7189892309 | K23: 0.7069543411 | L23: 0.5914667632 | M23: 0.5085275935 | N23: 0.4643882759 | O23: 0.3832641129
D25: Gjennomsnittlig opptakseffektivitet NOFO-system
D26: Vinter | E26: Vår | F26: Sommer | G26: Høst | H26: År
D27: =(O23+D23+E23)/3 -> 0.391160918 | E27: =(F23+G23+H23)/3 -> 0.5811161291 | F27: =(I23+J23+K23)/3 -> 0.7078454424 | G27: =(L23+M23+N23)/3 -> 0.5214608775 | H27: =SUM(D23:O23)/12 -> 0.5503958417
C31: Lokasjon | D31: Stasjon2_Cutoff1_nymetode_etterGMS.xls
C33: Månedlige frekvensfordelinger av signifikante bølgehøydeintervaller
C34: Hs (m) | D34: Jan | E34: Feb | F34: Mar | G34: Apr | H34: Mai | I34: Jun | J34: Jul | K34: Aug | L34: Sep | M34: Okt | N34: Nov | O34: Des
C35: 0,0 - 1,0 | D35: 0.008646218067 | E35: 0.01933846402 | F35: 0.03471107724 | G35: 0.06965544796 | H35: 0.170561037 | I35: 0.1894764178 | J35: 0.2461015523 | K35: 0.2255059572 | L35: 0.1029754815 | M35: 0.04234197155 | N35: 0.02422641144 | O35: 0.00643815833
C36: 1,0 - 2,0 | D36: 0.16318971 | E36: 0.1901651636 | F36: 0.2415723209 | G36: 0.4150203218 | H36: 0.5424181522 | I36: 0.5877574064 | J36: 0.5706712632 | K36: 0.5555207092 | L36: 0.4144750761 | M36: 0.3013499704 | N36: 0.2392117122 | O36: 0.1549365796
C37: 2,0 - 3,0 | D37: 0.2653680034 | E37: 0.2750540707 | F37: 0.2918493104 | G37: 0.2924005942 | H37: 0.2028043021 | I37: 0.1593189322 | J37: 0.1412332823 | K37: 0.1552366619 | L37: 0.2579043545 | M37: 0.2831641786 | N37: 0.2927913566 | O37: 0.2872274259
C38: 3,0 - 4,0
C39: Ʃ | D39: =SUM(D35:D38) -> 0.4372039315 | E39: =SUM(E35:E38) -> 0.4845576983 | F39: 0.5681327085 | G39: 0.777076364 | H39: 0.9157834913 | I39: 0.9365527564 | J39: 0.9580060979 | K39: 0.9362633282 | L39: 0.7753549121 | M39: 0.6268561206 | N39: 0.5562294802 | O39: 0.4486021637
C41: Vektede effektiviteter (forventet effektivitet)
C42: Hs (m) | D42: Jan | E42: Feb | F42: Mar | G42: Apr | H42: Mai | I42: Jun | J42: Jul | K42: Aug | L42: Sep | M42: Okt | N42: Nov | O42: Des
C43: 0,0 - 1,0 | D43: =$E$4*D35 -> 0.006873743363 | E43: 0.01537407889 | F43: 0.02759530641 | G43: 0.05537608113 | H43: 0.1355960244 | I43: 0.1506337521 | J43: 0.1956507341 | K43: 0.179277236 | L43: 0.08186550778 | M43: 0.03366186738 | N43: 0.01925999709 | O43: 0.005118335872
C44: 1,0 - 2,0 | D44: =$F$4*D36 -> 0.1174965912 | E44: 0.1369189178 | F44: 0.173932071 | G44: 0.2988146317 | H44: 0.3905410696 | I44: 0.4231853326 | J44: 0.4108833095 | K44: 0.3999749106 | L44: 0.2984220548 | M44: 0.2169719787 | N44: 0.1722324328 | O44: 0.1115543373
C45: 2,0 - 3,0 | D45: =$G$4*D37 -> 0.1658550021 | E45: 0.1719087942 | F45: 0.182405819 | G45: 0.1827503714 | H45: 0.1267526888 | I45: 0.09957433262 | J45: 0.08827080146 | K45: 0.09702291368 | L45: 0.1611902216 | M45: 0.1769776116 | N45: 0.1829945979 | O45: 0.1795171412
C46: 3,0 - 4,0 | D46: =$H$4*D38 -> 0 | E46: 0 | F46: 0 | G46: 0 | H46: 0 | I46: 0 | J46: 0 | K46: 0 | L46: 0 | M46: 0 | N46: 0 | O46: 0
C47: Σ | D47: =SUM(D43:D46) -> 0.2902253367 | E47: 0.3242017909 | F47: 0.3839331964 | G47: 0.5369410842 | H47: 0.6528897828 | I47: 0.6733934174 | J47: 0.6948048451 | K47: 0.6762750602 | L47: 0.5414777841 | M47: 0.4276114577 | N47: 0.3744870278 | O47: 0.2961898143
D49: Gjennomsnittlig opptakseffektivitet NOFO-system
D50: Vinter | E50: Vår | F50: Sommer | G50: Høst | H50: År
D51: =(O47+D47+E47)/3 -> 0.3035389806 | E51: =(F47+G47+H47)/3 -> 0.5245880211 | F51: =(I47+J47+K47)/3 -> 0.6814911076 | G51: =(L47+M47+N47)/3 -> 0.4478587565 | H51: =SUM(D47:O47)/12 -> 0.4893692165
C55: Lokasjon | D55: Stasjon3_Cutoff1_nymetode_etterGMS.xls
C57: Månedlige frekvensfordelinger av signifikante bølgehøydeintervaller
C58: Hs (m) | D58: Jan | E58: Feb | F58: Mar | G58: Apr | H58: Mai | I58: Jun | J58: Jul | K58: Aug | L58: Sep | M58: Okt | N58: Nov | O58: Des
C59: 0,0 - 1,0 | D59: 0.04273906437 | E59: 0.06324450825 | F59: 0.09761855167 | G59: 0.1901627455 | H59: 0.3449510089 | I59: 0.3672444553 | J59: 0.4577731705 | K59: 0.4304453578 | L59: 0.2447955462 | M59: 0.1405528416 | N59: 0.08464095098 | O59: 0.035978533
C60: 1,0 - 2,0 | D60: 0.3275326016 | E60: 0.3315787606 | F60: 0.4009710719 | G60: 0.493592594 | H60: 0.5137912284 | I60: 0.5240966825 | J60: 0.4592021076 | K60: 0.4701144789 | L60: 0.4560937186 | M60: 0.4175680644 | N60: 0.3944576288 | O60: 0.3190817775
C61: 2,0 - 3,0 | D61: 0.3049580518 | E61: 0.3018583705 | F61: 0.2704003617 | G61: 0.2144627152 | H61: 0.1068849593 | I61: 0.08010088066 | J61: 0.07194272404 | K61: 0.07962121162 | L61: 0.1880326671 | M61: 0.25421093 | N61: 0.2930860755 | O61: 0.3241329271
C62: 3,0 - 4,0
C63: Ʃ | D63: =SUM(D59:D62) -> 0.6752297178 | E63: =SUM(E59:E62) -> 0.6966816393 | F63: 0.7689899853 | G63: 0.8982180547 | H63: 0.9656271967 | I63: 0.9714420185 | J63: 0.9889180021 | K63: 0.9801810483 | L63: 0.8889219319 | M63: 0.812331836 | N63: 0.7721846553 | O63: 0.6791932377
C65: Vektede effektiviteter (forventet effektivitet)
C66: Hs (m) | D66: Jan | E66: Feb | F66: Mar | G66: Apr | H66: Mai | I66: Jun | J66: Jul | K66: Aug | L66: Sep | M66: Okt | N66: Nov | O66: Des
C67: 0,0 - 1,0 | D67: =$E$4*D59 -> 0.03397755617 | E67: 0.05027938406 | F67: 0.07760674858 | G67: 0.1511793827 | H67: 0.2742360521 | I67: 0.291959342 | J67: 0.3639296706 | K67: 0.3422040594 | L67: 0.1946124592 | M67: 0.1117395091 | N67: 0.06728955603 | O67: 0.02860293373
C68: 1,0 - 2,0 | D68: =$F$4*D60 -> 0.2358234732 | E68: 0.2387367076 | F68: 0.2886991718 | G68: 0.3553866677 | H68: 0.3699296844 | I68: 0.3773496114 | J68: 0.3306255174 | K68: 0.3384824248 | L68: 0.3283874774 | M68: 0.3006490064 | N68: 0.2840094927 | O68: 0.2297388798
C69: 2,0 - 3,0 | D69: =$G$4*D61 -> 0.1905987824 | E69: 0.1886614816 | F69: 0.1690002261 | G69: 0.134039197 | H69: 0.06680309959 | I69: 0.05006305041 | J69: 0.04496420253 | K69: 0.04976325727 | L69: 0.1175204169 | M69: 0.1588818312 | N69: 0.1831787972 | O69: 0.2025830795
C70: 3,0 - 4,0 | D70: =$H$4*D62 -> 0 | E70: 0 | F70: 0 | G70: 0 | H70: 0 | I70: 0 | J70: 0 | K70: 0 | L70: 0 | M70: 0 | N70: 0 | O70: 0
C71: Σ | D71: =SUM(D67:D70) -> 0.4603998117 | E71: 0.4776775732 | F71: 0.5353061464 | G71: 0.6406052474 | H71: 0.7109688361 | I71: 0.7193720038 | J71: 0.7395193905 | K71: 0.7304497415 | L71: 0.6405203536 | M71: 0.5712703467 | N71: 0.534477846 | O71: 0.460924893
D73: Gjennomsnittlig opptakseffektivitet NOFO-system
D74: Vinter | E74: Vår | F74: Sommer | G74: Høst | H74: År
D75: =(O71+D71+E71)/3 -> 0.4663340926 | E75: =(F71+G71+H71)/3 -> 0.6289600766 | F75: =(I71+J71+K71)/3 -> 0.7297803786 | G75: =(L71+M71+N71)/3 -> 0.5820895154 | H75: =SUM(D71:O71)/12 -> 0.6017910158
C79: Lokasjon | D79: Stasjon4_Cutoff1_nymetode_etterGMS.xls
C81: Månedlige frekvensfordelinger av signifikante bølgehøydeintervaller
C82: Hs (m) | D82: Jan | E82: Feb | F82: Mar | G82: Apr | H82: Mai | I82: Jun | J82: Jul | K82: Aug | L82: Sep | M82: Okt | N82: Nov | O82: Des
C83: 0,0 - 1,0 | D83: 0.003730715038 | E83: 0.008257019388 | F83: 0.02094559296 | G83: 0.05118017647 | H83: 0.152550196 | I83: 0.1684732725 | J83: 0.2284158935 | K83: 0.1943842421 | L83: 0.07301694131 | M83: 0.02433136643 | N83: 0.01433982771 | O83: 0.002264872443
C84: 1,0 - 2,0 | D84: 0.134066963 | E84: 0.1682743817 | F84: 0.2185984094 | G84: 0.3973185082 | H84: 0.5355476525 | I84: 0.5882446853 | J84: 0.5749609011 | K84: 0.5758253339 | L84: 0.4161691166 | M84: 0.2754699837 | N84: 0.2043307798 | O84: 0.1309231234
C85: 2,0 - 3,0 | D85: 0.2640231381 | E85: 0.270088106 | F85: 0.3026816947 | G85: 0.3111062856 | H85: 0.2207523054 | I85: 0.1788093838 | J85: 0.1528024749 | K85: 0.1636093681 | L85: 0.2745640702 | M85: 0.2943054377 | N85: 0.2960612473 | O85: 0.2816890755
C86: 3,0 - 4,0
C87: Ʃ | D87: =SUM(D83:D86) -> 0.4018208161 | E87: =SUM(E83:E86) -> 0.446619507 | F87: 0.542225697 | G87: 0.7596049703 | H87: 0.9088501538 | I87: 0.9355273417 | J87: 0.9561792695 | K87: 0.9338189441 | L87: 0.7637501281 | M87: 0.5941067878 | N87: 0.5147318548 | O87: 0.4148770713
C89: Vektede effektiviteter (forventet effektivitet)
C90: Hs (m) | D90: Jan | E90: Feb | F90: Mar | G90: Apr | H90: Mai | I90: Jun | J90: Jul | K90: Aug | L90: Sep | M90: Okt | N90: Nov | O90: Des
C91: 0,0 - 1,0 | D91: =$E$4*D83 -> 0.002965918455 | E91: 0.006564330414 | F91: 0.0166517464 | G91: 0.0406882403 | H91: 0.1212774058 | I91: 0.1339362517 | J91: 0.1815906354 | K91: 0.1545354725 | L91: 0.05804846834 | M91: 0.01934343631 | N91: 0.01140016303 | O91: 0.001800573592
C92: 1,0 - 2,0 | D92: =$F$4*D84 -> 0.09652821338 | E92: 0.1211575548 | F92: 0.1573908548 | G92: 0.2860693259 | H92: 0.3855943098 | I92: 0.4235361734 | J92: 0.4139718488 | K92: 0.4145942404 | L92: 0.299641764 | M92: 0.1983383882 | N92: 0.1471181614 | O92: 0.09426464883
C93: 2,0 - 3,0 | D93: =$G$4*D85 -> 0.1650144613 | E93: 0.1688050662 | F93: 0.1891760592 | G93: 0.1944414285 | H93: 0.1379701909 | I93: 0.1117558649 | J93: 0.0955015468 | K93: 0.102255855 | L93: 0.1716025439 | M93: 0.1839408986 | N93: 0.1850382796 | O93: 0.1760556722
C94: 3,0 - 4,0 | D94: =$H$4*D86 -> 0 | E94: 0 | F94: 0 | G94: 0 | H94: 0 | I94: 0 | J94: 0 | K94: 0 | L94: 0 | M94: 0 | N94: 0 | O94: 0
C95: Σ | D95: =SUM(D91:D94) -> 0.2645085931 | E95: 0.2965269515 | F95: 0.3632186603 | G95: 0.5211989947 | H95: 0.6448419065 | I95: 0.66922829 | J95: 0.691064031 | K95: 0.6713855679 | L95: 0.5292927762 | M95: 0.4016227231 | N95: 0.343556604 | O95: 0.2721208946
D97: Gjennomsnittlig opptakseffektivitet NOFO-system
D98: Vinter | E98: Vår | F98: Sommer | G98: Høst | H98: År
D99: =(O95+D95+E95)/3 -> 0.2777188131 | E99: =(F95+G95+H95)/3 -> 0.5097531872 | F99: =(I95+J95+K95)/3 -> 0.677225963 | G99: =(L95+M95+N95)/3 -> 0.4248240344 | H99: =SUM(D95:O95)/12 -> 0.4723804994
C103: Lokasjon | D103: Stasjon5_Cutoff1_nymetode_etterGMS.xls
C105: Månedlige frekvensfordelinger av signifikante bølgehøydeintervaller
C106: Hs (m) | D106: Jan | E106: Feb | F106: Mar | G106: Apr | H106: Mai | I106: Jun | J106: Jul | K106: Aug | L106: Sep | M106: Okt | N106: Nov | O106: Des
C107: 0,0 - 1,0 | D107: 0.02627007195 | E107: 0.04449432107 | F107: 0.07241428264 | G107: 0.1651926638 | H107: 0.3282140224 | I107: 0.3392050297 | J107: 0.4016270309 | K107: 0.3960433301 | L107: 0.2073977797 | M107: 0.1019048358 | N107: 0.06348727767 | O107: 0.03410698823
C108: 1,0 - 2,0 | D108: 0.2689990888 | E108: 0.2742756685 | F108: 0.3412262134 | G108: 0.4631180731 | H108: 0.4964365553 | I108: 0.5150021372 | J108: 0.4893245269 | K108: 0.4646436736 | L108: 0.432854367 | M108: 0.3852637535 | N108: 0.3485696524 | O108: 0.2575480356
C109: 2,0 - 3,0 | D109: 0.299576358 | E109: 0.2891644725 | F109: 0.2866338051 | G109: 0.2323062104 | H109: 0.1256210412 | I109: 0.108495152 | J109: 0.08953433973 | K109: 0.1043454892 | L109: 0.2086602035 | M109: 0.2678155944 | N109: 0.2871409911 | O109: 0.3071156502
C110: 3,0 - 4,0
C111: Ʃ | D111: =SUM(D107:D110) -> 0.5948455187 | E111: =SUM(E107:E110) -> 0.607934462 | F111: 0.7002743012 | G111: 0.8606169473 | H111: 0.9502716189 | I111: 0.9627023188 | J111: 0.9804858976 | K111: 0.965032493 | L111: 0.8489123503 | M111: 0.7549841837 | N111: 0.6991979212 | O111: 0.5987706741
C113: Vektede effektiviteter (forventet effektivitet)
C114: Hs (m) | D114: Jan | E114: Feb | F114: Mar | G114: Apr | H114: Mai | I114: Jun | J114: Jul | K114: Aug | L114: Sep | M114: Okt | N114: Nov | O114: Des
C115: 0,0 - 1,0 | D115: =$E$4*D107 -> 0.0208847072 | E115: 0.03537298525 | F115: 0.0575693547 | G115: 0.1313281677 | H115: 0.2609301478 | I115: 0.2696679986 | J115: 0.3192934896 | K115: 0.3148544474 | L115: 0.1648812349 | M115: 0.08101434445 | N115: 0.05047238575 | O115: 0.02711505565
C116: 1,0 - 2,0 | D116: =$F$4*D108 -> 0.193679344 | E116: 0.1974784813 | F116: 0.2456828737 | G116: 0.3334450126 | H116: 0.3574343198 | I116: 0.3708015388 | J116: 0.3523136594 | K116: 0.334543445 | L116: 0.3116551443 | M116: 0.2773899025 | N116: 0.2509701497 | O116: 0.1854345857
C117: 2,0 - 3,0 | D117: =$G$4*D109 -> 0.1872352237 | E117: 0.1807277953 | F117: 0.1791461282 | G117: 0.1451913815 | H117: 0.07851315077 | I117: 0.06780946998 | J117: 0.05595896233 | K117: 0.06521593077 | L117: 0.1304126272 | M117: 0.1673847465 | N117: 0.1794631195 | O117: 0.1919472814
C118: 3,0 - 4,0 | D118: =$H$4*D110 -> 0 | E118: 0 | F118: 0 | G118: 0 | H118: 0 | I118: 0 | J118: 0 | K118: 0 | L118: 0 | M118: 0 | N118: 0 | O118: 0
C119: Σ | D119: =SUM(D115:D118) -> 0.4017992749 | E119: 0.4135792619 | F119: 0.4823983566 | G119: 0.6099645619 | H119: 0.6968776183 | I119: 0.7082790074 | J119: 0.7275661113 | K119: 0.7146138232 | L119: 0.6069490063 | M119: 0.5257889935 | N119: 0.4809056549 | O119: 0.4044969227
D121: Gjennomsnittlig opptakseffektivitet NOFO-system
D122: Vinter | E122: Vår | F122: Sommer | G122: Høst | H122: År
D123: =(O119+D119+E119)/3 -> 0.4066251531 | E123: =(F119+G119+H119)/3 -> 0.5964135123 | F123: =(I119+J119+K119)/3 -> 0.7168196473 | G123: =(L119+M119+N119)/3 -> 0.5378812182 | H123: =SUM(D119:O119)/12 -> 0.5644348827
C127: Lokasjon | D127: Stasjon6_Cutoff1_nymetode_etterGMS.xls
C129: Månedlige frekvensfordelinger av signifikante bølgehøydeintervaller
C130: Hs (m) | D130: Jan | E130: Feb | F130: Mar | G130: Apr | H130: Mai | I130: Jun | J130: Jul | K130: Aug | L130: Sep | M130: Okt | N130: Nov | O130: Des
C131: 0,0 - 1,0 | D131: 0.09239988456 | E131: 0.1117008905 | F131: 0.1712420583 | G131: 0.3294933812 | H131: 0.5303777738 | I131: 0.5676064568 | J131: 0.5938349959 | K131: 0.5706935028 | L131: 0.337092078 | M131: 0.2291880457 | N131: 0.1703543389 | O131: 0.1127008525
C132: 1,0 - 2,0 | D132: 0.3525075658 | E132: 0.3469905504 | F132: 0.3830746631 | G132: 0.4321090653 | H132: 0.3686387271 | I132: 0.3479968147 | J132: 0.3438042557 | K132: 0.3458334673 | L132: 0.404285396 | M132: 0.3953291098 | N132: 0.3892262825 | O132: 0.3365063023
C133: 2,0 - 3,0 | D133: 0.2729651939 | E133: 0.272451511 | F133: 0.2453032103 | G133: 0.1593747723 | H133: 0.07576354938 | I133: 0.06414893429 | J133: 0.05493011758 | K133: 0.06742882053 | L133: 0.1658773148 | M133: 0.2177529396 | N133: 0.2515023999 | O133: 0.282912246
C134: 3,0 - 4,0
C135: Ʃ | D135: =SUM(D131:D134) -> 0.7178726443 | E135: =SUM(E131:E134) -> 0.7311429519 | F135: 0.7996199318 | G135: 0.9209772187 | H135: 0.9747800503 | I135: 0.9797522058 | J135: 0.9925693692 | K135: 0.9839557906 | L135: 0.9072547888 | M135: 0.8422700951 | N135: 0.8110830213 | O135: 0.7321194008
C137: Vektede effektiviteter (forventet effektivitet)
C138: Hs (m) | D138: Jan | E138: Feb | F138: Mar | G138: Apr | H138: Mai | I138: Jun | J138: Jul | K138: Aug | L138: Sep | M138: Okt | N138: Nov | O138: Des
C139: 0,0 - 1,0 | D139: =$E$4*D131 -> 0.07345790823 | E139: 0.08880220796 | F139: 0.1361374364 | G139: 0.261947238 | H139: 0.4216503302 | I139: 0.4512471331 | J139: 0.4720988217 | K139: 0.4537013347 | L139: 0.267988202 | M139: 0.1822044963 | N139: 0.1354316995 | O139: 0.0895971777
C140: 1,0 - 2,0 | D140: =$F$4*D132 -> 0.2538054474 | E140: 0.2498331963 | F140: 0.2758137575 | G140: 0.311118527 | H140: 0.2654198835 | I140: 0.2505577066 | J140: 0.2475390641 | K140: 0.2490000965 | L140: 0.2910854851 | M140: 0.2846369591 | N140: 0.2802429234 | O140: 0.2422845377
C141: 2,0 - 3,0 | D141: =$G$4*D133 -> 0.1706032462 | E141: 0.1702821944 | F141: 0.1533145064 | G141: 0.09960923271 | H141: 0.04735221837 | I141: 0.04009308393 | J141: 0.03433132349 | K141: 0.04214301283 | L141: 0.1036733218 | M141: 0.1360955873 | N141: 0.1571889999 | O141: 0.1768201538
C142: 3,0 - 4,0 | D142: =$H$4*D134 -> 0 | E142: 0 | F142: 0 | G142: 0 | H142: 0 | I142: 0 | J142: 0 | K142: 0 | L142: 0 | M142: 0 | N142: 0 | O142: 0
C143: Σ | D143: =SUM(D139:D142) -> 0.4978666018 | E143: 0.5089175986 | F143: 0.5652657003 | G143: 0.6726749977 | H143: 0.734422432 | I143: 0.7418979237 | J143: 0.7539692093 | K143: 0.744844444 | L143: 0.6627470089 | M143: 0.6029370427 | N143: 0.5728636228 | O143: 0.5087018691
D145: Gjennomsnittlig opptakseffektivitet NOFO-system
D146: Vinter | E146: Vår | F146: Sommer | G146: Høst | H146: År
D147: =(O143+D143+E143)/3 -> 0.5051620232 | E147: =(F143+G143+H143)/3 -> 0.6574543767 | F147: =(I143+J143+K143)/3 -> 0.746903859 | G147: =(L143+M143+N143)/3 -> 0.6128492248 | H147: =SUM(D143:O143)/12 -> 0.6305923709
C151: Lokasjon | D151: Stasjon7_Cutoff1_nymetode_etterGMS.xls
C153: Månedlige frekvensfordelinger av signifikante bølgehøydeintervaller
C154: Hs (m) | D154: Jan | E154: Feb | F154: Mar | G154: Apr | H154: Mai | I154: Jun | J154: Jul | K154: Aug | L154: Sep | M154: Okt | N154: Nov | O154: Des
C155: 0,0 - 1,0 | D155: 0.001096413455 | E155: 0.005481175386 | F155: 0.01533527564 | G155: 0.04810054337 | H155: 0.1472989534 | I155: 0.1587705291 | J155: 0.2180898044 | K155: 0.1889564374 | L155: 0.06925653829 | M155: 0.01986195375 | N155: 0.00773628612 | O155: 0.002395122088
C156: 1,0 - 2,0 | D156: 0.1253640836 | E156: 0.1574185445 | F156: 0.2131773737 | G156: 0.3942151219 | H156: 0.5415563272 | I156: 0.5984202411 | J156: 0.5943577161 | K156: 0.5840632693 | L156: 0.4145041942 | M156: 0.2665417669 | N156: 0.1977998262 | O156: 0.1317957464
C157: 2,0 - 3,0 | D157: 0.276798295 | E157: 0.2750379541 | F157: 0.3117820266 | G157: 0.3198430766 | H157: 0.2220428909 | I157: 0.1812617869 | J157: 0.1460023689 | K157: 0.1673245191 | L157: 0.290429777 | M157: 0.3126189798 | N157: 0.3042605408 | O157: 0.2810909154
C158: 3,0 - 4,0
C159: Ʃ | D159: =SUM(D155:D158) -> 0.4032587921 | E159: =SUM(E155:E158) -> 0.437937674 | F159: 0.5402946759 | G159: 0.7621587418 | H159: 0.9108981716 | I159: 0.938452557 | J159: 0.9584498894 | K159: 0.9403442258 | L159: 0.7741905095 | M159: 0.5990227005 | N159: 0.5097966531 | O159: 0.4152817839
C161: Vektede effektiviteter (forventet effektivitet)
C162: Hs (m) | D162: Jan | E162: Feb | F162: Mar | G162: Apr | H162: Mai | I162: Jun | J162: Jul | K162: Aug | L162: Sep | M162: Okt | N162: Nov | O162: Des
C163: 0,0 - 1,0 | D163: =$E$4*D155 -> 0.0008716486965 | E163: 0.004357534432 | F163: 0.01219154413 | G163: 0.03823993198 | H163: 0.117102668 | I163: 0.1262225706 | J163: 0.1733813945 | K163: 0.1502203677 | L163: 0.05505894794 | M163: 0.01579025323 | N163: 0.006150347465 | O163: 0.00190412206
C164: 1,0 - 2,0 | D164: =$F$4*D156 -> 0.09026214021 | E164: 0.113341352 | F164: 0.1534877091 | G164: 0.2838348877 | H164: 0.3899205556 | I164: 0.4308625736 | J164: 0.4279375556 | K164: 0.4205255539 | L164: 0.2984430198 | M164: 0.1919100722 | N164: 0.1424158749 | O164: 0.09489293739
C165: 2,0 - 3,0 | D165: =$G$4*D157 -> 0.1729989344 | E165: 0.1718987213 | F165: 0.1948637666 | G165: 0.1999019229 | H165: 0.1387768068 | I165: 0.1132886168 | J165: 0.09125148057 | K165: 0.1045778244 | L165: 0.1815186106 | M165: 0.1953868624 | N165: 0.190162838 | O165: 0.1756818221
C166: 3,0 - 4,0 | D166: =$H$4*D158 -> 0 | E166: 0 | F166: 0 | G166: 0 | H166: 0 | I166: 0 | J166: 0 | K166: 0 | L166: 0 | M166: 0 | N166: 0 | O166: 0
C167: Σ | D167: =SUM(D163:D166) -> 0.2641327233 | E167: 0.2895976078 | F167: 0.3605430198 | G167: 0.5219767426 | H167: 0.6458000304 | I167: 0.670373761 | J167: 0.6925704306 | K167: 0.675323746 | L167: 0.5350205784 | M167: 0.4030871878 | N167: 0.3387290603 | O167: 0.2724788816
D169: Gjennomsnittlig opptakseffektivitet NOFO-system
D170: Vinter | E170: Vår | F170: Sommer | G170: Høst | H170: År
D171: =(O167+D167+E167)/3 -> 0.2754030709 | E171: =(F167+G167+H167)/3 -> 0.5094399309 | F171: =(I167+J167+K167)/3 -> 0.6794226459 | G171: =(L167+M167+N167)/3 -> 0.4256122755 | H171: =SUM(D167:O167)/12 -> 0.4724694808
C175: Lokasjon | D175: Stasjon8_Cutoff1_nymetode_etterGMS.xls
C177: Månedlige frekvensfordelinger av signifikante bølgehøydeintervaller
C178: Hs (m) | D178: Jan | E178: Feb | F178: Mar | G178: Apr | H178: Mai | I178: Jun | J178: Jul | K178: Aug | L178: Sep | M178: Okt | N178: Nov | O178: Des
C179: 0,0 - 1,0 | D179: 0.04601958312 | E179: 0.06173727716 | F179: 0.1031334028 | G179: 0.2249674455 | H179: 0.4270608926 | I179: 0.4572121153 | J179: 0.5049538854 | K179: 0.4854894902 | L179: 0.2530950121 | M179: 0.1403347966 | N179: 0.08905155802 | O179: 0.05848428582
C180: 1,0 - 2,0 | D180: 0.2825886128 | E180: 0.278640045 | F180: 0.340546637 | G180: 0.4511831419 | H180: 0.4219512486 | I180: 0.4174337059 | J180: 0.3999336056 | K180: 0.3919906362 | L180: 0.4135199111 | M180: 0.3758670565 | N180: 0.3546495168 | O180: 0.275232208
C181: 2,0 - 3,0 | D181: 0.2720094142 | E181: 0.2879975046 | F181: 0.2662546498 | G181: 0.1950323503 | H181: 0.1074408212 | I181: 0.09372904542 | J181: 0.07832102535 | K181: 0.09109159948 | L181: 0.1965034976 | M181: 0.2484593163 | N181: 0.2657176798 | O181: 0.2779206365
C182: 3,0 - 4,0
C183: Ʃ | D183: =SUM(D179:D182) -> 0.6006176101 | E183: =SUM(E179:E182) -> 0.6283748268 | F183: 0.7099346897 | G183: 0.8711829377 | H183: 0.9564529624 | I183: 0.9683748666 | J183: 0.9832085164 | K183: 0.9685717259 | L183: 0.8631184207 | M183: 0.7646611694 | N183: 0.7094187546 | O183: 0.6116371303
C185: Vektede effektiviteter (forventet effektivitet)
C186: Hs (m) | D186: Jan | E186: Feb | F186: Mar | G186: Apr | H186: Mai | I186: Jun | J186: Jul | K186: Aug | L186: Sep | M186: Okt | N186: Nov | O186: Des
C187: 0,0 - 1,0 | D187: =$E$4*D179 -> 0.03658556858 | E187: 0.04908113534 | F187: 0.08199105523 | G187: 0.1788491192 | H187: 0.3395134096 | I187: 0.3634836316 | J187: 0.4014383389 | K187: 0.3859641447 | L187: 0.2012105346 | M187: 0.1115661633 | N187: 0.07079598863 | O187: 0.04649500723
C188: 1,0 - 2,0 | D188: =$F$4*D180 -> 0.2034638012 | E188: 0.2006208324 | F188: 0.2451935787 | G188: 0.3248518621 | H188: 0.303804899 | I188: 0.3005522682 | J188: 0.2879521961 | K188: 0.2822332581 | L188: 0.297734336 | M188: 0.2706242807 | N188: 0.2553476521 | O188: 0.1981671898
C189: 2,0 - 3,0 | D189: =$G$4*D181 -> 0.1700058839 | E189: 0.1799984404 | F189: 0.1664091561 | G189: 0.121895219 | H189: 0.06715051327 | I189: 0.05858065339 | J189: 0.04895064085 | K189: 0.05693224968 | L189: 0.122814686 | M189: 0.1552870727 | N189: 0.1660735499 | O189: 0.1737003978
C190: 3,0 - 4,0 | D190: =$H$4*D182 -> 0 | E190: 0 | F190: 0 | G190: 0 | H190: 0 | I190: 0 | J190: 0 | K190: 0 | L190: 0 | M190: 0 | N190: 0 | O190: 0
C191: Σ | D191: =SUM(D187:D190) -> 0.4100552537 | E191: 0.4297004081 | F191: 0.49359379 | G191: 0.6255962003 | H191: 0.7104688219 | I191: 0.7226165533 | J191: 0.7383411758 | K191: 0.7251296525 | L191: 0.6217595565 | M191: 0.5374775167 | N191: 0.4922171906 | O191: 0.4183625948
D193: Gjennomsnittlig opptakseffektivitet NOFO-system
D194: Vinter | E194: Vår | F194: Sommer | G194: Høst | H194: År
D195: =(O191+D191+E191)/3 -> 0.4193727522 | E195: =(F191+G191+H191)/3 -> 0.6098862707 | F195: =(I191+J191+K191)/3 -> 0.7286957939 | G195: =(L191+M191+N191)/3 -> 0.5504847546 | H195: =SUM(D191:O191)/12 -> 0.5771098928
C199: Lokasjon | D199: Stasjon9_Cutoff1_nymetode_etterGMS.xls
C201: Månedlige frekvensfordelinger av signifikante bølgehøydeintervaller
C202: Hs (m) | D202: Jan | E202: Feb | F202: Mar | G202: Apr | H202: Mai | I202: Jun | J202: Jul | K202: Aug | L202: Sep | M202: Okt | N202: Nov | O202: Des
C203: 0,0 - 1,0 | D203: 0.0865184001 | E203: 0.09765879548 | F203: 0.1531890622 | G203: 0.3122753985 | H203: 0.5218986389 | I203: 0.571181689 | J203: 0.6125329263 | K203: 0.5666680725 | L203: 0.3274178009 | M203: 0.2001790312 | N203: 0.1521099719 | O203: 0.1068840073
C204: 1,0 - 2,0 | D204: 0.3038794948 | E204: 0.3231490631 | F204: 0.3635863782 | G204: 0.4274632973 | H204: 0.3607205898 | I204: 0.3317582897 | J204: 0.3143974245 | K204: 0.334072423 | L204: 0.4057271724 | M204: 0.3778128096 | N204: 0.3661578833 | O204: 0.317258746
C205: 2,0 - 3,0 | D205: 0.2772067899 | E205: 0.2694804182 | F205: 0.2507145337 | G205: 0.1681084133 | H205: 0.08724707112 | I205: 0.0708446203 | J205: 0.0586176869 | K205: 0.07676406581 | L205: 0.1670010128 | M205: 0.2302387773 | N205: 0.2452122459 | O205: 0.2643496393
C206: 3,0 - 4,0
C207: Ʃ | D207: =SUM(D203:D206) -> 0.6676046848 | E207: =SUM(E203:E206) -> 0.6902882768 | F207: 0.7674899741 | G207: 0.9078471092 | H207: 0.9698662999 | I207: 0.973784599 | J207: 0.9855480377 | K207: 0.9775045613 | L207: 0.9001459862 | M207: 0.808230618 | N207: 0.763480101 | O207: 0.6884923927
C209: Vektede effektiviteter (forventet effektivitet)
C210: Hs (m) | D210: Jan | E210: Feb | F210: Mar | G210: Apr | H210: Mai | I210: Jun | J210: Jul | K210: Aug | L210: Sep | M210: Okt | N210: Nov | O210: Des
C211: 0,0 - 1,0 | D211: =$E$4*D203 -> 0.06878212808 | E211: 0.07763874241 | F211: 0.1217853044 | G211: 0.2482589418 | H211: 0.4149094179 | I211: 0.4540894428 | J211: 0.4869636764 | K211: 0.4505011176 | L211: 0.2602971517 | M211: 0.1591423298 | N211: 0.1209274276 | O211: 0.08497278584
C212: 1,0 - 2,0 | D212: =$F$4*D204 -> 0.2187932363 | E212: 0.2326673254 | F212: 0.2617821923 | G212: 0.3077735741 | H212: 0.2597188247 | I212: 0.2388659686 | J212: 0.2263661457 | K212: 0.2405321445 | L212: 0.2921235641 | M212: 0.2720252229 | N212: 0.263633676 | O212: 0.2284262971
C213: 2,0 - 3,0 | D213: =$G$4*D205 -> 0.1732542437 | E213: 0.1684252614 | F213: 0.1566965836 | G213: 0.1050677583 | H213: 0.05452941945 | I213: 0.04427788769 | J213: 0.03663605431 | K213: 0.04797754113 | L213: 0.104375633 | M213: 0.1438992358 | N213: 0.1532576537 | O213: 0.1652185246
C214: 3,0 - 4,0 | D214: =$H$4*D206 -> 0 | E214: 0 | F214: 0 | G214: 0 | H214: 0 | I214: 0 | J214: 0 | K214: 0 | L214: 0 | M214: 0 | N214: 0 | O214: 0
C215: Σ | D215: =SUM(D211:D214) -> 0.460829608 | E215: 0.4787313292 | F215: 0.5402640803 | G215: 0.6611002742 | H215: 0.7291576621 | I215: 0.737233299 | J215: 0.7499658763 | K215: 0.7390108033 | L215: 0.6567963489 | M215: 0.5750667885 | N215: 0.5378187573 | O215: 0.4786176075
D217: Gjennomsnittlig opptakseffektivitet NOFO-system
D218: Vinter | E218: Vår | F218: Sommer | G218: Høst | H218: År
D219: =(O215+D215+E215)/3 -> 0.4727261816 | E219: =(F215+G215+H215)/3 -> 0.6435073389 | F219: =(I215+J215+K215)/3 -> 0.7420699929 | G219: =(L215+M215+N215)/3 -> 0.5898939649 | H219: =SUM(D215:O215)/12 -> 0.6120493696
C223: Lokasjon | D223: Stasjon10_Cutoff1_nymetode_etterGMS.xls
C225: Månedlige frekvensfordelinger av signifikante bølgehøydeintervaller
C226: Hs (m) | D226: Jan | E226: Feb | F226: Mar | G226: Apr | H226: Mai | I226: Jun | J226: Jul | K226: Aug | L226: Sep | M226: Okt | N226: Nov | O226: Des
C227: 0,0 - 1,0 | D227: 0.2027733567 | E227: 0.2129914473 | F227: 0.2958194501 | G227: 0.499955728 | H227: 0.6897156269 | I227: 0.7233468055 | J227: 0.73818362 | K227: 0.7031276583 | L227: 0.4948496951 | M227: 0.3734383571 | N227: 0.3051343475 | O227: 0.2351433932
C228: 1,0 - 2,0 | D228: 0.3439539226 | E228: 0.3615743892 | F228: 0.3626565671 | G228: 0.3346644356 | H228: 0.2359884498 | I228: 0.2064701021 | J228: 0.2116011214 | K228: 0.2292304116 | L228: 0.3228338937 | M228: 0.32710838 | N228: 0.3620362491 | O228: 0.3462874054
C229: 2,0 - 3,0 | D229: 0.2399719071 | E229: 0.211123278 | F229: 0.2000805992 | G229: 0.1078733917 | H229: 0.05388602608 | I229: 0.05287933311 | J229: 0.04100949882 | K229: 0.0525029452 | L229: 0.1177797106 | M229: 0.1695125394 | N229: 0.1874137139 | O229: 0.2173566694
C230: 3,0 - 4,0
C231: Ʃ | D231: =SUM(D227:D230) -> 0.7866991863 | E231: =SUM(E227:E230) -> 0.7856891145 | F231: 0.8585566164 | G231: 0.9424935552 | H231: 0.9795901028 | I231: 0.9826962407 | J231: 0.9907942402 | K231: 0.9848610151 | L231: 0.9354632995 | M231: 0.8700592766 | N231: 0.8545843105 | O231: 0.798787468
C233: Vektede effektiviteter (forventet effektivitet)
C234: Hs (m) | D234: Jan | E234: Feb | F234: Mar | G234: Apr | H234: Mai | I234: Jun | J234: Jul | K234: Aug | L234: Sep | M234: Okt | N234: Nov | O234: Des
C235: 0,0 - 1,0 | D235: =$E$4*D227 -> 0.1612048186 | E235: 0.1693282006 | F235: 0.2351764628 | G235: 0.3974648037 | H235: 0.5483239234 | I235: 0.5750607104 | J235: 0.5868559779 | K235: 0.5589864884 | L235: 0.3934055076 | M235: 0.2968834939 | N235: 0.2425818063 | O235: 0.1869389976
C236: 1,0 - 2,0 | D236: =$F$4*D228 -> 0.2476468243 | E236: 0.2603335602 | F236: 0.2611127283 | G236: 0.2409583936 | H236: 0.1699116838 | I236: 0.1486584735 | J236: 0.1523528074 | K236: 0.1650458964 | L236: 0.2324404035 | M236: 0.2355180336 | N236: 0.2606660994 | O236: 0.2493269319
C237: 2,0 - 3,0 | D237: =$G$4*D229 -> 0.1499824419 | E237: 0.1319520487 | F237: 0.1250503745 | G237: 0.06742086979 | H237: 0.0336787663 | I237: 0.03304958319 | J237: 0.02563093676 | K237: 0.03281434075 | L237: 0.07361231912 | M237: 0.1059453371 | N237: 0.1171335712 | O237: 0.1358479184
C238: 3,0 - 4,0 | D238: =$H$4*D230 -> 0 | E238: 0 | F238: 0 | G238: 0 | H238: 0 | I238: 0 | J238: 0 | K238: 0 | L238: 0 | M238: 0 | N238: 0 | O238: 0
C239: Σ | D239: =SUM(D235:D238) -> 0.5588340847 | E239: 0.5616138096 | F239: 0.6213395657 | G239: 0.7058440671 | H239: 0.7519143735 | I239: 0.7567687671 | J239: 0.7648397221 | K239: 0.7568467255 | L239: 0.6994582302 | M239: 0.6383468647 | N239: 0.6203814768 | O239: 0.5721138478
D241: Gjennomsnittlig opptakseffektivitet NOFO-system
D242: Vinter | E242: Vår | F242: Sommer | G242: Høst | H242: År
D243: =(O239+D239+E239)/3 -> 0.5641872474 | E243: =(F239+G239+H239)/3 -> 0.6930326688 | F243: =(I239+J239+K239)/3 -> 0.7594850715 | G243: =(L239+M239+N239)/3 -> 0.6527288572 | H243: =SUM(D239:O239)/12 -> 0.6673584612
C247: Lokasjon | D247: Stasjon11_Cutoff1_nymetode_etterGMS.xls
C249: Månedlige frekvensfordelinger av signifikante bølgehøydeintervaller
C250: Hs (m) | D250: Jan | E250: Feb | F250: Mar | G250: Apr | H250: Mai | I250: Jun | J250: Jul | K250: Aug | L250: Sep | M250: Okt | N250: Nov | O250: Des
C251: 0,0 - 1,0 | D251: 0.01000624434 | E251: 0.0206619501 | F251: 0.03223087166 | G251: 0.09654421027 | H251: 0.2385025861 | I251: 0.2389343795 | J251: 0.3085762195 | K251: 0.2975182198 | L251: 0.128490254 | M251: 0.04940462088 | N251: 0.02988743759 | O251: 0.02269591032
C252: 1,0 - 2,0 | D252: 0.2128981067 | E252: 0.2246329885 | F252: 0.3043590585 | G252: 0.4653727985 | H252: 0.5261923879 | I252: 0.5588538824 | J252: 0.5591561429 | K252: 0.5236312017 | L252: 0.4572283368 | M252: 0.3540474905 | N252: 0.3121753712 | O252: 0.2150364962
C253: 2,0 - 3,0 | D253: 0.2928225486 | E253: 0.2971018968 | F253: 0.3074432524 | G253: 0.2648463602 | H253: 0.1715677601 | I253: 0.159229068 | J253: 0.1098661566 | K253: 0.1410904798 | L253: 0.2593369569 | M253: 0.2996222406 | N253: 0.2953366629 | O253: 0.3099148362
C254: 3,0 - 4,0
C255: Ʃ | D255: =SUM(D251:D254) -> 0.5157268996 | E255: =SUM(E251:E254) -> 0.5423968355 | F255: 0.6440331826 | G255: 0.8267633689 | H255: 0.9362627341 | I255: 0.9570173299 | J255: 0.977598519 | K255: 0.9622399013 | L255: 0.8450555478 | M255: 0.703074352 | N255: 0.6373994716 | O255: 0.5476472428
C257: Vektede effektiviteter (forventet effektivitet)
C258: Hs (m) | D258: Jan | E258: Feb | F258: Mar | G258: Apr | H258: Mai | I258: Jun | J258: Jul | K258: Aug | L258: Sep | M258: Okt | N258: Nov | O258: Des
C259: 0,0 - 1,0 | D259: =$E$4*D251 -> 0.007954964251 | E259: 0.01642625033 | F259: 0.02562354297 | G259: 0.07675264716 | H259: 0.189609556 | I259: 0.1899528317 | J259: 0.2453180945 | K259: 0.2365269848 | L259: 0.1021497519 | M259: 0.0392766736 | N259: 0.02376051288 | O259: 0.01804324871
C260: 1,0 - 2,0 | D260: =$F$4*D252 -> 0.1532866368 | E260: 0.1617357517 | F260: 0.2191385221 | G260: 0.3350684149 | H260: 0.3788585193 | I260: 0.4023747954 | J260: 0.4025924229 | K260: 0.3770144652 | L260: 0.3292044025 | M260: 0.2549141932 | N260: 0.2247662673 | O260: 0.1548262773
C261: 2,0 - 3,0 | D261: =$G$4*D253 -> 0.1830140929 | E261: 0.1856886855 | F261: 0.1921520328 | G261: 0.1655289751 | H261: 0.10722985 | I261: 0.09951816748 | J261: 0.06866634786 | K261: 0.08818154989 | L261: 0.1620855981 | M261: 0.1872639004 | N261: 0.1845854143 | O261: 0.1936967727
C262: 3,0 - 4,0 | D262: =$H$4*D254 -> 0 | E262: 0 | F262: 0 | G262: 0 | H262: 0 | I262: 0 | J262: 0 | K262: 0 | L262: 0 | M262: 0 | N262: 0 | O262: 0
C263: Σ | D263: =SUM(D259:D262) -> 0.3442556939 | E263: 0.3638506876 | F263: 0.4369140978 | G263: 0.5773500372 | H263: 0.6756979253 | I263: 0.6918457946 | J263: 0.7165768653 | K263: 0.7017229999 | L263: 0.5934397525 | M263: 0.4814547672 | N263: 0.4331121944 | O263: 0.3665662986
D265: Gjennomsnittlig opptakseffektivitet NOFO-system
D266: Vinter | E266: Vår | F266: Sommer | G266: Høst | H266: År
D267: =(O263+D263+E263)/3 -> 0.3582242267 | E267: =(F263+G263+H263)/3 -> 0.5633206868 | F267: =(I263+J263+K263)/3 -> 0.7033818866 | G267: =(L263+M263+N263)/3 -> 0.5026689047 | H267: =SUM(D263:O263)/12 -> 0.5318989262

Sheet Op.Eff.STOTTE.KYST (hidden)
C3: Lokasjon | D3: Stasjon 1
C5: Bølgehøydefordeling | L5: Vektede effektiviteter (forventet effektivitet kystsystem)
C6: Intervall | D6: Vinter (DJF) | E6: Vår (MAM) | F6: Sommer (JJA) | G6: Høst (SON) | I6: Opptakseffektivitet (Kyst.) | L6: Vinter (DJF) | M6: Vår (MAM) | N6: Sommer (JJA) | O6: Høst (SON)
C7: 0,0 - 0,5 m | D7: 0 | E7: 0.002688172043 | F7: 0.004153269025 | G7: 0.003916801729 | I7: 0,0 - 0,5 m | J7: 0.9 | L7: =D7*J7 -> 0 | M7: =E7*J7 -> 0.002419354839 | N7: =F7*J7 -> 0.003737942122 | O7: =G7*J7 -> 0.003525121556
C8: 0,5 - 1,0 m | D8: 0.001130291821 | E8: 0.05531975099 | F8: 0.1209807074 | G8: 0.03822258239 | I8: 0,5 - 1,0 m | J8: 0.875 | L8: =D8*J8 -> 0.0009890053432 | M8: =E8*J8 -> 0.04840478212 | N8: =F8*J8 -> 0.105858119 | O8: =G8*J8 -> 0.03344475959
C9: 1,0 - 1,5 m | D9: 0.03113440197 | E9: 0.1726089417 | F9: 0.3494105038 | G9: 0.110345759 | I9: 1,0 - 1,5 m | J9: 0.825 | L9: 0.02568588163 | M9: 0.1424023769 | N9: 0.2882636656 | O9: 0.09103525122
C10: 1,5 - 2,0 m | D10: 0.07542129059 | E10: 0.1670911149 | F10: 0.2813504823 | G10: 0.1450567261 | I10: 1,5 - 2,0 m | L10: 0 | M10: 0 | N10: 0 | O10: 0
C11: 2,0 - 2,5 m | D11: 0.12864776 | E11: 0.1479909451 | F11: 0.1345123258 | G11: 0.1343868179 | I11: 2,0 - 2,5 m | L11: 0 | M11: 0 | N11: 0 | O11: 0
C12: 2,5 - 3,0 m | D12: 0.1149815043 | E12: 0.1117713639 | F12: 0.05881564845 | G12: 0.1208806051
C13: 3,0 - 3,5 m | D13: 0.1352240033 | E13: 0.08205998868 | F13: 0.02934083601 | G13: 0.1189897353
C14: 3,5 - 4,0 m | D14: 0.1222770242 | E14: 0.07385398981 | F14: 0.01205787781 | G14: 0.09819016748 | K14: Ʃ | L14: =SUM(L7:L11) -> 0.02667488697 | M14: =SUM(M7:M11) -> 0.1932265139 | N14: =SUM(N7:N11) -> 0.3978597267 | O14: =SUM(O7:O11) -> 0.1280051324
C15: 4,0 - 4,5 m | D15: 0.1054254007 | E15: 0.05178268251 | F15: 0.003483386924 | G15: 0.06455969746 | K15: B4 | L15: =L7+L8 -> 0.0009890053432 | M15: =M7+M8 -> 0.05082413696 | N15: 0.1095960611 | O15: 0.03696988115
C16: 4,5 - 5,0 m | D16: 0.08394985614 | E16: 0.03805885682 | F16: 0.001741693462 | G16: 0.05929227445
C17: 5,0 - 5,5 m | D17: 0.05394574599 | E17: 0.03013582343 | F17: 0.0005359056806 | G17: 0.04281469476
C18: 5,5 - 6,0 m | D18: 0.04305384299 | E18: 0.02433503113 | F18: 0.0008038585209 | G18: 0.02147487844
C19: 6,0 - 6,5 m | D19: 0.0327784628 | E19: 0.01344086022 | F19: 0.0009378349411 | G19: 0.01310102647
C20: 6,5 - 7,0 m | D20: 0.02281134402 | E20: 0.00792303339 | F20: 0.001071811361 | G20: 0.004862236629
C21: 7,0 - 7,5 m | D21: 0.01572133169 | E21: 0.006225240521 | F21: 0 | G21: 0.006753106429
C22: 7,5 - 8,0 m | D22: 0.01017262639 | E22: 0.00466893039 | F22: 0.0008038585209 | G22: 0.006347920043
C23: 8,0 - 8,5 m | D23: 0.008117550349 | E23: 0.004244482173 | F23: 0 | G23: 0.003916801729
C24: 8,5 - 9,0 m | D24: 0.00380189067 | E24: 0.003395585739 | F24: 0 | G24: 0.003376553214
C25: 9,0 - 9,5 m | D25: 0.003082614057 | E25: 0.001273344652 | F25: 0 | G25: 0.0006753106429
C26: 9,5 - 10,0 m | D26: 0.002671598849 | E26: 0.0001414827391 | F26: 0 | G26: 0.0001350621286
C31: Lokasjon | D31: Stasjon 2
C33: Bølgehøydefordeling | L33: Vektede effektiviteter (forventet effektivitet kystsystem)
C34: Intervall | D34: Vinter (DJF) | E34: Vår (MAM) | F34: Sommer (JJA) | G34: Høst (SON) | I34: Opptakseffektivitet (Kyst.) | L34: Vinter (DJF) | M34: Vår (MAM) | N34: Sommer (JJA) | O34: Høst (SON)
C35: 0,0 - 0,5 m | D35: 0.4159473901 | E35: 0.5887096774 | F35: 0.8124330118 | G35: 0.569286872 | I35: 0,0 - 0,5 m | J35: 0.9 | L35: =D35*J35 -> 0.374352651 | M35: =E35*J35 -> 0.5298387097 | N35: =F35*J35 -> 0.7311897106 | O35: =G35*J35 -> 0.5123581848
C36: 0,5 - 1,0 m | D36: 0.3336415947 | E36: 0.2344368987 | F36: 0.1682743837 | G36: 0.2364937871 | I36: 0,5 - 1,0 m | J36: 0.875 | L36: =D36*J36 -> 0.2919363954 | M36: =E36*J36 -> 0.2051322864 | N36: =F36*J36 -> 0.1472400857 | O36: =G36*J36 -> 0.2069320637
C37: 1,0 - 1,5 m | D37: 0.1563912865 | E37: 0.1177136389 | F37: 0.0166130761 | G37: 0.1357374392 | I37: 1,0 - 1,5 m | J37: 0.825 | L37: 0.1290228113 | M37: 0.09711375212 | N37: 0.01370578778 | O37: 0.1119833874
C38: 1,5 - 2,0 m | D38: 0.06730374024 | E38: 0.04428409734 | F38: 0.001339764202 | G38: 0.04484062669 | I38: 1,5 - 2,0 m | L38: 0 | M38: 0 | N38: 0 | O38: 0
C39: 2,0 - 2,5 m | D39: 0.02209206741 | E39: 0.01245048104 | F39: 0.0002679528403 | G39: 0.01121015667 | I39: 2,0 - 2,5 m | L39: 0 | M39: 0 | N39: 0 | O39: 0
C40: 2,5 - 3,0 m | D40: 0.004007398274 | E40: 0.001697792869 | F40: 0.001071811361 | G40: 0.002025931929
C41: 3,0 - 3,5 m | D41: 0.0006165228113 | E41: 0.0007074136955 | F41: 0 | G41: 0.0004051863857
C42: 3,5 - 4,0 m | D42: 0 | E42: 0 | F42: 0 | G42: 0 | K42: Ʃ | L42: =SUM(L35:L39) -> 0.7953118578 | M42: =SUM(M35:M39) -> 0.8320847482 | N42: =SUM(N35:N39) -> 0.8921355841 | O42: =SUM(O35:O39) -> 0.8312736359
C43: 4,0 - 4,5 m | D43: 0 | E43: 0 | F43: 0 | G43: 0 | K43: B4 | L43: =L35+L36 -> 0.6662890464 | M43: =M35+M36 -> 0.734970996 | N43: 0.8784297964 | O43: 0.7192902485
C44: 4,5 - 5,0 m | D44: 0 | E44: 0 | F44: 0 | G44: 0
C45: 5,0 - 5,5 m | D45: 0 | E45: 0 | F45: 0 | G45: 0
C46: 5,5 - 6,0 m | D46: 0 | E46: 0 | F46: 0 | G46: 0
C47: 6,0 - 6,5 m | D47: 0 | E47: 0 | F47: 0 | G47: 0
C48: 6,5 - 7,0 m | D48: 0 | E48: 0 | F48: 0 | G48: 0
C49: 7,0 - 7,5 m | D49: 0 | E49: 0 | F49: 0 | G49: 0
C50: 7,5 - 8,0 m | D50: 0 | E50: 0 | F50: 0 | G50: 0
C51: 8,0 - 8,5 m | D51: 0 | E51: 0 | F51: 0 | G51: 0
C52: 8,5 - 9,0 m | D52: 0 | E52: 0 | F52: 0 | G52: 0
C53: 9,0 - 9,5 m | D53: 0 | E53: 0 | F53: 0 | G53: 0
C54: 9,5 - 10,0 m | D54: 0 | E54: 0 | F54: 0 | G54: 0
C59: Lokasjon | D59: Stasjon 3
C61: Bølgehøydefordeling | L61: Vektede effektiviteter (forventet effektivitet kystsystem)
C62: Intervall | D62: Vinter (DJF) | E62: Vår (MAM) | F62: Sommer (JJA) | G62: Høst (SON) | I62: Opptakseffektivitet (Kyst.) | L62: Vinter (DJF) | M62: Vår (MAM) | N62: Sommer (JJA) | O62: Høst (SON)
C63: 0,0 - 0,5 m | D63: 0.7393136046 | E63: 0.7804187889 | F63: 0.929528403 | G63: 0.7978119935 | I63: 0,0 - 0,5 m | J63: 0.9 | L63: =D63*J63 -> 0.6653822441 | M63: =E63*J63 -> 0.70237691 | N63: =F63*J63 -> 0.8365755627 | O63: =G63*J63 -> 0.7180307942
C64: 0,5 - 1,0 m | D64: 0.1744759556 | E64: 0.1363893605 | F64: 0.06578242229 | G64: 0.1435710427 | I64: 0,5 - 1,0 m | J64: 0.875 | L64: =D64*J64 -> 0.1526664612 | M64: =E64*J64 -> 0.1193406904 | N64: =F64*J64 -> 0.05755961951 | O64: =G64*J64 -> 0.1256246623
C65: 1,0 - 1,5 m | D65: 0.05805589807 | E65: 0.07130730051 | F65: 0.003349410504 | G65: 0.0501080497 | I65: 1,0 - 1,5 m | J65: 0.825 | L65: 0.04789611591 | M65: 0.05882852292 | N65: 0.002763263666 | O65: 0.041339141
C66: 1,5 - 2,0 m | D66: 0.02260583642 | E66: 0.01018675722 | F66: 0.0005359056806 | G66: 0.007428417072 | I66: 1,5 - 2,0 m | L66: 0 | M66: 0 | N66: 0 | O66: 0
C67: 2,0 - 2,5 m | D67: 0.005034936293 | E67: 0.001697792869 | F67: 0.0002679528403 | G67: 0.001080497029 | I67: 2,0 - 2,5 m | L67: 0 | M67: 0 | N67: 0 | O67: 0
C68: 2,5 - 3,0 m | D68: 0.0005137690095 | E68: 0 | F68: 0.0005359056806 | G68: 0
C69: 3,0 - 3,5 m | D69: 0 | E69: 0 | F69: 0 | G69: 0
C70: 3,5 - 4,0 m | D70: 0 | E70: 0 | F70: 0 | G70: 0 | K70: Ʃ | L70: =SUM(L63:L67) -> 0.8659448212 | M70: =SUM(M63:M67) -> 0.8805461234 | N70: =SUM(N63:N67) -> 0.8968984459 | O70: =SUM(O63:O67) -> 0.8849945975
C71: 4,0 - 4,5 m | D71: 0 | E71: 0 | F71: 0 | G71: 0 | K71: B4 | L71: =L63+L64 -> 0.8180487053 | M71: =M63+M64 -> 0.8217176005 | N71: 0.8941351822 | O71: 0.8436554565
C72: 4,5 - 5,0 m | D72: 0 | E72: 0 | F72: 0 | G72: 0
C73: 5,0 - 5,5 m | D73: 0 | E73: 0 | F73: 0 | G73: 0
C74: 5,5 - 6,0 m | D74: 0 | E74: 0 | F74: 0 | G74: 0
C75: 6,0 - 6,5 m | D75: 0 | E75: 0 | F75: 0 | G75: 0
C76: 6,5 - 7,0 m | D76: 0 | E76: 0 | F76: 0 | G76: 0
C77: 7,0 - 7,5 m | D77: 0 | E77: 0 | F77: 0 | G77: 0
C78: 7,5 - 8,0 m | D78: 0 | E78: 0 | F78: 0 | G78: 0
C79: 8,0 - 8,5 m | D79: 0 | E79: 0 | F79: 0 | G79: 0
C80: 8,5 - 9,0 m | D80: 0 | E80: 0 | F80: 0 | G80: 0
C81: 9,0 - 9,5 m | D81: 0 | E81: 0 | F81: 0 | G81: 0
C82: 9,5 - 10,0 m | D82: 0 | E82: 0 | F82: 0 | G82: 0
C87: Lokasjon | D87: Stasjon 4
C89: Bølgehøydefordeling | L89: Vektede effektiviteter (forventet effektivitet kystsystem)
C90: Intervall | D90: Vinter (DJF) | E90: Vår (MAM) | F90: Sommer (JJA) | G90: Høst (SON) | I90: Opptakseffektivitet (Kyst.) | L90: Vinter (DJF) | M90: Vår (MAM) | N90: Sommer (JJA) | O90: Høst (SON)
C91: 0,0 - 0,5 m | D91: 0.01531031648 | E91: 0.1566213922 | F91: 0.2006966774 | G91: 0.1192598595 | I91: 0,0 - 0,5 m | J91: 0.9 | L91: =D91*J91 -> 0.01377928483 | M91: =E91*J91 -> 0.140959253 | N91: =F91*J91 -> 0.1806270096 | O91: =G91*J91 -> 0.1073338736
C92: 0,5 - 1,0 m | D92: 0.2424989725 | E92: 0.4015280136 | F92: 0.5069667738 | G92: 0.3368449487 | I92: 0,5 - 1,0 m | J92: 0.875 | L92: =D92*J92 -> 0.2121866009 | M92: =E92*J92 -> 0.3513370119 | N92: =F92*J92 -> 0.4435959271 | O92: =G92*J92 -> 0.2947393301
C93: 1,0 - 1,5 m | D93: 0.3061035758 | E93: 0.2224108659 | F93: 0.2245444802 | G93: 0.2250135062 | I93: 1,0 - 1,5 m | J93: 0.825 | L93: 0.2525354501 | M93: 0.1834889643 | N93: 0.1852491961 | O93: 0.1856361426
C94: 1,5 - 2,0 m | D94: 0.2105425401 | E94: 0.1131861913 | F94: 0.05171489818 | G94: 0.1350621286 | I94: 1,5 - 2,0 m | L94: 0 | M94: 0 | N94: 0 | O94: 0
C95: 2,0 - 2,5 m | D95: 0.110974106 | E95: 0.04258630447 | F95: 0.008306538049 | G95: 0.08995137763 | I95: 2,0 - 2,5 m | L95: 0 | M95: 0 | N95: 0 | O95: 0
C96: 2,5 - 3,0 m | D96: 0.05805589807 | E96: 0.02504244482 | F96: 0.003617363344 | G96: 0.0397082658
C97: 3,0 - 3,5 m | D97: 0.02969584875 | E97: 0.01697792869 | F97: 0.001339764202 | G97: 0.02404105889
C98: 3,5 - 4,0 m | D98: 0.01777640773 | E98: 0.008488964346 | F98: 0.0005359056806 | G98: 0.01445164776 | K98: Ʃ | L98: =SUM(L91:L95) -> 0.4785013358 | M98: =SUM(M91:M95) -> 0.6757852292 | N98: =SUM(N91:N95) -> 0.8094721329 | O98: =SUM(O91:O95) -> 0.5877093463
C99: 4,0 - 4,5 m | D99: 0.00595972051 | E99: 0.004244482173 | F99: 0.0005359056806 | G99: 0.005942733657 | K99: B4 | L99: =L91+L92 -> 0.2259658857 | M99: =M91+M92 -> 0.4922962649 | N99: 0.6242229368 | O99: 0.4020732037
C100: 4,5 - 5,0 m | D100: 0.002466091245 | E100: 0.004385964912 | F100: 0.0009378349411 | G100: 0.005132360886
C101: 5,0 - 5,5 m | D101: 0.0006165228113 | E101: 0.001980758347 | F101: 0.0008038585209 | G101: 0.0008103727715
C102: 5,5 - 6,0 m | D102: 0 | E102: 0.001980758347 | F102: 0 | G102: 0.001215559157
C103: 6,0 - 6,5 m | D103: 0 | E103: 0.0005659309564 | F103: 0 | G103: 0.002160994057
C104: 6,5 - 7,0 m | D104: 0 | E104: 0 | F104: 0 | G104: 0.0004051863857
C105: 7,0 - 7,5 m | D105: 0 | E105: 0 | F105: 0 | G105: 0
C106: 7,5 - 8,0 m | D106: 0 | E106: 0 | F106: 0 | G106: 0
C107: 8,0 - 8,5 m | D107: 0 | E107: 0 | F107: 0 | G107: 0
C108: 8,5 - 9,0 m | D108: 0 | E108: 0 | F108: 0 | G108: 0
C109: 9,0 - 9,5 m | D109: 0 | E109: 0 | F109: 0 | G109: 0
C110: 9,5 - 10,0 m | D110: 0 | E110: 0 | F110: 0 | G110: 0
C115: Lokasjon | D115: Stasjon 5
C117: Bølgehøydefordeling | L117: Vektede effektiviteter (forventet effektivitet kystsystem)
C118: Intervall | D118: Vinter (DJF) | E118: Vår (MAM) | F118: Sommer (JJA) | G118: Høst (SON) | I118: Opptakseffektivitet (Kyst.) | L118: Vinter (DJF) | M118: Vår (MAM) | N118: Sommer (JJA) | O118: Høst (SON)
C119: 0,0 - 0,5 m | D119: 0.8116522811 | E119: 0.8681380872 | F119: 0.9303322615 | G119: 0.8090221502 | I119: 0,0 - 0,5 m | J119: 0.9 | L119: =D119*J119 -> 0.730487053 | M119: =E119*J119 -> 0.7813242784 | N119: =F119*J119 -> 0.8372990354 | O119: =G119*J119 -> 0.7281199352
C120: 0,5 - 1,0 m | D120: 0.1643033292 | E120: 0.1178551217 | F120: 0.06792604502 | G120: 0.173284711 | I120: 0,5 - 1,0 m | J120: 0.875 | L120: =D120*J120 -> 0.1437654131 | M120: =E120*J120 -> 0.1031232315 | N120: =F120*J120 -> 0.05943528939 | O120: =G120*J120 -> 0.1516241221
C121: 1,0 - 1,5 m | D121: 0.02301685162 | E121: 0.0123089983 | F121: 0.001741693462 | G121: 0.01553214479 | I121: 1,0 - 1,5 m | J121: 0.825 | L121: 0.01898890259 | M121: 0.0101549236 | N121: 0.001436897106 | O121: 0.01281401945
C122: 1,5 - 2,0 m | D122: 0.001027538019 | E122: 0.001697792869 | F122: 0 | G122: 0.002160994057 | I122: 1,5 - 2,0 m | L122: 0 | M122: 0 | N122: 0 | O122: 0
C123: 2,0 - 2,5 m | D123: 0 | E123: 0 | F123: 0 | G123: 0 | I123: 2,0 - 2,5 m | L123: 0 | M123: 0 | N123: 0 | O123: 0
C124: 2,5 - 3,0 m | D124: 0 | E124: 0 | F124: 0 | G124: 0
C125: 3,0 - 3,5 m | D125: 0 | E125: 0 | F125: 0 | G125: 0
C126: 3,5 - 4,0 m | D126: 0 | E126: 0 | F126: 0 | G126: 0 | K126: Ʃ | L126: =SUM(L119:L123) -> 0.8932413687 | M126: =SUM(M119:M123) -> 0.8946024335 | N126: =SUM(N119:N123) -> 0.8981712219 | O126: =SUM(O119:O123) -> 0.8925580767
C127: 4,0 - 4,5 m | D127: 0 | E127: 0 | F127: 0 | G127: 0 | K127: B4 | L127: =L119+L120 -> 0.8742524661 | M127: =M119+M120 -> 0.8844475099 | N127: 0.8967343248 | O127: 0.8797440573
C128: 4,5 - 5,0 m | D128: 0 | E128: 0 | F128: 0 | G128: 0
C129: 5,0 - 5,5 m | D129: 0 | E129: 0 | F129: 0 | G129: 0
C130: 5,5 - 6,0 m | D130: 0 | E130: 0 | F130: 0 | G130: 0
C131: 6,0 - 6,5 m | D131: 0 | E131: 0 | F131: 0 | G131: 0
C132: 6,5 - 7,0 m | D132: 0 | E132: 0 | F132: 0 | G132: 0
C133: 7,0 - 7,5 m | D133: 0 | E133: 0 | F133: 0 | G133: 0
C134: 7,5 - 8,0 m | D134: 0 | E134: 0 | F134: 0 | G134: 0
C135: 8,0 - 8,5 m | D135: 0 | E135: 0 | F135: 0 | G135: 0
C136: 8,5 - 9,0 m | D136: 0 | E136: 0 | F136: 0 | G136: 0
C137: 9,0 - 9,5 m | D137: 0 | E137: 0 | F137: 0 | G137: 0
C138: 9,5 - 10,0 m | D138: 0 | E138: 0 | F138: 0 | G138: 0

Sheet Op.Eff.STOTTE.FJORD (hidden)
C3: Lokasjon | D3: Stasjon 1
C5: Bølgehøydefordeling | L5: Vektede effektiviteter (forventet effektivitet kystsystem)
C6: Intervall | D6: Vinter (DJF) | E6: Vår (MAM) | F6: Sommer (JJA) | G6: Høst (SON) | I6: Opptakseffektivitet (Kyst.) | L6: Vinter (DJF) | M6: Vår (MAM) | N6: Sommer (JJA) | O6: Høst (SON)
C7: 0,0 - 0,5 m | D7: 0 | E7: 0.002688172043 | F7: 0.004153269025 | G7: 0.003916801729 | I7: 0,0 - 0,5 m | J7: 0.9 | L7: =D7*J7 -> 0 | M7: =E7*J7 -> 0.002419354839 | N7: =F7*J7 -> 0.003737942122 | O7: =G7*J7 -> 0.003525121556
C8: 0,5 - 1,0 m | D8: 0.001130291821 | E8: 0.05531975099 | F8: 0.1209807074 | G8: 0.03822258239 | I8: 0,5 - 1,0 m | J8: 0.875 | L8: =D8*J8 -> 0.0009890053432 | M8: =E8*J8 -> 0.04840478212 | N8: =F8*J8 -> 0.105858119 | O8: =G8*J8 -> 0.03344475959
C9: 1,0 - 1,5 m | D9: 0.03113440197 | E9: 0.1726089417 | F9: 0.3494105038 | G9: 0.110345759 | I9: 1,0 - 1,5 m
C10: 1,5 - 2,0 m | D10: 0.07542129059 | E10: 0.1670911149 | F10: 0.2813504823 | G10: 0.1450567261 | I10: 1,5 - 2,0 m
C11: 2,0 - 2,5 m | D11: 0.12864776 | E11: 0.1479909451 | F11: 0.1345123258 | G11: 0.1343868179 | I11: 2,0 - 2,5 m
C12: 2,5 - 3,0 m | D12: 0.1149815043 | E12: 0.1117713639 | F12: 0.05881564845 | G12: 0.1208806051
C13: 3,0 - 3,5 m | D13: 0.1352240033 | E13: 0.08205998868 | F13: 0.02934083601 | G13: 0.1189897353
C14: 3,5 - 4,0 m | D14: 0.1222770242 | E14: 0.07385398981 | F14: 0.01205787781 | G14: 0.09819016748 | K14: Ʃ | L14: =SUM(L7:L11) -> 0.0009890053432 | M14: =SUM(M7:M11) -> 0.05082413696 | N14: =SUM(N7:N11) -> 0.1095960611 | O14: =SUM(O7:O11) -> 0.03696988115
C15: 4,0 - 4,5 m | D15: 0.1054254007 | E15: 0.05178268251 | F15: 0.003483386924 | G15: 0.06455969746
C16: 4,5 - 5,0 m | D16: 0.08394985614 | E16: 0.03805885682 | F16: 0.001741693462 | G16: 0.05929227445
C17: 5,0 - 5,5 m | D17: 0.05394574599 | E17: 0.03013582343 | F17: 0.0005359056806 | G17: 0.04281469476
C18: 5,5 - 6,0 m | D18: 0.04305384299 | E18: 0.02433503113 | F18: 0.0008038585209 | G18: 0.02147487844
C19: 6,0 - 6,5 m | D19: 0.0327784628 | E19: 0.01344086022 | F19: 0.0009378349411 | G19: 0.01310102647
C20: 6,5 - 7,0 m | D20: 0.02281134402 | E20: 0.00792303339 | F20: 0.001071811361 | G20: 0.004862236629
C21: 7,0 - 7,5 m | D21: 0.01572133169 | E21: 0.006225240521 | F21: 0 | G21: 0.006753106429
C22: 7,5 - 8,0 m | D22: 0.01017262639 | E22: 0.00466893039 | F22: 0.0008038585209 | G22: 0.006347920043
C23: 8,0 - 8,5 m | D23: 0.008117550349 | E23: 0.004244482173 | F23: 0 | G23: 0.003916801729
C24: 8,5 - 9,0 m | D24: 0.00380189067 | E24: 0.003395585739 | F24: 0 | G24: 0.003376553214
C25: 9,0 - 9,5 m | D25: 0.003082614057 | E25: 0.001273344652 | F25: 0 | G25: 0.0006753106429
C26: 9,5 - 10,0 m | D26: 0.002671598849 | E26: 0.0001414827391 | F26: 0 | G26: 0.0001350621286
C31: Lokasjon | D31: Stasjon 2
C33: Bølgehøydefordeling | L33: Vektede effektiviteter (forventet effektivitet kystsystem)
C34: Intervall | D34: Vinter (DJF) | E34: Vår (MAM) | F34: Sommer (JJA) | G34: Høst (SON) | I34: Opptakseffektivitet (Kyst.) | L34: Vinter (DJF) | M34: Vår (MAM) | N34: Sommer (JJA) | O34: Høst (SON)
C35: 0,0 - 0,5 m | D35: 0.4159473901 | E35: 0.5887096774 | F35: 0.8124330118 | G35: 0.569286872 | I35: 0,0 - 0,5 m | J35: 0.9 | L35: =D35*J35 -> 0.374352651 | M35: =E35*J35 -> 0.5298387097 | N35: =F35*J35 -> 0.7311897106 | O35: =G35*J35 -> 0.5123581848
C36: 0,5 - 1,0 m | D36: 0.3336415947 | E36: 0.2344368987 | F36: 0.1682743837 | G36: 0.2364937871 | I36: 0,5 - 1,0 m | J36: 0.875 | L36: =D36*J36 -> 0.2919363954 | M36: =E36*J36 -> 0.2051322864 | N36: =F36*J36 -> 0.1472400857 | O36: =G36*J36 -> 0.2069320637
C37: 1,0 - 1,5 m | D37: 0.1563912865 | E37: 0.1177136389 | F37: 0.0166130761 | G37: 0.1357374392 | I37: 1,0 - 1,5 m
C38: 1,5 - 2,0 m | D38: 0.06730374024 | E38: 0.04428409734 | F38: 0.001339764202 | G38: 0.04484062669 | I38: 1,5 - 2,0 m
C39: 2,0 - 2,5 m | D39: 0.02209206741 | E39: 0.01245048104 | F39: 0.0002679528403 | G39: 0.01121015667 | I39: 2,0 - 2,5 m
C40: 2,5 - 3,0 m | D40: 0.004007398274 | E40: 0.001697792869 | F40: 0.001071811361 | G40: 0.002025931929
C41: 3,0 - 3,5 m | D41: 0.0006165228113 | E41: 0.0007074136955 | F41: 0 | G41: 0.0004051863857
C42: 3,5 - 4,0 m | D42: 0 | E42: 0 | F42: 0 | G42: 0 | K42: Ʃ | L42: =SUM(L35:L39) -> 0.6662890464 | M42: =SUM(M35:M39) -> 0.734970996 | N42: =SUM(N35:N39) -> 0.8784297964 | O42: =SUM(O35:O39) -> 0.7192902485
C43: 4,0 - 4,5 m | D43: 0 | E43: 0 | F43: 0 | G43: 0
C44: 4,5 - 5,0 m | D44: 0 | E44: 0 | F44: 0 | G44: 0
C45: 5,0 - 5,5 m | D45: 0 | E45: 0 | F45: 0 | G45: 0
C46: 5,5 - 6,0 m | D46: 0 | E46: 0 | F46: 0 | G46: 0
C47: 6,0 - 6,5 m | D47: 0 | E47: 0 | F47: 0 | G47: 0
C48: 6,5 - 7,0 m | D48: 0 | E48: 0 | F48: 0 | G48: 0
C49: 7,0 - 7,5 m | D49: 0 | E49: 0 | F49: 0 | G49: 0
C50: 7,5 - 8,0 m | D50: 0 | E50: 0 | F50: 0 | G50: 0
C51: 8,0 - 8,5 m | D51: 0 | E51: 0 | F51: 0 | G51: 0
C52: 8,5 - 9,0 m | D52: 0 | E52: 0 | F52: 0 | G52: 0
C53: 9,0 - 9,5 m | D53: 0 | E53: 0 | F53: 0 | G53: 0
C54: 9,5 - 10,0 m | D54: 0 | E54: 0 | F54: 0 | G54: 0
C59: Lokasjon | D59: Stasjon 3
C61: Bølgehøydefordeling | L61: Vektede effektiviteter (forventet effektivitet kystsystem)
C62: Intervall | D62: Vinter (DJF) | E62: Vår (MAM) | F62: Sommer (JJA) | G62: Høst (SON) | I62: Opptakseffektivitet (Kyst.) | L62: Vinter (DJF) | M62: Vår (MAM) | N62: Sommer (JJA) | O62: Høst (SON)
C63: 0,0 - 0,5 m | D63: 0.7393136046 | E63: 0.7804187889 | F63: 0.929528403 | G63: 0.7978119935 | I63: 0,0 - 0,5 m | J63: 0.9 | L63: =D63*J63 -> 0.6653822441 | M63: =E63*J63 -> 0.70237691 | N63: =F63*J63 -> 0.8365755627 | O63: =G63*J63 -> 0.7180307942
C64: 0,5 - 1,0 m | D64: 0.1744759556 | E64: 0.1363893605 | F64: 0.06578242229 | G64: 0.1435710427 | I64: 0,5 - 1,0 m | J64: 0.875 | L64: =D64*J64 -> 0.1526664612 | M64: =E64*J64 -> 0.1193406904 | N64: =F64*J64 -> 0.05755961951 | O64: =G64*J64 -> 0.1256246623
C65: 1,0 - 1,5 m | D65: 0.05805589807 | E65: 0.07130730051 | F65: 0.003349410504 | G65: 0.0501080497 | I65: 1,0 - 1,5 m
C66: 1,5 - 2,0 m | D66: 0.02260583642 | E66: 0.01018675722 | F66: 0.0005359056806 | G66: 0.007428417072 | I66: 1,5 - 2,0 m
C67: 2,0 - 2,5 m | D67: 0.005034936293 | E67: 0.001697792869 | F67: 0.0002679528403 | G67: 0.001080497029 | I67: 2,0 - 2,5 m
C68: 2,5 - 3,0 m | D68: 0.0005137690095 | E68: 0 | F68: 0.0005359056806 | G68: 0
C69: 3,0 - 3,5 m | D69: 0 | E69: 0 | F69: 0 | G69: 0
C70: 3,5 - 4,0 m | D70: 0 | E70: 0 | F70: 0 | G70: 0 | K70: Ʃ | L70: =SUM(L63:L67) -> 0.8180487053 | M70: =SUM(M63:M67) -> 0.8217176005 | N70: =SUM(N63:N67) -> 0.8941351822 | O70: =SUM(O63:O67) -> 0.8436554565
C71: 4,0 - 4,5 m | D71: 0 | E71: 0 | F71: 0 | G71: 0
C72: 4,5 - 5,0 m | D72: 0 | E72: 0 | F72: 0 | G72: 0
C73: 5,0 - 5,5 m | D73: 0 | E73: 0 | F73: 0 | G73: 0
C74: 5,5 - 6,0 m | D74: 0 | E74: 0 | F74: 0 | G74: 0
C75: 6,0 - 6,5 m | D75: 0 | E75: 0 | F75: 0 | G75: 0
C76: 6,5 - 7,0 m | D76: 0 | E76: 0 | F76: 0 | G76: 0
C77: 7,0 - 7,5 m | D77: 0 | E77: 0 | F77: 0 | G77: 0
C78: 7,5 - 8,0 m | D78: 0 | E78: 0 | F78: 0 | G78: 0
C79: 8,0 - 8,5 m | D79: 0 | E79: 0 | F79: 0 | G79: 0
C80: 8,5 - 9,0 m | D80: 0 | E80: 0 | F80: 0 | G80: 0
C81: 9,0 - 9,5 m | D81: 0 | E81: 0 | F81: 0 | G81: 0
C82: 9,5 - 10,0 m | D82: 0 | E82: 0 | F82: 0 | G82: 0
C87: Lokasjon | D87: Stasjon 4
C89: Bølgehøydefordeling | L89: Vektede effektiviteter (forventet effektivitet kystsystem)
C90: Intervall | D90: Vinter (DJF) | E90: Vår (MAM) | F90: Sommer (JJA) | G90: Høst (SON) | I90: Opptakseffektivitet (Kyst.) | L90: Vinter (DJF) | M90: Vår (MAM) | N90: Sommer (JJA) | O90: Høst (SON)
C91: 0,0 - 0,5 m | D91: 0.01531031648 | E91: 0.1566213922 | F91: 0.2006966774 | G91: 0.1192598595 | I91: 0,0 - 0,5 m | J91: 0.9 | L91: =D91*J91 -> 0.01377928483 | M91: =E91*J91 -> 0.140959253 | N91: =F91*J91 -> 0.1806270096 | O91: =G91*J91 -> 0.1073338736
C92: 0,5 - 1,0 m | D92: 0.2424989725 | E92: 0.4015280136 | F92: 0.5069667738 | G92: 0.3368449487 | I92: 0,5 - 1,0 m | J92: 0.875 | L92: =D92*J92 -> 0.2121866009 | M92: =E92*J92 -> 0.3513370119 | N92: =F92*J92 -> 0.4435959271 | O92: =G92*J92 -> 0.2947393301
C93: 1,0 - 1,5 m | D93: 0.3061035758 | E93: 0.2224108659 | F93: 0.2245444802 | G93: 0.2250135062 | I93: 1,0 - 1,5 m
C94: 1,5 - 2,0 m | D94: 0.2105425401 | E94: 0.1131861913 | F94: 0.05171489818 | G94: 0.1350621286 | I94: 1,5 - 2,0 m
C95: 2,0 - 2,5 m | D95: 0.110974106 | E95: 0.04258630447 | F95: 0.008306538049 | G95: 0.08995137763 | I95: 2,0 - 2,5 m
C96: 2,5 - 3,0 m | D96: 0.05805589807 | E96: 0.02504244482 | F96: 0.003617363344 | G96: 0.0397082658
C97: 3,0 - 3,5 m | D97: 0.02969584875 | E97: 0.01697792869 | F97: 0.001339764202 | G97: 0.02404105889
C98: 3,5 - 4,0 m | D98: 0.01777640773 | E98: 0.008488964346 | F98: 0.0005359056806 | G98: 0.01445164776 | K98: Ʃ | L98: =SUM(L91:L95) -> 0.2259658857 | M98: =SUM(M91:M95) -> 0.4922962649 | N98: =SUM(N91:N95) -> 0.6242229368 | O98: =SUM(O91:O95) -> 0.4020732037
C99: 4,0 - 4,5 m | D99: 0.00595972051 | E99: 0.004244482173 | F99: 0.0005359056806 | G99: 0.005942733657
C100: 4,5 - 5,0 m | D100: 0.002466091245 | E100: 0.004385964912 | F100: 0.0009378349411 | G100: 0.005132360886
C101: 5,0 - 5,5 m | D101: 0.0006165228113 | E101: 0.001980758347 | F101: 0.0008038585209 | G101: 0.0008103727715
C102: 5,5 - 6,0 m | D102: 0 | E102: 0.001980758347 | F102: 0 | G102: 0.001215559157
C103: 6,0 - 6,5 m | D103: 0 | E103: 0.0005659309564 | F103: 0 | G103: 0.002160994057
C104: 6,5 - 7,0 m | D104: 0 | E104: 0 | F104: 0 | G104: 0.0004051863857
C105: 7,0 - 7,5 m | D105: 0 | E105: 0 | F105: 0 | G105: 0
C106: 7,5 - 8,0 m | D106: 0 | E106: 0 | F106: 0 | G106: 0
C107: 8,0 - 8,5 m | D107: 0 | E107: 0 | F107: 0 | G107: 0
C108: 8,5 - 9,0 m | D108: 0 | E108: 0 | F108: 0 | G108: 0
C109: 9,0 - 9,5 m | D109: 0 | E109: 0 | F109: 0 | G109: 0
C110: 9,5 - 10,0 m | D110: 0 | E110: 0 | F110: 0 | G110: 0
C115: Lokasjon | D115: Stasjon 5
C117: Bølgehøydefordeling | L117: Vektede effektiviteter (forventet effektivitet kystsystem)
C118: Intervall | D118: Vinter (DJF) | E118: Vår (MAM) | F118: Sommer (JJA) | G118: Høst (SON) | I118: Opptakseffektivitet (Kyst.) | L118: Vinter (DJF) | M118: Vår (MAM) | N118: Sommer (JJA) | O118: Høst (SON)
C119: 0,0 - 0,5 m | D119: 0.8116522811 | E119: 0.8681380872 | F119: 0.9303322615 | G119: 0.8090221502 | I119: 0,0 - 0,5 m | J119: 0.9 | L119: =D119*J119 -> 0.730487053 | M119: =E119*J119 -> 0.7813242784 | N119: =F119*J119 -> 0.8372990354 | O119: =G119*J119 -> 0.7281199352
C120: 0,5 - 1,0 m | D120: 0.1643033292 | E120: 0.1178551217 | F120: 0.06792604502 | G120: 0.173284711 | I120: 0,5 - 1,0 m | J120: 0.875 | L120: =D120*J120 -> 0.1437654131 | M120: =E120*J120 -> 0.1031232315 | N120: =F120*J120 -> 0.05943528939 | O120: =G120*J120 -> 0.1516241221
C121: 1,0 - 1,5 m | D121: 0.02301685162 | E121: 0.0123089983 | F121: 0.001741693462 | G121: 0.01553214479 | I121: 1,0 - 1,5 m
C122: 1,5 - 2,0 m | D122: 0.001027538019 | E122: 0.001697792869 | F122: 0 | G122: 0.002160994057 | I122: 1,5 - 2,0 m
C123: 2,0 - 2,5 m | D123: 0 | E123: 0 | F123: 0 | G123: 0 | I123: 2,0 - 2,5 m
C124: 2,5 - 3,0 m | D124: 0 | E124: 0 | F124: 0 | G124: 0
C125: 3,0 - 3,5 m | D125: 0 | E125: 0 | F125: 0 | G125: 0
C126: 3,5 - 4,0 m | D126: 0 | E126: 0 | F126: 0 | G126: 0 | K126: Ʃ | L126: =SUM(L119:L123) -> 0.8742524661 | M126: =SUM(M119:M123) -> 0.8844475099 | N126: =SUM(N119:N123) -> 0.8967343248 | O126: =SUM(O119:O123) -> 0.8797440573
C127: 4,0 - 4,5 m | D127: 0 | E127: 0 | F127: 0 | G127: 0
C128: 4,5 - 5,0 m | D128: 0 | E128: 0 | F128: 0 | G128: 0
C129: 5,0 - 5,5 m | D129: 0 | E129: 0 | F129: 0 | G129: 0
C130: 5,5 - 6,0 m | D130: 0 | E130: 0 | F130: 0 | G130: 0
C131: 6,0 - 6,5 m | D131: 0 | E131: 0 | F131: 0 | G131: 0
C132: 6,5 - 7,0 m | D132: 0 | E132: 0 | F132: 0 | G132: 0
C133: 7,0 - 7,5 m | D133: 0 | E133: 0 | F133: 0 | G133: 0
C134: 7,5 - 8,0 m | D134: 0 | E134: 0 | F134: 0 | G134: 0
C135: 8,0 - 8,5 m | D135: 0 | E135: 0 | F135: 0 | G135: 0
C136: 8,5 - 9,0 m | D136: 0 | E136: 0 | F136: 0 | G136: 0
C137: 9,0 - 9,5 m | D137: 0 | E137: 0 | F137: 0 | G137: 0
C138: 9,5 - 10,0 m | D138: 0 | E138: 0 | F138: 0 | G138: 0

Sheet Versjonshistorikk
B2: Versjonsnummer | C2: Endret dato | D2: Endret av | E2: Kommentarer
B3: Prøveversjon | C3: 2012-12-03 | D3: Sigve Evenssønn Rasmussen / Akvaplan-niva | E3: Arbeidsdokument i stadig endring
B4: Betaversjon 1.0 | C4: 2012-12-12 | D4: Sigve Evenssønn Rasmussen / Akvaplan-niva | E4: Første ferdige versjon - feilsøking og testing
B5: Versjon 1.0 | C5: 2012-12-14 | D5: Sigve Evenssønn Rasmussen / Akvaplan-niva | E5: Første versjon som distribueres til ansatte i HSEC EIT ET
B6: Versjon 1.1 | C6: 2012-12-18 | D6: Sigve Evenssønn Rasmussen / Akvaplan-niva | E6: Versjon som distribueres etter workshop 18.12.2012
B7: Versjon 1.2 | C7: 2013-03-19 | D7: Sigve Evenssønn Rasmussen / Akvaplan-niva | E7: Oppdatert med NOFOs gamle forutsetninger (2400/1900 m3/d). Korreksjonsfaktor satt til 100 %
B8: Versjon B2 | C8: 2013-04-04 | D8: Sigve Evenssønn Rasmussen / Akvaplan-niva | E8: Prøveversjon som inkluderer barriere 5: Strandrensing
B9: Versjon 2 | C9: 2019-05-07 | D9: Geir Morten Skeie | E9: Videreutviklet i henhold til systemtyper og forutsetninger NOFO Planverk 2019
B10: Versjon 3 | C10: 2019-09-03 | D10: Cato Melkevik | E10: Lagt inn oljetyper som valg
B11: Versjon 4 | C11: 2019-09-13 | D11: Cato Melkevik | E11: Lagt inn ny olje - Kvitebjørn 2019
B12: Versjon 5 | C12: 2019-09-16 | D12: Geir Morten Skeie | E12: Oppdatert BarKal iht. Kommentarer fra brukerkursene.
B13: Versjon 6 | C13: 2019-09-24 | D13: Cato Melkevik | E13: Justert en feil i forhold til prosentregning
B14: Versjon 7 | C14: 2019-10-01 | D14: Geir Morten Skeie | E14: Oppdatert verdier for HiVisc og MOS Sweeper i B2 og B3
B15: Versjon 7C | C15: 2019-10-02 | D15: Cato Melkevik | E15: Lagt inn ny olje - Heidrun Åre
B16: Versjon 8 | C16: 2019-11-11 | D16: Cato Melkevik | E16: Lagt inn ny olje - Oda 2019
B17: Versjon 9 | C17: 2019-11-29 | D17: Geir Morten Skeie | E17: Oppdatert bølgeklima stasjon 18. Innført beregning av total effektivitet B1-B3
B18: Versjon 10 | C18: 2020-04-02 | D18: Cato Melkevik | E18: Lagt inn ny olje - Iris 2020
B19: Versjon 11 | C19: 2020-05-26 | D19: Cato Melkevik | E19: Lagt inn ny olje - Aasta Hansteen Blend 2020
B20: Versjon 12 | C20: 2020-07-01 | D20: Ivar Kristoffersen | E20: Oppdatert oljer på gullfaks A og Gullfaks C
B21: Versjon 13 | C21: 2020-09-16 | D21: Ivar Kristoffersen | E21: Lagt inn oljer på Visund Crude Oil 2020 og Visund Sør Kondensat 2020
B22: Versjon 14 | C22: 2021-02-16 | D22: Ivar Kristoffersen | E22: Lagt inn oljer Dvalin kondesat 2020 og Skogul 2020
B23: Versjon 15 | C23: 2021-05-06 | D23: Espen Tværsland (Upheads AS) | E23: Koblet kilder opp mot SharePoint Online
B24: Versjon 16 | C24: 2022-02-14 | D24: Espen Tværsland (Upheads AS) | E24: Endret koblingsmetode mot SharePoint Online for "Oljedatabase"
B25: Versjon 17 | C25: 2022-08-25 | D25: Ivar Kristoffersen | E25: Lagt til nye oljer opp til 2022
B26: Versjon 19 | C26: 2022-11-24 | D26: Geir Morten Skeie | E26: Oppdatert til sesongvise beregninger
B27: Versjon 2024 | C27: 13.02.24 | D27: Geir Morten Skeie | E27: Inkludert barriere 3 ytelse relatert til lys og sikt, samt Barriere 4 "pakke"
B28: Versjon 2024.01 | C28: 25.04.24 | D28: Geir Morten Skeie | E28: Justert for 26 m3 maksimal lagringskapasitet
B29: Versjon 2024.06.26 | C29: 26.06.24 | D29: Geir Morten Skeie | E29: Oppdatert Gruppe E effektivitet i henhold til barrierestrategi

Sheet Stasjonskoordinater
A1: Nr | B1: Grader N | C1: Grader Ø
A2: 1 | B2: 56.5 | C2: 2.99
A3: 2 | B3: 58 | C3: 6.85
A4: 3 | B4: 58.5 | C4: 1.93
A5: 4 | B5: 58.46 | C5: 5.6
A6: 5 | B6: 59 | C6: 1.95
A7: 6 | B7: 59.65 | C7: 5.03
A8: 7 | B8: 59.72 | C8: 2.07
A9: 8 | B9: 60.22 | C9: 2.09
A10: 9 | B10: 60.48 | C10: 3.04
A11: 10 | B11: 61 | C11: 2.06
A12: 11 | B12: 61.02 | C12: 3.96
A13: 12 | B13: 60.98 | C13: 4.7
A14: 13 | B14: 61.5 | C14: 2.08
A15: 14 | B15: 62.05 | C15: 4.98
A16: 15 | B16: 63.47 | C16: 5.07
A17: 16 | B17: 64.45 | C17: 8.03
A18: 17 | B18: 65.5 | C18: 7.13
A19: 18 | B19: 67.49 | C19: 11.02
A20: 19 | B20: 69.52 | C20: 17.06
A21: 20 | B21: 70.5 | C21: 31.11
A22: 21 | B22: 71.03 | C22: 28.99
A23: 22 | B23: 71.11 | C23: 23.9
A24: 23 | B24: 71.53 | C24: 20.85
A25: 24 | B25: 71.5 | C25: 25.36
A26: 25 | B26: 72.46 | C26: 25.07
A27: 26 | B27: 72.5 | C27: 28.02
A28: 27 | B28: 73.5 | C28: 16.06

Sheet Oletyper (hidden)
A1: ID | B1: Tittel | C1: Referanse | D1: Rapportdato | E1: Tetthet | F1: API | G1: UTM_N | H1: UTM_E | I1: rapp_PDF | J1: Color Tag
A2: 120 | B2: Aasta Hansteen Blend 2020 | C2: OC2020 A-049 | D2: 2020-04-26 | E2: 823 | F2: 40 | G2: 7461528 | H2: 150375 | I2: Aasta Hansteen Blend 2020 Forvitringsrapport.pdf
A3: 1 | B3: Alta 2016 | C3: SINTEF A27546 | D3: 2016-02-09 | E3: 827 | F3: 40 | G3: 8060666 | H3: 700176 | I3: Alta 2016 Forvitringsrapport.pdf
A4: 129 | B4: Alve 2014 *(2017) | C4: R.14.40.C/5214 | D4: 2014-03-27 | E4: 820 | F4: 43 | G4: 7334943 | H4: 174413 | I4: Alve 2014 (2017) Forvitringsrapport.pdf
A5: 110 | B5: Atla kondensat 2013 | C5: A24224 | D5: 2013-03-14 | E5: 746 | F5: 57 | G5: 6679279 | H5: -197821 | I5: Atla kondensat 2013 Forvitringsrapport.pdf
A6: 2 | B6: Avaldsnes (Johan Sverdrup) 2012 | C6: SINTEF A22484 | D6: 2012-03-05 | E6: 891 | F6: 27 | G6: 6588792 | H6: -215604 | I6: Avaldsnes (Johan Sverdrup) 2012 Forvitringsrapport.pdf
A7: 3 | B7: Balder Blend 2010 | C7: SINTEF A16789 | D7: 2010-11-09 | E7: 864 | F7: 32 | G7: 6629664 | H7: -217792 | I7: Balder Blend 2010 Forvitringsrapport.pdf
